Workbook

Sheet Baladiya Profile Generator
B2: Round | C2: Baladiya Profile Generator
B3: =VLOOKUP(E4,'Access to services (Baladiya)'!E3:J102,6,FALSE) -> 23
B4: Baladiya | E4: Abu Qurayn | I4: Select Baladiya name and choose from dropdown list
D8: Population Groups Present (IND) | I8: Geodivision | K8: Number of Muhallas | M8: =COUNTIF('IDPs - Details'!C3:C661,'Baladiya Profile Generator'!$E$4) -> 6
I9: =VLOOKUP(E4,Geolocation!A2:C101,3,FALSE) -> West
B10: IDPs | D10: =IF((SUMPRODUCT(('IDPs - Details'!C3:C661='Baladiya Profile Generator'!E4)*'IDPs - Details'!N3:N661)=0),"N/A",SUMPRODUCT(('IDPs - Details'!C3:C661='Baladiya Profile Generator'!E4)*'IDPs - Details'!N3:N661)) -> 400 | I10: Mantika | K10: Date of Assessment | M10: =VLOOKUP(E4,'Access to services (Baladiya)'!E3:K102,7,FALSE) -> 2018-12-22
B11: Returnees | D11: =IF((SUMPRODUCT(('Returnees - Details'!C3:C661='Baladiya Profile Generator'!E4)*'Returnees - Details'!N3:N661)=0),"N/A",SUMPRODUCT(('Returnees - Details'!C3:C661='Baladiya Profile Generator'!E4)*'Returnees - Details'!N3:N661)) -> 10750 | I11: =VLOOKUP(E4,Geolocation!A2:C101,2,FALSE) -> Misrata
B12: Migrants | D12: =IF((SUMPRODUCT(('Migrant - Details'!C3:C661='Baladiya Profile Generator'!E4)*'Migrant - Details'!M3:M661)=0),"N/A",SUMPRODUCT(('Migrant - Details'!C3:C661='Baladiya Profile Generator'!E4)*'Migrant - Details'!M3:M661)) -> 1555
B14: EDUCATION | G14: PUBLIC SERVICES | K14: SECURITY
B15: Proportion of public schools operational (%) | E15: =IF(VLOOKUP(E4,'Access to services (Baladiya)'!E3:P102,8,FALSE)=0,"N/A",VLOOKUP(E4,'Access to services (Baladiya)'!E3:P102,8,FALSE)) -> 100 | G15: Sewage Treatment | I15: =IF((VLOOKUP('Baladiya Profile Generator'!E4,'Access to services (Baladiya)'!E3:BS102,16,FALSE)="No"),"Not Available","Available") -> Not Available | K15: Are there UXOs in baladiya? | N15: =VLOOKUP('Baladiya Profile Generator'!E4,'Access to services (Baladiya)'!E3:BS102,40,FALSE) -> Yes
B16: Proportion private schools operational (%) | E16: =IF(VLOOKUP(E4,'Access to services (Baladiya)'!E3:P102,9,FALSE)=0,"N/A",VLOOKUP(E4,'Access to services (Baladiya)'!E3:P102,9,FALSE)) -> N/A | G16: Water Network | I16: =IF((VLOOKUP('Baladiya Profile Generator'!E4,'Access to services (Baladiya)'!E3:BS102,17,FALSE)="No"),"Not Available","Available") -> Available | K16: Muhallas where present | M16: =IF(ISBLANK(VLOOKUP('Baladiya Profile Generator'!E4,'Access to services (Baladiya)'!E3:BS102,41,FALSE)),"N/A",(VLOOKUP('Baladiya Profile Generator'!E4,'Access to services (Baladiya)'!E3:BS102,41,FALSE))) -> N/A
B17: Number of schools used as shelter for IDPs | E17: =IF(VLOOKUP(E4,'Access to services (Baladiya)'!E3:P102,10,FALSE)=0,"N/A",VLOOKUP(E4,'Access to services (Baladiya)'!E3:P102,10,FALSE)) -> N/A | G17: Infrastructure Repair | I17: =IF((VLOOKUP('Baladiya Profile Generator'!E4,'Access to services (Baladiya)'!E3:BS102,18,FALSE)="No"),"Not Available","Available") -> Not Available | M17: =IF(ISBLANK(VLOOKUP('Baladiya Profile Generator'!E4,'Access to services (Baladiya)'!E3:BS102,42,FALSE)),"N/A",(VLOOKUP('Baladiya Profile Generator'!E4,'Access to services (Baladiya)'!E3:BS102,42,FALSE))) -> N/A
B18: Number of schools partially damaged | E18: =IF(VLOOKUP(E4,'Access to services (Baladiya)'!E3:P102,11,FALSE)=0,"N/A",VLOOKUP(E4,'Access to services (Baladiya)'!E3:P102,11,FALSE)) -> N/A | G18: Garbage Disposal | I18: =IF((VLOOKUP('Baladiya Profile Generator'!E4,'Access to services (Baladiya)'!E3:BS102,19,FALSE)="No"),"Not Available","Available") -> Available | K18: Can residents move safely? | M18: =VLOOKUP('Baladiya Profile Generator'!E4,'Access to services (Baladiya)'!E3:BS102,44,FALSE) -> Yes
B19: Number of schools fully damaged | E19: =IF(VLOOKUP(E4,'Access to services (Baladiya)'!E3:P102,12,FALSE)=0,"N/A",VLOOKUP(E4,'Access to services (Baladiya)'!E3:P102,12,FALSE)) -> N/A | G19: Electricity | I19: =IF((VLOOKUP('Baladiya Profile Generator'!E4,'Access to services (Baladiya)'!E3:BS102,20,FALSE)="No"),"Not Available","Available") -> Available
B21: HEALTH | G21: Main Water Supply | K21: =IF(((VLOOKUP('Baladiya Profile Generator'!E4,'Access to services (Baladiya)'!E3:BS102,21,FALSE))="Yes"),"Water Network",IF(((VLOOKUP('Baladiya Profile Generator'!E4,'Access to services (Baladiya)'!E3:BS102,22,FALSE))="Yes"),"Water Trucking",IF(((VLOOKUP('Baladiya Profile Generator'!E4,'Access to services (Baladiya)'!E3:BS102,23,FALSE))="Yes"),"Water bottles",IF(((VLOOKUP('Baladiya Profile Generator'!E4,'Access to services (Baladiya)'!E3:BS102,24,FALSE))="Yes"),"Open well",IF(((VLOOKUP('Baladiya Profile Generator'!E4,'Access to services (Baladiya)'!E3:BS102,25,FALSE))="Yes"),"Springs or river","N/A"))))) -> Water Network
B22: Proportion of operational public health centers, clinics and hospitals (%) | E22: =IF(VLOOKUP('Baladiya Profile Generator'!E4,'Access to services (Baladiya)'!E3:BS102,13,FALSE)=0,"N/A",VLOOKUP('Baladiya Profile Generator'!E4,'Access to services (Baladiya)'!E3:BS102,13,FALSE)) -> 100 | G22: Main issue related to water in baladiya | K22: =IF(((VLOOKUP('Baladiya Profile Generator'!E4,'Access to services (Baladiya)'!E3:BS102,27,FALSE))="Yes"),"Too expensive",IF(((VLOOKUP('Baladiya Profile Generator'!E4,'Access to services (Baladiya)'!E3:BS102,28,FALSE))="Yes"),"Security reasons",IF(((VLOOKUP('Baladiya Profile Generator'!E4,'Access to services (Baladiya)'!E3:BS102,29,FALSE))="Yes"),"Not safe for drinking","N/A"))) -> Too expensive
G23: Main Source of Food Supply | K23: =IF(((VLOOKUP('Baladiya Profile Generator'!E4,'Access to services (Baladiya)'!E3:BS102,32,FALSE))="Yes"),"Local market",IF(((VLOOKUP('Baladiya Profile Generator'!E4,'Access to services (Baladiya)'!E3:BS102,33,FALSE))="Yes"),"Donated by relatives or friends",IF(((VLOOKUP('Baladiya Profile Generator'!E4,'Access to services (Baladiya)'!E3:BS102,34,FALSE))="Yes"),"Donated by charity or aid","N/A"))) -> Local market
B24: Proportion of operational private health centers and clinics (%) | E24: =IF(VLOOKUP('Baladiya Profile Generator'!E4,'Access to services (Baladiya)'!E3:BS102,14,FALSE)=0,"N/A",VLOOKUP('Baladiya Profile Generator'!E4,'Access to services (Baladiya)'!E3:BS102,14,FALSE)) -> 100 | G24: Main issue related to food in baladiya | K24: =VLOOKUP('Baladiya Profile Generator'!E4,'Access to services (Baladiya)'!E3:BS102,39,FALSE) -> Too expensive
G25: NFI Needs | K25: =IF(((VLOOKUP('Baladiya Profile Generator'!E4,'Access to services (Baladiya)'!E3:BS102,49,FALSE))="Yes"),"Portable lights",IF(((VLOOKUP('Baladiya Profile Generator'!E4,'Access to services (Baladiya)'!E3:BS102,50,FALSE))="Yes"),"Clothes",""))&" "&IF(((VLOOKUP('Baladiya Profile Generator'!E4,'Access to services (Baladiya)'!E3:BS102,51,FALSE))="Yes"),"Mattress",IF(((VLOOKUP('Baladiya Profile Generator'!E4,'Access to services (Baladiya)'!E3:BS102,52,FALSE))="Yes"),"Gas/fuel",""))&" "&IF(((VLOOKUP('Baladiya Profile Generator'!E4,'Access to services (Baladiya)'!E3:BS102,53,FALSE))="Yes"),"Hygienic items",IF(((VLOOKUP('Baladiya Profile Generator'!E4,'Access to services (Baladiya)'!E3:BS102,54,FALSE))="Yes"),"Heaters","")) -> Clothes
B26: Regular access to medicine | E26: =IF(VLOOKUP('Baladiya Profile Generator'!E4,'Access to services (Baladiya)'!E3:BS102,15,FALSE)=0,"N/A",VLOOKUP('Baladiya Profile Generator'!E4,'Access to services (Baladiya)'!E3:BS102,15,FALSE)) -> No | G26: Main issue related to NFIs in baladiya | K26: =IF(((VLOOKUP('Baladiya Profile Generator'!E4,'Access to services (Baladiya)'!E3:BS102,55,FALSE))="Yes"),"Too expensive",IF(((VLOOKUP('Baladiya Profile Generator'!E4,'Access to services (Baladiya)'!E3:BS102,56,FALSE))="Yes"),"Distance from local market",IF(((VLOOKUP('Baladiya Profile Generator'!E4,'Access to services (Baladiya)'!E3:BS102,21,FALSE))="Yes"),"Quality","No problem"))) -> Too expensive
B28: l+216 29 235 097 | F28: dtmlibya@iom.int | J28: www.globaldtm.info/libya
B30: IDPs | D30: =D10 -> 400 | L30: =E4 -> Abu Qurayn
B34: IDP Arrival Time | D34: HH | E34: IND | G34: Needs
B35: 2011-2014 | D35: =IF(SUMPRODUCT(('Arrival Time'!$C$3:$C$661='Baladiya Profile Generator'!$E$4)*'Arrival Time'!L$3:L$661)=0,"-",SUMPRODUCT(('Arrival Time'!$C$3:$C$661='Baladiya Profile Generator'!$E$4)*'Arrival Time'!L$3:L$661)) -> 72 | E35: =IF(SUMPRODUCT(('Arrival Time'!$C$3:$C$661='Baladiya Profile Generator'!$E$4)*'Arrival Time'!M$3:M$661)=0,"-",SUMPRODUCT(('Arrival Time'!$C$3:$C$661='Baladiya Profile Generator'!$E$4)*'Arrival Time'!M$3:M$661)) -> 360 | U35: 1 | V35: 2 | W35: 3
B36: 2015-2018 | D36: =IF(SUMPRODUCT(('Arrival Time'!$C$3:$C$661='Baladiya Profile Generator'!$E$4)*'Arrival Time'!N$3:N$661)=0,"-",SUMPRODUCT(('Arrival Time'!$C$3:$C$661='Baladiya Profile Generator'!$E$4)*'Arrival Time'!N$3:N$661)) -> 9 | E36: =IF(SUMPRODUCT(('Arrival Time'!$C$3:$C$661='Baladiya Profile Generator'!$E$4)*'Arrival Time'!O$3:O$661)=0,"-",SUMPRODUCT(('Arrival Time'!$C$3:$C$661='Baladiya Profile Generator'!$E$4)*'Arrival Time'!O$3:O$661)) -> 45 | G36: PRIORITY #1 | I36: =Q37 -> Health services | S36: =U36*0.5+V36*0.3+W36*0.2 -> 52.5 | T36: Access to income | U36: =SUMIFS('IDPs - Details'!$N$3:$N$661,'IDPs - Details'!$C$3:$C$661,$E$4,'IDPs - Details'!$BG$3:$BG$661,'Baladiya Profile Generator'!$T36) -> 0 | V36: =SUMIFS('IDPs - Details'!$N$3:$N$661,'IDPs - Details'!$C$3:$C$661,$E$4,'IDPs - Details'!$BK$3:$BK$661,'Baladiya Profile Generator'!$T36) -> 175 | W36: =SUMIFS('IDPs - Details'!$N$3:$N$661,'IDPs - Details'!$C$3:$C$661,$E$4,'IDPs - Details'!$BO$3:$BO$661,'Baladiya Profile Generator'!$T36) -> 0 | X36: Access to income
P37: =LARGE(S36:S45,1) -> 120 | Q37: =IF(P37=0,"-",VLOOKUP(P37,S36:T45,2,FALSE)) -> Health services | R37: =VLOOKUP($Q37,Geolocation!$F$105:$H$115,3,FALSE) -> Geolocation!G108 | S37: 25 | T37: Education | U37: =SUMIFS('IDPs - Details'!$N$3:$N$661,'IDPs - Details'!$C$3:$C$661,$E$4,'IDPs - Details'!$BG$3:$BG$661,'Baladiya Profile Generator'!$T37) -> 0 | V37: =SUMIFS('IDPs - Details'!$N$3:$N$661,'IDPs - Details'!$C$3:$C$661,$E$4,'IDPs - Details'!$BK$3:$BK$661,'Baladiya Profile Generator'!$T37) -> 0 | W37: =SUMIFS('IDPs - Details'!$N$3:$N$661,'IDPs - Details'!$C$3:$C$661,$E$4,'IDPs - Details'!$BO$3:$BO$661,'Baladiya Profile Generator'!$T37) -> 125 | X37: Education
P38: =LARGE(S36:S45,2) -> 105 | Q38: =IF(P38=0,"-",VLOOKUP(P38,S36:T45,2,FALSE)) -> Water, Sanitation and Hygiene | R38: =VLOOKUP($Q38,Geolocation!$F$105:$H$115,3,FALSE) -> Geolocation!G114 | S38: 20.5 | T38: Food | U38: =SUMIFS('IDPs - Details'!$N$3:$N$661,'IDPs - Details'!$C$3:$C$661,$E$4,'IDPs - Details'!$BG$3:$BG$661,'Baladiya Profile Generator'!$T38) -> 20 | V38: =SUMIFS('IDPs - Details'!$N$3:$N$661,'IDPs - Details'!$C$3:$C$661,$E$4,'IDPs - Details'!$BK$3:$BK$661,'Baladiya Profile Generator'!$T38) -> 35 | W38: =SUMIFS('IDPs - Details'!$N$3:$N$661,'IDPs - Details'!$C$3:$C$661,$E$4,'IDPs - Details'!$BO$3:$BO$661,'Baladiya Profile Generator'!$T38) -> 0 | X38: Food
B39: Shelter | P39: =LARGE(S36:S45,3) -> 62 | Q39: =IF(P39=0,"-",VLOOKUP(P39,S36:T45,2,FALSE)) -> Shelter | R39: =VLOOKUP($Q39,Geolocation!$F$105:$H$115,3,FALSE) -> Geolocation!G113 | S39: 120 | T39: Health services | U39: =SUMIFS('IDPs - Details'!$N$3:$N$661,'IDPs - Details'!$C$3:$C$661,$E$4,'IDPs - Details'!$BG$3:$BG$661,'Baladiya Profile Generator'!$T39) -> 170 | V39: =SUMIFS('IDPs - Details'!$N$3:$N$661,'IDPs - Details'!$C$3:$C$661,$E$4,'IDPs - Details'!$BK$3:$BK$661,'Baladiya Profile Generator'!$T39) -> 0 | W39: =SUMIFS('IDPs - Details'!$N$3:$N$661,'IDPs - Details'!$C$3:$C$661,$E$4,'IDPs - Details'!$BO$3:$BO$661,'Baladiya Profile Generator'!$T39) -> 175 | X39: Health services
B40: Rented Accomodation | D40: =IF((SUMPRODUCT(('IDPs - Details'!$C$3:$C$661='Baladiya Profile Generator'!$E$4)*'IDPs - Details'!X$3:X$661)=0),"-",SUMPRODUCT(('IDPs - Details'!$C$3:$C$661='Baladiya Profile Generator'!$E$4)*'IDPs - Details'!X$3:X$661)) -> 31 | E40: =IF((SUMPRODUCT(('IDPs - Details'!$C$3:$C$661='Baladiya Profile Generator'!$E$4)*'IDPs - Details'!Y$3:Y$661)=0),"-",SUMPRODUCT(('IDPs - Details'!$C$3:$C$661='Baladiya Profile Generator'!$E$4)*'IDPs - Details'!Y$3:Y$661)) -> 155 | G40: PRIORITY #2 | I40: =Q38 -> Water, Sanitation and Hygiene | S40: 9 | T40: Legal Help | U40: =SUMIFS('IDPs - Details'!$N$3:$N$661,'IDPs - Details'!$C$3:$C$661,$E$4,'IDPs - Details'!$BG$3:$BG$661,'Baladiya Profile Generator'!$T40) -> 0 | V40: =SUMIFS('IDPs - Details'!$N$3:$N$661,'IDPs - Details'!$C$3:$C$661,$E$4,'IDPs - Details'!$BK$3:$BK$661,'Baladiya Profile Generator'!$T40) -> 0 | W40: =SUMIFS('IDPs - Details'!$N$3:$N$661,'IDPs - Details'!$C$3:$C$661,$E$4,'IDPs - Details'!$BO$3:$BO$661,'Baladiya Profile Generator'!$T40) -> 45 | X40: Legal Help
B41: With host family,no rent | D41: =IF((SUMPRODUCT(('IDPs - Details'!$C$3:$C$661='Baladiya Profile Generator'!$E$4)*'IDPs - Details'!Z$3:Z$661)=0),"-",SUMPRODUCT(('IDPs - Details'!$C$3:$C$661='Baladiya Profile Generator'!$E$4)*'IDPs - Details'!Z$3:Z$661)) -> 10 | E41: =IF((SUMPRODUCT(('IDPs - Details'!$C$3:$C$661='Baladiya Profile Generator'!$E$4)*'IDPs - Details'!AA$3:AA$661)=0),"-",SUMPRODUCT(('IDPs - Details'!$C$3:$C$661='Baladiya Profile Generator'!$E$4)*'IDPs - Details'!AA$3:AA$661)) -> 50 | S41: 6 | T41: NFIs | U41: =SUMIFS('IDPs - Details'!$N$3:$N$661,'IDPs - Details'!$C$3:$C$661,$E$4,'IDPs - Details'!$BG$3:$BG$661,'Baladiya Profile Generator'!$T41) -> 0 | V41: =SUMIFS('IDPs - Details'!$N$3:$N$661,'IDPs - Details'!$C$3:$C$661,$E$4,'IDPs - Details'!$BK$3:$BK$661,'Baladiya Profile Generator'!$T41) -> 20 | W41: =SUMIFS('IDPs - Details'!$N$3:$N$661,'IDPs - Details'!$C$3:$C$661,$E$4,'IDPs - Details'!$BO$3:$BO$661,'Baladiya Profile Generator'!$T41) -> 0 | X41: NFIs
B42: Abondoned buildings | D42: =IF((SUMPRODUCT(('IDPs - Details'!$C$3:$C$661='Baladiya Profile Generator'!$E$4)*'IDPs - Details'!AB$3:AB$661)=0),"-",SUMPRODUCT(('IDPs - Details'!$C$3:$C$661='Baladiya Profile Generator'!$E$4)*'IDPs - Details'!AB$3:AB$661)) -> 6 | E42: =IF((SUMPRODUCT(('IDPs - Details'!$C$3:$C$661='Baladiya Profile Generator'!$E$4)*'IDPs - Details'!AC$3:AC$661)=0),"-",SUMPRODUCT(('IDPs - Details'!$C$3:$C$661='Baladiya Profile Generator'!$E$4)*'IDPs - Details'!AC$3:AC$661)) -> 30 | S42: 0 | T42: Protection | U42: =SUMIFS('IDPs - Details'!$N$3:$N$661,'IDPs - Details'!$C$3:$C$661,$E$4,'IDPs - Details'!$BG$3:$BG$661,'Baladiya Profile Generator'!$T42) -> 0 | V42: =SUMIFS('IDPs - Details'!$N$3:$N$661,'IDPs - Details'!$C$3:$C$661,$E$4,'IDPs - Details'!$BK$3:$BK$661,'Baladiya Profile Generator'!$T42) -> 0 | W42: =SUMIFS('IDPs - Details'!$N$3:$N$661,'IDPs - Details'!$C$3:$C$661,$E$4,'IDPs - Details'!$BO$3:$BO$661,'Baladiya Profile Generator'!$T42) -> 0 | X42: Protection
B43: Squatting on other people's properties | D43: =IF((SUMPRODUCT(('IDPs - Details'!$C$3:$C$661='Baladiya Profile Generator'!$E$4)*'IDPs - Details'!AD$3:AD$661)=0),"-",SUMPRODUCT(('IDPs - Details'!$C$3:$C$661='Baladiya Profile Generator'!$E$4)*'IDPs - Details'!AD$3:AD$661)) -> 30 | E43: =IF((SUMPRODUCT(('IDPs - Details'!$C$3:$C$661='Baladiya Profile Generator'!$E$4)*'IDPs - Details'!AE$3:AE$661)=0),"-",SUMPRODUCT(('IDPs - Details'!$C$3:$C$661='Baladiya Profile Generator'!$E$4)*'IDPs - Details'!AE$3:AE$661)) -> 150 | S43: 0 | T43: Security | U43: =SUMIFS('IDPs - Details'!$N$3:$N$661,'IDPs - Details'!$C$3:$C$661,$E$4,'IDPs - Details'!$BG$3:$BG$661,'Baladiya Profile Generator'!$T43) -> 0 | V43: =SUMIFS('IDPs - Details'!$N$3:$N$661,'IDPs - Details'!$C$3:$C$661,$E$4,'IDPs - Details'!$BK$3:$BK$661,'Baladiya Profile Generator'!$T43) -> 0 | W43: =SUMIFS('IDPs - Details'!$N$3:$N$661,'IDPs - Details'!$C$3:$C$661,$E$4,'IDPs - Details'!$BO$3:$BO$661,'Baladiya Profile Generator'!$T43) -> 0 | X43: Security
G44: PRIORITY #3 | I44: =Q39 -> Shelter | S44: 62 | T44: Shelter | U44: =SUMIFS('IDPs - Details'!$N$3:$N$661,'IDPs - Details'!$C$3:$C$661,$E$4,'IDPs - Details'!$BG$3:$BG$661,'Baladiya Profile Generator'!$T44) -> 0 | V44: =SUMIFS('IDPs - Details'!$N$3:$N$661,'IDPs - Details'!$C$3:$C$661,$E$4,'IDPs - Details'!$BK$3:$BK$661,'Baladiya Profile Generator'!$T44) -> 170 | W44: =SUMIFS('IDPs - Details'!$N$3:$N$661,'IDPs - Details'!$C$3:$C$661,$E$4,'IDPs - Details'!$BO$3:$BO$661,'Baladiya Profile Generator'!$T44) -> 55 | X44: Shelter
B45: Schools or other public buildings | D45: =IF((SUMPRODUCT(('IDPs - Details'!$C$3:$C$661='Baladiya Profile Generator'!$E$4)*'IDPs - Details'!AF$3:AF$661)=0),"-",SUMPRODUCT(('IDPs - Details'!$C$3:$C$661='Baladiya Profile Generator'!$E$4)*'IDPs - Details'!AF$3:AF$661)) -> 2 | E45: =IF((SUMPRODUCT(('IDPs - Details'!$C$3:$C$661='Baladiya Profile Generator'!$E$4)*'IDPs - Details'!AG$3:AG$661)=0),"-",SUMPRODUCT(('IDPs - Details'!$C$3:$C$661='Baladiya Profile Generator'!$E$4)*'IDPs - Details'!AG$3:AG$661)) -> 10 | S45: 105 | T45: Water, Sanitation and Hygiene | U45: =SUMIFS('IDPs - Details'!$N$3:$N$661,'IDPs - Details'!$C$3:$C$661,$E$4,'IDPs - Details'!$BG$3:$BG$661,'Baladiya Profile Generator'!$T45) -> 210 | V45: =SUMIFS('IDPs - Details'!$N$3:$N$661,'IDPs - Details'!$C$3:$C$661,$E$4,'IDPs - Details'!$BK$3:$BK$661,'Baladiya Profile Generator'!$T45) -> 0 | W45: =SUMIFS('IDPs - Details'!$N$3:$N$661,'IDPs - Details'!$C$3:$C$661,$E$4,'IDPs - Details'!$BO$3:$BO$661,'Baladiya Profile Generator'!$T45) -> 0 | X45: Water, Sanitation and Hygiene
B47: No accomodation | D47: =IF((SUMPRODUCT(('IDPs - Details'!$C$3:$C$661='Baladiya Profile Generator'!$E$4)*'IDPs - Details'!AH$3:AH$661)=0),"-",SUMPRODUCT(('IDPs - Details'!$C$3:$C$661='Baladiya Profile Generator'!$E$4)*'IDPs - Details'!AH$3:AH$661)) -> - | E47: =IF((SUMPRODUCT(('IDPs - Details'!$C$3:$C$661='Baladiya Profile Generator'!$E$4)*'IDPs - Details'!AI$3:AI$661)=0),"-",SUMPRODUCT(('IDPs - Details'!$C$3:$C$661='Baladiya Profile Generator'!$E$4)*'IDPs - Details'!AI$3:AI$661)) -> -
B48: In informal camp setting | D48: =IF((SUMPRODUCT(('IDPs - Details'!$C$3:$C$661='Baladiya Profile Generator'!$E$4)*'IDPs - Details'!AJ$3:AJ$661)=0),"-",SUMPRODUCT(('IDPs - Details'!$C$3:$C$661='Baladiya Profile Generator'!$E$4)*'IDPs - Details'!AJ$3:AJ$661)) -> - | E48: =IF((SUMPRODUCT(('IDPs - Details'!$C$3:$C$661='Baladiya Profile Generator'!$E$4)*'IDPs - Details'!AK$3:AK$661)=0),"-",SUMPRODUCT(('IDPs - Details'!$C$3:$C$661='Baladiya Profile Generator'!$E$4)*'IDPs - Details'!AK$3:AK$661)) -> -
B49: Other Shelter | D49: =IF((SUMPRODUCT(('IDPs - Details'!$C$3:$C$661='Baladiya Profile Generator'!$E$4)*'IDPs - Details'!AL$3:AL$661)=0),"-",SUMPRODUCT(('IDPs - Details'!$C$3:$C$661='Baladiya Profile Generator'!$E$4)*'IDPs - Details'!AL$3:AL$661)) -> 1 | E49: =IF((SUMPRODUCT(('IDPs - Details'!$C$3:$C$661='Baladiya Profile Generator'!$E$4)*'IDPs - Details'!AM$3:AM$661)=0),"-",SUMPRODUCT(('IDPs - Details'!$C$3:$C$661='Baladiya Profile Generator'!$E$4)*'IDPs - Details'!AM$3:AM$661)) -> 5
G50: Reasons for coming to the current location | L50: Reasons for leaving the place of origin
G51: Availability of basic services | J51: =IF(((COUNTIFS('IDPs - Details'!$C$3:$C$661,'Baladiya Profile Generator'!$E$4,'IDPs - Details'!AX$3:AX$661,"=Yes")/COUNTIFS('IDPs - Details'!$C$3:$C$661,'Baladiya Profile Generator'!$E$4))=0),"-",COUNTIFS('IDPs - Details'!$C$3:$C$661,'Baladiya Profile Generator'!$E$4,'IDPs - Details'!AX$3:AX$661,"=Yes")/COUNTIFS('IDPs - Details'!$C$3:$C$661,'Baladiya Profile Generator'!$E$4)) -> 0.5
G52: Access to humanitarian assistance | J52: =IF(((COUNTIFS('IDPs - Details'!$C$3:$C$661,'Baladiya Profile Generator'!$E$4,'IDPs - Details'!AY$3:AY$661,"=Yes")/COUNTIFS('IDPs - Details'!$C$3:$C$661,'Baladiya Profile Generator'!$E$4))=0),"-",COUNTIFS('IDPs - Details'!$C$3:$C$661,'Baladiya Profile Generator'!$E$4,'IDPs - Details'!AY$3:AY$661,"=Yes")/COUNTIFS('IDPs - Details'!$C$3:$C$661,'Baladiya Profile Generator'!$E$4)) -> - | L52: Deterioration of economic situation | N52: =IF(((COUNTIFS('IDPs - Details'!$C$3:$C$661,'Baladiya Profile Generator'!$E$4,'IDPs - Details'!AT$3:AT$661,"=Yes")/COUNTIFS('IDPs - Details'!$C$3:$C$661,'Baladiya Profile Generator'!$E$4))=0),"-",COUNTIFS('IDPs - Details'!$C$3:$C$661,'Baladiya Profile Generator'!$E$4,'IDPs - Details'!AT$3:AT$661,"=Yes")/COUNTIFS('IDPs - Details'!$C$3:$C$661,'Baladiya Profile Generator'!$E$4)) -> 0.5
B53: Main Baladiyas of Origin | D53: =IF(ISBLANK(VLOOKUP($E$4,Baladiya!$E$3:$BD$102,18,FALSE)),"N/A",VLOOKUP($E$4,Baladiya!$E$3:$BD$102,18,FALSE)) -> Misrata | G53: Better access to livelihood opportunities | J53: =IF(((COUNTIFS('IDPs - Details'!$C$3:$C$661,'Baladiya Profile Generator'!$E$4,'IDPs - Details'!AZ$3:AZ$661,"=Yes")/COUNTIFS('IDPs - Details'!$C$3:$C$661,'Baladiya Profile Generator'!$E$4))=0),"-",COUNTIFS('IDPs - Details'!$C$3:$C$661,'Baladiya Profile Generator'!$E$4,'IDPs - Details'!AZ$3:AZ$661,"=Yes")/COUNTIFS('IDPs - Details'!$C$3:$C$661,'Baladiya Profile Generator'!$E$4)) -> 0.6666666667
L54: Deterioration of security situation | N54: =IF(((COUNTIFS('IDPs - Details'!$C$3:$C$661,'Baladiya Profile Generator'!$E$4,'IDPs - Details'!AU$3:AU$661,"=Yes")/COUNTIFS('IDPs - Details'!$C$3:$C$661,'Baladiya Profile Generator'!$E$4))=0),"-",COUNTIFS('IDPs - Details'!$C$3:$C$661,'Baladiya Profile Generator'!$E$4,'IDPs - Details'!AU$3:AU$661,"=Yes")/COUNTIFS('IDPs - Details'!$C$3:$C$661,'Baladiya Profile Generator'!$E$4)) -> 1
D55: =IF(ISBLANK(VLOOKUP($E$4,Baladiya!$E$3:$BD$102,19,FALSE)),"N/A",VLOOKUP($E$4,Baladiya!$E$3:$BD$102,19,FALSE)) -> Sirt | G55: Better security situation | J55: =IF(((COUNTIFS('IDPs - Details'!$C$3:$C$661,'Baladiya Profile Generator'!$E$4,'IDPs - Details'!BA$3:BA$661,"=Yes")/COUNTIFS('IDPs - Details'!$C$3:$C$661,'Baladiya Profile Generator'!$E$4))=0),"-",COUNTIFS('IDPs - Details'!$C$3:$C$661,'Baladiya Profile Generator'!$E$4,'IDPs - Details'!BA$3:BA$661,"=Yes")/COUNTIFS('IDPs - Details'!$C$3:$C$661,'Baladiya Profile Generator'!$E$4)) -> 0.5
G56: Presence of relatives_social and cultural bonds | J56: =IF(((COUNTIFS('IDPs - Details'!$C$3:$C$661,'Baladiya Profile Generator'!$E$4,'IDPs - Details'!BB$3:BB$661,"=Yes")/COUNTIFS('IDPs - Details'!$C$3:$C$661,'Baladiya Profile Generator'!$E$4))=0),"-",COUNTIFS('IDPs - Details'!$C$3:$C$661,'Baladiya Profile Generator'!$E$4,'IDPs - Details'!BB$3:BB$661,"=Yes")/COUNTIFS('IDPs - Details'!$C$3:$C$661,'Baladiya Profile Generator'!$E$4)) -> 1 | L56: Lack of basic services | N56: =IF(((COUNTIFS('IDPs - Details'!$C$3:$C$661,'Baladiya Profile Generator'!$E$4,'IDPs - Details'!AV$3:AV$661,"=Yes")/COUNTIFS('IDPs - Details'!$C$3:$C$661,'Baladiya Profile Generator'!$E$4))=0),"-",COUNTIFS('IDPs - Details'!$C$3:$C$661,'Baladiya Profile Generator'!$E$4,'IDPs - Details'!AV$3:AV$661,"=Yes")/COUNTIFS('IDPs - Details'!$C$3:$C$661,'Baladiya Profile Generator'!$E$4)) -> 0.8333333333
D57: =IF(ISBLANK(VLOOKUP($E$4,Baladiya!$E$3:$BD$102,20,FALSE)),"N/A",VLOOKUP($E$4,Baladiya!$E$3:$BD$102,20,FALSE)) -> N/A
G58: In transit | J58: =IF(((COUNTIFS('IDPs - Details'!$C$3:$C$661,'Baladiya Profile Generator'!$E$4,'IDPs - Details'!BC$3:BC$661,"=Yes")/COUNTIFS('IDPs - Details'!$C$3:$C$661,'Baladiya Profile Generator'!$E$4))=0),"-",COUNTIFS('IDPs - Details'!$C$3:$C$661,'Baladiya Profile Generator'!$E$4,'IDPs - Details'!BC$3:BC$661,"=Yes")/COUNTIFS('IDPs - Details'!$C$3:$C$661,'Baladiya Profile Generator'!$E$4)) -> - | L58: Other Reason for Leaving | N58: =IF(((COUNTIFS('IDPs - Details'!$C$3:$C$661,'Baladiya Profile Generator'!$E$4,'IDPs - Details'!AW$3:AW$661,"=Yes")/COUNTIFS('IDPs - Details'!$C$3:$C$661,'Baladiya Profile Generator'!$E$4))=0),"-",COUNTIFS('IDPs - Details'!$C$3:$C$661,'Baladiya Profile Generator'!$E$4,'IDPs - Details'!AW$3:AW$661,"=Yes")/COUNTIFS('IDPs - Details'!$C$3:$C$661,'Baladiya Profile Generator'!$E$4)) -> -
G59: Other Reason for Coming | J59: =IF(((COUNTIFS('IDPs - Details'!$C$3:$C$661,'Baladiya Profile Generator'!$E$4,'IDPs - Details'!BD$3:BD$661,"=Yes")/COUNTIFS('IDPs - Details'!$C$3:$C$661,'Baladiya Profile Generator'!$E$4))=0),"-",COUNTIFS('IDPs - Details'!$C$3:$C$661,'Baladiya Profile Generator'!$E$4,'IDPs - Details'!BD$3:BD$661,"=Yes")/COUNTIFS('IDPs - Details'!$C$3:$C$661,'Baladiya Profile Generator'!$E$4)) -> -
B61: l+216 29 235 097 | F61: dtmlibya@iom.int | J61: www.globaldtm.info/libya
B63: Returnrees | D63: =D11 -> 10750 | L63: =E4 -> Abu Qurayn
B67: Returnees Arrival Time | D67: HH | E67: IND | G67: Needs
B68: 2016-2017 | D68: =IF(SUMPRODUCT(('Arrival Time'!$C$3:$C$661='Baladiya Profile Generator'!$E$4)*'Arrival Time'!P$3:P$661)=0,"-",SUMPRODUCT(('Arrival Time'!$C$3:$C$661='Baladiya Profile Generator'!$E$4)*'Arrival Time'!P$3:P$661)) -> 2150 | E68: =IF(SUMPRODUCT(('Arrival Time'!$C$3:$C$661='Baladiya Profile Generator'!$E$4)*'Arrival Time'!Q$3:Q$661)=0,"-",SUMPRODUCT(('Arrival Time'!$C$3:$C$661='Baladiya Profile Generator'!$E$4)*'Arrival Time'!Q$3:Q$661)) -> 10750 | U68: 1 | V68: 2 | W68: 3
B69: 2018 | D69: =IF(SUMPRODUCT(('Arrival Time'!$C$3:$C$661='Baladiya Profile Generator'!$E$4)*'Arrival Time'!R$3:R$661)=0,"-",SUMPRODUCT(('Arrival Time'!$C$3:$C$661='Baladiya Profile Generator'!$E$4)*'Arrival Time'!R$3:R$661)) -> - | E69: =IF(SUMPRODUCT(('Arrival Time'!$C$3:$C$661='Baladiya Profile Generator'!$E$4)*'Arrival Time'!S$3:S$661)=0,"-",SUMPRODUCT(('Arrival Time'!$C$3:$C$661='Baladiya Profile Generator'!$E$4)*'Arrival Time'!S$3:S$661)) -> - | G69: PRIORITY #1 | I69: =Q70 -> Water, Sanitation and Hygiene | S69: =U69*0.5+V69*0.3+W69*0.2 -> 0 | T69: Access to income | U69: =SUMIFS('Returnees - Details'!$N$3:$N$661,'Returnees - Details'!$C$3:$C$661,$E$4,'Returnees - Details'!$BC$3:$BC$661,'Baladiya Profile Generator'!$X69) -> 0 | V69: =SUMIFS('Returnees - Details'!$N$3:$N$661,'Returnees - Details'!$C$3:$C$661,$E$4,'Returnees - Details'!$BG$3:$BG$661,'Baladiya Profile Generator'!$X69) -> 0 | W69: =SUMIFS('Returnees - Details'!$N$3:$N$661,'Returnees - Details'!$C$3:$C$661,$E$4,'Returnees - Details'!$BK$3:$BK$661,'Baladiya Profile Generator'!$X69) -> 0 | X69: Access to income
P70: =LARGE(S69:S78,1) -> 5375 | Q70: =IF(P70=0,"-",VLOOKUP(P70,S69:T78,2,FALSE)) -> Water, Sanitation and Hygiene | R70: =VLOOKUP($Q70,Geolocation!$F$105:$H$115,3,FALSE) -> Geolocation!G114 | S70: 2150 | T70: Education | U70: =SUMIFS('Returnees - Details'!$N$3:$N$661,'Returnees - Details'!$C$3:$C$661,$E$4,'Returnees - Details'!$BC$3:$BC$661,'Baladiya Profile Generator'!$X70) -> 0 | V70: =SUMIFS('Returnees - Details'!$N$3:$N$661,'Returnees - Details'!$C$3:$C$661,$E$4,'Returnees - Details'!$BG$3:$BG$661,'Baladiya Profile Generator'!$X70) -> 0 | W70: =SUMIFS('Returnees - Details'!$N$3:$N$661,'Returnees - Details'!$C$3:$C$661,$E$4,'Returnees - Details'!$BK$3:$BK$661,'Baladiya Profile Generator'!$X70) -> 10750 | X70: Education
P71: =LARGE(S69:S78,2) -> 3225 | Q71: =IF(P71=0,"-",VLOOKUP(P71,S69:T78,2,FALSE)) -> Health services | R71: =VLOOKUP($Q71,Geolocation!$F$105:$H$115,3,FALSE) -> Geolocation!G108 | S71: 0 | T71: Food | U71: =SUMIFS('Returnees - Details'!$N$3:$N$661,'Returnees - Details'!$C$3:$C$661,$E$4,'Returnees - Details'!$BC$3:$BC$661,'Baladiya Profile Generator'!$X71) -> 0 | V71: =SUMIFS('Returnees - Details'!$N$3:$N$661,'Returnees - Details'!$C$3:$C$661,$E$4,'Returnees - Details'!$BG$3:$BG$661,'Baladiya Profile Generator'!$X71) -> 0 | W71: =SUMIFS('Returnees - Details'!$N$3:$N$661,'Returnees - Details'!$C$3:$C$661,$E$4,'Returnees - Details'!$BK$3:$BK$661,'Baladiya Profile Generator'!$X71) -> 0 | X71: Food
B72: Shelter | P72: =LARGE(S69:S78,3) -> 2150 | Q72: =IF(P72=0,"-",VLOOKUP(P72,S69:T78,2,FALSE)) -> Education | R72: =VLOOKUP($Q72,Geolocation!$F$105:$H$115,3,FALSE) -> Geolocation!G106 | S72: 3225 | T72: Health services | U72: =SUMIFS('Returnees - Details'!$N$3:$N$661,'Returnees - Details'!$C$3:$C$661,$E$4,'Returnees - Details'!$BC$3:$BC$661,'Baladiya Profile Generator'!$X72) -> 0 | V72: =SUMIFS('Returnees - Details'!$N$3:$N$661,'Returnees - Details'!$C$3:$C$661,$E$4,'Returnees - Details'!$BG$3:$BG$661,'Baladiya Profile Generator'!$X72) -> 10750 | W72: =SUMIFS('Returnees - Details'!$N$3:$N$661,'Returnees - Details'!$C$3:$C$661,$E$4,'Returnees - Details'!$BK$3:$BK$661,'Baladiya Profile Generator'!$X72) -> 0 | X72: Health services
B73: Rented Accomodation | D73: =IF(SUMPRODUCT(('Returnees - Details'!$C$3:$C$661='Baladiya Profile Generator'!$E$4)*'Returnees - Details'!X$3:X$661)=0,"-",SUMPRODUCT(('Returnees - Details'!$C$3:$C$661='Baladiya Profile Generator'!$E$4)*'Returnees - Details'!X$3:X$661)) -> 50 | E73: =IF(SUMPRODUCT(('Returnees - Details'!$C$3:$C$661='Baladiya Profile Generator'!$E$4)*'Returnees - Details'!Y$3:Y$661)=0,"-",SUMPRODUCT(('Returnees - Details'!$C$3:$C$661='Baladiya Profile Generator'!$E$4)*'Returnees - Details'!Y$3:Y$661)) -> 250 | G73: PRIORITY #2 | I73: =Q71 -> Health services | S73: 0 | T73: Legal Help | U73: =SUMIFS('Returnees - Details'!$N$3:$N$661,'Returnees - Details'!$C$3:$C$661,$E$4,'Returnees - Details'!$BC$3:$BC$661,'Baladiya Profile Generator'!$X73) -> 0 | V73: =SUMIFS('Returnees - Details'!$N$3:$N$661,'Returnees - Details'!$C$3:$C$661,$E$4,'Returnees - Details'!$BG$3:$BG$661,'Baladiya Profile Generator'!$X73) -> 0 | W73: =SUMIFS('Returnees - Details'!$N$3:$N$661,'Returnees - Details'!$C$3:$C$661,$E$4,'Returnees - Details'!$BK$3:$BK$661,'Baladiya Profile Generator'!$X73) -> 0 | X73: Legal Help
B74: With host family, no rent | D74: =IF(SUMPRODUCT(('Returnees - Details'!$C$3:$C$661='Baladiya Profile Generator'!$E$4)*'Returnees - Details'!Z$3:Z$661)=0,"-",SUMPRODUCT(('Returnees - Details'!$C$3:$C$661='Baladiya Profile Generator'!$E$4)*'Returnees - Details'!Z$3:Z$661)) -> - | E74: =IF(SUMPRODUCT(('Returnees - Details'!$C$3:$C$661='Baladiya Profile Generator'!$E$4)*'Returnees - Details'!AA$3:AA$661)=0,"-",SUMPRODUCT(('Returnees - Details'!$C$3:$C$661='Baladiya Profile Generator'!$E$4)*'Returnees - Details'!AA$3:AA$661)) -> - | S74: 0 | T74: NFIs | U74: =SUMIFS('Returnees - Details'!$N$3:$N$661,'Returnees - Details'!$C$3:$C$661,$E$4,'Returnees - Details'!$BC$3:$BC$661,'Baladiya Profile Generator'!$X74) -> 0 | V74: =SUMIFS('Returnees - Details'!$N$3:$N$661,'Returnees - Details'!$C$3:$C$661,$E$4,'Returnees - Details'!$BG$3:$BG$661,'Baladiya Profile Generator'!$X74) -> 0 | W74: =SUMIFS('Returnees - Details'!$N$3:$N$661,'Returnees - Details'!$C$3:$C$661,$E$4,'Returnees - Details'!$BK$3:$BK$661,'Baladiya Profile Generator'!$X74) -> 0 | X74: NFIs
B75: Abondoned buildings | D75: =IF(SUMPRODUCT(('Returnees - Details'!$C$3:$C$661='Baladiya Profile Generator'!$E$4)*'Returnees - Details'!AB$3:AB$661)=0,"-",SUMPRODUCT(('Returnees - Details'!$C$3:$C$661='Baladiya Profile Generator'!$E$4)*'Returnees - Details'!AB$3:AB$661)) -> - | E75: =IF(SUMPRODUCT(('Returnees - Details'!$C$3:$C$661='Baladiya Profile Generator'!$E$4)*'Returnees - Details'!AC$3:AC$661)=0,"-",SUMPRODUCT(('Returnees - Details'!$C$3:$C$661='Baladiya Profile Generator'!$E$4)*'Returnees - Details'!AC$3:AC$661)) -> - | S75: 0 | T75: Protection | U75: =SUMIFS('Returnees - Details'!$N$3:$N$661,'Returnees - Details'!$C$3:$C$661,$E$4,'Returnees - Details'!$BC$3:$BC$661,'Baladiya Profile Generator'!$X75) -> 0 | V75: =SUMIFS('Returnees - Details'!$N$3:$N$661,'Returnees - Details'!$C$3:$C$661,$E$4,'Returnees - Details'!$BG$3:$BG$661,'Baladiya Profile Generator'!$X75) -> 0 | W75: =SUMIFS('Returnees - Details'!$N$3:$N$661,'Returnees - Details'!$C$3:$C$661,$E$4,'Returnees - Details'!$BK$3:$BK$661,'Baladiya Profile Generator'!$X75) -> 0 | X75: Protection
B76: Their own house | D76: =IF(SUMPRODUCT(('Returnees - Details'!$C$3:$C$661='Baladiya Profile Generator'!$E$4)*'Returnees - Details'!AD$3:AD$661)=0,"-",SUMPRODUCT(('Returnees - Details'!$C$3:$C$661='Baladiya Profile Generator'!$E$4)*'Returnees - Details'!AD$3:AD$661)) -> 2050 | E76: =IF(SUMPRODUCT(('Returnees - Details'!$C$3:$C$661='Baladiya Profile Generator'!$E$4)*'Returnees - Details'!AE$3:AE$661)=0,"-",SUMPRODUCT(('Returnees - Details'!$C$3:$C$661='Baladiya Profile Generator'!$E$4)*'Returnees - Details'!AE$3:AE$661)) -> 10250 | S76: 0 | T76: Security | U76: =SUMIFS('Returnees - Details'!$N$3:$N$661,'Returnees - Details'!$C$3:$C$661,$E$4,'Returnees - Details'!$BC$3:$BC$661,'Baladiya Profile Generator'!$X76) -> 0 | V76: =SUMIFS('Returnees - Details'!$N$3:$N$661,'Returnees - Details'!$C$3:$C$661,$E$4,'Returnees - Details'!$BG$3:$BG$661,'Baladiya Profile Generator'!$X76) -> 0 | W76: =SUMIFS('Returnees - Details'!$N$3:$N$661,'Returnees - Details'!$C$3:$C$661,$E$4,'Returnees - Details'!$BK$3:$BK$661,'Baladiya Profile Generator'!$X76) -> 0 | X76: Security
B77: Schools or other public buildings | D77: =IF(SUMPRODUCT(('Returnees - Details'!$C$3:$C$661='Baladiya Profile Generator'!$E$4)*'Returnees - Details'!AF$3:AF$661)=0,"-",SUMPRODUCT(('Returnees - Details'!$C$3:$C$661='Baladiya Profile Generator'!$E$4)*'Returnees - Details'!AF$3:AF$661)) -> 50 | E77: =IF(SUMPRODUCT(('Returnees - Details'!$C$3:$C$661='Baladiya Profile Generator'!$E$4)*'Returnees - Details'!AG$3:AG$661)=0,"-",SUMPRODUCT(('Returnees - Details'!$C$3:$C$661='Baladiya Profile Generator'!$E$4)*'Returnees - Details'!AG$3:AG$661)) -> 250 | G77: PRIORITY #3 | I77: =Q72 -> Education | S77: 0 | T77: Shelter | U77: =SUMIFS('Returnees - Details'!$N$3:$N$661,'Returnees - Details'!$C$3:$C$661,$E$4,'Returnees - Details'!$BC$3:$BC$661,'Baladiya Profile Generator'!$X77) -> 0 | V77: =SUMIFS('Returnees - Details'!$N$3:$N$661,'Returnees - Details'!$C$3:$C$661,$E$4,'Returnees - Details'!$BG$3:$BG$661,'Baladiya Profile Generator'!$X77) -> 0 | W77: =SUMIFS('Returnees - Details'!$N$3:$N$661,'Returnees - Details'!$C$3:$C$661,$E$4,'Returnees - Details'!$BK$3:$BK$661,'Baladiya Profile Generator'!$X77) -> 0 | X77: Shelter
D78: =IF(SUMPRODUCT(('Returnees - Details'!$C$3:$C$661='Baladiya Profile Generator'!$E$4)*'Returnees - Details'!AH$3:AH$661)=0,"-",SUMPRODUCT(('Returnees - Details'!$C$3:$C$661='Baladiya Profile Generator'!$E$4)*'Returnees - Details'!AH$3:AH$661)) -> - | E78: =IF(SUMPRODUCT(('Returnees - Details'!$C$3:$C$661='Baladiya Profile Generator'!$E$4)*'Returnees - Details'!AI$3:AI$661)=0,"-",SUMPRODUCT(('Returnees - Details'!$C$3:$C$661='Baladiya Profile Generator'!$E$4)*'Returnees - Details'!AI$3:AI$661)) -> - | S78: 5375 | T78: Water, Sanitation and Hygiene | U78: =SUMIFS('Returnees - Details'!$N$3:$N$661,'Returnees - Details'!$C$3:$C$661,$E$4,'Returnees - Details'!$BC$3:$BC$661,'Baladiya Profile Generator'!$X78) -> 10750 | V78: =SUMIFS('Returnees - Details'!$N$3:$N$661,'Returnees - Details'!$C$3:$C$661,$E$4,'Returnees - Details'!$BG$3:$BG$661,'Baladiya Profile Generator'!$X78) -> 0 | W78: =SUMIFS('Returnees - Details'!$N$3:$N$661,'Returnees - Details'!$C$3:$C$661,$E$4,'Returnees - Details'!$BK$3:$BK$661,'Baladiya Profile Generator'!$X78) -> 0 | X78: Water, Sanitation and Hygiene
B79: No accomodation | D79: =IF(SUMPRODUCT(('Returnees - Details'!$C$3:$C$661='Baladiya Profile Generator'!$E$4)*'Returnees - Details'!AJ$3:AJ$661)=0,"-",SUMPRODUCT(('Returnees - Details'!$C$3:$C$661='Baladiya Profile Generator'!$E$4)*'Returnees - Details'!AJ$3:AJ$661)) -> - | E79: =IF(SUMPRODUCT(('Returnees - Details'!$C$3:$C$661='Baladiya Profile Generator'!$E$4)*'Returnees - Details'!AK$3:AK$661)=0,"-",SUMPRODUCT(('Returnees - Details'!$C$3:$C$661='Baladiya Profile Generator'!$E$4)*'Returnees - Details'!AK$3:AK$661)) -> -
B80: In informal camp setting | D80: =IF(SUMPRODUCT(('Returnees - Details'!$C$3:$C$661='Baladiya Profile Generator'!$E$4)*'Returnees - Details'!AL$3:AL$661)=0,"-",SUMPRODUCT(('Returnees - Details'!$C$3:$C$661='Baladiya Profile Generator'!$E$4)*'Returnees - Details'!AL$3:AL$661)) -> - | E80: =IF(SUMPRODUCT(('Returnees - Details'!$C$3:$C$661='Baladiya Profile Generator'!$E$4)*'Returnees - Details'!AM$3:AM$661)=0,"-",SUMPRODUCT(('Returnees - Details'!$C$3:$C$661='Baladiya Profile Generator'!$E$4)*'Returnees - Details'!AM$3:AM$661)) -> -
B81: Other Shelter | D81: =IF(SUMPRODUCT(('Returnees - Details'!$C$3:$C$661='Baladiya Profile Generator'!$E$4)*'Returnees - Details'!X$3:X$661)=0,"-",SUMPRODUCT(('Returnees - Details'!$C$3:$C$661='Baladiya Profile Generator'!$E$4)*'Returnees - Details'!X$3:X$661)) -> 50 | E81: =IF(SUMPRODUCT(('Returnees - Details'!$C$3:$C$661='Baladiya Profile Generator'!$E$4)*'Returnees - Details'!Y$3:Y$661)=0,"-",SUMPRODUCT(('Returnees - Details'!$C$3:$C$661='Baladiya Profile Generator'!$E$4)*'Returnees - Details'!Y$3:Y$661)) -> 250
G82: Reason for returning | K82: Reasons preventing people from returning
G83: Improvement of economic situation | J83: =IF((COUNTIFS('Returnees - Details'!$C$3:$C$661,'Baladiya Profile Generator'!$E$4,'Returnees - Details'!AN$3:AN$661,"=Yes")/COUNTIFS('IDPs - Details'!$C$3:$C$661,'Baladiya Profile Generator'!$E$4))=0,"-",COUNTIFS('Returnees - Details'!$C$3:$C$661,'Baladiya Profile Generator'!$E$4,'Returnees - Details'!AN$3:AN$661,"=Yes")/COUNTIFS('IDPs - Details'!$C$3:$C$661,'Baladiya Profile Generator'!$E$4)) -> - | K83: Threat/fear of conflict and armed groups present | N83: =IF((COUNTIFS('Returnees - Details'!$C$3:$C$661,'Baladiya Profile Generator'!$E$4,'Returnees - Details'!AU$3:AU$661,"=Yes")/COUNTIFS('IDPs - Details'!$C$3:$C$661,'Baladiya Profile Generator'!$E$4))=0,"-",COUNTIFS('Returnees - Details'!$C$3:$C$661,'Baladiya Profile Generator'!$E$4,'Returnees - Details'!AU$3:AU$661,"=Yes")/COUNTIFS('IDPs - Details'!$C$3:$C$661,'Baladiya Profile Generator'!$E$4)) -> 0.5
G84: Improvement of security situation | J84: =IF((COUNTIFS('Returnees - Details'!$C$3:$C$661,'Baladiya Profile Generator'!$E$4,'Returnees - Details'!AO$3:AO$661,"=Yes")/COUNTIFS('IDPs - Details'!$C$3:$C$661,'Baladiya Profile Generator'!$E$4))=0,"-",COUNTIFS('Returnees - Details'!$C$3:$C$661,'Baladiya Profile Generator'!$E$4,'Returnees - Details'!AO$3:AO$661,"=Yes")/COUNTIFS('IDPs - Details'!$C$3:$C$661,'Baladiya Profile Generator'!$E$4)) -> 0.5
B85: Main Baladiyas of displacement | D85: =IF(ISBLANK(VLOOKUP($E$4,Baladiya!$E$3:$BD$102,39,FALSE)),"N/A",VLOOKUP($E$4,Baladiya!$E$3:$BD$102,39,FALSE)) -> Misrata | G85: Worsening of the economic situation, at displacement | J85: =IF((COUNTIFS('Returnees - Details'!$C$3:$C$661,'Baladiya Profile Generator'!$E$4,'Returnees - Details'!AP$3:AP$661,"=Yes")/COUNTIFS('IDPs - Details'!$C$3:$C$661,'Baladiya Profile Generator'!$E$4))=0,"-",COUNTIFS('Returnees - Details'!$C$3:$C$661,'Baladiya Profile Generator'!$E$4,'Returnees - Details'!AP$3:AP$661,"=Yes")/COUNTIFS('IDPs - Details'!$C$3:$C$661,'Baladiya Profile Generator'!$E$4)) -> - | K85: Other security related issues | N85: =IF((COUNTIFS('Returnees - Details'!$C$3:$C$661,'Baladiya Profile Generator'!$E$4,'Returnees - Details'!AV$3:AV$661,"=Yes")/COUNTIFS('IDPs - Details'!$C$3:$C$661,'Baladiya Profile Generator'!$E$4))=0,"-",COUNTIFS('Returnees - Details'!$C$3:$C$661,'Baladiya Profile Generator'!$E$4,'Returnees - Details'!AV$3:AV$661,"=Yes")/COUNTIFS('IDPs - Details'!$C$3:$C$661,'Baladiya Profile Generator'!$E$4)) -> 0.5
K86: Economic factors | N86: =IF((COUNTIFS('Returnees - Details'!$C$3:$C$661,'Baladiya Profile Generator'!$E$4,'Returnees - Details'!AW$3:AW$661,"=Yes")/COUNTIFS('IDPs - Details'!$C$3:$C$661,'Baladiya Profile Generator'!$E$4))=0,"-",COUNTIFS('Returnees - Details'!$C$3:$C$661,'Baladiya Profile Generator'!$E$4,'Returnees - Details'!AW$3:AW$661,"=Yes")/COUNTIFS('IDPs - Details'!$C$3:$C$661,'Baladiya Profile Generator'!$E$4)) -> -
D87: =IF(ISBLANK(VLOOKUP($E$4,Baladiya!$E$3:$BD$102,40,FALSE)),"N/A",VLOOKUP($E$4,Baladiya!$E$3:$BD$102,40,FALSE)) -> Tarhuna | G87: Worsening of the security situation, at displacement | J87: =IF((COUNTIFS('Returnees - Details'!$C$3:$C$661,'Baladiya Profile Generator'!$E$4,'Returnees - Details'!AQ$3:AQ$661,"=Yes")/COUNTIFS('IDPs - Details'!$C$3:$C$661,'Baladiya Profile Generator'!$E$4))=0,"-",COUNTIFS('Returnees - Details'!$C$3:$C$661,'Baladiya Profile Generator'!$E$4,'Returnees - Details'!AQ$3:AQ$661,"=Yes")/COUNTIFS('IDPs - Details'!$C$3:$C$661,'Baladiya Profile Generator'!$E$4)) -> - | K87: Threat or presence of UXO | N87: =IF((COUNTIFS('Returnees - Details'!$C$3:$C$661,'Baladiya Profile Generator'!$E$4,'Returnees - Details'!AX$3:AX$661,"=Yes")/COUNTIFS('IDPs - Details'!$C$3:$C$661,'Baladiya Profile Generator'!$E$4))=0,"-",COUNTIFS('Returnees - Details'!$C$3:$C$661,'Baladiya Profile Generator'!$E$4,'Returnees - Details'!AX$3:AX$661,"=Yes")/COUNTIFS('IDPs - Details'!$C$3:$C$661,'Baladiya Profile Generator'!$E$4)) -> -
K88: Damaged public infrastructure | N88: =IF((COUNTIFS('Returnees - Details'!$C$3:$C$661,'Baladiya Profile Generator'!$E$4,'Returnees - Details'!AY$3:AY$661,"=Yes")/COUNTIFS('IDPs - Details'!$C$3:$C$661,'Baladiya Profile Generator'!$E$4))=0,"-",COUNTIFS('Returnees - Details'!$C$3:$C$661,'Baladiya Profile Generator'!$E$4,'Returnees - Details'!AY$3:AY$661,"=Yes")/COUNTIFS('IDPs - Details'!$C$3:$C$661,'Baladiya Profile Generator'!$E$4)) -> 0.5
D89: =IF(ISBLANK(VLOOKUP($E$4,Baladiya!$E$3:$BD$102,41,FALSE)),"N/A",VLOOKUP($E$4,Baladiya!$E$3:$BD$102,41,FALSE)) -> Bani Waleed | G89: Social/cultural issues | J89: =IF((COUNTIFS('Returnees - Details'!$C$3:$C$661,'Baladiya Profile Generator'!$E$4,'Returnees - Details'!AR$3:AR$661,"=Yes")/COUNTIFS('IDPs - Details'!$C$3:$C$661,'Baladiya Profile Generator'!$E$4))=0,"-",COUNTIFS('Returnees - Details'!$C$3:$C$661,'Baladiya Profile Generator'!$E$4,'Returnees - Details'!AR$3:AR$661,"=Yes")/COUNTIFS('IDPs - Details'!$C$3:$C$661,'Baladiya Profile Generator'!$E$4)) -> - | K89: Prevented by security forces | N89: =IF((COUNTIFS('Returnees - Details'!$C$3:$C$661,'Baladiya Profile Generator'!$E$4,'Returnees - Details'!AZ$3:AZ$661,"=Yes")/COUNTIFS('IDPs - Details'!$C$3:$C$661,'Baladiya Profile Generator'!$E$4))=0,"-",COUNTIFS('Returnees - Details'!$C$3:$C$661,'Baladiya Profile Generator'!$E$4,'Returnees - Details'!AZ$3:AZ$661,"=Yes")/COUNTIFS('IDPs - Details'!$C$3:$C$661,'Baladiya Profile Generator'!$E$4)) -> -
G90: Need to protect assets/properties | J90: =IF((COUNTIFS('Returnees - Details'!$C$3:$C$661,'Baladiya Profile Generator'!$E$4,'Returnees - Details'!AS$3:AS$661,"=Yes")/COUNTIFS('IDPs - Details'!$C$3:$C$661,'Baladiya Profile Generator'!$E$4))=0,"-",COUNTIFS('Returnees - Details'!$C$3:$C$661,'Baladiya Profile Generator'!$E$4,'Returnees - Details'!AS$3:AS$661,"=Yes")/COUNTIFS('IDPs - Details'!$C$3:$C$661,'Baladiya Profile Generator'!$E$4)) -> 0.5 | K90: House occupied | N90: =IF((COUNTIFS('Returnees - Details'!$C$3:$C$661,'Baladiya Profile Generator'!$E$4,'Returnees - Details'!BA$3:BA$661,"=Yes")/COUNTIFS('IDPs - Details'!$C$3:$C$661,'Baladiya Profile Generator'!$E$4))=0,"-",COUNTIFS('Returnees - Details'!$C$3:$C$661,'Baladiya Profile Generator'!$E$4,'Returnees - Details'!BA$3:BA$661,"=Yes")/COUNTIFS('IDPs - Details'!$C$3:$C$661,'Baladiya Profile Generator'!$E$4)) -> -
G91: Other Reason | J91: =IF((COUNTIFS('Returnees - Details'!$C$3:$C$661,'Baladiya Profile Generator'!$E$4,'Returnees - Details'!AT$3:AT$661,"=Yes")/COUNTIFS('IDPs - Details'!$C$3:$C$661,'Baladiya Profile Generator'!$E$4))=0,"-",COUNTIFS('Returnees - Details'!$C$3:$C$661,'Baladiya Profile Generator'!$E$4,'Returnees - Details'!AT$3:AT$661,"=Yes")/COUNTIFS('IDPs - Details'!$C$3:$C$661,'Baladiya Profile Generator'!$E$4)) -> 0.5 | K91: Unknown Reasons | N91: =IF((COUNTIFS('Returnees - Details'!$C$3:$C$661,'Baladiya Profile Generator'!$E$4,'Returnees - Details'!BB$3:BB$661,"=Yes")/COUNTIFS('IDPs - Details'!$C$3:$C$661,'Baladiya Profile Generator'!$E$4))=0,"-",COUNTIFS('Returnees - Details'!$C$3:$C$661,'Baladiya Profile Generator'!$E$4,'Returnees - Details'!BB$3:BB$661,"=Yes")/COUNTIFS('IDPs - Details'!$C$3:$C$661,'Baladiya Profile Generator'!$E$4)) -> -
B93: l+216 29 235 097 | F93: dtmlibya@iom.int | J93: www.globaldtm.info/libya
B95: Migrant | D95: =D12 -> 1555 | L95: =E4 -> Abu Qurayn
B98: Migrant Arrival Time | D98: 6 to 12 months ago | G98: Needs
B99: Last month | C99: =IF(SUMPRODUCT(('Migrant - Details'!$C$3:$C$661='Baladiya Profile Generator'!$E$4)*'Migrant - Details'!X$3:X$661)=0,"-",SUMPRODUCT(('Migrant - Details'!$C$3:$C$661='Baladiya Profile Generator'!$E$4)*'Migrant - Details'!X$3:X$661)) -> 66 | D99: =IF(SUMPRODUCT(('Migrant - Details'!$C$3:$C$661='Baladiya Profile Generator'!$E$4)*'Migrant - Details'!Z$3:Z$661)=0,"-",SUMPRODUCT(('Migrant - Details'!$C$3:$C$661='Baladiya Profile Generator'!$E$4)*'Migrant - Details'!Z$3:Z$661)) -> 536
B100: 1 to 6 months ago | C100: =IF(SUMPRODUCT(('Migrant - Details'!$C$3:$C$661='Baladiya Profile Generator'!$E$4)*'Migrant - Details'!Y$3:Y$661)=0,"-",SUMPRODUCT(('Migrant - Details'!$C$3:$C$661='Baladiya Profile Generator'!$E$4)*'Migrant - Details'!Y$3:Y$661)) -> 84 | D100: Over 12 months ago | G100: PRIORITY #1 | I100: =Q102 -> Health services
B101: Time unknown | C101: =IF(SUMPRODUCT(('Migrant - Details'!$C$3:$C$661='Baladiya Profile Generator'!$E$4)*'Migrant - Details'!AB$3:AB$661)=0,"-",SUMPRODUCT(('Migrant - Details'!$C$3:$C$661='Baladiya Profile Generator'!$E$4)*'Migrant - Details'!AB$3:AB$661)) -> - | D101: =IF(SUMPRODUCT(('Migrant - Details'!$C$3:$C$661='Baladiya Profile Generator'!$E$4)*'Migrant - Details'!AA$3:AA$661)=0,"-",SUMPRODUCT(('Migrant - Details'!$C$3:$C$661='Baladiya Profile Generator'!$E$4)*'Migrant - Details'!AA$3:AA$661)) -> 869 | S101: =U101*0.5+V101*0.3+W101*0.2 -> 0 | T101: Access to income | U101: =SUMIFS('Migrant - Details'!$M$3:$M$661,'Migrant - Details'!$C$3:$C$661,'Baladiya Profile Generator'!$E$4,'Migrant - Details'!$AJ$3:$AJ$661,'Baladiya Profile Generator'!$T101) -> 0 | V101: =SUMIFS('Migrant - Details'!$M$3:$M$661,'Migrant - Details'!$C$3:$C$661,'Baladiya Profile Generator'!$E$4,'Migrant - Details'!$AL$3:$AL$661,'Baladiya Profile Generator'!$T101) -> 0 | W101: =SUMIFS('Migrant - Details'!$M$3:$M$661,'Migrant - Details'!$C$3:$C$661,'Baladiya Profile Generator'!$E$4,'Migrant - Details'!$AN$3:$AN$661,'Baladiya Profile Generator'!$T101) -> 0 | X101: Access to income
B102: Migrants by Nationality | P102: =LARGE(S101:S110,1) -> 486.5 | Q102: =IF(P102=0,"-",VLOOKUP(P102,S101:T110,2,FALSE)) -> Health services | R102: =VLOOKUP($Q102,Geolocation!$F$105:$H$115,3,FALSE) -> Geolocation!G108 | S102: 0 | T102: Education | U102: =SUMIFS('Migrant - Details'!$M$3:$M$661,'Migrant - Details'!$C$3:$C$661,'Baladiya Profile Generator'!$E$4,'Migrant - Details'!$AJ$3:$AJ$661,'Baladiya Profile Generator'!$T102) -> 0 | V102: =SUMIFS('Migrant - Details'!$M$3:$M$661,'Migrant - Details'!$C$3:$C$661,'Baladiya Profile Generator'!$E$4,'Migrant - Details'!$AL$3:$AL$661,'Baladiya Profile Generator'!$T102) -> 0 | W102: =SUMIFS('Migrant - Details'!$M$3:$M$661,'Migrant - Details'!$C$3:$C$661,'Baladiya Profile Generator'!$E$4,'Migrant - Details'!$AN$3:$AN$661,'Baladiya Profile Generator'!$T102) -> 0 | X102: Education
B103: Algeria | C103: =IF(SUMIFS('Migrant -nationalities'!$K$2:$K$5000,'Migrant -nationalities'!$E$2:$E$5000,$E$4,'Migrant -nationalities'!$J$2:$J$5000,B103)=0,"-",SUMIFS('Migrant -nationalities'!$K$2:$K$5000,'Migrant -nationalities'!$E$2:$E$5000,$E$4,'Migrant -nationalities'!$J$2:$J$5000,B103)) -> - | D103: Mali | F103: =IF(SUMIFS('Migrant -nationalities'!$K$2:$K$5000,'Migrant -nationalities'!$E$2:$E$5000,$E$4,'Migrant -nationalities'!$J$2:$J$5000,D103)=0,"-",SUMIFS('Migrant -nationalities'!$K$2:$K$5000,'Migrant -nationalities'!$E$2:$E$5000,$E$4,'Migrant -nationalities'!$J$2:$J$5000,D103)) -> - | P103: =LARGE(S101:S110,2) -> 324 | Q103: =IF(P103=0,"-",VLOOKUP(P103,S101:T110,2,FALSE)) -> Food | R103: =VLOOKUP($Q103,Geolocation!$F$105:$H$115,3,FALSE) -> Geolocation!G107 | S103: 324 | T103: Food | U103: =SUMIFS('Migrant - Details'!$M$3:$M$661,'Migrant - Details'!$C$3:$C$661,'Baladiya Profile Generator'!$E$4,'Migrant - Details'!$AJ$3:$AJ$661,'Baladiya Profile Generator'!$T103) -> 260 | V103: =SUMIFS('Migrant - Details'!$M$3:$M$661,'Migrant - Details'!$C$3:$C$661,'Baladiya Profile Generator'!$E$4,'Migrant - Details'!$AL$3:$AL$661,'Baladiya Profile Generator'!$T103) -> 350 | W103: =SUMIFS('Migrant - Details'!$M$3:$M$661,'Migrant - Details'!$C$3:$C$661,'Baladiya Profile Generator'!$E$4,'Migrant - Details'!$AN$3:$AN$661,'Baladiya Profile Generator'!$T103) -> 445 | X103: Food
B104: Bangladesh | C104: =IF(SUMIFS('Migrant -nationalities'!$K$2:$K$5000,'Migrant -nationalities'!$E$2:$E$5000,$E$4,'Migrant -nationalities'!$J$2:$J$5000,B104)=0,"-",SUMIFS('Migrant -nationalities'!$K$2:$K$5000,'Migrant -nationalities'!$E$2:$E$5000,$E$4,'Migrant -nationalities'!$J$2:$J$5000,B104)) -> 10 | D104: Mauritania | F104: =IF(SUMIFS('Migrant -nationalities'!$K$2:$K$5000,'Migrant -nationalities'!$E$2:$E$5000,$E$4,'Migrant -nationalities'!$J$2:$J$5000,D104)=0,"-",SUMIFS('Migrant -nationalities'!$K$2:$K$5000,'Migrant -nationalities'!$E$2:$E$5000,$E$4,'Migrant -nationalities'!$J$2:$J$5000,D104)) -> - | G104: PRIORITY #2 | I104: =Q103 -> Food | P104: =LARGE(S101:S110,3) -> 320 | Q104: =IF(P104=0,"-",VLOOKUP(P104,S101:T110,2,FALSE)) -> NFIs | R104: =VLOOKUP($Q104,Geolocation!$F$105:$H$115,3,FALSE) -> Geolocation!G110 | S104: 486.5 | T104: Health services | U104: =SUMIFS('Migrant - Details'!$M$3:$M$661,'Migrant - Details'!$C$3:$C$661,'Baladiya Profile Generator'!$E$4,'Migrant - Details'!$AJ$3:$AJ$661,'Baladiya Profile Generator'!$T104) -> 350 | V104: =SUMIFS('Migrant - Details'!$M$3:$M$661,'Migrant - Details'!$C$3:$C$661,'Baladiya Profile Generator'!$E$4,'Migrant - Details'!$AL$3:$AL$661,'Baladiya Profile Generator'!$T104) -> 705 | W104: =SUMIFS('Migrant - Details'!$M$3:$M$661,'Migrant - Details'!$C$3:$C$661,'Baladiya Profile Generator'!$E$4,'Migrant - Details'!$AN$3:$AN$661,'Baladiya Profile Generator'!$T104) -> 500 | X104: Health services
B105: Benin | C105: =IF(SUMIFS('Migrant -nationalities'!$K$2:$K$5000,'Migrant -nationalities'!$E$2:$E$5000,$E$4,'Migrant -nationalities'!$J$2:$J$5000,B105)=0,"-",SUMIFS('Migrant -nationalities'!$K$2:$K$5000,'Migrant -nationalities'!$E$2:$E$5000,$E$4,'Migrant -nationalities'!$J$2:$J$5000,B105)) -> - | D105: Morocco | F105: =IF(SUMIFS('Migrant -nationalities'!$K$2:$K$5000,'Migrant -nationalities'!$E$2:$E$5000,$E$4,'Migrant -nationalities'!$J$2:$J$5000,D105)=0,"-",SUMIFS('Migrant -nationalities'!$K$2:$K$5000,'Migrant -nationalities'!$E$2:$E$5000,$E$4,'Migrant -nationalities'!$J$2:$J$5000,D105)) -> 10 | S105: 0 | T105: Legal Help | U105: =SUMIFS('Migrant - Details'!$M$3:$M$661,'Migrant - Details'!$C$3:$C$661,'Baladiya Profile Generator'!$E$4,'Migrant - Details'!$AJ$3:$AJ$661,'Baladiya Profile Generator'!$T105) -> 0 | V105: =SUMIFS('Migrant - Details'!$M$3:$M$661,'Migrant - Details'!$C$3:$C$661,'Baladiya Profile Generator'!$E$4,'Migrant - Details'!$AL$3:$AL$661,'Baladiya Profile Generator'!$T105) -> 0 | W105: =SUMIFS('Migrant - Details'!$M$3:$M$661,'Migrant - Details'!$C$3:$C$661,'Baladiya Profile Generator'!$E$4,'Migrant - Details'!$AN$3:$AN$661,'Baladiya Profile Generator'!$T105) -> 0 | X105: Legal Help
B106: Burkina Faso | C106: =IF(SUMIFS('Migrant -nationalities'!$K$2:$K$5000,'Migrant -nationalities'!$E$2:$E$5000,$E$4,'Migrant -nationalities'!$J$2:$J$5000,B106)=0,"-",SUMIFS('Migrant -nationalities'!$K$2:$K$5000,'Migrant -nationalities'!$E$2:$E$5000,$E$4,'Migrant -nationalities'!$J$2:$J$5000,B106)) -> - | D106: Namibia | F106: =IF(SUMIFS('Migrant -nationalities'!$K$2:$K$5000,'Migrant -nationalities'!$E$2:$E$5000,$E$4,'Migrant -nationalities'!$J$2:$J$5000,D106)=0,"-",SUMIFS('Migrant -nationalities'!$K$2:$K$5000,'Migrant -nationalities'!$E$2:$E$5000,$E$4,'Migrant -nationalities'!$J$2:$J$5000,D106)) -> - | S106: 320 | T106: NFIs | U106: =SUMIFS('Migrant - Details'!$M$3:$M$661,'Migrant - Details'!$C$3:$C$661,'Baladiya Profile Generator'!$E$4,'Migrant - Details'!$AJ$3:$AJ$661,'Baladiya Profile Generator'!$T106) -> 500 | V106: =SUMIFS('Migrant - Details'!$M$3:$M$661,'Migrant - Details'!$C$3:$C$661,'Baladiya Profile Generator'!$E$4,'Migrant - Details'!$AL$3:$AL$661,'Baladiya Profile Generator'!$T106) -> 0 | W106: =SUMIFS('Migrant - Details'!$M$3:$M$661,'Migrant - Details'!$C$3:$C$661,'Baladiya Profile Generator'!$E$4,'Migrant - Details'!$AN$3:$AN$661,'Baladiya Profile Generator'!$T106) -> 350 | X106: NFIs
B107: Cameroon | C107: =IF(SUMIFS('Migrant -nationalities'!$K$2:$K$5000,'Migrant -nationalities'!$E$2:$E$5000,$E$4,'Migrant -nationalities'!$J$2:$J$5000,B107)=0,"-",SUMIFS('Migrant -nationalities'!$K$2:$K$5000,'Migrant -nationalities'!$E$2:$E$5000,$E$4,'Migrant -nationalities'!$J$2:$J$5000,B107)) -> - | D107: Niger | F107: =IF(SUMIFS('Migrant -nationalities'!$K$2:$K$5000,'Migrant -nationalities'!$E$2:$E$5000,$E$4,'Migrant -nationalities'!$J$2:$J$5000,D107)=0,"-",SUMIFS('Migrant -nationalities'!$K$2:$K$5000,'Migrant -nationalities'!$E$2:$E$5000,$E$4,'Migrant -nationalities'!$J$2:$J$5000,D107)) -> 579 | S107: 52 | T107: Protection | U107: =SUMIFS('Migrant - Details'!$M$3:$M$661,'Migrant - Details'!$C$3:$C$661,'Baladiya Profile Generator'!$E$4,'Migrant - Details'!$AJ$3:$AJ$661,'Baladiya Profile Generator'!$T107) -> 0 | V107: =SUMIFS('Migrant - Details'!$M$3:$M$661,'Migrant - Details'!$C$3:$C$661,'Baladiya Profile Generator'!$E$4,'Migrant - Details'!$AL$3:$AL$661,'Baladiya Profile Generator'!$T107) -> 0 | W107: =SUMIFS('Migrant - Details'!$M$3:$M$661,'Migrant - Details'!$C$3:$C$661,'Baladiya Profile Generator'!$E$4,'Migrant - Details'!$AN$3:$AN$661,'Baladiya Profile Generator'!$T107) -> 260 | X107: Protection
B108: Chad | C108: =IF(SUMIFS('Migrant -nationalities'!$K$2:$K$5000,'Migrant -nationalities'!$E$2:$E$5000,$E$4,'Migrant -nationalities'!$J$2:$J$5000,B108)=0,"-",SUMIFS('Migrant -nationalities'!$K$2:$K$5000,'Migrant -nationalities'!$E$2:$E$5000,$E$4,'Migrant -nationalities'!$J$2:$J$5000,B108)) -> 378 | D108: Nigeria | F108: =IF(SUMIFS('Migrant -nationalities'!$K$2:$K$5000,'Migrant -nationalities'!$E$2:$E$5000,$E$4,'Migrant -nationalities'!$J$2:$J$5000,D108)=0,"-",SUMIFS('Migrant -nationalities'!$K$2:$K$5000,'Migrant -nationalities'!$E$2:$E$5000,$E$4,'Migrant -nationalities'!$J$2:$J$5000,D108)) -> 225 | G108: PRIORITY #3 | I108: =Q104 -> NFIs | S108: 150 | T108: Security | U108: =SUMIFS('Migrant - Details'!$M$3:$M$661,'Migrant - Details'!$C$3:$C$661,'Baladiya Profile Generator'!$E$4,'Migrant - Details'!$AJ$3:$AJ$661,'Baladiya Profile Generator'!$T108) -> 0 | V108: =SUMIFS('Migrant - Details'!$M$3:$M$661,'Migrant - Details'!$C$3:$C$661,'Baladiya Profile Generator'!$E$4,'Migrant - Details'!$AL$3:$AL$661,'Baladiya Profile Generator'!$T108) -> 500 | W108: =SUMIFS('Migrant - Details'!$M$3:$M$661,'Migrant - Details'!$C$3:$C$661,'Baladiya Profile Generator'!$E$4,'Migrant - Details'!$AN$3:$AN$661,'Baladiya Profile Generator'!$T108) -> 0 | X108: Security
B109: CentralAfricanRepublic | C109: =IF(SUMIFS('Migrant -nationalities'!$K$2:$K$5000,'Migrant -nationalities'!$E$2:$E$5000,$E$4,'Migrant -nationalities'!$J$2:$J$5000,B109)=0,"-",SUMIFS('Migrant -nationalities'!$K$2:$K$5000,'Migrant -nationalities'!$E$2:$E$5000,$E$4,'Migrant -nationalities'!$J$2:$J$5000,B109)) -> - | D109: Pakistan | F109: =IF(SUMIFS('Migrant -nationalities'!$K$2:$K$5000,'Migrant -nationalities'!$E$2:$E$5000,$E$4,'Migrant -nationalities'!$J$2:$J$5000,D109)=0,"-",SUMIFS('Migrant -nationalities'!$K$2:$K$5000,'Migrant -nationalities'!$E$2:$E$5000,$E$4,'Migrant -nationalities'!$J$2:$J$5000,D109)) -> - | S109: 0 | T109: Shelter | U109: =SUMIFS('Migrant - Details'!$M$3:$M$661,'Migrant - Details'!$C$3:$C$661,'Baladiya Profile Generator'!$E$4,'Migrant - Details'!$AJ$3:$AJ$661,'Baladiya Profile Generator'!$T109) -> 0 | V109: =SUMIFS('Migrant - Details'!$M$3:$M$661,'Migrant - Details'!$C$3:$C$661,'Baladiya Profile Generator'!$E$4,'Migrant - Details'!$AL$3:$AL$661,'Baladiya Profile Generator'!$T109) -> 0 | W109: =SUMIFS('Migrant - Details'!$M$3:$M$661,'Migrant - Details'!$C$3:$C$661,'Baladiya Profile Generator'!$E$4,'Migrant - Details'!$AN$3:$AN$661,'Baladiya Profile Generator'!$T109) -> 0 | X109: Shelter
B110: CôtedIvoire | C110: =IF(SUMIFS('Migrant -nationalities'!$K$2:$K$5000,'Migrant -nationalities'!$E$2:$E$5000,$E$4,'Migrant -nationalities'!$J$2:$J$5000,B110)=0,"-",SUMIFS('Migrant -nationalities'!$K$2:$K$5000,'Migrant -nationalities'!$E$2:$E$5000,$E$4,'Migrant -nationalities'!$J$2:$J$5000,B110)) -> - | D110: Palestine | F110: =IF(SUMIFS('Migrant -nationalities'!$K$2:$K$5000,'Migrant -nationalities'!$E$2:$E$5000,$E$4,'Migrant -nationalities'!$J$2:$J$5000,D110)=0,"-",SUMIFS('Migrant -nationalities'!$K$2:$K$5000,'Migrant -nationalities'!$E$2:$E$5000,$E$4,'Migrant -nationalities'!$J$2:$J$5000,D110)) -> - | S110: 222.5 | T110: Water, Sanitation and Hygiene | U110: =SUMIFS('Migrant - Details'!$M$3:$M$661,'Migrant - Details'!$C$3:$C$661,'Baladiya Profile Generator'!$E$4,'Migrant - Details'!$AJ$3:$AJ$661,'Baladiya Profile Generator'!$T110) -> 445 | V110: =SUMIFS('Migrant - Details'!$M$3:$M$661,'Migrant - Details'!$C$3:$C$661,'Baladiya Profile Generator'!$E$4,'Migrant - Details'!$AL$3:$AL$661,'Baladiya Profile Generator'!$T110) -> 0 | W110: =SUMIFS('Migrant - Details'!$M$3:$M$661,'Migrant - Details'!$C$3:$C$661,'Baladiya Profile Generator'!$E$4,'Migrant - Details'!$AN$3:$AN$661,'Baladiya Profile Generator'!$T110) -> 0 | X110: Water, Sanitation and Hygiene
B111: Djibouti | C111: =IF(SUMIFS('Migrant -nationalities'!$K$2:$K$5000,'Migrant -nationalities'!$E$2:$E$5000,$E$4,'Migrant -nationalities'!$J$2:$J$5000,B111)=0,"-",SUMIFS('Migrant -nationalities'!$K$2:$K$5000,'Migrant -nationalities'!$E$2:$E$5000,$E$4,'Migrant -nationalities'!$J$2:$J$5000,B111)) -> - | D111: Senegal | F111: =IF(SUMIFS('Migrant -nationalities'!$K$2:$K$5000,'Migrant -nationalities'!$E$2:$E$5000,$E$4,'Migrant -nationalities'!$J$2:$J$5000,D111)=0,"-",SUMIFS('Migrant -nationalities'!$K$2:$K$5000,'Migrant -nationalities'!$E$2:$E$5000,$E$4,'Migrant -nationalities'!$J$2:$J$5000,D111)) -> -
B112: Egypt | C112: =IF(SUMIFS('Migrant -nationalities'!$K$2:$K$5000,'Migrant -nationalities'!$E$2:$E$5000,$E$4,'Migrant -nationalities'!$J$2:$J$5000,B112)=0,"-",SUMIFS('Migrant -nationalities'!$K$2:$K$5000,'Migrant -nationalities'!$E$2:$E$5000,$E$4,'Migrant -nationalities'!$J$2:$J$5000,B112)) -> 128 | D112: Sierra Leone | F112: =IF(SUMIFS('Migrant -nationalities'!$K$2:$K$5000,'Migrant -nationalities'!$E$2:$E$5000,$E$4,'Migrant -nationalities'!$J$2:$J$5000,D112)=0,"-",SUMIFS('Migrant -nationalities'!$K$2:$K$5000,'Migrant -nationalities'!$E$2:$E$5000,$E$4,'Migrant -nationalities'!$J$2:$J$5000,D112)) -> -
B113: Eritrea | C113: =IF(SUMIFS('Migrant -nationalities'!$K$2:$K$5000,'Migrant -nationalities'!$E$2:$E$5000,$E$4,'Migrant -nationalities'!$J$2:$J$5000,B113)=0,"-",SUMIFS('Migrant -nationalities'!$K$2:$K$5000,'Migrant -nationalities'!$E$2:$E$5000,$E$4,'Migrant -nationalities'!$J$2:$J$5000,B113)) -> - | D113: Somalia | F113: =IF(SUMIFS('Migrant -nationalities'!$K$2:$K$5000,'Migrant -nationalities'!$E$2:$E$5000,$E$4,'Migrant -nationalities'!$J$2:$J$5000,D113)=0,"-",SUMIFS('Migrant -nationalities'!$K$2:$K$5000,'Migrant -nationalities'!$E$2:$E$5000,$E$4,'Migrant -nationalities'!$J$2:$J$5000,D113)) -> -
B114: Ethiopia | C114: =IF(SUMIFS('Migrant -nationalities'!$K$2:$K$5000,'Migrant -nationalities'!$E$2:$E$5000,$E$4,'Migrant -nationalities'!$J$2:$J$5000,B114)=0,"-",SUMIFS('Migrant -nationalities'!$K$2:$K$5000,'Migrant -nationalities'!$E$2:$E$5000,$E$4,'Migrant -nationalities'!$J$2:$J$5000,B114)) -> - | D114: Sudan | F114: =IF(SUMIFS('Migrant -nationalities'!$K$2:$K$5000,'Migrant -nationalities'!$E$2:$E$5000,$E$4,'Migrant -nationalities'!$J$2:$J$5000,D114)=0,"-",SUMIFS('Migrant -nationalities'!$K$2:$K$5000,'Migrant -nationalities'!$E$2:$E$5000,$E$4,'Migrant -nationalities'!$J$2:$J$5000,D114)) -> 120 | G114: Shelter
B115: Gabon | C115: =IF(SUMIFS('Migrant -nationalities'!$K$2:$K$5000,'Migrant -nationalities'!$E$2:$E$5000,$E$4,'Migrant -nationalities'!$J$2:$J$5000,B115)=0,"-",SUMIFS('Migrant -nationalities'!$K$2:$K$5000,'Migrant -nationalities'!$E$2:$E$5000,$E$4,'Migrant -nationalities'!$J$2:$J$5000,B115)) -> - | D115: Syria | F115: =IF(SUMIFS('Migrant -nationalities'!$K$2:$K$5000,'Migrant -nationalities'!$E$2:$E$5000,$E$4,'Migrant -nationalities'!$J$2:$J$5000,D115)=0,"-",SUMIFS('Migrant -nationalities'!$K$2:$K$5000,'Migrant -nationalities'!$E$2:$E$5000,$E$4,'Migrant -nationalities'!$J$2:$J$5000,D115)) -> - | G115: Rented Accomodation (Self Paid) | I115: =IF((SUMPRODUCT(('Migrant - Details'!$C$3:$C$661='Baladiya Profile Generator'!$E$4)*'Migrant - Details'!N$3:N$661)=0),"-",SUMPRODUCT(('Migrant - Details'!$C$3:$C$661='Baladiya Profile Generator'!$E$4)*'Migrant - Details'!N$3:N$661)) -> 580 | K115: Abondoned buildings | M115: =IF((SUMPRODUCT(('Migrant - Details'!$C$3:$C$661='Baladiya Profile Generator'!$E$4)*'Migrant - Details'!R$3:R$661)=0),"-",SUMPRODUCT(('Migrant - Details'!$C$3:$C$661='Baladiya Profile Generator'!$E$4)*'Migrant - Details'!SH3:SH661)) -> -
B116: Gambia | C116: =IF(SUMIFS('Migrant -nationalities'!$K$2:$K$5000,'Migrant -nationalities'!$E$2:$E$5000,$E$4,'Migrant -nationalities'!$J$2:$J$5000,B116)=0,"-",SUMIFS('Migrant -nationalities'!$K$2:$K$5000,'Migrant -nationalities'!$E$2:$E$5000,$E$4,'Migrant -nationalities'!$J$2:$J$5000,B116)) -> - | D116: Tanzania | F116: =IF(SUMIFS('Migrant -nationalities'!$K$2:$K$5000,'Migrant -nationalities'!$E$2:$E$5000,$E$4,'Migrant -nationalities'!$J$2:$J$5000,D116)=0,"-",SUMIFS('Migrant -nationalities'!$K$2:$K$5000,'Migrant -nationalities'!$E$2:$E$5000,$E$4,'Migrant -nationalities'!$J$2:$J$5000,D116)) -> - | K116: Sheltered in their workplace | M116: =IF((SUMPRODUCT(('Migrant - Details'!$C$3:$C$661='Baladiya Profile Generator'!$E$4)*'Migrant - Details'!S$3:S$661)=0),"-",SUMPRODUCT(('Migrant - Details'!$C$3:$C$661='Baladiya Profile Generator'!$E$4)*'Migrant - Details'!S$3:S$661)) -> 200
B117: Ghana | C117: =IF(SUMIFS('Migrant -nationalities'!$K$2:$K$5000,'Migrant -nationalities'!$E$2:$E$5000,$E$4,'Migrant -nationalities'!$J$2:$J$5000,B117)=0,"-",SUMIFS('Migrant -nationalities'!$K$2:$K$5000,'Migrant -nationalities'!$E$2:$E$5000,$E$4,'Migrant -nationalities'!$J$2:$J$5000,B117)) -> 95 | D117: Togo | F117: =IF(SUMIFS('Migrant -nationalities'!$K$2:$K$5000,'Migrant -nationalities'!$E$2:$E$5000,$E$4,'Migrant -nationalities'!$J$2:$J$5000,D117)=0,"-",SUMIFS('Migrant -nationalities'!$K$2:$K$5000,'Migrant -nationalities'!$E$2:$E$5000,$E$4,'Migrant -nationalities'!$J$2:$J$5000,D117)) -> - | G117: Rented Accomodation (Paind by others) | I117: =IF((SUMPRODUCT(('Migrant - Details'!$C$3:$C$661='Baladiya Profile Generator'!$E$4)*'Migrant - Details'!O$3:O$661)=0),"-",SUMPRODUCT(('Migrant - Details'!$C$3:$C$661='Baladiya Profile Generator'!$E$4)*'Migrant - Details'!O$3:O$661)) -> -
B118: Guinea | C118: =IF(SUMIFS('Migrant -nationalities'!$K$2:$K$5000,'Migrant -nationalities'!$E$2:$E$5000,$E$4,'Migrant -nationalities'!$J$2:$J$5000,B118)=0,"-",SUMIFS('Migrant -nationalities'!$K$2:$K$5000,'Migrant -nationalities'!$E$2:$E$5000,$E$4,'Migrant -nationalities'!$J$2:$J$5000,B118)) -> - | D118: Tunisia | F118: =IF(SUMIFS('Migrant -nationalities'!$K$2:$K$5000,'Migrant -nationalities'!$E$2:$E$5000,$E$4,'Migrant -nationalities'!$J$2:$J$5000,D118)=0,"-",SUMIFS('Migrant -nationalities'!$K$2:$K$5000,'Migrant -nationalities'!$E$2:$E$5000,$E$4,'Migrant -nationalities'!$J$2:$J$5000,D118)) -> 10 | K118: Schools or other public buildings | M118: =IF((SUMPRODUCT(('Migrant - Details'!$C$3:$C$661='Baladiya Profile Generator'!$E$4)*'Migrant - Details'!T$3:T$661)=0),"-",SUMPRODUCT(('Migrant - Details'!$C$3:$C$661='Baladiya Profile Generator'!$E$4)*'Migrant - Details'!T$3:T$661)) -> -
B119: Guinea Bissau | C119: =IF(SUMIFS('Migrant -nationalities'!$K$2:$K$5000,'Migrant -nationalities'!$E$2:$E$5000,$E$4,'Migrant -nationalities'!$J$2:$J$5000,B119)=0,"-",SUMIFS('Migrant -nationalities'!$K$2:$K$5000,'Migrant -nationalities'!$E$2:$E$5000,$E$4,'Migrant -nationalities'!$J$2:$J$5000,B119)) -> - | D119: Turkey | F119: =IF(SUMIFS('Migrant -nationalities'!$K$2:$K$5000,'Migrant -nationalities'!$E$2:$E$5000,$E$4,'Migrant -nationalities'!$J$2:$J$5000,D119)=0,"-",SUMIFS('Migrant -nationalities'!$K$2:$K$5000,'Migrant -nationalities'!$E$2:$E$5000,$E$4,'Migrant -nationalities'!$J$2:$J$5000,D119)) -> - | G119: Rented Accomodation (Paind by employer) | I119: =IF((SUMPRODUCT(('Migrant - Details'!$C$3:$C$661='Baladiya Profile Generator'!$E$4)*'Migrant - Details'!P$3:P$661)=0),"-",SUMPRODUCT(('Migrant - Details'!$C$3:$C$661='Baladiya Profile Generator'!$E$4)*'Migrant - Details'!P$3:P$661)) -> 340
B120: India | C120: =IF(SUMIFS('Migrant -nationalities'!$K$2:$K$5000,'Migrant -nationalities'!$E$2:$E$5000,$E$4,'Migrant -nationalities'!$J$2:$J$5000,B120)=0,"-",SUMIFS('Migrant -nationalities'!$K$2:$K$5000,'Migrant -nationalities'!$E$2:$E$5000,$E$4,'Migrant -nationalities'!$J$2:$J$5000,B120)) -> - | D120: Yemen | F120: =IF(SUMIFS('Migrant -nationalities'!$K$2:$K$5000,'Migrant -nationalities'!$E$2:$E$5000,$E$4,'Migrant -nationalities'!$J$2:$J$5000,D120)=0,"-",SUMIFS('Migrant -nationalities'!$K$2:$K$5000,'Migrant -nationalities'!$E$2:$E$5000,$E$4,'Migrant -nationalities'!$J$2:$J$5000,D120)) -> - | K120: Informal camp setting | M120: =IF((SUMPRODUCT(('Migrant - Details'!$C$3:$C$661='Baladiya Profile Generator'!$E$4)*'Migrant - Details'!U$3:U$661)=0),"-",SUMPRODUCT(('Migrant - Details'!$C$3:$C$661='Baladiya Profile Generator'!$E$4)*'Migrant - Details'!U$3:U$661)) -> 325
B121: Kenya | C121: =IF(SUMIFS('Migrant -nationalities'!$K$2:$K$5000,'Migrant -nationalities'!$E$2:$E$5000,$E$4,'Migrant -nationalities'!$J$2:$J$5000,B121)=0,"-",SUMIFS('Migrant -nationalities'!$K$2:$K$5000,'Migrant -nationalities'!$E$2:$E$5000,$E$4,'Migrant -nationalities'!$J$2:$J$5000,B121)) -> - | D121: Zambia | F121: =IF(SUMIFS('Migrant -nationalities'!$K$2:$K$5000,'Migrant -nationalities'!$E$2:$E$5000,$E$4,'Migrant -nationalities'!$J$2:$J$5000,D121)=0,"-",SUMIFS('Migrant -nationalities'!$K$2:$K$5000,'Migrant -nationalities'!$E$2:$E$5000,$E$4,'Migrant -nationalities'!$J$2:$J$5000,D121)) -> - | G121: Squatting on other people's properties | I121: =IF((SUMPRODUCT(('Migrant - Details'!$C$3:$C$661='Baladiya Profile Generator'!$E$4)*'Migrant - Details'!Q$3:Q$661)=0),"-",SUMPRODUCT(('Migrant - Details'!$C$3:$C$661='Baladiya Profile Generator'!$E$4)*'Migrant - Details'!Q$3:Q$661)) -> - | K121: No accomodation | M121: =IF((SUMPRODUCT(('Migrant - Details'!$C$3:$C$661='Baladiya Profile Generator'!$E$4)*'Migrant - Details'!V$3:V$661)=0),"-",SUMPRODUCT(('Migrant - Details'!$C$3:$C$661='Baladiya Profile Generator'!$E$4)*'Migrant - Details'!V$3:V$661)) -> -
B122: Madagascar | C122: =IF(SUMIFS('Migrant -nationalities'!$K$2:$K$5000,'Migrant -nationalities'!$E$2:$E$5000,$E$4,'Migrant -nationalities'!$J$2:$J$5000,B122)=0,"-",SUMIFS('Migrant -nationalities'!$K$2:$K$5000,'Migrant -nationalities'!$E$2:$E$5000,$E$4,'Migrant -nationalities'!$J$2:$J$5000,B122)) -> - | D122: Other | F122: =D95-SUM(C103:C122,F103:F121) -> 0 | K122: Other Shelter | M122: =IF((SUMPRODUCT(('Migrant - Details'!$C$3:$C$661='Baladiya Profile Generator'!$E$4)*'Migrant - Details'!W$3:W$661)=0),"-",SUMPRODUCT(('Migrant - Details'!$C$3:$C$661='Baladiya Profile Generator'!$E$4)*'Migrant - Details'!W$3:W$661)) -> 110
B125: l+216 29 235 097 | F125: dtmlibya@iom.int | J125: www.globaldtm.info/libya

Sheet Geolocation (hidden)
A1: ADM3_Baladiya_EN | B1: ADM2_Mantika_EN | C1: ADM1_Geodivision_EN
A2: Abu Qurayn | B2: Misrata | C2: West
A3: Abusliem | B3: Tripoli | C3: West
A4: Ain Zara | B4: Tripoli | C4: West
A5: Al Ajaylat | B5: Zwara | C5: West
A6: Al Aziziya | B6: Aljfara | C6: West
A7: Al Maya | B7: Aljfara | C7: West
A8: Al Qalaa | B8: Al Jabal Al Gharbi | C8: West
A9: Alabyar | B9: Benghazi | C9: East
A10: Alasabaa | B10: Al Jabal Al Gharbi | C10: West
A11: Albawanees | B11: Sebha | C11: South
A12: Albayda | B12: Al Jabal Al Akhdar | C12: East
A13: Albrayga | B13: Ejdabia | C13: East
A14: Algatroun | B14: Murzuq | C14: South
A15: Alghrayfa | B15: Ubari | C15: South
A16: Algurdha Ashshati | B16: Wadi Ashshati | C16: South
A17: Alharaba | B17: Nalut | C17: West
A18: Alhawamid | B18: Nalut | C18: West
A19: Aljmail | B19: Zwara | C19: West
A20: Aljufra | B20: Aljufra | C20: South
A21: Alkhums | B21: Almargeb | C21: West
A22: Alkufra | B22: Alkufra | C22: East
A23: Almarj | B23: Almarj | C23: East
A24: Alqayqab | B24: Derna | C24: East
A25: Alqubba | B25: Derna | C25: East
A26: Alsharguiya | B26: Murzuq | C26: South
A27: Arrajban | B27: Al Jabal Al Gharbi | C27: West
A28: Arrayayna | B28: Al Jabal Al Gharbi | C28: West
A29: Arrhaibat | B29: Al Jabal Al Gharbi | C29: West
A30: Ashshgega | B30: Al Jabal Al Gharbi | C30: West
A31: Ashshwayrif | B31: Al Jabal Al Gharbi | C31: West
A32: Assahel | B32: Almarj | C32: East
A33: Aujala | B33: Ejdabia | C33: East
A34: Azzahra | B34: Aljfara | C34: West
A35: Azzawya | B35: Azzawya | C35: West
A36: Azzintan | B36: Al Jabal Al Gharbi | C36: West
A37: Bani Waleed | B37: Misrata | C37: West
A38: Baten Aljabal | B38: Nalut | C38: West
A39: Benghazi | B39: Benghazi | C39: East
A40: Bint Bayya | B40: Ubari | C40: South
A41: Bir Alashhab | B41: Tobruk | C41: East
A42: Brak | B42: Wadi Ashshati | C42: South
A43: Daraj | B43: Nalut | C43: West
A44: Derna | B44: Derna | C44: East
A45: Edri | B45: Wadi Ashshati | C45: South
A46: Ejdabia | B46: Ejdabia | C46: East
A47: Ejkherra | B47: Ejdabia | C47: East
A48: Emsaed | B48: Tobruk | C48: East
A49: Espeaa | B49: Aljfara | C49: West
A50: Garabolli | B50: Almargeb | C50: West
A51: Gemienis | B51: Benghazi | C51: East
A52: Ghadamis | B52: Nalut | C52: West
A53: Gharb Azzawya | B53: Azzawya | C53: West
A54: Ghat | B54: Ghat | C54: South
A55: Ghiryan | B55: Al Jabal Al Gharbi | C55: West
A56: Hai Alandalus | B56: Tripoli | C56: West
A57: Hrawa | B57: Sirt | C57: West
A58: Jadu | B58: Al Jabal Al Gharbi | C58: West
A59: Jalu | B59: Ejdabia | C59: East
A60: Janoub Azzawya | B60: Azzawya | C60: West
A61: Janzour | B61: Aljfara | C61: West
A62: Jardas Alabeed | B62: Almarj | C62: East
A63: Kabaw | B63: Nalut | C63: West
A64: Khaleej Assidra | B64: Sirt | C64: West
A65: Kikkla | B65: Al Jabal Al Gharbi | C65: West
A66: Labriq | B66: Derna | C66: East
A67: Marada | B67: Ejdabia | C67: East
A68: Misrata | B68: Misrata | C68: West
A69: Msallata | B69: Almargeb | C69: West
A70: Murzuq | B70: Murzuq | C70: South
A71: Nalut | B71: Nalut | C71: West
A72: Nesma | B72: Al Jabal Al Gharbi | C72: West
A73: Qasr Akhyar | B73: Almargeb | C73: West
A74: Qasr Bin Ghasheer | B74: Aljfara | C74: West
A75: Rigdaleen | B75: Zwara | C75: West
A76: Sabratha | B76: Zwara | C76: West
A77: Sebha | B77: Sebha | C77: South
A78: Shahhat | B78: Al Jabal Al Akhdar | C78: East
A79: Sidi Assayeh | B79: Aljfara | C79: West
A80: Sirt | B80: Sirt | C80: West
A81: Suloug | B81: Benghazi | C81: East
A82: Suq Aljumaa | B82: Tripoli | C82: West
A83: Suq Alkhamees | B83: Aljfara | C83: West
A84: Surman | B84: Azzawya | C84: West
A85: Swani Bin Adam | B85: Aljfara | C85: West
A86: Tajoura | B86: Tripoli | C86: West
A87: Taraghin | B87: Murzuq | C87: South
A88: Tarhuna | B88: Almargeb | C88: West
A89: Tazirbu | B89: Alkufra | C89: East
A90: Thaher Aljabal | B90: Al Jabal Al Gharbi | C90: West
A91: Tobruk | B91: Tobruk | C91: East
A92: Toukra | B92: Benghazi | C92: East
A93: Tripoli | B93: Tripoli | C93: West
A94: Ubari | B94: Ubari | C94: South
A95: Umm arrazam | B95: Derna | C95: East
A96: Wadi Etba | B96: Murzuq | C96: South
A97: Wazin | B97: Nalut | C97: West
A98: Yefren | B98: Al Jabal Al Gharbi | C98: West
A99: Ziltun | B99: Zwara | C99: West
A100: Zliten | B100: Misrata | C100: West
A101: Zwara | B101: Zwara | C101: West
F105: Access to income | H105: Geolocation!G105
F106: Education | H106: Geolocation!G106
F107: Food | H107: Geolocation!G107
F108: Health services | H108: Geolocation!G108
F109: Legal Help | H109: Geolocation!G109
F110: NFIs | H110: Geolocation!G110
F111: Protection | H111: Geolocation!G111
F112: Security | H112: Geolocation!G112
F113: Shelter | H113: Geolocation!G113
F114: Water, Sanitation and Hygiene | H114: Geolocation!G114
F115: - | H115: Geolocation!G115

Sheet Baladiya (hidden)
A1: General Info | L1: IDP Section | V1: Local Population Fled Baladiya | AF1: Returnee Section | AT1: Migrant Section | AZ1: Data Credibility & KI
A2: ADM 1 Geodivision (EN) | B2: ADM 1 Geodivision (AR) | C2: ADM 2 Mantika-Region (EN) | D2: ADM 2 Mantika-Region (AR) | E2: ADM 3 Baladiya-Area (EN) | F2: ADM 3 Baladiya-Area (AR) | G2: Baladiya PCode | H2: Lat | I2: Long | J2: AssessmentRound | K2: Assessment Date | L2: IDPs in Baladiya (HH) | M2: IDPs in Baladiya (IND) | N2: IDPs Displaced between 2011-2014 (HH) | O2: IDPs Displaced between 2011-2014 (IND) | P2: IDPs Displaced between 2017-2015 (HH) | Q2: IDPs Displaced between 2017-2015 (IND) | R2: IDPs Displaced Since begining of 2018 (HH) | S2: IDPs Displaced Since begining of 2018 (IND) | T2: IDPs Displacement in Last Two Months (HH) | U2: IDPs Displacement in Last Two Months (IND) | V2: IDP Origin Baladiya-1 | W2: IDP Origin Baladiya-2 | X2: IDP Origin Baladiya-3 | Y2: Resident Population Fled this Baladiya (HH) | Z2: Resident Population Fled this Baladiya (INd) | AA2: Resident Population Fled in 2011-2014 (HH) | AB2: Resident Population Fled in 2011-2014 (IND) | AC2: Resident Population Fled in 2015-2017 (HH) | AD2: Resident Population Fled in 2015-2017 (IND) | AE2: Resident Population Fled since begining of 2018 (HH) | AF2: Resident Population Fled since begining of 2018 (IND) | AG2: Resident Population Fled in Last Two Months (HH) | AH2: Resident Population Fled in Last Two Months (IND) | AI2: Returnee Population (HH) | AJ2: Returnee Population (IND) | AK2: Returnees that Returned in 2017 (HH) | AL2: Returnees that Returned in 2017 (IND) | AM2: Returnees that Returned in 2018 (HH) | AN2: Returnees that Returned in 2018 (IND) | AO2: Returnees in Last two months (HH) | AP2: Returnees in Last two months (IND) | AQ2: Returnee Last Displacement Baladiya-1 | AR2: Returnee Last Displacement Baladiya-2 | AS2: Returnee Last Displacement Baladiya-3 | AT2: Migrants (IND) | AU2: Migrants Arrrived in last 30 days(%) | AV2: Migrants in Baladiya 0-6 months (%) | AW2: Migrants in Baladiya 6-12 mths (%) | AX2: Migrants in Baladiya 12+ months (%) | AY2: Migrants in Baladiya Stay Duration Unknown (%) | AZ2: 1. Is the information provided identical between different sources? | BA2: 2. Is the information provided by the source matching observations and expectations? | BB2: 3. Does the source of information have any list or information on numbers of IDPs? | BC2: 4. Did you notice any contradiction between the data provided? | BD2: 5. How many Key Informants were interviewed?
A3: West | B3: الغرب | C3: Misrata | D3: مصراته | E3: Abu Qurayn | F3: ابو قرين | G3: LY021403 | H3: 31.446054 | I3: 15.254151 | J3: 23 | K3: 2018-12-22 | L3: 80 | M3: 400 | N3: 68 | O3: 340 | P3: 9 | Q3: 45 | R3: 3 | S3: 15 | T3: 1 | U3: 5 | V3: Misrata | W3: Sirt | AI3: 2150 | AJ3: 10750 | AK3: 2150 | AL3: 10750 | AM3: 0 | AN3: 0 | AQ3: Misrata | AR3: Tarhuna | AS3: Bani Waleed | AT3: 1555 | AU3: 5 | AV3: 40 | AW3: 40 | AX3: 15 | AZ3: Yes, for most | BA3: Yes, for most | BB3: Only for Some | BC3: No | BD3: 3
A4: West | B4: الغرب | C4: Tripoli | D4: طرابلس | E4: Abusliem | F4: ابوسليم | G4: LY021105 | H4: 32.851797 | I4: 13.167642 | J4: 23 | K4: 2018-12-03 | L4: 1800 | M4: 9000 | N4: 880 | O4: 4400 | P4: 920 | Q4: 4600 | R4: 0 | S4: 0 | V4: Kikkla | W4: Misrata | X4: Benghazi | Y4: 250 | Z4: 1250 | AA4: 250 | AB4: 1250 | AC4: 0 | AD4: 0 | AE4: 0 | AF4: 0 | AI4: 8450 | AJ4: 42250 | AK4: 5000 | AL4: 25000 | AM4: 3450 | AN4: 17250 | AO4: 3050 | AP4: 15250 | AQ4: Azzintan | AR4: Tarhuna | AT4: 49000 | AU4: 51 | AV4: 19 | AW4: 16 | AX4: 14 | AZ4: Yes, for everything | BA4: Yes, for everything | BB4: Yes, for everything | BC4: No | BD4: 8
A5: West | B5: الغرب | C5: Tripoli | D5: طرابلس | E5: Ain Zara | F5: عين زارة | G5: LY021103 | H5: 32.813333 | I5: 13.269722 | J5: 23 | K5: 2018-12-09 | L5: 249 | M5: 1245 | N5: 20 | O5: 100 | P5: 34 | Q5: 170 | R5: 195 | S5: 975 | T5: 195 | U5: 975 | Y5: 53 | Z5: 265 | AA5: 0 | AB5: 0 | AC5: 0 | AD5: 0 | AE5: 53 | AF5: 265 | AI5: 2327 | AJ5: 11635 | AK5: 150 | AL5: 750 | AM5: 2177 | AN5: 10885 | AO5: 2147 | AP5: 10735 | AQ5: Azzintan | AS5: Tarhuna | AT5: 63000 | AU5: 41 | AV5: 9 | AW5: 25 | AX5: 25 | AZ5: Yes, for everything | BA5: Yes, for everything | BB5: Yes, for everything | BC5: No | BD5: 9
A6: West | B6: الغرب | C6: Zwara | D6: زوارة | E6: Al Ajaylat | F6: العجيلات | G6: LY021501 | H6: 32.758014 | I6: 12.377502 | J6: 23 | K6: 2018-11-29 | L6: 40 | M6: 205 | N6: 0 | O6: 0 | P6: 40 | Q6: 205 | R6: 0 | S6: 0 | V6: Al Ajaylat | Y6: 95 | Z6: 475 | AA6: 36 | AB6: 180 | AC6: 59 | AD6: 295 | AE6: 0 | AF6: 0 | AT6: 1550 | AU6: 10 | AV6: 30 | AW6: 20 | AX6: 10 | AY6: 30 | AZ6: Yes, for most | BA6: Only for Some | BB6: Yes, for most | BC6: Only for Some | BD6: 20
A7: West | B7: الغرب | C7: Aljfara | D7: الجفارة | E7: Al Aziziya | F7: العزيزية | G7: LY021207 | H7: 32.533092 | I7: 13.017624 | J7: 23 | K7: 2018-12-01 | Y7: 60 | Z7: 300 | AA7: 60 | AB7: 300 | AC7: 0 | AD7: 0 | AE7: 0 | AF7: 0 | AI7: 534 | AJ7: 2670 | AK7: 494 | AL7: 2470 | AM7: 40 | AN7: 200 | AO7: 0 | AP7: 0 | AQ7: Bani Waleed | AR7: Tarhuna | AS7: Janzour | AT7: 1600 | AU7: 13 | AV7: 37 | AW7: 30 | AX7: 20 | AZ7: Yes, for everything | BA7: Yes, for everything | BB7: Yes, for everything | BC7: No | BD7: 8
A8: West | B8: الغرب | C8: Aljfara | D8: الجفارة | E8: Al Maya | F8: الماية | G8: LY021208 | H8: 32.791864 | I8: 12.885278 | J8: 23 | K8: 2018-11-15 | L8: 39 | M8: 195 | N8: 0 | O8: 0 | P8: 13 | Q8: 65 | R8: 26 | S8: 130 | T8: 10 | U8: 50 | V8: Azzawya | W8: Misrata | X8: Tripoli | Y8: 8 | Z8: 40 | AA8: 0 | AB8: 0 | AC8: 0 | AD8: 0 | AE8: 8 | AF8: 40 | AG8: 31 | AH8: 155 | AI8: 102 | AJ8: 510 | AK8: 22 | AL8: 110 | AM8: 80 | AN8: 400 | AO8: 50 | AP8: 250 | AQ8: Tripoli | AR8: Azzawya | AT8: 205 | AU8: 40 | AV8: 60 | AW8: 0 | AX8: 0 | AY8: 0 | AZ8: Yes, for everything | BA8: Yes, for everything | BB8: Yes, for everything | BC8: No | BD8: 2
A9: West | B9: الغرب | C9: Al Jabal Al Gharbi | D9: الجبل الغربي | E9: Al Qalaa | F9: القلعة | G9: LY021604 | H9: 32.048261 | I9: 12.561045 | J9: 23 | K9: 2018-11-18 | AT9: 430 | AZ9: Yes, for everything | BA9: Yes, for everything | BB9: Yes, for everything | BC9: No | BD9: 7
A10: East | B10: الشرق | C10: Benghazi | D10: بنغازي | E10: Alabyar | F10: الأبيار | G10: LY010301 | H10: 32.189645 | I10: 20.594509 | J10: 23 | K10: 2018-12-28 | L10: 16 | M10: 80 | N10: 0 | O10: 0 | P10: 16 | Q10: 80 | R10: 0 | S10: 0 | V10: Benghazi | AT10: 975 | AV10: 27 | AW10: 35 | AX10: 25 | AZ10: Yes, for everything | BA10: Yes, for most | BB10: Only for Some | BC10: No | BD10: 1
A11: West | B11: الغرب | C11: Al Jabal Al Gharbi | D11: الجبل الغربي | E11: Alasabaa | F11: الأصابعة | G11: LY021603 | H11: 32.033333 | I11: 12.866667 | J11: 23 | K11: 2018-11-27 | AT11: 3800 | AU11: 15 | AV11: 33 | AW11: 28 | AX11: 24 | AZ11: Yes, for everything | BA11: Yes, for everything | BB11: Yes, for everything | BC11: No | BD11: 8
A12: South | B12: الجنوب | C12: Sebha | D12: سبها | E12: Albawanees | F12: البوانيس | G12: LY031902 | H12: 27.267049 | I12: 14.903607 | J12: 23 | K12: 2018-12-07 | L12: 9 | M12: 45 | N12: 7 | O12: 35 | P12: 2 | Q12: 10 | R12: 0 | S12: 0 | V12: Misrata | W12: Ubari | X12: Albawanees | Y12: 70 | Z12: 350 | AA12: 0 | AB12: 0 | AC12: 70 | AD12: 350 | AE12: 0 | AF12: 0 | AT12: 780 | AU12: 8 | AV12: 24 | AW12: 28 | AX12: 40 | AZ12: Only for Some | BA12: Only for Some | BB12: Only for Some | BC12: Only for Some | BD12: 2
A13: East | B13: الشرق | C13: Al Jabal Al Akhdar | D13: الجبل الاخضر | E13: Albayda | F13: البيضاء | G13: LY010602 | H13: 32.766389 | I13: 21.741667 | J13: 23 | K13: 2018-11-18 | L13: 465 | M13: 2325 | N13: 0 | O13: 0 | P13: 275 | Q13: 1375 | R13: 190 | S13: 950 | V13: Derna | W13: Benghazi | X13: Sirt | AT13: 7930 | AU13: 13 | AV13: 27 | AW13: 25 | AX13: 35 | AZ13: Yes, for everything | BA13: Yes, for most | BB13: Only for Some | BC13: No | BD13: 1
A14: East | B14: الشرق | C14: Ejdabia | D14: اجدابيا | E14: Albrayga | F14: البريقة | G14: LY010506 | H14: 30.40624 | I14: 19.57386 | J14: 23 | K14: 2018-12-10 | L14: 16 | M14: 80 | N14: 8 | O14: 40 | P14: 8 | Q14: 40 | R14: 0 | S14: 0 | V14: Sirt | AT14: 995 | AU14: 0 | AV14: 59 | AW14: 21 | AX14: 20 | AZ14: Yes, for most | BA14: Yes, for most | BB14: Only for Some | BC14: Only for Some | BD14: 1
A15: South | B15: الجنوب | C15: Murzuq | D15: مرزق | E15: Algatroun | F15: القطرون | G15: LY032202 | H15: 24.888852 | I15: 14.531484 | J15: 23 | K15: 2018-11-17 | L15: 545 | M15: 2725 | N15: 0 | O15: 0 | P15: 545 | Q15: 2725 | R15: 0 | S15: 0 | V15: Sebha | W15: Ubari | Y15: 100 | Z15: 500 | AA15: 0 | AB15: 0 | AC15: 100 | AD15: 500 | AE15: 0 | AF15: 0 | AI15: 52 | AJ15: 260 | AK15: 52 | AL15: 260 | AM15: 0 | AN15: 0 | AO15: 0 | AP15: 0 | AQ15: Sebha | AR15: Tripoli | AS15: Ubari | AT15: 14627 | AU15: 10 | AV15: 40 | AW15: 20 | AX15: 30 | AZ15: Yes, for everything | BA15: Yes, for everything | BB15: Yes, for everything | BC15: No | BD15: 5
A16: South | B16: الجنوب | C16: Ubari | D16: اوباري | E16: Alghrayfa | F16: الغريفة | G16: LY032002 | H16: 26.525887 | I16: 13.009949 | J16: 23 | K16: 2018-12-14 | L16: 153 | M16: 765 | N16: 153 | O16: 765 | P16: 0 | Q16: 0 | R16: 0 | S16: 0 | V16: Ubari | W16: Misrata | AT16: 1400 | AU16: 6 | AV16: 24 | AW16: 28 | AX16: 42 | AZ16: Only for Some | BA16: Yes, for most | BB16: Yes, for most | BC16: Only for Some | BD16: 4
A17: South | B17: الجنوب | C17: Wadi Ashshati | D17: وادى الشاطئ | E17: Algurdha Ashshati | F17: القرضة الشاطئ | G17: LY031803 | H17: 27.483096 | I17: 13.969695 | J17: 23 | K17: 2018-12-15 | L17: 68 | M17: 340 | N17: 59 | O17: 295 | P17: 0 | Q17: 0 | R17: 9 | S17: 45 | V17: Misrata | W17: Tripoli | X17: Sirt | Y17: 161 | Z17: 805 | AA17: 0 | AB17: 0 | AC17: 161 | AD17: 805 | AE17: 0 | AF17: 0 | AT17: 1300 | AU17: 10 | AV17: 20 | AW17: 30 | AX17: 40 | AZ17: Only for Some | BA17: Yes, for most | BB17: Yes, for most | BC17: Only for Some | BD17: 2
A18: West | B18: الغرب | C18: Nalut | D18: نالوت | E18: Alharaba | F18: الحرابة | G18: LY020902 | H18: 31.773889 | I18: 11.543611 | J18: 23 | K18: 2018-11-28 | AT18: 350 | AU18: 0 | AV18: 47 | AW18: 28 | AX18: 25 | AZ18: Yes, for everything | BA18: Yes, for everything | BB18: Yes, for everything | BC18: No | BD18: 6
A19: West | B19: الغرب | C19: Nalut | D19: نالوت | E19: Alhawamid | F19: الحوامد | G19: LY020904 | H19: 31.975496 | I19: 11.162235 | J19: 23 | K19: 2018-11-21 | AT19: 450 | AU19: 11 | AV19: 34 | AW19: 30 | AX19: 25 | AZ19: Yes, for everything | BA19: Yes, for everything | BB19: Yes, for everything | BC19: No | BD19: 6
A20: West | B20: الغرب | C20: Zwara | D20: زوارة | E20: Aljmail | F20: الجميل | G20: LY021504 | H20: 32.853386 | I20: 12.059558 | J20: 23 | K20: 2018-11-16 | L20: 42 | M20: 210 | N20: 8 | O20: 40 | P20: 29 | Q20: 145 | R20: 5 | S20: 25 | V20: Tarhuna | W20: Benghazi | X20: Tripoli | AI20: 14 | AJ20: 70 | AK20: 14 | AL20: 70 | AM20: 0 | AN20: 0 | AT20: 1300 | AU20: 3 | AV20: 26 | AW20: 35 | AX20: 36 | AZ20: Yes, for most | BA20: Yes, for most | BB20: Yes, for most | BC20: Yes, for most | BD20: 6
A21: South | B21: الجنوب | C21: Aljufra | D21: الجفرة | E21: Aljufra | F21: الجفرة | G21: LY031701 | H21: 29.161473 | I21: 16.141406 | J21: 23 | K21: 2018-12-15 | L21: 104 | M21: 570 | N21: 0 | O21: 0 | P21: 67 | Q21: 385 | R21: 37 | S21: 185 | T21: 37 | U21: 185 | V21: Misrata | W21: Aljufra | Y21: 37 | Z21: 185 | AA21: 0 | AB21: 0 | AC21: 0 | AD21: 0 | AE21: 37 | AF21: 185 | AG21: 37 | AH21: 185 | AT21: 15113 | AU21: 16 | AV21: 29 | AW21: 35 | AX21: 20 | AZ21: Yes, for most | BA21: Yes, for most | BB21: Only for Some | BC21: Only for Some | BD21: 1
A22: West | B22: الغرب | C22: Almargeb | D22: المرقب | E22: Alkhums | F22: الخمس | G22: LY021001 | H22: 32.652183 | I22: 14.26801 | J22: 23 | K22: 2018-11-29 | L22: 418 | M22: 2209 | N22: 132 | O22: 687 | P22: 274 | Q22: 1469 | R22: 12 | S22: 53 | T22: 0 | U22: 0 | V22: Sirt | W22: Misrata | X22: Benghazi | AT22: 5515 | AZ22: Yes, for most | BA22: Yes, for most | BB22: Yes, for most | BC22: Only for Some | BD22: 5
A23: East | B23: الشرق | C23: Alkufra | D23: الكفرة | E23: Alkufra | F23: الكفرة | G23: LY010701 | H23: 24.198769 | I23: 23.293191 | J23: 23 | K23: 2018-11-14 | L23: 1371 | M23: 6855 | N23: 0 | O23: 0 | P23: 1371 | Q23: 6855 | R23: 0 | S23: 0 | T23: 0 | U23: 0 | V23: Ubari | W23: Murzuq | X23: Alkufra | Y23: 361 | Z23: 1805 | AA23: 0 | AB23: 0 | AC23: 361 | AD23: 1805 | AE23: 0 | AF23: 0 | AI23: 347 | AJ23: 1735 | AK23: 347 | AL23: 1735 | AM23: 0 | AN23: 0 | AO23: 0 | AP23: 0 | AQ23: Tazirbu | AR23: Jalu | AS23: Sebha | AT23: 23659 | AU23: 5 | AV23: 55 | AW23: 20 | AX23: 20 | AZ23: Yes, for everything | BA23: Yes, for everything | BB23: Yes, for everything | BC23: No | BD23: 1
A24: East | B24: الشرق | C24: Almarj | D24: المرج | E24: Almarj | F24: المرج | G24: LY010202 | H24: 32.485716 | I24: 20.833836 | J24: 23 | K24: 2018-11-27 | L24: 57 | M24: 285 | N24: 17 | O24: 85 | P24: 34 | Q24: 170 | R24: 6 | S24: 30 | V24: Benghazi | W24: Misrata | X24: Sirt | AT24: 3910 | AU24: 15 | AV24: 35 | AW24: 30 | AX24: 20 | AZ24: Yes, for everything | BA24: Only for Some | BB24: Only for Some | BC24: No | BD24: 2
A25: East | B25: الشرق | C25: Derna | D25: درنه | E25: Alqayqab | F25: القيقب | G25: LY010104 | H25: 32.724734 | I25: 22.02385 | J25: 23 | K25: 2018-12-10 | AT25: 320 | AU25: 13 | AV25: 37 | AW25: 25 | AX25: 25 | AZ25: Yes, for everything | BA25: Yes, for most | BB25: Only for Some | BC25: No | BD25: 1
A26: East | B26: الشرق | C26: Derna | D26: درنه | E26: Alqubba | F26: القبة | G26: LY010103 | H26: 32.763056 | I26: 22.241753 | J26: 23 | K26: 2018-11-25 | L26: 96 | M26: 480 | N26: 12 | O26: 60 | P26: 41 | Q26: 205 | R26: 43 | S26: 215 | V26: Derna | W26: Benghazi | X26: Sirt | AT26: 3645 | AU26: 13 | AV26: 27 | AW26: 25 | AX26: 35 | AZ26: Yes, for most | BA26: Yes, for most | BB26: Only for Some | BC26: Only for Some | BD26: 1
A27: South | B27: الجنوب | C27: Murzuq | D27: مرزق | E27: Alsharguiya | F27: الشرقية | G27: LY032201 | H27: 26.14285 | I27: 14.903555 | J27: 23 | K27: 2018-11-15 | L27: 240 | M27: 1200 | N27: 0 | O27: 0 | P27: 240 | Q27: 1200 | R27: 0 | S27: 0 | V27: Alkufra | W27: Sebha | X27: Ubari | AT27: 15677 | AU27: 10 | AV27: 50 | AW27: 10 | AX27: 30 | AZ27: Yes, for everything | BA27: Yes, for everything | BB27: Yes, for everything | BC27: No | BD27: 1
A28: West | B28: الغرب | C28: Al Jabal Al Gharbi | D28: الجبل الغربي | E28: Arrajban | F28: الرجبان | G28: LY021608 | H28: 31.940334 | I28: 12.091358 | J28: 23 | K28: 2018-11-18 | AT28: 600 | AU28: 17 | AV28: 34 | AW28: 26 | AX28: 23 | AZ28: Yes, for everything | BA28: Yes, for everything | BB28: Yes, for everything | BC28: No | BD28: 7
A29: West | B29: الغرب | C29: Al Jabal Al Gharbi | D29: الجبل الغربي | E29: Arrayayna | F29: الرياينة | G29: LY021611 | H29: 31.99522 | I29: 12.345642 | J29: 23 | K29: 2018-11-15 | L29: 10 | M29: 50 | N29: 0 | O29: 0 | P29: 10 | Q29: 50 | R29: 0 | S29: 0 | V29: Tarhuna | AT29: 300 | AU29: 7 | AV29: 43 | AW29: 30 | AX29: 20 | AZ29: Yes, for everything | BA29: Yes, for everything | BB29: Yes, for everything | BC29: No | BD29: 7
A30: West | B30: الغرب | C30: Al Jabal Al Gharbi | D30: الجبل الغربي | E30: Arrhaibat | F30: الرحيبات | G30: LY021610 | H30: 31.762545 | I30: 11.889616 | J30: 23 | K30: 2018-10-24 | AT30: 630 | AU30: 5 | AV30: 50 | AW30: 24 | AX30: 21 | AZ30: Yes, for everything | BA30: Yes, for everything | BB30: Yes, for everything | BC30: No | BD30: 7
A31: West | B31: الغرب | C31: Al Jabal Al Gharbi | D31: الجبل الغربي | E31: Ashshgega | F31: الشقيقة | G31: LY021612 | H31: 31.650026 | I31: 12.816976 | J31: 23 | K31: 2018-11-17 | L31: 30 | M31: 150 | N31: 30 | O31: 150 | P31: 0 | Q31: 0 | R31: 0 | S31: 0 | V31: Yefren | AT31: 4200 | AU31: 5 | AV31: 45 | AW31: 30 | AX31: 20 | AZ31: Yes, for everything | BA31: Yes, for everything | BB31: Yes, for most | BC31: No | BD31: 8
A32: West | B32: الغرب | C32: Al Jabal Al Gharbi | D32: الجبل الغربي | E32: Ashshwayrif | F32: الشويريف | G32: LY021613 | H32: 29.978715 | I32: 14.259944 | J32: 23 | K32: 2018-11-24 | AT32: 9500 | AU32: 0 | AV32: 50 | AW32: 30 | AX32: 20 | AZ32: Yes, for everything | BA32: Yes, for everything | BB32: Yes, for everything | BC32: No | BD32: 9
A33: East | B33: الشرق | C33: Almarj | D33: المرج | E33: Assahel | F33: الساحل | G33: LY010203 | H33: 32.561944 | I33: 21.252778 | J33: 23 | K33: 2018-12-22 | L33: 42 | M33: 210 | N33: 0 | O33: 0 | P33: 42 | Q33: 210 | R33: 0 | S33: 0 | V33: Benghazi | W33: Sirt | AT33: 2250 | AU33: 11 | AV33: 29 | AW33: 30 | AX33: 30 | AZ33: No | BA33: Only for Some | BB33: Only for Some | BC33: No | BD33: 1
A34: East | B34: الشرق | C34: Ejdabia | D34: اجدابيا | E34: Aujala | F34: أوجلة | G34: LY010503 | H34: 29.140278 | I34: 21.2975 | J34: 23 | K34: 2018-12-16 | L34: 64 | M34: 320 | N34: 23 | O34: 115 | P34: 41 | Q34: 205 | R34: 0 | S34: 0 | V34: Alkufra | W34: Benghazi | AT34: 9425 | AU34: 1 | AV34: 49 | AW34: 20 | AX34: 30 | AZ34: Yes, for most | BA34: Yes, for most | BB34: Only for Some | BC34: No | BD34: 1
A35: West | B35: الغرب | C35: Aljfara | D35: الجفارة | E35: Azzahra | F35: الزهراء | G35: LY021209 | H35: 32.677949 | I35: 12.872464 | J35: 23 | K35: 2018-11-27 | L35: 110 | M35: 550 | N35: 0 | O35: 0 | P35: 100 | Q35: 500 | R35: 10 | S35: 50 | V35: Tripoli | W35: Tajoura | X35: Swani Bin Adam | Y35: 16 | Z35: 80 | AA35: 16 | AB35: 80 | AC35: 0 | AD35: 0 | AE35: 0 | AF35: 0 | AI35: 724 | AJ35: 3620 | AK35: 723 | AL35: 3615 | AM35: 1 | AN35: 5 | AQ35: Janzour | AR35: Tripoli | AS35: Al Ajaylat | AT35: 2140 | AU35: 2 | AV35: 26 | AW35: 34 | AX35: 39 | AZ35: Only for Some | BA35: Yes, for most | BB35: Yes, for most | BC35: Only for Some | BD35: 2
A36: West | B36: الغرب | C36: Azzawya | D36: الزاوية | E36: Azzawya | F36: الزاوية | G36: LY021301 | H36: 32.762641 | I36: 12.726479 | J36: 23 | K36: 2018-11-27 | L36: 1084 | M36: 6821 | N36: 197 | O36: 1238 | P36: 887 | Q36: 5583 | R36: 0 | S36: 0 | V36: Azzahra | W36: Al Maya | X36: Swani Bin Adam | AI36: 73 | AJ36: 422 | AK36: 65 | AL36: 376 | AM36: 8 | AN36: 46 | AQ36: Azzawya | AT36: 26790 | AU36: 4 | AV36: 38 | AW36: 36 | AX36: 22 | AZ36: Yes, for most | BA36: Yes, for most | BB36: Yes, for everything | BC36: No | BD36: 13
A37: West | B37: الغرب | C37: Al Jabal Al Gharbi | D37: الجبل الغربي | E37: Azzintan | F37: الزنتان | G37: LY021602 | H37: 31.930361 | I37: 12.248362 | J37: 23 | K37: 2018-11-17 | L37: 250 | M37: 1250 | N37: 0 | O37: 0 | P37: 250 | Q37: 1250 | R37: 0 | S37: 0 | V37: Abusliem | AT37: 19500 | AU37: 13 | AV37: 37 | AW37: 30 | AX37: 20 | AZ37: Yes, for everything | BA37: Yes, for everything | BB37: Yes, for everything | BC37: No | BD37: 9
A38: West | B38: الغرب | C38: Misrata | D38: مصراته | E38: Bani Waleed | F38: بني وليد | G38: LY021404 | H38: 31.756969 | I38: 13.995051 | J38: 23 | K38: 2018-12-23 | L38: 727 | M38: 3635 | N38: 348 | O38: 1740 | P38: 311 | Q38: 1555 | R38: 68 | S38: 340 | T38: 28 | U38: 140 | V38: Ubari | W38: Misrata | X38: Sirt | AT38: 1515 | AU38: 10 | AV38: 25 | AW38: 25 | AX38: 40 | AZ38: Yes, for everything | BA38: Yes, for most | BB38: Yes, for everything | BC38: Only for Some | BD38: 8
A39: West | B39: الغرب | C39: Nalut | D39: نالوت | E39: Baten Aljabal | F39: باطن الجبل | G39: LY020908 | H39: 32.017397 | I39: 11.536746 | J39: 23 | K39: 2018-12-10 | L39: 320 | M39: 1600 | N39: 320 | O39: 1600 | P39: 0 | Q39: 0 | R39: 0 | S39: 0 | V39: Baten Aljabal | X39: Baten Aljabal | AT39: 670 | AU39: 10 | AV39: 30 | AW39: 25 | AX39: 25 | AZ39: Yes, for everything | BA39: Yes, for everything | BB39: Yes, for everything | BC39: No | BD39: 6
A40: East | B40: الشرق | C40: Benghazi | D40: بنغازي | E40: Benghazi | F40: بنغازي | G40: LY010304 | H40: 32.117076 | I40: 20.067004 | J40: 23 | K40: 2018-12-22 | L40: 5333 | M40: 26865 | N40: 360 | O40: 1800 | P40: 4795 | Q40: 24175 | R40: 178 | S40: 890 | T40: 28 | U40: 140 | V40: Benghazi | W40: Misrata | X40: Derna | Y40: 9190 | Z40: 45950 | AA40: 9190 | AB40: 45950 | AC40: 0 | AD40: 0 | AE40: 0 | AF40: 0 | AI40: 37725 | AJ40: 188625 | AK40: 28520 | AL40: 142600 | AM40: 9205 | AN40: 46025 | AO40: 810 | AP40: 4050 | AQ40: Benghazi | AR40: Bint Bayya | AT40: 25175 | AU40: 19 | AV40: 32 | AW40: 26 | AX40: 23 | AZ40: Yes, for most | BA40: Yes, for most | BB40: Yes, for most | BC40: Only for Some | BD40: 5
A41: South | B41: الجنوب | C41: Ubari | D41: اوباري | E41: Bint Bayya | F41: بنت بية | G41: LY032001 | H41: 26.643809 | I41: 13.653227 | J41: 23 | K41: 2018-12-14 | L41: 36 | M41: 180 | N41: 0 | O41: 0 | P41: 36 | Q41: 180 | R41: 0 | S41: 0 | V41: Ubari | AT41: 340 | AU41: 100 | AZ41: Yes, for most | BA41: Yes, for most | BB41: Only for Some | BC41: No | BD41: 4
A42: East | B42: الشرق | C42: Tobruk | D42: طبرق | E42: Bir Alashhab | F42: بير الأشهب | G42: LY010402 | H42: 31.886672 | I42: 24.664016 | J42: 23 | K42: 2018-11-25 | L42: 23 | M42: 115 | N42: 0 | O42: 0 | P42: 23 | Q42: 115 | R42: 0 | S42: 0 | V42: Benghazi | W42: Sirt | AT42: 345 | AU42: 15 | AV42: 35 | AW42: 30 | AX42: 20 | AZ42: Yes, for everything | BA42: Yes, for everything | BB42: Yes, for most | BC42: No | BD42: 2
A43: South | B43: الجنوب | C43: Wadi Ashshati | D43: وادى الشاطئ | E43: Brak | F43: براك الشاطئ | G43: LY031801 | H43: 27.55163 | I43: 14.272144 | J43: 23 | K43: 2018-12-10 | L43: 93 | M43: 465 | N43: 93 | O43: 465 | P43: 0 | Q43: 0 | R43: 0 | S43: 0 | V43: Misrata | W43: Sirt | X43: Ubari | Y43: 93 | Z43: 465 | AA43: 93 | AB43: 465 | AC43: 0 | AD43: 0 | AE43: 0 | AF43: 0 | AT43: 1360 | AU43: 12 | AV43: 18 | AW43: 27 | AX43: 43 | AZ43: Yes, for most | BA43: Yes, for most | BB43: Yes, for most | BC43: No | BD43: 2
A44: West | B44: الغرب | C44: Nalut | D44: نالوت | E44: Daraj | F44: درج | G44: LY020907 | H44: 30.163949 | I44: 10.458736 | J44: 23 | K44: 2018-11-23 | L44: 100 | M44: 500 | N44: 100 | O44: 500 | P44: 0 | Q44: 0 | R44: 0 | S44: 0 | V44: Ghadamis | W44: Ubari | AI44: 32 | AJ44: 160 | AK44: 32 | AL44: 160 | AM44: 0 | AN44: 0 | AQ44: Ghadamis | AT44: 4500 | AU44: 11 | AV44: 36 | AW44: 30 | AX44: 23 | AZ44: Yes, for everything | BA44: Yes, for everything | BB44: Yes, for everything | BC44: No | BD44: 7
A45: East | B45: الشرق | C45: Derna | D45: درنه | E45: Derna | F45: درنة | G45: LY010102 | H45: 32.759379 | I45: 22.638319 | J45: 23 | K45: 2018-12-03 | L45: 245 | M45: 1225 | N45: 45 | O45: 225 | P45: 27 | Q45: 135 | R45: 173 | S45: 865 | V45: Derna | Y45: 545 | Z45: 2725 | AA45: 0 | AB45: 0 | AC45: 0 | AD45: 0 | AE45: 545 | AF45: 2725 | AG45: 5 | AH45: 25 | AI45: 7296 | AJ45: 36480 | AK45: 250 | AL45: 1250 | AM45: 7046 | AN45: 35230 | AO45: 120 | AP45: 402 | AQ45: Umm arrazam | AR45: Shahhat | AS45: Albayda | AT45: 560 | AU45: 52 | AV45: 18 | AW45: 15 | AX45: 15 | AZ45: Only for Some | BA45: Yes, for most | BB45: Only for Some | BC45: Only for Some | BD45: 1
A46: South | B46: الجنوب | C46: Wadi Ashshati | D46: وادى الشاطئ | E46: Edri | F46: إدري الشاطئ | G46: LY031802 | H46: 27.443659 | I46: 13.050793 | J46: 23 | K46: 2018-12-12 | L46: 86 | M46: 430 | N46: 12 | O46: 60 | P46: 74 | Q46: 370 | R46: 0 | S46: 0 | V46: Misrata | W46: Ubari | Y46: 208 | Z46: 1040 | AA46: 0 | AB46: 0 | AC46: 208 | AD46: 1040 | AE46: 0 | AF46: 0 | AI46: 42 | AJ46: 210 | AK46: 42 | AL46: 210 | AM46: 0 | AN46: 0 | AQ46: Ubari | AT46: 1265 | AU46: 10 | AV46: 20 | AW46: 29 | AX46: 41 | AZ46: Only for Some | BA46: Yes, for most | BB46: Yes, for most | BC46: Only for Some | BD46: 2
A47: East | B47: الشرق | C47: Ejdabia | D47: اجدابيا | E47: Ejdabia | F47: اجدابيا | G47: LY010504 | H47: 30.755003 | I47: 20.223326 | J47: 23 | K47: 2018-12-11 | L47: 2325 | M47: 11625 | N47: 1745 | O47: 8725 | P47: 535 | Q47: 2675 | R47: 45 | S47: 225 | T47: 5 | U47: 25 | V47: Misrata | W47: Sirt | X47: Benghazi | AI47: 100 | AJ47: 500 | AK47: 100 | AL47: 500 | AM47: 0 | AN47: 0 | AQ47: Gemienis | AR47: Benghazi | AS47: Suloug | AT47: 38970 | AU47: 1 | AV47: 38 | AW47: 28 | AX47: 33 | AZ47: Yes, for most | BA47: Yes, for most | BB47: Only for Some | BC47: No | BD47: 1
A48: East | B48: الشرق | C48: Ejdabia | D48: اجدابيا | E48: Ejkherra | F48: إجخرة | G48: LY010501 | H48: 29.296253 | I48: 21.649898 | J48: 23 | K48: 2018-12-16 | L48: 45 | M48: 225 | N48: 15 | O48: 75 | P48: 30 | Q48: 150 | R48: 0 | S48: 0 | V48: Alkufra | W48: Benghazi | AT48: 4652 | AU48: 1 | AV48: 34 | AW48: 25 | AX48: 40 | AZ48: Yes, for most | BA48: Yes, for most | BB48: Only for Some | BC48: No | BD48: 1
A49: East | B49: الشرق | C49: Tobruk | D49: طبرق | E49: Emsaed | F49: امساعد | G49: LY010401 | H49: 31.613532 | I49: 25.048502 | J49: 23 | K49: 2018-12-03 | L49: 20 | M49: 100 | N49: 0 | O49: 0 | P49: 20 | Q49: 100 | R49: 0 | S49: 0 | V49: Sirt | W49: Derna | AT49: 470 | AV49: 45 | AW49: 30 | AX49: 25 | AZ49: Yes, for everything | BA49: Yes, for most | BB49: Yes, for most | BC49: No | BD49: 2
A50: West | B50: الغرب | C50: Aljfara | D50: الجفارة | E50: Espeaa | F50: السبيعة | G50: LY021204 | H50: 32.536987 | I50: 13.176802 | J50: 23 | K50: 2018-11-18 | AT50: 2900 | AU50: 7 | AV50: 43 | AW50: 29 | AX50: 21 | AZ50: Yes, for everything | BA50: Yes, for everything | BB50: Yes, for everything | BC50: No | BD50: 6
A51: West | B51: الغرب | C51: Almargeb | D51: المرقب | E51: Garabolli | F51: القره بولي | G51: LY021004 | H51: 32.742727 | I51: 13.712796 | J51: 23 | K51: 2018-11-14 | L51: 149 | M51: 745 | N51: 100 | O51: 500 | P51: 29 | Q51: 145 | R51: 20 | S51: 100 | T51: 4 | U51: 20 | V51: Sirt | W51: Misrata | X51: Benghazi | AI51: 1 | AJ51: 6 | AK51: 0 | AL51: 0 | AM51: 1 | AN51: 6 | AO51: 1 | AP51: 6 | AT51: 3295 | AU51: 9 | AV51: 13 | AW51: 17 | AX51: 61 | AZ51: Yes, for most | BA51: Yes, for most | BB51: Yes, for most | BC51: Only for Some | BD51: 3
A52: East | B52: الشرق | C52: Benghazi | D52: بنغازي | E52: Gemienis | F52: قمينس | G52: LY010305 | H52: 31.656741 | I52: 20.015798 | J52: 23 | K52: 2018-11-26 | L52: 15 | M52: 75 | N52: 0 | O52: 0 | P52: 15 | Q52: 75 | R52: 0 | S52: 0 | V52: Benghazi | AI52: 80 | AJ52: 400 | AK52: 80 | AL52: 400 | AM52: 0 | AN52: 0 | AO52: 0 | AP52: 0 | AQ52: Ejdabia | AR52: Almarj | AS52: Gemienis | AT52: 1145 | AU52: 17 | AV52: 33 | AW52: 25 | AX52: 25 | AZ52: Yes, for everything | BA52: Yes, for most | BB52: Only for Some | BC52: No | BD52: 1
A53: West | B53: الغرب | C53: Nalut | D53: نالوت | E53: Ghadamis | F53: غدامس | G53: LY020901 | H53: 30.125842 | I53: 9.490066 | J53: 23 | K53: 2018-12-03 | Y53: 400 | Z53: 2000 | AA53: 400 | AB53: 2000 | AC53: 0 | AD53: 0 | AE53: 0 | AF53: 0 | AI53: 30 | AJ53: 150 | AK53: 30 | AL53: 150 | AM53: 0 | AN53: 0 | AQ53: Daraj | AT53: 2300 | AU53: 22 | AV53: 25 | AW53: 28 | AX53: 25 | AZ53: Yes, for everything | BA53: Yes, for everything | BB53: Yes, for everything | BC53: No | BD53: 7
A54: West | B54: الغرب | C54: Azzawya | D54: الزاوية | E54: Gharb Azzawya | F54: غرب الزاوية | G54: LY021303 | H54: 32.76716 | I54: 12.626164 | J54: 23 | K54: 2018-11-29 | L54: 71 | M54: 356 | N54: 57 | O54: 293 | P54: 14 | Q54: 63 | R54: 0 | S54: 0 | V54: Misrata | W54: Al Maya | X54: Gharb Azzawya | Y54: 25 | Z54: 125 | AA54: 24 | AB54: 120 | AC54: 0 | AD54: 0 | AE54: 1 | AF54: 5 | AG54: 1 | AH54: 5 | AT54: 5775 | AU54: 10 | AV54: 30 | AW54: 30 | AX54: 10 | AY54: 20 | AZ54: Yes, for most | BA54: Yes, for most | BB54: Yes, for most | BC54: Only for Some | BD54: 5
A55: South | B55: الجنوب | C55: Ghat | D55: غات | E55: Ghat | F55: غات | G55: LY032101 | H55: 24.96263 | I55: 10.179717 | J55: 23 | K55: 2018-11-13 | L55: 1627 | M55: 8135 | N55: 1010 | O55: 5050 | P55: 617 | Q55: 3085 | R55: 0 | S55: 0 | Y55: 295 | Z55: 1475 | AA55: 0 | AB55: 0 | AC55: 295 | AD55: 1475 | AE55: 0 | AF55: 0 | AI55: 196 | AJ55: 980 | AK55: 186 | AL55: 930 | AM55: 10 | AN55: 50 | AO55: 10 | AP55: 50 | AQ55: Tripoli | AR55: Bani Waleed | AS55: Aljufra | AT55: 10715 | AU55: 5 | AV55: 40 | AW55: 25 | AX55: 30 | AZ55: Yes, for everything | BA55: Yes, for everything | BB55: Yes, for everything | BC55: No | BD55: 1
A56: West | B56: الغرب | C56: Al Jabal Al Gharbi | D56: الجبل الغربي | E56: Ghiryan | F56: غريان | G56: LY021606 | H56: 32.171587 | I56: 13.021145 | J56: 23 | K56: 2018-11-30 | L56: 105 | M56: 504 | N56: 0 | O56: 0 | P56: 105 | Q56: 504 | R56: 0 | S56: 0 | V56: Al Aziziya | Y56: 20 | Z56: 100 | AA56: 20 | AB56: 100 | AC56: 0 | AD56: 0 | AE56: 0 | AF56: 0 | AI56: 2 | AJ56: 10 | AK56: 0 | AL56: 0 | AM56: 2 | AN56: 10 | AO56: 0 | AP56: 0 | AT56: 2410 | AU56: 25 | AV56: 25 | AW56: 30 | AX56: 20 | AZ56: Yes, for most | BA56: Yes, for most | BB56: Yes, for everything | BC56: No | BD56: 9
A57: West | B57: الغرب | C57: Tripoli | D57: طرابلس | E57: Hai Alandalus | F57: حي الأندلس | G57: LY021106 | H57: 32.875104 | I57: 13.128251 | J57: 23 | K57: 2018-12-16 | L57: 122 | M57: 517 | N57: 75 | O57: 277 | P57: 12 | Q57: 52 | R57: 35 | S57: 188 | V57: Al Maya | W57: Kikkla | X57: Benghazi | Y57: 68 | Z57: 343 | AA57: 30 | AB57: 150 | AC57: 16 | AD57: 80 | AE57: 22 | AF57: 113 | AI57: 1028 | AJ57: 4945 | AK57: 884 | AL57: 4335 | AM57: 144 | AN57: 610 | AO57: 0 | AP57: 0 | AQ57: Azzintan | AR57: Arrajban | AT57: 6800 | AU57: 6 | AV57: 41 | AW57: 25 | AX57: 30 | AZ57: Yes, for most | BA57: Yes, for most | BB57: Only for Some | BC57: Only for Some | BD57: 7
A58: West | B58: الغرب | C58: Sirt | D58: سرت | E58: Hrawa | F58: هراوة | G58: LY020802 | H58: 31.05425 | I58: 17.280138 | J58: 23 | K58: 2018-11-18 | L58: 75 | M58: 375 | N58: 40 | O58: 200 | P58: 30 | Q58: 150 | R58: 5 | S58: 25 | V58: Sirt | W58: Misrata | X58: Tripoli | Y58: 70 | Z58: 350 | AA58: 25 | AB58: 125 | AC58: 45 | AD58: 225 | AE58: 0 | AF58: 0 | AI58: 53 | AJ58: 265 | AK58: 35 | AL58: 175 | AM58: 18 | AN58: 90 | AO58: 8 | AP58: 40 | AQ58: Khaleej Assidra | AR58: Benghazi | AT58: 500 | AU58: 30 | AV58: 30 | AW58: 25 | AX58: 15 | AZ58: Yes, for most | BA58: Yes, for most | BB58: Yes, for most | BC58: No | BD58: 4
A59: West | B59: الغرب | C59: Al Jabal Al Gharbi | D59: الجبل الغربي | E59: Jadu | F59: جادو | G59: LY021609 | H59: 31.953044 | I59: 12.026091 | J59: 23 | K59: 2018-11-28 | AT59: 400 | AU59: 12 | AV59: 37 | AW59: 28 | AX59: 23 | AZ59: Yes, for everything | BA59: Yes, for everything | BB59: Yes, for most | BC59: No | BD59: 7
A60: East | B60: الشرق | C60: Ejdabia | D60: اجدابيا | E60: Jalu | F60: جالو | G60: LY010502 | H60: 29.033115 | I60: 21.548221 | J60: 23 | K60: 2018-12-08 | L60: 340 | M60: 1700 | N60: 108 | O60: 540 | P60: 232 | Q60: 1160 | R60: 0 | S60: 0 | V60: Alkufra | W60: Benghazi | AT60: 15730 | AU60: 1 | AV60: 31 | AW60: 27 | AX60: 41 | AZ60: Yes, for most | BA60: Yes, for most | BB60: Only for Some | BC60: No | BD60: 1
A61: West | B61: الغرب | C61: Azzawya | D61: الزاوية | E61: Janoub Azzawya | F61: الزاوية جنوب | G61: LY021304 | H61: 32.3125 | I61: 12.569722 | J61: 23 | K61: 2018-12-18 | L61: 38 | M61: 190 | N61: 0 | O61: 0 | P61: 37 | Q61: 185 | R61: 1 | S61: 5 | V61: Tripoli | W61: Misrata | X61: Azzahra | AI61: 11 | AJ61: 55 | AK61: 11 | AL61: 55 | AM61: 0 | AN61: 0 | AT61: 1250 | AU61: 0 | AV61: 23 | AW61: 30 | AX61: 40 | AZ61: Yes, for most | BA61: Yes, for most | BB61: Only for Some | BC61: No | BD61: 1
A62: West | B62: الغرب | C62: Aljfara | D62: الجفارة | E62: Janzour | F62: جنزور | G62: LY021206 | H62: 32.825593 | I62: 13.026067 | J62: 23 | K62: 2018-12-07 | L62: 950 | M62: 4750 | N62: 575 | O62: 2875 | P62: 375 | Q62: 1875 | R62: 0 | S62: 0 | V62: Misrata | W62: Janzour | X62: Kikkla | Y62: 250 | Z62: 1250 | AA62: 0 | AB62: 0 | AC62: 250 | AD62: 1250 | AE62: 0 | AF62: 0 | AI62: 50 | AJ62: 250 | AK62: 0 | AL62: 0 | AM62: 50 | AN62: 250 | AO62: 0 | AP62: 0 | AQ62: Janzour | AT62: 11400 | AU62: 40 | AV62: 30 | AW62: 15 | AX62: 15 | AZ62: Yes, for most | BA62: Yes, for most | BB62: Yes, for most | BC62: No | BD62: 9
A63: East | B63: الشرق | C63: Almarj | D63: المرج | E63: Jardas Alabeed | F63: جردس العبيد | G63: LY010201 | H63: 32.302739 | I63: 20.986927 | J63: 23 | K63: 2018-11-26 | L63: 36 | M63: 180 | N63: 13 | O63: 65 | P63: 23 | Q63: 115 | R63: 0 | S63: 0 | V63: Benghazi | W63: Misrata | AT63: 1345 | AU63: 15 | AV63: 25 | AW63: 25 | AX63: 35 | AZ63: Yes, for everything | BA63: Yes, for most | BB63: Only for Some | BC63: No | BD63: 1
A64: West | B64: الغرب | C64: Nalut | D64: نالوت | E64: Kabaw | F64: كاباو | G64: LY020903 | H64: 31.846336 | I64: 11.340648 | J64: 23 | K64: 2018-12-08 | L64: 11 | M64: 55 | N64: 4 | O64: 20 | P64: 6 | Q64: 30 | R64: 1 | S64: 5 | T64: 0 | U64: 0 | V64: Ghadamis | W64: Sebha | AT64: 100 | AU64: 10 | AV64: 10 | AW64: 30 | AX64: 50 | AZ64: Yes, for most | BA64: Yes, for most | BB64: Only for Some | BC64: No | BD64: 0
A65: West | B65: الغرب | C65: Sirt | D65: سرت | E65: Khaleej Assidra | F65: خليج السدرة | G65: LY020801 | H65: 30.631994 | I65: 18.349293 | J65: 23 | K65: 2018-12-10 | L65: 75 | M65: 375 | N65: 0 | O65: 0 | P65: 64 | Q65: 320 | R65: 11 | S65: 55 | V65: Sirt | W65: Derna | AT65: 900 | AZ65: Yes, for most | BA65: Yes, for most | BB65: Only for Some | BC65: No | BD65: 3
A66: West | B66: الغرب | C66: Al Jabal Al Gharbi | D66: الجبل الغربي | E66: Kikkla | F66: ككلة | G66: LY021607 | H66: 32.069344 | I66: 12.694156 | J66: 23 | K66: 2018-11-21 | Y66: 3729 | Z66: 18626 | AA66: 3729 | AB66: 18626 | AC66: 0 | AD66: 0 | AE66: 0 | AF66: 0 | AI66: 1793 | AJ66: 8942 | AK66: 1672 | AL66: 8337 | AM66: 121 | AN66: 605 | AQ66: Abusliem | AR66: Ghiryan | AS66: Alasabaa | AT66: 113 | AU66: 3 | AV66: 39 | AW66: 42 | AX66: 16 | AZ66: Yes, for everything | BA66: Yes, for everything | BB66: Yes, for most | BC66: No | BD66: 3
A67: East | B67: الشرق | C67: Derna | D67: درنه | E67: Labriq | F67: الأبرق | G67: LY010105 | H67: 32.786528 | I67: 21.997782 | J67: 23 | K67: 2018-12-02 | L67: 10 | M67: 50 | N67: 0 | O67: 0 | P67: 0 | Q67: 0 | R67: 10 | S67: 50 | V67: Misrata | AT67: 665 | AU67: 8 | AV67: 32 | AW67: 35 | AX67: 25 | AZ67: Yes, for everything | BA67: Yes, for most | BB67: Only for Some | BC67: No | BD67: 1
A68: East | B68: الشرق | C68: Ejdabia | D68: اجدابيا | E68: Marada | F68: مرادة | G68: LY010505 | H68: 29.221376 | I68: 19.204394 | J68: 23 | K68: 2018-12-12 | AT68: 68 | AZ68: Yes, for most | BA68: Yes, for most | BB68: No | BC68: No | BD68: 1
A69: West | B69: الغرب | C69: Misrata | D69: مصراته | E69: Misrata | F69: مصراتة | G69: LY021401 | H69: 32.261932 | I69: 15.079737 | J69: 23 | K69: 2018-11-23 | L69: 2924 | M69: 14614 | N69: 1951 | O69: 9729 | P69: 864 | Q69: 4325 | R69: 109 | S69: 560 | T69: 50 | U69: 267 | V69: Benghazi | W69: Ejdabia | X69: Sirt | AI69: 20 | AJ69: 100 | AK69: 10 | AL69: 50 | AM69: 10 | AN69: 50 | AO69: 0 | AP69: 0 | AQ69: Misrata | AS69: Bani Waleed | AT69: 53750 | AU69: 10 | AV69: 40 | AW69: 30 | AX69: 20 | AZ69: Yes, for most | BA69: Yes, for most | BB69: Only for Some | BC69: No | BD69: 4
A70: West | B70: الغرب | C70: Almargeb | D70: المرقب | E70: Msallata | F70: مسلاتة | G70: LY021002 | H70: 32.579922 | I70: 14.041737 | J70: 23 | K70: 2018-11-30 | L70: 93 | M70: 477 | N70: 25 | O70: 123 | P70: 63 | Q70: 330 | R70: 5 | S70: 24 | V70: Benghazi | W70: Misrata | X70: Sirt | AT70: 1255 | AU70: 3 | AV70: 15 | AW70: 27 | AX70: 55 | AZ70: Yes, for most | BA70: Yes, for most | BB70: Yes, for most | BC70: Only for Some | BD70: 6
A71: South | B71: الجنوب | C71: Murzuq | D71: مرزق | E71: Murzuq | F71: مرزق | G71: LY032204 | H71: 25.914085 | I71: 13.91972 | J71: 23 | K71: 2018-11-16 | L71: 1554 | M71: 7770 | N71: 0 | O71: 0 | P71: 1554 | Q71: 7770 | R71: 0 | S71: 0 | V71: Sebha | W71: Ubari | X71: Albawanees | Y71: 12 | Z71: 60 | AA71: 0 | AB71: 0 | AC71: 12 | AD71: 60 | AE71: 0 | AF71: 0 | AI71: 21 | AJ71: 105 | AK71: 21 | AL71: 105 | AM71: 0 | AN71: 0 | AQ71: Sebha | AR71: Tripoli | AT71: 8500 | AU71: 5 | AV71: 55 | AW71: 15 | AX71: 25 | AZ71: Yes, for everything | BA71: Yes, for everything | BB71: Yes, for everything | BC71: No | BD71: 1
A72: West | B72: الغرب | C72: Nalut | D72: نالوت | E72: Nalut | F72: نالوت | G72: LY020905 | H72: 31.864227 | I72: 10.982983 | J72: 23 | K72: 2018-12-02 | L72: 62 | M72: 310 | N72: 18 | O72: 90 | P72: 29 | Q72: 145 | R72: 15 | S72: 75 | T72: 2 | U72: 10 | V72: Sebha | W72: Ghadamis | X72: Daraj | Y72: 23 | Z72: 115 | AA72: 23 | AB72: 115 | AC72: 0 | AD72: 0 | AE72: 0 | AF72: 0 | AI72: 400 | AJ72: 2000 | AK72: 400 | AL72: 2000 | AM72: 0 | AN72: 0 | AO72: 0 | AP72: 0 | AQ72: Aljmail | AR72: Al Ajaylat | AS72: Janoub Azzawya | AT72: 552 | AU72: 10 | AV72: 10 | AW72: 15 | AX72: 55 | AY72: 10 | AZ72: Yes, for most | BA72: Yes, for most | BB72: Only for Some | BC72: No | BD72: 3
A73: West | B73: الغرب | C73: Al Jabal Al Gharbi | D73: الجبل الغربي | E73: Nesma | F73: نسمة | G73: LY021601 | H73: 31.391933 | I73: 13.328442 | J73: 23 | K73: 2018-12-03 | AT73: 3000 | AV73: 50 | AW73: 28 | AX73: 22 | AZ73: Yes, for everything | BA73: Yes, for everything | BB73: Yes, for everything | BC73: No | BD73: 7
A74: West | B74: الغرب | C74: Almargeb | D74: المرقب | E74: Qasr Akhyar | F74: قصر الأخيار | G74: LY021003 | H74: 32.696667 | I74: 13.846111 | J74: 23 | K74: 2018-11-28 | L74: 229 | M74: 1145 | N74: 49 | O74: 245 | P74: 106 | Q74: 530 | R74: 74 | S74: 370 | T74: 3 | U74: 15 | V74: Ain Zara | W74: Ubari | X74: Sebha | Y74: 136 | Z74: 680 | AA74: 65 | AB74: 325 | AC74: 44 | AD74: 220 | AE74: 27 | AF74: 135 | AG74: 8 | AH74: 40 | AI74: 117 | AJ74: 585 | AK74: 45 | AL74: 225 | AM74: 72 | AN74: 360 | AO74: 0 | AP74: 0 | AQ74: Tripoli | AR74: Misrata | AS74: Ghiryan | AT74: 2200 | AU74: 7 | AV74: 26 | AW74: 35 | AX74: 32 | AZ74: Yes, for most | BA74: Yes, for most | BB74: Only for Some | BC74: Only for Some | BD74: 3
A75: West | B75: الغرب | C75: Aljfara | D75: الجفارة | E75: Qasr Bin Ghasheer | F75: قصر بن غشير | G75: LY021203 | H75: 32.681752 | I75: 13.182801 | J75: 23 | K75: 2018-12-12 | L75: 80 | M75: 400 | N75: 80 | O75: 400 | P75: 0 | Q75: 0 | R75: 0 | S75: 0 | V75: Sirt | W75: Benghazi | AT75: 7300 | AU75: 17 | AV75: 33 | AW75: 30 | AX75: 20 | AZ75: Yes, for everything | BA75: Yes, for everything | BB75: Yes, for everything | BC75: No | BD75: 9
A76: West | B76: الغرب | C76: Zwara | D76: زوارة | E76: Rigdaleen | F76: رقدالين | G76: LY021505 | H76: 32.887103 | I76: 11.986724 | J76: 23 | K76: 2018-11-12 | L76: 8 | M76: 40 | N76: 3 | O76: 15 | P76: 5 | Q76: 25 | R76: 0 | S76: 0 | V76: Qasr Bin Ghasheer | W76: Misrata | X76: Ubari | AI76: 350 | AJ76: 1750 | AK76: 350 | AL76: 1750 | AM76: 0 | AN76: 0 | AO76: 0 | AP76: 0 | AQ76: Tripoli | AT76: 1715 | AU76: 10 | AV76: 30 | AW76: 30 | AX76: 10 | AY76: 20 | AZ76: Yes, for most | BA76: Yes, for most | BB76: Yes, for most | BC76: No | BD76: 2
A77: West | B77: الغرب | C77: Zwara | D77: زوارة | E77: Sabratha | F77: صبراتة | G77: LY021502 | H77: 32.792168 | I77: 12.485806 | J77: 23 | K77: 2018-12-08 | L77: 11 | M77: 55 | N77: 8 | O77: 40 | P77: 3 | Q77: 15 | R77: 0 | S77: 0 | V77: Surman | W77: Al Ajaylat | X77: Misrata | Y77: 100 | Z77: 500 | AA77: 0 | AB77: 0 | AC77: 98 | AD77: 490 | AE77: 2 | AF77: 10 | AI77: 2322 | AJ77: 11610 | AK77: 2264 | AL77: 11320 | AM77: 58 | AN77: 290 | AO77: 0 | AP77: 0 | AQ77: Surman | AR77: Al Ajaylat | AS77: Azzawya | AT77: 6410 | AU77: 5 | AV77: 26 | AW77: 31 | AX77: 39 | AZ77: Yes, for most | BA77: Only for Some | BB77: Yes, for most | BC77: No | BD77: 3
A78: South | B78: الجنوب | C78: Sebha | D78: سبها | E78: Sebha | F78: سبها | G78: LY031901 | H78: 27.033154 | I78: 14.431693 | J78: 23 | K78: 2018-11-14 | L78: 4201 | M78: 21005 | N78: 250 | O78: 1250 | P78: 3911 | Q78: 19555 | R78: 40 | S78: 200 | T78: 0 | U78: 0 | V78: Sebha | W78: Ubari | X78: Misrata | Y78: 4781 | Z78: 23905 | AA78: 0 | AB78: 0 | AC78: 4781 | AD78: 23905 | AE78: 0 | AF78: 0 | AI78: 370 | AJ78: 1850 | AK78: 4 | AL78: 20 | AM78: 366 | AN78: 1830 | AO78: 251 | AP78: 1255 | AQ78: Algatroun | AR78: Murzuq | AS78: Albawanees | AT78: 42090 | AU78: 5 | AV78: 40 | AW78: 20 | AX78: 35 | AZ78: Yes, for everything | BA78: Yes, for everything | BB78: Yes, for everything | BC78: No | BD78: 1
A79: East | B79: الشرق | C79: Al Jabal Al Akhdar | D79: الجبل الاخضر | E79: Shahhat | F79: شحات | G79: LY010601 | H79: 32.808215 | I79: 21.869684 | J79: 23 | K79: 2018-11-15 | L79: 110 | M79: 550 | N79: 0 | O79: 0 | P79: 65 | Q79: 325 | R79: 45 | S79: 225 | V79: Benghazi | W79: Derna | AT79: 2350 | AU79: 11 | AV79: 29 | AW79: 30 | AX79: 30 | AZ79: Yes, for most | BA79: Only for Some | BB79: Yes, for most | BC79: No | BD79: 1
A80: West | B80: الغرب | C80: Aljfara | D80: الجفارة | E80: Sidi Assayeh | F80: سيدي السايح | G80: LY021201 | H80: 32.561111 | I80: 13.253611 | J80: 23 | K80: 2018-11-22 | L80: 165 | M80: 830 | N80: 126 | O80: 635 | P80: 24 | Q80: 120 | R80: 15 | S80: 75 | T80: 15 | U80: 75 | V80: Misrata | W80: Sirt | X80: Kikkla | Y80: 9 | Z80: 40 | AA80: 9 | AB80: 40 | AC80: 0 | AD80: 0 | AE80: 0 | AF80: 0 | AT80: 486 | AZ80: Only for Some | BA80: Only for Some | BB80: Yes, for most | BC80: Only for Some | BD80: 5
A81: West | B81: الغرب | C81: Sirt | D81: سرت | E81: Sirt | F81: سرت | G81: LY020803 | H81: 31.205314 | I81: 16.588936 | J81: 23 | K81: 2018-12-19 | L81: 970 | M81: 4850 | N81: 650 | O81: 3250 | P81: 300 | Q81: 1500 | R81: 20 | S81: 100 | T81: 30 | U81: 150 | V81: Misrata | W81: Tripoli | X81: Sirt | Y81: 2000 | Z81: 10000 | AA81: 0 | AB81: 0 | AC81: 2000 | AD81: 10000 | AE81: 0 | AF81: 0 | AI81: 15172 | AJ81: 75860 | AK81: 14172 | AL81: 70860 | AM81: 1000 | AN81: 5000 | AO81: 0 | AP81: 0 | AQ81: Misrata | AR81: Tarhuna | AS81: Tripoli | AT81: 2065 | AU81: 10 | AV81: 20 | AW81: 40 | AX81: 20 | AY81: 10 | AZ81: Only for Some | BA81: Yes, for most | BB81: Only for Some | BC81: Only for Some | BD81: 2
A82: East | B82: الشرق | C82: Benghazi | D82: بنغازي | E82: Suloug | F82: سلوق | G82: LY010303 | H82: 31.66748 | I82: 20.250396 | J82: 23 | K82: 2018-11-25 | L82: 20 | M82: 100 | N82: 0 | O82: 0 | P82: 20 | Q82: 100 | R82: 0 | S82: 0 | V82: Benghazi | AT82: 1350 | AU82: 14 | AV82: 26 | AW82: 30 | AX82: 30 | AZ82: Yes, for everything | BA82: Yes, for most | BB82: Only for Some | BC82: No | BD82: 1
A83: West | B83: الغرب | C83: Tripoli | D83: طرابلس | E83: Suq Aljumaa | F83: سوق الجمعة | G83: LY021101 | H83: 32.875031 | I83: 13.255209 | J83: 23 | K83: 2018-12-17 | L83: 434 | M83: 2170 | N83: 104 | O83: 520 | P83: 164 | Q83: 820 | R83: 166 | S83: 830 | V83: Sebha | W83: Benghazi | X83: Ubari | Y83: 212 | Z83: 1060 | AA83: 72 | AB83: 360 | AC83: 69 | AD83: 345 | AE83: 71 | AF83: 355 | AI83: 319 | AJ83: 1590 | AK83: 148 | AL83: 736 | AM83: 171 | AN83: 854 | AO83: 0 | AP83: 0 | AR83: Misrata | AS83: Bani Waleed | AT83: 4550 | AU83: 100 | AZ83: Only for Some | BA83: Only for Some | BB83: Only for Some | BC83: Only for Some | BD83: 3
A84: West | B84: الغرب | C84: Aljfara | D84: الجفارة | E84: Suq Alkhamees | F84: سوق الخميس | G84: LY021202 | H84: 32.527664 | I84: 13.219778 | J84: 23 | K84: 2018-12-02 | AT84: 3200 | AU84: 6 | AV84: 44 | AW84: 29 | AX84: 21 | AZ84: Yes, for everything | BA84: Yes, for everything | BB84: Yes, for everything | BC84: No | BD84: 6
A85: West | B85: الغرب | C85: Azzawya | D85: الزاوية | E85: Surman | F85: صرمان | G85: LY021302 | H85: 32.757598 | I85: 12.572621 | J85: 23 | K85: 2018-11-23 | L85: 94 | M85: 580 | N85: 90 | O85: 553 | P85: 1 | Q85: 12 | R85: 3 | S85: 15 | V85: Misrata | W85: Arrayayna | X85: Al Maya | AI85: 5 | AJ85: 25 | AK85: 0 | AL85: 0 | AM85: 5 | AN85: 25 | AQ85: Azzintan | AT85: 3110 | AU85: 6 | AV85: 29 | AW85: 30 | AX85: 20 | AY85: 15 | AZ85: Yes, for most | BA85: Yes, for most | BB85: Only for Some | BC85: Only for Some | BD85: 30
A86: West | B86: الغرب | C86: Aljfara | D86: الجفارة | E86: Swani Bin Adam | F86: سواني بن آدم | G86: LY021205 | H86: 32.712525 | I86: 13.067253 | J86: 23 | K86: 2018-11-24 | L86: 50 | M86: 250 | N86: 50 | O86: 250 | P86: 0 | Q86: 0 | R86: 0 | S86: 0 | V86: Misrata | W86: Kikkla | X86: Yefren | AT86: 9000 | AU86: 5 | AV86: 45 | AW86: 30 | AX86: 20 | AZ86: Yes, for everything | BA86: Yes, for everything | BB86: Yes, for everything | BC86: No | BD86: 8
A87: West | B87: الغرب | C87: Tripoli | D87: طرابلس | E87: Tajoura | F87: تاجوراء | G87: LY021102 | H87: 32.883445 | I87: 13.352548 | J87: 23 | K87: 2018-11-24 | L87: 443 | M87: 2658 | N87: 175 | O87: 1050 | P87: 258 | Q87: 1548 | R87: 10 | S87: 60 | T87: 0 | U87: 0 | V87: Benghazi | W87: Ubari | X87: Misrata | Y87: 13 | Z87: 78 | AA87: 0 | AB87: 0 | AC87: 13 | AD87: 78 | AE87: 0 | AF87: 0 | AI87: 209 | AJ87: 1254 | AK87: 0 | AL87: 0 | AM87: 209 | AN87: 1254 | AO87: 164 | AP87: 984 | AR87: Bani Waleed | AS87: Qasr Akhyar | AT87: 12150 | AU87: 15 | AV87: 15 | AW87: 30 | AX87: 40 | AZ87: Yes, for most | BA87: Yes, for most | BB87: Only for Some | BC87: Only for Some | BD87: 6
A88: South | B88: الجنوب | C88: Murzuq | D88: مرزق | E88: Taraghin | F88: تراغن | G88: LY032203 | H88: 25.9371 | I88: 14.430888 | J88: 23 | K88: 2018-11-13 | L88: 110 | M88: 550 | N88: 0 | O88: 0 | P88: 110 | Q88: 550 | R88: 0 | S88: 0 | V88: Ubari | W88: Sirt | X88: Misrata | Y88: 8 | Z88: 40 | AA88: 0 | AB88: 0 | AC88: 8 | AD88: 40 | AE88: 0 | AF88: 0 | AI88: 5 | AJ88: 25 | AK88: 0 | AL88: 0 | AM88: 5 | AN88: 25 | AO88: 5 | AP88: 25 | AR88: Tripoli | AT88: 10790 | AU88: 5 | AV88: 55 | AW88: 20 | AX88: 20 | AZ88: Yes, for everything | BA88: Yes, for everything | BB88: Yes, for everything | BC88: No | BD88: 1
A89: West | B89: الغرب | C89: Almargeb | D89: المرقب | E89: Tarhuna | F89: ترهونة | G89: LY021005 | H89: 32.434041 | I89: 13.633147 | J89: 23 | K89: 2018-12-18 | L89: 146 | M89: 605 | N89: 140 | O89: 576 | P89: 6 | Q89: 29 | R89: 0 | S89: 0 | T89: 0 | U89: 0 | V89: Misrata | Y89: 4 | Z89: 20 | AA89: 0 | AB89: 0 | AC89: 0 | AD89: 0 | AE89: 4 | AF89: 20 | AI89: 21 | AJ89: 96 | AK89: 4 | AL89: 20 | AM89: 17 | AN89: 76 | AO89: 0 | AP89: 0 | AQ89: Benghazi | AR89: Tripoli | AS89: Albayda | AT89: 7235 | AU89: 10 | AV89: 20 | AW89: 20 | AX89: 50 | AZ89: Yes, for everything | BA89: Yes, for everything | BB89: Yes, for most | BC89: No | BD89: 4
A90: East | B90: الشرق | C90: Alkufra | D90: الكفرة | E90: Tazirbu | F90: تازربو | G90: LY010702 | H90: 25.679945 | I90: 21.062477 | J90: 23 | K90: 2018-12-11 | AT90: 1973 | AV90: 90 | AW90: 10 | AZ90: Yes, for most | BA90: Yes, for most | BB90: Only for Some | BC90: Only for Some | BD90: 1
A91: West | B91: الغرب | C91: Al Jabal Al Gharbi | D91: الجبل الغربي | E91: Thaher Aljabal | F91: ظاهر الجبل | G91: LY021614 | H91: 32.012739 | I91: 12.551608 | J91: 23 | K91: 2018-11-21 | AT91: 220 | AU91: 9 | AV91: 36 | AW91: 30 | AX91: 25 | AZ91: Yes, for everything | BA91: Yes, for everything | BB91: Yes, for everything | BC91: No | BD91: 7
A92: East | B92: الشرق | C92: Tobruk | D92: طبرق | E92: Tobruk | F92: طبرق | G92: LY010403 | H92: 32.077432 | I92: 23.960015 | J92: 23 | K92: 2018-12-18 | L92: 140 | M92: 697 | N92: 65 | O92: 327 | P92: 51 | Q92: 235 | R92: 24 | S92: 135 | V92: Sirt | W92: Benghazi | X92: Tripoli | AT92: 5985 | AU92: 15 | AV92: 19 | AW92: 35 | AX92: 30 | AZ92: Yes, for most | BA92: Yes, for most | BB92: Only for Some | BC92: No | BD92: 2
A93: East | B93: الشرق | C93: Benghazi | D93: بنغازي | E93: Toukra | F93: توكرة | G93: LY010302 | H93: 32.532222 | I93: 20.572222 | J93: 23 | K93: 2018-11-26 | L93: 18 | M93: 90 | N93: 0 | O93: 0 | P93: 18 | Q93: 90 | R93: 0 | S93: 0 | V93: Benghazi | W93: Sirt | AT93: 1135 | AZ93: Yes, for everything | BA93: Yes, for most | BB93: Yes, for most | BC93: No | BD93: 1
A94: West | B94: الغرب | C94: Tripoli | D94: طرابلس | E94: Tripoli | F94: طرابلس | G94: LY021104 | H94: 32.896672 | I94: 13.177792 | J94: 23 | K94: 2018-11-30 | L94: 115 | M94: 645 | N94: 100 | O94: 535 | P94: 0 | Q94: 0 | R94: 15 | S94: 110 | V94: Benghazi | W94: Derna | X94: Misrata | AI94: 260 | AJ94: 1300 | AK94: 260 | AL94: 1300 | AM94: 0 | AN94: 0 | AO94: 0 | AP94: 0 | AT94: 7900 | AU94: 14 | AV94: 10 | AW94: 17 | AX94: 59 | AZ94: Yes, for most | BA94: Yes, for most | BB94: No | BC94: No | BD94: 4
A95: South | B95: الجنوب | C95: Ubari | D95: اوباري | E95: Ubari | F95: أوباري | G95: LY032003 | H95: 26.589705 | I95: 12.769419 | J95: 23 | K95: 2018-11-17 | L95: 475 | M95: 2375 | N95: 0 | O95: 0 | P95: 475 | Q95: 2375 | R95: 0 | S95: 0 | V95: Sebha | W95: Murzuq | X95: Alsharguiya | Y95: 1773 | Z95: 8865 | AA95: 1773 | AB95: 8865 | AC95: 0 | AD95: 0 | AE95: 0 | AF95: 0 | AI95: 5537 | AJ95: 27685 | AK95: 5537 | AL95: 27685 | AM95: 0 | AN95: 0 | AQ95: Tripoli | AR95: Bint Bayya | AS95: Aljufra | AT95: 7070 | AU95: 5 | AV95: 55 | AW95: 15 | AX95: 25 | AZ95: Yes, for everything | BA95: Yes, for everything | BB95: Yes, for everything | BC95: No | BD95: 1
A96: East | B96: الشرق | C96: Derna | D96: درنه | E96: Umm arrazam | F96: ام الرزم | G96: LY010101 | H96: 32.531744 | I96: 23.008754 | J96: 23 | K96: 2018-12-02 | L96: 120 | M96: 600 | N96: 0 | O96: 0 | P96: 35 | Q96: 175 | R96: 85 | S96: 425 | V96: Derna | W96: Sirt | X96: Benghazi | AT96: 725 | AU96: 18 | AV96: 30 | AW96: 32 | AX96: 20 | AZ96: Yes, for everything | BA96: Only for Some | BB96: Yes, for most | BC96: No | BD96: 1
A97: South | B97: الجنوب | C97: Murzuq | D97: مرزق | E97: Wadi Etba | F97: وادي عتبة | G97: LY032205 | H97: 26.094278 | I97: 13.556707 | J97: 23 | K97: 2018-11-27 | L97: 15 | M97: 75 | N97: 10 | O97: 50 | P97: 5 | Q97: 25 | R97: 0 | S97: 0 | V97: Ubari | W97: Misrata | AT97: 1450 | AU97: 3 | AV97: 29 | AW97: 28 | AX97: 40 | AZ97: Only for Some | BA97: Yes, for most | BB97: Yes, for most | BC97: No | BD97: 2
A98: West | B98: الغرب | C98: Nalut | D98: نالوت | E98: Wazin | F98: وازن | G98: LY020906 | H98: 31.945646 | I98: 10.669785 | J98: 23 | K98: 2018-11-20 | AT98: 700 | AU98: 29 | AV98: 21 | AW98: 30 | AX98: 20 | AZ98: Yes, for everything | BA98: Yes, for everything | BB98: Yes, for everything | BC98: No | BD98: 6
A99: West | B99: الغرب | C99: Al Jabal Al Gharbi | D99: الجبل الغربي | E99: Yefren | F99: يفرن | G99: LY021605 | H99: 32.063839 | I99: 12.527651 | J99: 23 | K99: 2018-12-01 | L99: 48 | M99: 315 | N99: 48 | O99: 315 | P99: 0 | Q99: 0 | R99: 0 | S99: 0 | V99: Ubari | Y99: 1200 | Z99: 7200 | AA99: 1200 | AB99: 7200 | AC99: 0 | AD99: 0 | AE99: 0 | AF99: 0 | AI99: 505 | AJ99: 3135 | AK99: 0 | AL99: 0 | AM99: 505 | AN99: 3135 | AO99: 0 | AP99: 0 | AQ99: Abusliem | AR99: Ashshgega | AS99: Nesma | AT99: 115 | AU99: 15 | AV99: 25 | AW99: 45 | AX99: 15 | AZ99: Yes, for most | BA99: Only for Some | BB99: Only for Some | BC99: Only for Some | BD99: 2
A100: West | B100: الغرب | C100: Zwara | D100: زوارة | E100: Ziltun | F100: زلطن | G100: LY021506 | H100: 32.945914 | I100: 11.866288 | J100: 23 | K100: 2018-11-13 | L100: 5 | M100: 25 | N100: 5 | O100: 25 | P100: 0 | Q100: 0 | R100: 0 | S100: 0 | V100: Zwara | W100: Al Maya | X100: Sirt | AI100: 8 | AJ100: 40 | AK100: 8 | AL100: 40 | AM100: 0 | AN100: 0 | AQ100: Sabratha | AR100: Tripoli | AT100: 400 | AV100: 20 | AW100: 35 | AX100: 45 | AZ100: Yes, for most | BA100: Yes, for most | BB100: Yes, for most | BC100: Only for Some | BD100: 4
A101: West | B101: الغرب | C101: Misrata | D101: مصراته | E101: Zliten | F101: زليتن | G101: LY021402 | H101: 32.467562 | I101: 14.56564 | J101: 23 | K101: 2018-12-14 | L101: 631 | M101: 3155 | N101: 78 | O101: 410 | P101: 386 | Q101: 1910 | R101: 167 | S101: 835 | T101: 16 | U101: 80 | V101: Benghazi | W101: Sebha | X101: Misrata | Y101: 190 | Z101: 950 | AA101: 55 | AB101: 275 | AC101: 57 | AD101: 285 | AE101: 78 | AF101: 390 | AG101: 33 | AH101: 165 | AI101: 187 | AJ101: 935 | AK101: 116 | AL101: 580 | AM101: 71 | AN101: 355 | AO101: 0 | AP101: 0 | AQ101: Tripoli | AR101: Misrata | AS101: Tarhuna | AT101: 6550 | AU101: 6 | AV101: 28 | AW101: 33 | AX101: 33 | AZ101: Yes, for most | BA101: Yes, for most | BB101: Only for Some | BC101: Only for Some | BD101: 3
A102: West | B102: الغرب | C102: Zwara | D102: زوارة | E102: Zwara | F102: زوارة | G102: LY021503 | H102: 32.932781 | I102: 12.080638 | J102: 23 | K102: 2018-11-21 | L102: 3 | M102: 17 | N102: 0 | O102: 0 | P102: 3 | Q102: 17 | R102: 0 | S102: 0 | V102: Ubari | Y102: 3 | Z102: 15 | AA102: 3 | AB102: 15 | AC102: 0 | AD102: 0 | AE102: 0 | AF102: 0 | AT102: 4120 | AU102: 10 | AV102: 20 | AW102: 30 | AX102: 15 | AY102: 25 | AZ102: Yes, for most | BA102: Yes, for most | BB102: Only for Some | BC102: Only for Some | BD102: 4

Sheet Access to services (Baladiya)
A1: General Info | L1: EDUCATION | Q1: HEALTH | T1: Water Sanitation and Hygiene | AJ1: FOOD | AR1: Security | BA1: WHICH NEEDED NFIs ARE DIFFICULT TO PROCURE IN LOCATION? | BL1: LIVELIHOODS: WHAT ARE THE MAIN OPTIONS?
A2: ADM 1 Geodivision (EN) | B2: ADM 1 Geodivision (AR) | C2: ADM 2 Mantika-Region (EN) | D2: ADM 2 Mantika-Region (AR) | E2: ADM 3 Baladiya-Area (EN) | F2: ADM 3 Baladiya-Area (AR) | G2: Baladiya PCode | H2: Lat | I2: Long | J2: AssessmentRound | K2: Assessment Date | L2: % of public schools operational | M2: % private schools operational | N2: # of schools used as shelter for IDPs | O2: # of schools partially damaged | P2: # of schools fully damaged/destroyed | Q2: % of operational public health centers, clinics and hospitals | R2: % of operational private health centers and clinics | S2: Regular access to medicine? | T2: Sewage treatment Available? | U2: Water Network Available? | V2: Infrastructure Reparir Available? | W2: Garbage Disposal Available? | X2: Elictritcity Available? | Y2: Water Sources/Water Network | Z2: Water Sources/Water Trucking | AA2: Water Sources/Water Bottles | AB2: Water Sources/Open well | AC2: Water Sources/springs_river | AD2: Water Sources/Other | AE2: Wash Problems/Too expensive | AF2: Wash Problems/Security reasons | AG2: Wash Problems/Not safe for drinking_cooking | AH2: Wash Problems/Other | AI2: Wash Problems/No problem | AJ2: Food Source/Local market | AK2: Food Source/Donated by relatives or friends | AL2: Food Source/donated by charity or aid | AM2: Food SourceOther | AN2: Food Purchase method/Obtain on credit | AO2: Food Purchase method/Pay with ATM card | AP2: Food Purchase method/OPay in cash | AQ2: Food Problem | AR2: Presence of Unexploded Ordnance? | AS2: Presence of Unexploded Ordnance Muhalla1 | AT2: Presence of Unexploded Ordnance Muhalla2 | AU2: Presence of Unexploded Ordnance Muhalla3 | AV2: Are people able to safely move from location to location? | AW2: Reason for Restricted Movement 1 | AX2: Reason for Restricted Movement 2 | AY2: Reason for Restricted Movement 3 | AZ2: Reason for Restricted Movement 4 | BA2: NFI Needs/Portable lights | BB2: NFI Needs/Clothes | BC2: NFI Needs/Mattress | BD2: NFI Needs/Gas/fuel | BE2: NFI Needs/Hygienic items | BF2: NFI Needs/Heaters | BG2: NFI Problems/Too expensive | BH2: NFI Problems/Distance from local market | BI2: NFI Problems/Quality | BJ2: NFI Problems/TOther | BK2: NFI Problems/No problem | BL2: Livelihood/Farming | BM2: Livelihood/Pastoralism | BN2: Livelihood/Small business | BO2: Livelihood/Daily labour | BP2: Livelihood/Public employment | BQ2: Livelihood/Private employment | BR2: Livelihood/No paid activities | BS2: Livelihood/Aid received | BT2: Livelihood/Borrowing | BU2: Livelihood/other
A3: East | B3: الشرق | C3: Al Jabal Al Akhdar | D3: الجبل الاخضر | E3: Albayda | F3: البيضاء | G3: LY010602 | H3: 32.766389 | I3: 21.741667 | J3: 23 | K3: 2018-11-18 | L3: 100 | M3: 100 | N3: 0 | O3: 0 | P3: 0 | Q3: 100 | R3: 86 | S3: No | T3: No | U3: Yes | V3: No | W3: Yes | X3: Yes | Y3: Yes | Z3: Yes | AA3: No | AB3: No | AC3: No | AD3: No | AE3: Yes | AF3: No | AG3: No | AH3: No | AI3: No | AJ3: Yes | AK3: No | AL3: Yes | AM3: No | AN3: Yes | AO3: Yes | AP3: Yes | AQ3: Too expensive | AR3: No | AV3: Yes | AX3: Insecurity | BA3: No | BB3: Yes | BC3: Yes | BD3: Yes | BE3: Yes | BF3: No | BG3: Yes | BH3: No | BI3: Yes | BJ3: Yes | BK3: No | BL3: Yes | BM3: No | BN3: Yes | BO3: Yes | BP3: Yes | BQ3: Yes | BR3: No | BS3: No | BT3: No | BU3: No
A4: East | B4: الشرق | C4: Al Jabal Al Akhdar | D4: الجبل الاخضر | E4: Shahhat | F4: شحات | G4: LY010601 | H4: 32.808215 | I4: 21.869684 | J4: 23 | K4: 2018-11-15 | L4: 100 | M4: 90 | N4: 0 | O4: 0 | P4: 0 | Q4: 100 | R4: 100 | S4: No | T4: No | U4: Yes | V4: No | W4: Yes | X4: No | Y4: Yes | Z4: No | AA4: No | AB4: No | AC4: No | AD4: No | AE4: No | AF4: No | AG4: No | AH4: No | AI4: Yes | AJ4: Yes | AK4: No | AL4: No | AM4: No | AN4: Yes | AO4: Yes | AP4: Yes | AQ4: Too expensive | AR4: No | AV4: Yes | BA4: No | BB4: No | BC4: Yes | BD4: No | BE4: Yes | BF4: No | BG4: Yes | BH4: No | BI4: Yes | BJ4: No | BK4: No | BL4: Yes | BM4: No | BN4: Yes | BO4: Yes | BP4: Yes | BQ4: Yes | BR4: No | BS4: No | BT4: No | BU4: No
A5: East | B5: الشرق | C5: Alkufra | D5: الكفرة | E5: Alkufra | F5: الكفرة | G5: LY010701 | H5: 24.198769 | I5: 23.293191 | J5: 23 | K5: 2018-11-14 | L5: 100 | M5: 50 | N5: 0 | O5: 1 | P5: 0 | Q5: 100 | R5: 100 | S5: No | T5: No | U5: No | V5: No | W5: Yes | X5: No | Y5: Yes | Z5: No | AA5: No | AB5: No | AC5: No | AD5: No | AE5: Yes | AF5: No | AG5: No | AH5: No | AI5: No | AJ5: Yes | AK5: No | AL5: No | AM5: No | AN5: No | AO5: Yes | AP5: No | AQ5: Too expensive | AR5: No | AV5: Yes | BA5: Yes | BB5: No | BC5: Yes | BD5: No | BE5: Yes | BF5: No | BG5: Yes | BH5: No | BI5: No | BJ5: No | BK5: No | BL5: Yes | BM5: No | BN5: No | BO5: No | BP5: No | BQ5: No | BR5: No | BS5: No | BT5: No | BU5: No
A6: East | B6: الشرق | C6: Alkufra | D6: الكفرة | E6: Tazirbu | F6: تازربو | G6: LY010702 | H6: 25.679945 | I6: 21.062477 | J6: 23 | K6: 2018-12-11 | L6: 100 | N6: 0 | O6: 0 | P6: 0 | S6: No | T6: No | U6: No | V6: No | W6: Yes | X6: Yes | Y6: No | Z6: No | AA6: No | AB6: Yes | AC6: No | AD6: No | AE6: No | AF6: No | AG6: No | AH6: No | AI6: Yes | AJ6: Yes | AK6: No | AL6: No | AM6: No | AN6: Yes | AO6: Yes | AP6: No | AQ6: Too expensive | AR6: No | AV6: Yes | BA6: No | BB6: No | BC6: No | BD6: No | BE6: No | BF6: No | BG6: Yes | BH6: No | BI6: No | BJ6: No | BK6: No | BL6: No | BM6: Yes | BN6: No | BO6: No | BP6: Yes | BQ6: No | BR6: No | BS6: No | BT6: No | BU6: No
A7: East | B7: الشرق | C7: Almarj | D7: المرج | E7: Almarj | F7: المرج | G7: LY010202 | H7: 32.485716 | I7: 20.833836 | J7: 23 | K7: 2018-11-27 | L7: 100 | M7: 100 | N7: 0 | O7: 0 | P7: 0 | Q7: 100 | R7: 100 | S7: No | T7: No | U7: No | V7: No | W7: Yes | X7: Yes | Y7: Yes | Z7: Yes | AA7: No | AB7: No | AC7: Yes | AD7: No | AE7: No | AF7: No | AG7: No | AH7: No | AI7: Yes | AJ7: Yes | AK7: No | AL7: No | AM7: No | AN7: Yes | AO7: Yes | AP7: Yes | AQ7: Too expensive | AR7: No | AV7: Yes | BA7: Yes | BB7: Yes | BC7: Yes | BD7: No | BE7: Yes | BF7: No | BG7: Yes | BH7: No | BI7: Yes | BJ7: No | BK7: No | BL7: Yes | BM7: No | BN7: Yes | BO7: Yes | BP7: Yes | BQ7: Yes | BR7: No | BS7: No | BT7: No | BU7: No
A8: East | B8: الشرق | C8: Almarj | D8: المرج | E8: Assahel | F8: الساحل | G8: LY010203 | H8: 32.561944 | I8: 21.252778 | J8: 23 | K8: 2018-12-22 | L8: 100 | M8: 100 | N8: 0 | O8: 0 | P8: 0 | Q8: 100 | R8: 50 | S8: No | T8: No | U8: Yes | V8: No | W8: Yes | X8: No | Y8: Yes | Z8: No | AA8: No | AB8: No | AC8: Yes | AD8: No | AE8: No | AF8: No | AG8: No | AH8: No | AI8: Yes | AJ8: Yes | AK8: No | AL8: No | AM8: No | AN8: Yes | AO8: Yes | AP8: Yes | AQ8: Too expensive | AR8: No | AV8: Yes | BA8: Yes | BB8: Yes | BC8: Yes | BD8: No | BE8: Yes | BF8: No | BG8: Yes | BH8: Yes | BI8: Yes | BJ8: No | BK8: No | BL8: Yes | BM8: No | BN8: Yes | BO8: No | BP8: Yes | BQ8: Yes | BR8: No | BS8: No | BT8: No | BU8: No
A9: East | B9: الشرق | C9: Almarj | D9: المرج | E9: Jardas Alabeed | F9: جردس العبيد | G9: LY010201 | H9: 32.302739 | I9: 20.986927 | J9: 23 | K9: 2018-11-26 | L9: 100 | N9: 0 | O9: 0 | P9: 0 | Q9: 100 | R9: 100 | S9: No | T9: No | U9: Yes | V9: No | W9: Yes | X9: No | Y9: Yes | Z9: No | AA9: No | AB9: Yes | AC9: No | AD9: No | AE9: No | AF9: No | AG9: No | AH9: No | AI9: Yes | AJ9: Yes | AK9: No | AL9: No | AM9: No | AN9: Yes | AO9: No | AP9: Yes | AQ9: Too expensive | AR9: No | AV9: Yes | BA9: Yes | BB9: Yes | BC9: Yes | BD9: No | BE9: Yes | BF9: No | BG9: Yes | BH9: No | BI9: Yes | BJ9: No | BK9: No | BL9: Yes | BM9: No | BN9: Yes | BO9: No | BP9: Yes | BQ9: Yes | BR9: No | BS9: No | BT9: No | BU9: No
A10: East | B10: الشرق | C10: Benghazi | D10: بنغازي | E10: Alabyar | F10: الأبيار | G10: LY010301 | H10: 32.189645 | I10: 20.594509 | J10: 23 | K10: 2018-12-28 | L10: 100 | M10: 100 | N10: 0 | O10: 0 | P10: 0 | Q10: 100 | R10: 100 | S10: No | T10: No | U10: No | V10: No | W10: Yes | X10: No | Y10: No | Z10: Yes | AA10: Yes | AB10: No | AC10: No | AD10: No | AE10: Yes | AF10: No | AG10: Yes | AH10: No | AI10: No | AJ10: Yes | AK10: No | AL10: No | AM10: No | AN10: No | AO10: No | AP10: Yes | AQ10: Too expensive | AR10: No | AV10: Yes | BA10: No | BB10: No | BC10: Yes | BD10: No | BE10: Yes | BF10: No | BG10: Yes | BH10: No | BI10: Yes | BJ10: No | BK10: No | BL10: Yes | BM10: No | BN10: Yes | BO10: No | BP10: Yes | BQ10: No | BR10: No | BS10: No | BT10: No | BU10: No
A11: East | B11: الشرق | C11: Benghazi | D11: بنغازي | E11: Benghazi | F11: بنغازي | G11: LY010304 | H11: 32.117076 | I11: 20.067004 | J11: 23 | K11: 2018-12-22 | L11: 91 | M11: 99 | N11: 0 | O11: 25 | P11: 15 | Q11: 69.56521739 | R11: 94.56521739 | S11: No | T11: No | U11: Yes | V11: No | W11: No | X11: Yes | Y11: Yes | Z11: No | AA11: Yes | AB11: No | AC11: No | AD11: No | AE11: Yes | AF11: No | AG11: No | AH11: Yes | AI11: No | AJ11: Yes | AK11: Yes | AL11: Yes | AM11: No | AN11: Yes | AO11: Yes | AP11: Yes | AQ11: Too expensive | AR11: Yes | AS11: Garyounes | AT11: Sabri Echarqui | AV11: Yes | BA11: No | BB11: No | BC11: Yes | BD11: No | BE11: Yes | BF11: Yes | BG11: Yes | BH11: No | BI11: No | BJ11: No | BK11: No | BL11: No | BM11: No | BN11: No | BO11: Yes | BP11: Yes | BQ11: Yes | BR11: No | BS11: Yes | BT11: No | BU11: No
A12: East | B12: الشرق | C12: Benghazi | D12: بنغازي | E12: Gemienis | F12: قمينس | G12: LY010305 | H12: 31.656741 | I12: 20.015798 | J12: 23 | K12: 2018-11-26 | L12: 100 | M12: 100 | N12: 0 | O12: 0 | P12: 0 | Q12: 100 | R12: 75 | S12: No | T12: No | U12: Yes | V12: No | W12: Yes | X12: No | Y12: Yes | Z12: No | AA12: No | AB12: No | AC12: No | AD12: No | AE12: No | AF12: No | AG12: No | AH12: No | AI12: Yes | AJ12: Yes | AK12: No | AL12: No | AM12: No | AN12: Yes | AO12: No | AP12: Yes | AQ12: Too expensive | AR12: No | AV12: Yes | BA12: No | BB12: No | BC12: Yes | BD12: No | BE12: Yes | BF12: No | BG12: Yes | BH12: No | BI12: Yes | BJ12: No | BK12: No | BL12: No | BM12: No | BN12: No | BO12: No | BP12: Yes | BQ12: Yes | BR12: No | BS12: No | BT12: No | BU12: No
A13: East | B13: الشرق | C13: Benghazi | D13: بنغازي | E13: Suloug | F13: سلوق | G13: LY010303 | H13: 31.66748 | I13: 20.250396 | J13: 23 | K13: 2018-11-25 | L13: 100 | M13: 100 | N13: 0 | O13: 0 | P13: 0 | Q13: 100 | R13: 50 | S13: No | T13: No | U13: Yes | V13: No | W13: Yes | X13: No | Y13: Yes | Z13: No | AA13: No | AB13: No | AC13: No | AD13: Yes | AE13: No | AF13: No | AG13: No | AH13: No | AI13: Yes | AJ13: Yes | AK13: No | AL13: No | AM13: No | AN13: No | AO13: Yes | AP13: Yes | AQ13: Too expensive | AR13: No | AV13: Yes | BA13: No | BB13: Yes | BC13: No | BD13: No | BE13: Yes | BF13: No | BG13: Yes | BH13: No | BI13: Yes | BJ13: No | BK13: No | BL13: Yes | BM13: No | BN13: No | BO13: No | BP13: Yes | BQ13: Yes | BR13: No | BS13: No | BT13: No | BU13: No
A14: East | B14: الشرق | C14: Benghazi | D14: بنغازي | E14: Toukra | F14: توكرة | G14: LY010302 | H14: 32.532222 | I14: 20.572222 | J14: 23 | K14: 2018-11-26 | L14: 100 | M14: 100 | N14: 0 | O14: 0 | P14: 0 | Q14: 100 | R14: 100 | S14: No | T14: No | U14: Yes | V14: No | W14: Yes | X14: No | Y14: Yes | Z14: No | AA14: No | AB14: No | AC14: No | AD14: No | AE14: No | AF14: No | AG14: No | AH14: No | AI14: Yes | AJ14: Yes | AK14: No | AL14: No | AM14: No | AN14: Yes | AO14: Yes | AP14: Yes | AQ14: Too expensive | AR14: No | AV14: Yes | BA14: No | BB14: Yes | BC14: Yes | BD14: No | BE14: Yes | BF14: No | BG14: Yes | BH14: No | BI14: Yes | BJ14: No | BK14: No | BL14: No | BM14: No | BN14: Yes | BO14: No | BP14: Yes | BQ14: Yes | BR14: No | BS14: No | BT14: No | BU14: No
A15: East | B15: الشرق | C15: Derna | D15: درنه | E15: Alqayqab | F15: القيقب | G15: LY010104 | H15: 32.724734 | I15: 22.02385 | J15: 23 | K15: 2018-12-10 | L15: 100 | M15: 100 | N15: 0 | O15: 0 | P15: 0 | Q15: 100 | R15: 100 | S15: No | T15: No | U15: No | V15: No | W15: No | X15: No | Y15: No | Z15: Yes | AA15: No | AB15: No | AC15: No | AD15: No | AE15: Yes | AF15: No | AG15: No | AH15: Yes | AI15: No | AJ15: Yes | AK15: No | AL15: No | AM15: Yes | AN15: No | AO15: Yes | AP15: Yes | AQ15: Too expensive | AR15: No | AV15: Yes | BA15: No | BB15: Yes | BC15: No | BD15: No | BE15: No | BF15: Yes | BG15: Yes | BH15: No | BI15: No | BJ15: No | BK15: No | BL15: No | BM15: No | BN15: No | BO15: Yes | BP15: Yes | BQ15: Yes | BR15: No | BS15: No | BT15: No | BU15: No
A16: East | B16: الشرق | C16: Derna | D16: درنه | E16: Alqubba | F16: القبة | G16: LY010103 | H16: 32.763056 | I16: 22.241753 | J16: 23 | K16: 2018-11-25 | L16: 100 | M16: 100 | N16: 0 | O16: 2 | P16: 0 | Q16: 100 | R16: 100 | S16: No | T16: No | U16: Yes | V16: No | W16: No | X16: No | Y16: Yes | Z16: No | AA16: No | AB16: No | AC16: Yes | AD16: No | AE16: No | AF16: No | AG16: No | AH16: No | AI16: Yes | AJ16: Yes | AK16: No | AL16: No | AM16: No | AN16: Yes | AO16: Yes | AP16: No | AQ16: Too expensive | AR16: No | AV16: Yes | BA16: No | BB16: Yes | BC16: Yes | BD16: No | BE16: No | BF16: No | BG16: Yes | BH16: No | BI16: No | BJ16: No | BK16: No | BL16: Yes | BM16: No | BN16: No | BO16: No | BP16: Yes | BQ16: Yes | BR16: No | BS16: No | BT16: No | BU16: No
A17: East | B17: الشرق | C17: Derna | D17: درنه | E17: Derna | F17: درنة | G17: LY010102 | H17: 32.759379 | I17: 22.638319 | J17: 23 | K17: 2018-12-03 | L17: 80 | M17: 70 | N17: 3 | O17: 5 | P17: 2 | Q17: 83 | R17: 78 | S17: No | T17: No | U17: Yes | V17: No | W17: Yes | X17: No | Y17: Yes | Z17: No | AA17: No | AB17: No | AC17: Yes | AD17: No | AE17: No | AF17: No | AG17: Yes | AH17: No | AI17: No | AJ17: Yes | AK17: No | AL17: Yes | AM17: No | AN17: Yes | AO17: Yes | AP17: Yes | AQ17: Too expensive | AR17: Yes | AS17: El Bilad | AT17: El Bilad | AV17: No | AX17: Insecurity | AY17: threat/presence of explosive hazards | BA17: Yes | BB17: Yes | BC17: Yes | BD17: Yes | BE17: Yes | BF17: No | BG17: Yes | BH17: No | BI17: Yes | BJ17: Yes | BK17: No | BL17: Yes | BM17: No | BN17: Yes | BO17: No | BP17: Yes | BQ17: Yes | BR17: No | BS17: Yes | BT17: No | BU17: No
A18: East | B18: الشرق | C18: Derna | D18: درنه | E18: Labriq | F18: الأبرق | G18: LY010105 | H18: 32.786528 | I18: 21.997782 | J18: 23 | K18: 2018-12-02 | L18: 100 | M18: 100 | N18: 1 | O18: 0 | P18: 0 | Q18: 100 | R18: 100 | S18: No | T18: No | U18: Yes | V18: No | W18: Yes | X18: No | Y18: Yes | Z18: Yes | AA18: No | AB18: No | AC18: Yes | AD18: No | AE18: Yes | AF18: No | AG18: No | AH18: No | AI18: No | AJ18: Yes | AK18: No | AL18: No | AM18: No | AN18: Yes | AO18: No | AP18: Yes | AQ18: Too expensive | AR18: No | AV18: Yes | BA18: No | BB18: No | BC18: Yes | BD18: No | BE18: Yes | BF18: No | BG18: Yes | BH18: No | BI18: No | BJ18: No | BK18: No | BL18: Yes | BM18: No | BN18: No | BO18: No | BP18: Yes | BQ18: Yes | BR18: No | BS18: No | BT18: No | BU18: No
A19: East | B19: الشرق | C19: Derna | D19: درنه | E19: Umm arrazam | F19: ام الرزم | G19: LY010101 | H19: 32.531744 | I19: 23.008754 | J19: 23 | K19: 2018-12-02 | L19: 100 | M19: 70 | N19: 0 | O19: 0 | P19: 0 | Q19: 100 | R19: 100 | S19: No | T19: No | U19: No | V19: No | W19: Yes | X19: No | Y19: No | Z19: Yes | AA19: No | AB19: Yes | AC19: No | AD19: No | AE19: Yes | AF19: No | AG19: No | AH19: No | AI19: No | AJ19: Yes | AK19: No | AL19: No | AM19: No | AN19: No | AO19: No | AP19: Yes | AQ19: Too expensive | AR19: No | AV19: Yes | BA19: No | BB19: Yes | BC19: Yes | BD19: No | BE19: No | BF19: No | BG19: Yes | BH19: No | BI19: No | BJ19: No | BK19: No | BL19: No | BM19: No | BN19: No | BO19: No | BP19: Yes | BQ19: Yes | BR19: No | BS19: No | BT19: No | BU19: No
A20: East | B20: الشرق | C20: Ejdabia | D20: اجدابيا | E20: Albrayga | F20: البريقة | G20: LY010506 | H20: 30.40624 | I20: 19.57386 | J20: 23 | K20: 2018-12-10 | L20: 100 | M20: 100 | N20: 0 | O20: 0 | P20: 0 | Q20: 100 | R20: 100 | S20: No | T20: No | U20: Yes | V20: No | W20: Yes | X20: Yes | Y20: Yes | Z20: No | AA20: No | AB20: No | AC20: No | AD20: No | AE20: No | AF20: No | AG20: No | AH20: No | AI20: Yes | AJ20: Yes | AK20: No | AL20: No | AM20: No | AN20: Yes | AO20: Yes | AP20: No | AQ20: Too expensive | AR20: No | AV20: Yes | BA20: No | BB20: Yes | BC20: Yes | BD20: No | BE20: No | BF20: No | BG20: Yes | BH20: No | BI20: No | BJ20: No | BK20: No | BL20: No | BM20: Yes | BN20: No | BO20: No | BP20: Yes | BQ20: No | BR20: No | BS20: No | BT20: No | BU20: No
A21: East | B21: الشرق | C21: Ejdabia | D21: اجدابيا | E21: Aujala | F21: أوجلة | G21: LY010503 | H21: 29.140278 | I21: 21.2975 | J21: 23 | K21: 2018-12-16 | L21: 100 | M21: 100 | N21: 0 | O21: 0 | P21: 0 | Q21: 100 | S21: No | T21: No | U21: No | V21: No | W21: No | X21: Yes | Y21: No | Z21: No | AA21: No | AB21: Yes | AC21: No | AD21: Yes | AE21: Yes | AF21: No | AG21: No | AH21: No | AI21: No | AJ21: Yes | AK21: No | AL21: No | AM21: No | AN21: Yes | AO21: Yes | AP21: No | AQ21: Too expensive | AR21: No | AV21: Yes | BA21: No | BB21: Yes | BC21: Yes | BD21: No | BE21: No | BF21: No | BG21: Yes | BH21: No | BI21: No | BJ21: No | BK21: No | BL21: Yes | BM21: Yes | BN21: No | BO21: No | BP21: Yes | BQ21: No | BR21: No | BS21: No | BT21: No | BU21: No
A22: East | B22: الشرق | C22: Ejdabia | D22: اجدابيا | E22: Ejdabia | F22: اجدابيا | G22: LY010504 | H22: 30.755003 | I22: 20.223326 | J22: 23 | K22: 2018-12-11 | L22: 100 | M22: 100 | N22: 0 | O22: 0 | P22: 0 | Q22: 100 | R22: 100 | S22: No | T22: No | U22: Yes | V22: No | W22: No | X22: Yes | Y22: Yes | Z22: No | AA22: No | AB22: No | AC22: No | AD22: No | AE22: No | AF22: No | AG22: No | AH22: No | AI22: Yes | AJ22: Yes | AK22: No | AL22: No | AM22: No | AN22: Yes | AO22: Yes | AP22: No | AQ22: Too expensive | AR22: No | AV22: Yes | BA22: No | BB22: Yes | BC22: Yes | BD22: No | BE22: No | BF22: No | BG22: Yes | BH22: No | BI22: No | BJ22: No | BK22: No | BL22: No | BM22: Yes | BN22: No | BO22: No | BP22: Yes | BQ22: No | BR22: No | BS22: No | BT22: No | BU22: No
A23: East | B23: الشرق | C23: Ejdabia | D23: اجدابيا | E23: Ejkherra | F23: إجخرة | G23: LY010501 | H23: 29.296253 | I23: 21.649898 | J23: 23 | K23: 2018-12-16 | L23: 100 | M23: 100 | N23: 0 | O23: 0 | P23: 0 | Q23: 100 | S23: No | T23: No | U23: No | V23: No | W23: No | X23: Yes | Y23: No | Z23: No | AA23: No | AB23: Yes | AC23: No | AD23: Yes | AE23: Yes | AF23: No | AG23: No | AH23: No | AI23: No | AJ23: Yes | AK23: No | AL23: No | AM23: No | AN23: Yes | AO23: Yes | AP23: No | AQ23: Too expensive | AR23: No | AV23: Yes | BA23: No | BB23: Yes | BC23: Yes | BD23: No | BE23: No | BF23: No | BG23: Yes | BH23: No | BI23: No | BJ23: No | BK23: No | BL23: Yes | BM23: Yes | BN23: No | BO23: No | BP23: Yes | BQ23: No | BR23: No | BS23: No | BT23: No | BU23: No
A24: East | B24: الشرق | C24: Ejdabia | D24: اجدابيا | E24: Jalu | F24: جالو | G24: LY010502 | H24: 29.033115 | I24: 21.548221 | J24: 23 | K24: 2018-12-08 | L24: 100 | M24: 100 | N24: 0 | O24: 0 | P24: 0 | Q24: 100 | R24: 100 | S24: No | T24: No | U24: No | V24: No | W24: No | X24: Yes | Y24: No | Z24: No | AA24: No | AB24: Yes | AC24: No | AD24: Yes | AE24: Yes | AF24: No | AG24: No | AH24: No | AI24: No | AJ24: Yes | AK24: No | AL24: No | AM24: No | AN24: Yes | AO24: Yes | AP24: No | AQ24: Too expensive | AR24: No | AV24: Yes | BA24: No | BB24: Yes | BC24: Yes | BD24: No | BE24: No | BF24: No | BG24: Yes | BH24: No | BI24: No | BJ24: No | BK24: No | BL24: Yes | BM24: Yes | BN24: No | BO24: No | BP24: Yes | BQ24: No | BR24: No | BS24: No | BT24: No | BU24: No
A25: East | B25: الشرق | C25: Ejdabia | D25: اجدابيا | E25: Marada | F25: مرادة | G25: LY010505 | H25: 29.221376 | I25: 19.204394 | J25: 23 | K25: 2018-12-12 | L25: 100 | N25: 0 | O25: 0 | P25: 0 | Q25: 100 | S25: No | T25: No | U25: No | V25: No | W25: No | X25: Yes | Y25: No | Z25: Yes | AA25: No | AB25: No | AC25: No | AD25: No | AE25: Yes | AF25: No | AG25: Yes | AH25: No | AI25: No | AJ25: Yes | AK25: No | AL25: No | AM25: No | AN25: Yes | AO25: Yes | AP25: No | AQ25: Too expensive | AR25: No | AV25: No | AX25: Insecurity | BA25: Yes | BB25: Yes | BC25: Yes | BD25: No | BE25: No | BF25: No | BG25: Yes | BH25: Yes | BI25: No | BJ25: No | BK25: No | BL25: Yes | BM25: No | BN25: No | BO25: No | BP25: No | BQ25: No | BR25: No | BS25: No | BT25: No | BU25: No
A26: East | B26: الشرق | C26: Tobruk | D26: طبرق | E26: Bir Alashhab | F26: بير الأشهب | G26: LY010402 | H26: 31.886672 | I26: 24.664016 | J26: 23 | K26: 2018-11-25 | L26: 100 | M26: 75 | N26: 0 | O26: 0 | P26: 0 | Q26: 100 | R26: 67 | S26: No | T26: No | U26: No | V26: No | W26: Yes | X26: No | Y26: No | Z26: Yes | AA26: No | AB26: Yes | AC26: No | AD26: No | AE26: Yes | AF26: No | AG26: No | AH26: No | AI26: No | AJ26: Yes | AK26: No | AL26: No | AM26: No | AN26: No | AO26: No | AP26: Yes | AQ26: Too expensive | AR26: No | AV26: Yes | BA26: No | BB26: Yes | BC26: Yes | BD26: No | BE26: Yes | BF26: No | BG26: Yes | BH26: No | BI26: Yes | BJ26: No | BK26: No | BL26: No | BM26: No | BN26: No | BO26: No | BP26: Yes | BQ26: Yes | BR26: No | BS26: No | BT26: No | BU26: No
A27: East | B27: الشرق | C27: Tobruk | D27: طبرق | E27: Emsaed | F27: امساعد | G27: LY010401 | H27: 31.613532 | I27: 25.048502 | J27: 23 | K27: 2018-12-03 | L27: 100 | M27: 100 | Q27: 100 | R27: 50 | S27: No | T27: No | U27: No | V27: No | W27: No | X27: No | Y27: No | Z27: Yes | AA27: Yes | AB27: No | AC27: No | AD27: No | AE27: Yes | AF27: No | AG27: No | AH27: No | AI27: No | AJ27: Yes | AK27: No | AL27: No | AM27: No | AN27: Yes | AO27: No | AP27: Yes | AQ27: Too expensive | AR27: No | AV27: Yes | BA27: No | BB27: Yes | BC27: Yes | BD27: No | BE27: Yes | BF27: No | BG27: Yes | BH27: No | BI27: Yes | BJ27: No | BK27: No | BL27: No | BM27: No | BN27: Yes | BO27: No | BP27: Yes | BQ27: Yes | BR27: No | BS27: No | BT27: No | BU27: No
A28: East | B28: الشرق | C28: Tobruk | D28: طبرق | E28: Tobruk | F28: طبرق | G28: LY010403 | H28: 32.077432 | I28: 23.960015 | J28: 23 | K28: 2018-12-18 | L28: 100 | M28: 100 | Q28: 100 | R28: 100 | S28: No | T28: No | U28: Yes | V28: No | W28: Yes | X28: Yes | Y28: Yes | Z28: Yes | AA28: No | AB28: No | AC28: No | AD28: No | AE28: No | AF28: No | AG28: No | AH28: Yes | AI28: No | AJ28: Yes | AK28: No | AL28: No | AM28: No | AN28: Yes | AO28: Yes | AP28: Yes | AQ28: Too expensive | AR28: No | AV28: Yes | BA28: No | BB28: Yes | BC28: Yes | BD28: No | BE28: Yes | BF28: No | BG28: Yes | BH28: No | BI28: Yes | BJ28: No | BK28: No | BL28: No | BM28: No | BN28: Yes | BO28: Yes | BP28: Yes | BQ28: Yes | BR28: No | BS28: No | BT28: No | BU28: No
A29: South | B29: الجنوب | C29: Aljufra | D29: الجفرة | E29: Aljufra | F29: الجفرة | G29: LY031701 | H29: 29.161473 | I29: 16.141406 | J29: 23 | K29: 2018-12-15 | L29: 80 | M29: 100 | N29: 0 | O29: 0 | P29: 0 | Q29: 89 | R29: 100 | S29: No | T29: No | U29: No | V29: No | W29: No | X29: No | Y29: No | Z29: No | AA29: No | AB29: Yes | AC29: No | AD29: No | AE29: No | AF29: No | AG29: No | AH29: Yes | AI29: No | AJ29: Yes | AK29: No | AL29: No | AM29: No | AN29: No | AO29: Yes | AP29: Yes | AQ29: Too expensive | AR29: No | AV29: Yes | BA29: No | BB29: No | BC29: Yes | BD29: No | BE29: No | BF29: No | BG29: Yes | BH29: No | BI29: No | BJ29: No | BK29: No | BL29: Yes | BM29: No | BN29: Yes | BO29: No | BP29: Yes | BQ29: No | BR29: No | BS29: No | BT29: No | BU29: No
A30: South | B30: الجنوب | C30: Ghat | D30: غات | E30: Ghat | F30: غات | G30: LY032101 | H30: 24.96263 | I30: 10.179717 | J30: 23 | K30: 2018-11-13 | L30: 100 | M30: 50 | N30: 0 | O30: 0 | P30: 0 | Q30: 100 | R30: 100 | S30: No | T30: No | U30: Yes | V30: No | W30: No | X30: No | Y30: Yes | Z30: No | AA30: No | AB30: No | AC30: No | AD30: No | AE30: Yes | AF30: No | AG30: No | AH30: No | AI30: No | AJ30: Yes | AK30: No | AL30: No | AM30: No | AN30: Yes | AO30: Yes | AP30: No | AQ30: Too expensive | AR30: No | AV30: No | BA30: Yes | BB30: No | BC30: Yes | BD30: Yes | BE30: No | BF30: No | BG30: Yes | BH30: No | BI30: No | BJ30: No | BK30: No | BL30: Yes | BM30: No | BN30: No | BO30: No | BP30: No | BQ30: No | BR30: No | BS30: No | BT30: No | BU30: No
A31: South | B31: الجنوب | C31: Murzuq | D31: مرزق | E31: Algatroun | F31: القطرون | G31: LY032202 | H31: 24.888852 | I31: 14.531484 | J31: 23 | K31: 2018-11-17 | L31: 90 | M31: 100 | N31: 1 | O31: 1 | P31: 0 | Q31: 100 | R31: 100 | S31: No | T31: No | U31: Yes | V31: No | W31: No | X31: No | Y31: Yes | Z31: No | AA31: No | AB31: No | AC31: No | AD31: No | AE31: Yes | AF31: No | AG31: No | AH31: No | AI31: No | AJ31: Yes | AK31: No | AL31: No | AM31: No | AN31: No | AO31: Yes | AP31: No | AQ31: Too expensive | AR31: No | AV31: No | BA31: Yes | BB31: No | BC31: Yes | BD31: Yes | BE31: No | BF31: No | BG31: Yes | BH31: No | BI31: No | BJ31: No | BK31: No | BL31: Yes | BM31: No | BN31: No | BO31: No | BP31: No | BQ31: No | BR31: No | BS31: No | BT31: No | BU31: No
A32: South | B32: الجنوب | C32: Murzuq | D32: مرزق | E32: Alsharguiya | F32: الشرقية | G32: LY032201 | H32: 26.14285 | I32: 14.903555 | J32: 23 | K32: 2018-11-15 | L32: 80 | M32: 30 | N32: 2 | O32: 5 | P32: 0 | Q32: 75 | R32: 88 | S32: No | T32: No | U32: Yes | V32: No | W32: No | X32: No | Y32: Yes | Z32: No | AA32: No | AB32: No | AC32: No | AD32: No | AE32: No | AF32: No | AG32: No | AH32: No | AI32: Yes | AJ32: Yes | AK32: No | AL32: No | AM32: Yes | AN32: No | AO32: No | AP32: Yes | AQ32: No Problem | AR32: No | AV32: No | AX32: Insecurity | BA32: Yes | BB32: No | BC32: Yes | BD32: Yes | BE32: No | BF32: No | BG32: Yes | BH32: Yes | BI32: No | BJ32: No | BK32: No | BL32: Yes | BM32: No | BN32: No | BO32: No | BP32: Yes | BQ32: Yes | BR32: No | BS32: No | BT32: No | BU32: No
A33: South | B33: الجنوب | C33: Murzuq | D33: مرزق | E33: Murzuq | F33: مرزق | G33: LY032204 | H33: 25.914085 | I33: 13.91972 | J33: 23 | K33: 2018-11-16 | L33: 85 | M33: 30 | N33: 1 | O33: 2 | P33: 0 | Q33: 100 | R33: 100 | S33: No | T33: Yes | U33: Yes | V33: No | W33: No | X33: No | Y33: Yes | Z33: No | AA33: No | AB33: No | AC33: No | AD33: No | AE33: Yes | AF33: No | AG33: No | AH33: No | AI33: No | AJ33: Yes | AK33: No | AL33: No | AM33: No | AN33: Yes | AO33: No | AP33: No | AQ33: Too expensive | AR33: No | AV33: No | AX33: Insecurity | BA33: No | BB33: Yes | BC33: Yes | BD33: No | BE33: No | BF33: No | BG33: Yes | BH33: No | BI33: No | BJ33: No | BK33: No | BL33: Yes | BM33: No | BN33: No | BO33: No | BP33: No | BQ33: Yes | BR33: No | BS33: No | BT33: No | BU33: No
A34: South | B34: الجنوب | C34: Murzuq | D34: مرزق | E34: Taraghin | F34: تراغن | G34: LY032203 | H34: 25.9371 | I34: 14.430888 | J34: 23 | K34: 2018-11-13 | L34: 95 | M34: 0 | N34: 0 | O34: 0 | P34: 0 | Q34: 100 | R34: 100 | S34: No | T34: No | U34: Yes | V34: No | W34: No | X34: No | Y34: Yes | Z34: No | AA34: No | AB34: No | AC34: No | AD34: No | AE34: Yes | AF34: No | AG34: No | AH34: No | AI34: No | AJ34: Yes | AK34: No | AL34: No | AM34: No | AN34: No | AO34: Yes | AP34: No | AQ34: Too expensive | AR34: No | AV34: No | AX34: Insecurity | BA34: Yes | BB34: No | BC34: Yes | BD34: No | BE34: Yes | BF34: No | BG34: Yes | BH34: No | BI34: No | BJ34: No | BK34: No | BL34: Yes | BM34: No | BN34: No | BO34: No | BP34: Yes | BQ34: No | BR34: No | BS34: No | BT34: No | BU34: No
A35: South | B35: الجنوب | C35: Murzuq | D35: مرزق | E35: Wadi Etba | F35: وادي عتبة | G35: LY032205 | H35: 26.094278 | I35: 13.556707 | J35: 23 | K35: 2018-11-27 | L35: 100 | N35: 0 | O35: 0 | P35: 0 | Q35: 83 | R35: 80 | S35: No | T35: No | U35: Yes | V35: No | W35: No | X35: No | Y35: No | Z35: No | AA35: No | AB35: Yes | AC35: No | AD35: No | AE35: No | AF35: No | AG35: Yes | AH35: No | AI35: No | AJ35: Yes | AK35: No | AL35: No | AM35: No | AN35: Yes | AO35: No | AP35: No | AQ35: Too expensive | AR35: No | AV35: Yes | BA35: No | BB35: Yes | BC35: No | BD35: No | BE35: No | BF35: No | BG35: Yes | BH35: No | BI35: No | BJ35: No | BK35: No | BL35: Yes | BM35: No | BN35: No | BO35: No | BP35: Yes | BQ35: Yes | BR35: No | BS35: No | BT35: No | BU35: No
A36: South | B36: الجنوب | C36: Sebha | D36: سبها | E36: Albawanees | F36: البوانيس | G36: LY031902 | H36: 27.267049 | I36: 14.903607 | J36: 23 | K36: 2018-12-07 | L36: 100 | N36: 0 | O36: 0 | P36: 0 | Q36: 83 | R36: 80 | S36: No | T36: No | U36: Yes | V36: No | W36: No | X36: No | Y36: No | Z36: No | AA36: No | AB36: Yes | AC36: No | AD36: No | AE36: No | AF36: No | AG36: Yes | AH36: No | AI36: No | AJ36: Yes | AK36: No | AL36: No | AM36: No | AN36: Yes | AO36: No | AP36: No | AQ36: Too expensive | AR36: No | AV36: Yes | BA36: No | BB36: Yes | BC36: No | BD36: No | BE36: No | BF36: No | BG36: Yes | BH36: No | BI36: No | BJ36: No | BK36: No | BL36: Yes | BM36: No | BN36: No | BO36: No | BP36: Yes | BQ36: Yes | BR36: No | BS36: No | BT36: No | BU36: No
A37: South | B37: الجنوب | C37: Sebha | D37: سبها | E37: Sebha | F37: سبها | G37: LY031901 | H37: 27.033154 | I37: 14.431693 | J37: 23 | K37: 2018-11-14 | L37: 95 | M37: 62 | N37: 3 | O37: 3 | P37: 0 | Q37: 100 | R37: 100 | S37: No | T37: No | U37: Yes | V37: No | W37: No | X37: No | Y37: Yes | Z37: No | AA37: No | AB37: No | AC37: No | AD37: No | AE37: Yes | AF37: No | AG37: No | AH37: No | AI37: No | AJ37: Yes | AK37: No | AL37: No | AM37: No | AN37: No | AO37: Yes | AP37: No | AQ37: Too expensive | AR37: No | AV37: No | AX37: Insecurity | BA37: Yes | BB37: No | BC37: Yes | BD37: No | BE37: Yes | BF37: No | BG37: Yes | BH37: No | BI37: No | BJ37: No | BK37: No | BL37: Yes | BM37: No | BN37: No | BO37: No | BP37: Yes | BQ37: No | BR37: No | BS37: No | BT37: No | BU37: No
A38: South | B38: الجنوب | C38: Ubari | D38: اوباري | E38: Alghrayfa | F38: الغريفة | G38: LY032002 | H38: 26.525887 | I38: 13.009949 | J38: 23 | K38: 2018-12-14 | L38: 100 | N38: 0 | O38: 0 | P38: 0 | Q38: 83 | R38: 80 | S38: No | T38: No | U38: Yes | V38: No | W38: No | X38: No | Y38: No | Z38: No | AA38: No | AB38: Yes | AC38: No | AD38: No | AE38: No | AF38: No | AG38: Yes | AH38: No | AI38: No | AJ38: No | AK38: Yes | AL38: No | AM38: No | AN38: Yes | AO38: No | AP38: No | AQ38: Too expensive | AR38: No | AV38: Yes | BA38: No | BB38: Yes | BC38: No | BD38: No | BE38: No | BF38: No | BG38: Yes | BH38: No | BI38: No | BJ38: No | BK38: No | BL38: Yes | BM38: No | BN38: No | BO38: No | BP38: Yes | BQ38: Yes | BR38: No | BS38: No | BT38: No | BU38: No
A39: South | B39: الجنوب | C39: Ubari | D39: اوباري | E39: Bint Bayya | F39: بنت بية | G39: LY032001 | H39: 26.643809 | I39: 13.653227 | J39: 23 | K39: 2018-12-14 | L39: 100 | N39: 0 | O39: 0 | P39: 0 | Q39: 100 | R39: 100 | S39: No | T39: No | U39: Yes | V39: No | W39: No | X39: No | Y39: No | Z39: No | AA39: No | AB39: Yes | AC39: No | AD39: No | AE39: No | AF39: No | AG39: Yes | AH39: No | AI39: No | AJ39: Yes | AK39: No | AL39: No | AM39: No | AN39: Yes | AO39: No | AP39: No | AQ39: Too expensive | AR39: No | AV39: No | AX39: Insecurity | BA39: Yes | BB39: No | BC39: Yes | BD39: No | BE39: No | BF39: No | BG39: Yes | BH39: No | BI39: No | BJ39: No | BK39: No | BL39: Yes | BM39: No | BN39: Yes | BO39: No | BP39: No | BQ39: No | BR39: No | BS39: No | BT39: No | BU39: No
A40: South | B40: الجنوب | C40: Ubari | D40: اوباري | E40: Ubari | F40: أوباري | G40: LY032003 | H40: 26.589705 | I40: 12.769419 | J40: 23 | K40: 2018-11-17 | L40: 80 | M40: 66 | N40: 0 | O40: 0 | P40: 0 | Q40: 100 | R40: 100 | S40: No | T40: No | U40: Yes | V40: No | W40: No | X40: No | Y40: Yes | Z40: No | AA40: No | AB40: No | AC40: No | AD40: No | AE40: Yes | AF40: No | AG40: No | AH40: No | AI40: No | AJ40: Yes | AK40: No | AL40: No | AM40: No | AN40: No | AO40: Yes | AP40: No | AQ40: Too expensive | AR40: No | AV40: No | BA40: No | BB40: Yes | BC40: Yes | BD40: Yes | BE40: No | BF40: No | BG40: Yes | BH40: No | BI40: No | BJ40: No | BK40: No | BL40: Yes | BM40: No | BN40: No | BO40: No | BP40: No | BQ40: No | BR40: No | BS40: No | BT40: No | BU40: No
A41: South | B41: الجنوب | C41: Wadi Ashshati | D41: وادى الشاطئ | E41: Algurdha Ashshati | F41: القرضة الشاطئ | G41: LY031803 | H41: 27.483096 | I41: 13.969695 | J41: 23 | K41: 2018-12-15 | L41: 100 | M41: 100 | N41: 0 | O41: 0 | P41: 0 | Q41: 83 | R41: 80 | S41: No | T41: No | U41: No | V41: No | W41: Yes | X41: No | Y41: No | Z41: No | AA41: No | AB41: Yes | AC41: No | AD41: No | AE41: No | AF41: No | AG41: Yes | AH41: No | AI41: No | AJ41: Yes | AK41: Yes | AL41: No | AM41: No | AN41: Yes | AO41: No | AP41: Yes | AQ41: Too expensive | AR41: No | AV41: Yes | BA41: No | BB41: Yes | BC41: No | BD41: No | BE41: No | BF41: No | BG41: Yes | BH41: No | BI41: No | BJ41: No | BK41: No | BL41: Yes | BM41: No | BN41: No | BO41: No | BP41: No | BQ41: No | BR41: No | BS41: No | BT41: No | BU41: No
A42: South | B42: الجنوب | C42: Wadi Ashshati | D42: وادى الشاطئ | E42: Brak | F42: براك الشاطئ | G42: LY031801 | H42: 27.55163 | I42: 14.272144 | J42: 23 | K42: 2018-12-10 | L42: 100 | M42: 100 | N42: 0 | O42: 0 | P42: 0 | Q42: 83 | R42: 80 | S42: No | T42: No | U42: Yes | V42: No | W42: No | X42: No | Y42: No | Z42: No | AA42: No | AB42: Yes | AC42: No | AD42: No | AE42: No | AF42: No | AG42: Yes | AH42: No | AI42: No | AJ42: Yes | AK42: No | AL42: Yes | AM42: No | AN42: Yes | AO42: No | AP42: Yes | AQ42: Too expensive | AR42: No | AV42: Yes | BA42: No | BB42: Yes | BC42: No | BD42: No | BE42: No | BF42: No | BG42: Yes | BH42: No | BI42: No | BJ42: No | BK42: No | BL42: Yes | BM42: No | BN42: No | BO42: No | BP42: No | BQ42: Yes | BR42: No | BS42: No | BT42: No | BU42: No
A43: South | B43: الجنوب | C43: Wadi Ashshati | D43: وادى الشاطئ | E43: Edri | F43: إدري الشاطئ | G43: LY031802 | H43: 27.443659 | I43: 13.050793 | J43: 23 | K43: 2018-12-12 | L43: 100 | M43: 100 | N43: 1 | O43: 1 | Q43: 83 | R43: 80 | S43: No | T43: No | U43: No | V43: No | W43: No | X43: No | Y43: No | Z43: No | AA43: No | AB43: Yes | AC43: No | AD43: No | AE43: No | AF43: No | AG43: Yes | AH43: No | AI43: No | AJ43: No | AK43: No | AL43: Yes | AM43: No | AN43: Yes | AO43: No | AP43: Yes | AQ43: Too expensive | AR43: No | AV43: Yes | BA43: No | BB43: Yes | BC43: No | BD43: No | BE43: No | BF43: No | BG43: Yes | BH43: No | BI43: No | BJ43: No | BK43: No | BL43: Yes | BM43: No | BN43: No | BO43: No | BP43: Yes | BQ43: Yes | BR43: No | BS43: No | BT43: No | BU43: No
A44: West | B44: الغرب | C44: Al Jabal Al Gharbi | D44: الجبل الغربي | E44: Al Qalaa | F44: القلعة | G44: LY021604 | H44: 32.048261 | I44: 12.561045 | J44: 23 | K44: 2018-11-18 | L44: 100 | M44: 100 | N44: 0 | O44: 0 | P44: 0 | Q44: 100 | R44: 100 | S44: No | T44: No | U44: No | V44: No | W44: Yes | X44: Yes | Y44: No | Z44: Yes | AA44: Yes | AB44: Yes | AC44: No | AD44: No | AE44: Yes | AF44: No | AG44: No | AH44: No | AI44: No | AJ44: Yes | AK44: No | AL44: No | AM44: No | AN44: No | AO44: Yes | AP44: Yes | AQ44: Too expensive | AR44: No | AV44: Yes | BA44: No | BB44: No | BC44: No | BD44: Yes | BE44: No | BF44: Yes | BG44: Yes | BH44: No | BI44: No | BJ44: No | BK44: No | BL44: No | BM44: No | BN44: No | BO44: No | BP44: Yes | BQ44: No | BR44: No | BS44: No | BT44: No | BU44: No
A45: West | B45: الغرب | C45: Al Jabal Al Gharbi | D45: الجبل الغربي | E45: Alasabaa | F45: الأصابعة | G45: LY021603 | H45: 32.033333 | I45: 12.866667 | J45: 23 | K45: 2018-11-27 | L45: 100 | M45: 100 | N45: 0 | O45: 0 | P45: 0 | Q45: 100 | R45: 100 | S45: No | T45: No | U45: No | V45: No | W45: Yes | X45: Yes | Y45: No | Z45: Yes | AA45: Yes | AB45: Yes | AC45: No | AD45: No | AE45: Yes | AF45: No | AG45: No | AH45: No | AI45: No | AJ45: Yes | AK45: No | AL45: No | AM45: No | AN45: No | AO45: Yes | AP45: Yes | AQ45: Too expensive | AR45: No | AV45: Yes | BA45: No | BB45: Yes | BC45: No | BD45: No | BE45: Yes | BF45: Yes | BG45: Yes | BH45: No | BI45: No | BJ45: No | BK45: No | BL45: No | BM45: No | BN45: Yes | BO45: Yes | BP45: Yes | BQ45: Yes | BR45: No | BS45: No | BT45: No | BU45: No
A46: West | B46: الغرب | C46: Al Jabal Al Gharbi | D46: الجبل الغربي | E46: Arrajban | F46: الرجبان | G46: LY021608 | H46: 31.940334 | I46: 12.091358 | J46: 23 | K46: 2018-11-18 | L46: 100 | M46: 100 | N46: 0 | O46: 0 | P46: 0 | Q46: 100 | R46: 100 | S46: No | T46: No | U46: No | V46: No | W46: Yes | X46: Yes | Y46: No | Z46: Yes | AA46: Yes | AB46: No | AC46: No | AD46: No | AE46: Yes | AF46: No | AG46: No | AH46: No | AI46: No | AJ46: Yes | AK46: No | AL46: No | AM46: No | AN46: No | AO46: Yes | AP46: Yes | AQ46: Too expensive | AR46: No | AV46: Yes | BA46: No | BB46: No | BC46: Yes | BD46: No | BE46: No | BF46: No | BG46: Yes | BH46: No | BI46: No | BJ46: No | BK46: No | BL46: No | BM46: Yes | BN46: No | BO46: No | BP46: No | BQ46: No | BR46: No | BS46: No | BT46: No | BU46: No
A47: West | B47: الغرب | C47: Al Jabal Al Gharbi | D47: الجبل الغربي | E47: Arrayayna | F47: الرياينة | G47: LY021611 | H47: 31.99522 | I47: 12.345642 | J47: 23 | K47: 2018-11-15 | L47: 100 | M47: 100 | N47: 0 | O47: 0 | P47: 0 | Q47: 100 | R47: 100 | S47: No | T47: No | U47: No | V47: No | W47: Yes | X47: Yes | Y47: No | Z47: Yes | AA47: Yes | AB47: No | AC47: No | AD47: No | AE47: Yes | AF47: No | AG47: No | AH47: No | AI47: No | AJ47: Yes | AK47: No | AL47: Yes | AM47: No | AN47: No | AO47: Yes | AP47: Yes | AQ47: Too expensive | AR47: No | AV47: Yes | BA47: No | BB47: Yes | BC47: Yes | BD47: No | BE47: Yes | BF47: No | BG47: Yes | BH47: No | BI47: No | BJ47: No | BK47: No | BL47: No | BM47: No | BN47: Yes | BO47: No | BP47: Yes | BQ47: No | BR47: No | BS47: No | BT47: No | BU47: No
A48: West | B48: الغرب | C48: Al Jabal Al Gharbi | D48: الجبل الغربي | E48: Arrhaibat | F48: الرحيبات | G48: LY021610 | H48: 31.762545 | I48: 11.889616 | J48: 23 | K48: 2018-10-24 | L48: 100 | M48: 100 | N48: 0 | O48: 0 | P48: 0 | Q48: 100 | R48: 100 | S48: No | T48: No | U48: No | V48: No | W48: Yes | X48: Yes | Y48: No | Z48: Yes | AA48: Yes | AB48: No | AC48: No | AD48: No | AE48: Yes | AF48: No | AG48: No | AH48: No | AI48: No | AJ48: Yes | AK48: No | AL48: No | AM48: No | AN48: No | AO48: Yes | AP48: Yes | AQ48: Too expensive | AR48: No | AV48: Yes | BA48: No | BB48: No | BC48: Yes | BD48: No | BE48: Yes | BF48: No | BG48: Yes | BH48: No | BI48: No | BJ48: No | BK48: No | BL48: No | BM48: No | BN48: No | BO48: No | BP48: Yes | BQ48: No | BR48: No | BS48: No | BT48: No | BU48: No
A49: West | B49: الغرب | C49: Al Jabal Al Gharbi | D49: الجبل الغربي | E49: Ashshgega | F49: الشقيقة | G49: LY021612 | H49: 31.650026 | I49: 12.816976 | J49: 23 | K49: 2018-11-17 | L49: 100 | M49: 100 | Q49: 100 | R49: 100 | S49: No | T49: No | U49: No | V49: No | W49: Yes | X49: Yes | Y49: No | Z49: Yes | AA49: Yes | AB49: No | AC49: No | AD49: No | AE49: Yes | AF49: No | AG49: No | AH49: No | AI49: No | AJ49: Yes | AK49: No | AL49: Yes | AM49: No | AN49: No | AO49: Yes | AP49: Yes | AQ49: Too expensive | AR49: No | AV49: Yes | BA49: No | BB49: Yes | BC49: Yes | BD49: No | BE49: Yes | BF49: No | BG49: Yes | BH49: No | BI49: No | BJ49: No | BK49: No | BL49: No | BM49: Yes | BN49: No | BO49: Yes | BP49: No | BQ49: Yes | BR49: No | BS49: Yes | BT49: No | BU49: No
A50: West | B50: الغرب | C50: Al Jabal Al Gharbi | D50: الجبل الغربي | E50: Ashshwayrif | F50: الشويريف | G50: LY021613 | H50: 29.978715 | I50: 14.259944 | J50: 23 | K50: 2018-11-24 | L50: 100 | M50: 100 | N50: 0 | O50: 0 | P50: 0 | Q50: 100 | R50: 100 | S50: No | T50: No | U50: No | V50: No | W50: Yes | X50: Yes | Y50: No | Z50: Yes | AA50: Yes | AB50: No | AC50: No | AD50: No | AE50: Yes | AF50: No | AG50: No | AH50: No | AI50: No | AJ50: Yes | AK50: No | AL50: No | AM50: No | AN50: No | AO50: Yes | AP50: Yes | AQ50: Too expensive | AR50: No | AV50: Yes | BA50: No | BB50: No | BC50: No | BD50: No | BE50: No | BF50: No | BG50: No | BH50: No | BI50: No | BJ50: No | BK50: No | BL50: No | BM50: No | BN50: No | BO50: No | BP50: No | BQ50: No | BR50: No | BS50: No | BT50: No | BU50: No
A51: West | B51: الغرب | C51: Al Jabal Al Gharbi | D51: الجبل الغربي | E51: Azzintan | F51: الزنتان | G51: LY021602 | H51: 31.930361 | I51: 12.248362 | J51: 23 | K51: 2018-11-17 | L51: 100 | M51: 100 | N51: 0 | O51: 0 | P51: 0 | Q51: 100 | R51: 100 | S51: No | T51: No | U51: No | V51: Yes | W51: Yes | X51: Yes | Y51: Yes | Z51: Yes | AA51: Yes | AB51: Yes | AC51: No | AD51: No | AE51: Yes | AF51: No | AG51: Yes | AH51: No | AI51: No | AJ51: Yes | AK51: No | AL51: Yes | AM51: No | AN51: No | AO51: Yes | AP51: Yes | AQ51: Too expensive | AR51: No | AV51: Yes | BA51: No | BB51: Yes | BC51: Yes | BD51: Yes | BE51: Yes | BF51: No | BG51: Yes | BH51: Yes | BI51: Yes | BJ51: No | BK51: No | BL51: Yes | BM51: Yes | BN51: Yes | BO51: Yes | BP51: Yes | BQ51: Yes | BR51: No | BS51: No | BT51: No | BU51: No
A52: West | B52: الغرب | C52: Al Jabal Al Gharbi | D52: الجبل الغربي | E52: Ghiryan | F52: غريان | G52: LY021606 | H52: 32.171587 | I52: 13.021145 | J52: 23 | K52: 2018-11-30 | L52: 100 | M52: 100 | N52: 0 | O52: 0 | P52: 0 | Q52: 100 | R52: 100 | S52: No | T52: No | U52: No | V52: No | W52: No | X52: Yes | Y52: No | Z52: Yes | AA52: Yes | AB52: No | AC52: No | AD52: No | AE52: No | AF52: No | AG52: Yes | AH52: No | AI52: No | AJ52: Yes | AK52: No | AL52: No | AM52: No | AN52: Yes | AO52: Yes | AP52: No | AQ52: Too expensive | AR52: No | AV52: Yes | BA52: No | BB52: No | BC52: No | BD52: Yes | BE52: No | BF52: Yes | BG52: Yes | BH52: No | BI52: No | BJ52: No | BK52: No | BL52: No | BM52: No | BN52: No | BO52: No | BP52: Yes | BQ52: No | BR52: No | BS52: No | BT52: No | BU52: No
A53: West | B53: الغرب | C53: Al Jabal Al Gharbi | D53: الجبل الغربي | E53: Jadu | F53: جادو | G53: LY021609 | H53: 31.953044 | I53: 12.026091 | J53: 23 | K53: 2018-11-28 | L53: 100 | M53: 100 | N53: 0 | O53: 0 | P53: 0 | Q53: 100 | R53: 100 | S53: No | T53: No | U53: No | V53: No | W53: Yes | X53: Yes | Y53: No | Z53: Yes | AA53: Yes | AB53: No | AC53: No | AD53: No | AE53: Yes | AF53: No | AG53: No | AH53: No | AI53: No | AJ53: Yes | AK53: No | AL53: No | AM53: No | AN53: No | AO53: Yes | AP53: Yes | AQ53: Too expensive | AR53: No | AV53: Yes | BA53: No | BB53: No | BC53: Yes | BD53: No | BE53: Yes | BF53: Yes | BG53: Yes | BH53: No | BI53: No | BJ53: No | BK53: No | BL53: No | BM53: No | BN53: No | BO53: No | BP53: Yes | BQ53: No | BR53: No | BS53: No | BT53: No | BU53: No
A54: West | B54: الغرب | C54: Al Jabal Al Gharbi | D54: الجبل الغربي | E54: Kikkla | F54: ككلة | G54: LY021607 | H54: 32.069344 | I54: 12.694156 | J54: 23 | K54: 2018-11-21 | N54: 0 | O54: 2 | P54: 3 | Q54: 100 | S54: Yes | T54: No | U54: No | V54: No | W54: No | X54: No | Y54: No | Z54: Yes | AA54: No | AB54: No | AC54: No | AD54: No | AE54: Yes | AF54: No | AG54: Yes | AH54: No | AI54: No | AJ54: Yes | AK54: No | AL54: No | AM54: No | AN54: Yes | AO54: No | AP54: Yes | AQ54: Too expensive | AR54: No | AV54: Yes | BA54: Yes | BB54: No | BC54: Yes | BD54: No | BE54: No | BF54: No | BG54: Yes | BH54: No | BI54: No | BJ54: No | BK54: No | BL54: No | BM54: No | BN54: No | BO54: No | BP54: No | BQ54: Yes | BR54: No | BS54: No | BT54: No | BU54: No
A55: West | B55: الغرب | C55: Al Jabal Al Gharbi | D55: الجبل الغربي | E55: Nesma | F55: نسمة | G55: LY021601 | H55: 31.391933 | I55: 13.328442 | J55: 23 | K55: 2018-12-03 | L55: 100 | M55: 100 | N55: 0 | O55: 0 | P55: 0 | Q55: 100 | R55: 100 | S55: No | T55: No | U55: No | V55: No | W55: Yes | X55: Yes | Y55: No | Z55: Yes | AA55: Yes | AB55: No | AC55: No | AD55: No | AE55: Yes | AF55: No | AG55: No | AH55: No | AI55: No | AJ55: Yes | AK55: No | AL55: No | AM55: No | AN55: No | AO55: Yes | AP55: Yes | AQ55: Too expensive | AR55: No | AV55: Yes | BA55: Yes | BB55: No | BC55: No | BD55: No | BE55: No | BF55: No | BG55: No | BH55: No | BI55: No | BJ55: No | BK55: Yes | BL55: No | BM55: No | BN55: No | BO55: No | BP55: No | BQ55: No | BR55: No | BS55: No | BT55: No | BU55: Yes
A56: West | B56: الغرب | C56: Al Jabal Al Gharbi | D56: الجبل الغربي | E56: Thaher Aljabal | F56: ظاهر الجبل | G56: LY021614 | H56: 32.012739 | I56: 12.551608 | J56: 23 | K56: 2018-11-21 | L56: 100 | M56: 100 | N56: 0 | O56: 0 | P56: 0 | Q56: 100 | R56: 100 | S56: No | T56: No | U56: No | V56: No | W56: Yes | X56: Yes | Y56: No | Z56: Yes | AA56: Yes | AB56: Yes | AC56: No | AD56: No | AE56: Yes | AF56: No | AG56: No | AH56: No | AI56: No | AJ56: Yes | AK56: No | AL56: No | AM56: No | AN56: No | AO56: Yes | AP56: No | AQ56: Too expensive | AR56: No | AV56: Yes | BA56: No | BB56: Yes | BC56: Yes | BD56: Yes | BE56: No | BF56: No | BG56: Yes | BH56: No | BI56: No | BJ56: No | BK56: No | BL56: No | BM56: No | BN56: No | BO56: No | BP56: Yes | BQ56: Yes | BR56: No | BS56: No | BT56: No | BU56: No
A57: West | B57: الغرب | C57: Al Jabal Al Gharbi | D57: الجبل الغربي | E57: Yefren | F57: يفرن | G57: LY021605 | H57: 32.063839 | I57: 12.527651 | J57: 23 | K57: 2018-12-01 | L57: 100 | M57: 100 | N57: 0 | O57: 0 | P57: 0 | Q57: 100 | R57: 100 | S57: No | T57: No | U57: No | V57: No | W57: No | X57: Yes | Y57: No | Z57: Yes | AA57: No | AB57: Yes | AC57: No | AD57: No | AE57: Yes | AF57: No | AG57: Yes | AH57: Yes | AI57: No | AJ57: Yes | AK57: No | AL57: No | AM57: No | AN57: Yes | AO57: No | AP57: Yes | AQ57: Too expensive | AR57: No | AV57: Yes | BA57: No | BB57: No | BC57: Yes | BD57: No | BE57: No | BF57: Yes | BG57: Yes | BH57: No | BI57: No | BJ57: No | BK57: No | BL57: Yes | BM57: No | BN57: No | BO57: Yes | BP57: Yes | BQ57: Yes | BR57: No | BS57: No | BT57: No | BU57: No
A58: West | B58: الغرب | C58: Aljfara | D58: الجفارة | E58: Al Aziziya | F58: العزيزية | G58: LY021207 | H58: 32.533092 | I58: 13.017624 | J58: 23 | K58: 2018-12-01 | L58: 100 | M58: 100 | N58: 0 | O58: 0 | P58: 0 | Q58: 100 | R58: 100 | S58: No | T58: No | U58: Yes | V58: No | W58: Yes | X58: Yes | Y58: Yes | Z58: Yes | AA58: Yes | AB58: No | AC58: No | AD58: No | AE58: Yes | AF58: No | AG58: No | AH58: No | AI58: No | AJ58: Yes | AK58: No | AL58: No | AM58: No | AN58: No | AO58: Yes | AP58: Yes | AQ58: Too expensive | AR58: No | AV58: Yes | BA58: Yes | BB58: Yes | BC58: No | BD58: No | BE58: Yes | BF58: Yes | BG58: Yes | BH58: No | BI58: No | BJ58: No | BK58: No | BL58: No | BM58: No | BN58: Yes | BO58: Yes | BP58: Yes | BQ58: Yes | BR58: No | BS58: No | BT58: No | BU58: No
A59: West | B59: الغرب | C59: Aljfara | D59: الجفارة | E59: Al Maya | F59: الماية | G59: LY021208 | H59: 32.791864 | I59: 12.885278 | J59: 23 | K59: 2018-11-15 | L59: 85 | M59: 86 | N59: 0 | O59: 3 | P59: 2 | Q59: 80 | R59: 63 | S59: No | T59: No | U59: No | V59: No | W59: No | X59: Yes | Y59: No | Z59: Yes | AA59: No | AB59: No | AC59: No | AD59: No | AE59: Yes | AF59: No | AG59: No | AH59: No | AI59: No | AJ59: Yes | AK59: No | AL59: Yes | AM59: No | AN59: Yes | AO59: Yes | AP59: No | AQ59: Too expensive | AR59: Yes | AV59: Yes | BA59: Yes | BB59: No | BC59: No | BD59: Yes | BE59: No | BF59: No | BG59: Yes | BH59: No | BI59: Yes | BJ59: No | BK59: No | BL59: Yes | BM59: No | BN59: No | BO59: Yes | BP59: No | BQ59: Yes | BR59: No | BS59: No | BT59: No | BU59: No
A60: West | B60: الغرب | C60: Aljfara | D60: الجفارة | E60: Azzahra | F60: الزهراء | G60: LY021209 | H60: 32.677949 | I60: 12.872464 | J60: 23 | K60: 2018-11-27 | L60: 80 | M60: 20 | N60: 0 | O60: 5 | P60: 0 | Q60: 100 | R60: 100 | S60: No | T60: No | U60: Yes | V60: Yes | W60: No | X60: Yes | Y60: Yes | Z60: Yes | AA60: Yes | AB60: No | AC60: No | AD60: No | AE60: Yes | AF60: No | AG60: No | AH60: Yes | AI60: No | AJ60: Yes | AK60: No | AL60: Yes | AM60: No | AN60: No | AO60: Yes | AP60: Yes | AQ60: Too expensive | AR60: No | AV60: No | AX60: Insecurity | BA60: Yes | BB60: No | BC60: No | BD60: Yes | BE60: Yes | BF60: No | BG60: Yes | BH60: No | BI60: No | BJ60: Yes | BK60: No | BL60: No | BM60: No | BN60: Yes | BO60: No | BP60: No | BQ60: No | BR60: No | BS60: Yes | BT60: No | BU60: No
A61: West | B61: الغرب | C61: Aljfara | D61: الجفارة | E61: Espeaa | F61: السبيعة | G61: LY021204 | H61: 32.536987 | I61: 13.176802 | J61: 23 | K61: 2018-11-18 | L61: 100 | M61: 100 | N61: 0 | O61: 0 | P61: 0 | Q61: 100 | R61: 100 | S61: No | T61: No | U61: No | V61: No | W61: Yes | X61: Yes | Y61: No | Z61: Yes | AA61: Yes | AB61: No | AC61: No | AD61: No | AE61: Yes | AF61: No | AG61: No | AH61: No | AI61: No | AJ61: Yes | AK61: No | AL61: No | AM61: No | AN61: No | AO61: Yes | AP61: Yes | AQ61: Too expensive | AR61: No | AV61: Yes | BA61: No | BB61: Yes | BC61: Yes | BD61: No | BE61: Yes | BF61: No | BG61: Yes | BH61: No | BI61: No | BJ61: No | BK61: No | BL61: No | BM61: No | BN61: Yes | BO61: Yes | BP61: Yes | BQ61: Yes | BR61: No | BS61: No | BT61: No | BU61: No
A62: West | B62: الغرب | C62: Aljfara | D62: الجفارة | E62: Janzour | F62: جنزور | G62: LY021206 | H62: 32.825593 | I62: 13.026067 | J62: 23 | K62: 2018-12-07 | L62: 100 | M62: 100 | N62: 1 | O62: 0 | P62: 0 | Q62: 100 | R62: 100 | S62: No | T62: No | U62: Yes | V62: No | W62: Yes | X62: No | Y62: Yes | Z62: Yes | AA62: Yes | AB62: Yes | AC62: No | AD62: No | AE62: Yes | AF62: No | AG62: Yes | AH62: No | AI62: No | AJ62: Yes | AK62: No | AL62: Yes | AM62: No | AN62: Yes | AO62: Yes | AP62: Yes | AQ62: Too expensive | AR62: No | AV62: Yes | BA62: No | BB62: No | BC62: Yes | BD62: Yes | BE62: Yes | BF62: No | BG62: Yes | BH62: No | BI62: No | BJ62: Yes | BK62: No | BL62: Yes | BM62: No | BN62: Yes | BO62: No | BP62: Yes | BQ62: Yes | BR62: No | BS62: No | BT62: No | BU62: Yes
A63: West | B63: الغرب | C63: Aljfara | D63: الجفارة | E63: Qasr Bin Ghasheer | F63: قصر بن غشير | G63: LY021203 | H63: 32.681752 | I63: 13.182801 | J63: 23 | K63: 2018-12-12 | L63: 100 | M63: 100 | N63: 0 | O63: 0 | P63: 0 | Q63: 100 | R63: 100 | S63: No | T63: No | U63: Yes | V63: No | W63: Yes | X63: Yes | Y63: Yes | Z63: Yes | AA63: Yes | AB63: No | AC63: No | AD63: No | AE63: Yes | AF63: No | AG63: Yes | AH63: No | AI63: No | AJ63: Yes | AK63: No | AL63: No | AM63: No | AN63: No | AO63: Yes | AP63: Yes | AQ63: Too expensive | AR63: No | AV63: Yes | BA63: No | BB63: Yes | BC63: Yes | BD63: No | BE63: Yes | BF63: No | BG63: Yes | BH63: No | BI63: No | BJ63: No | BK63: No | BL63: No | BM63: No | BN63: Yes | BO63: Yes | BP63: Yes | BQ63: Yes | BR63: No | BS63: No | BT63: No | BU63: No
A64: West | B64: الغرب | C64: Aljfara | D64: الجفارة | E64: Sidi Assayeh | F64: سيدي السايح | G64: LY021201 | H64: 32.561111 | I64: 13.253611 | J64: 23 | K64: 2018-11-22 | L64: 100 | M64: 100 | N64: 0 | O64: 0 | P64: 0 | Q64: 100 | R64: 100 | S64: No | T64: Yes | U64: Yes | V64: No | W64: Yes | X64: No | Y64: No | Z64: No | AA64: No | AB64: Yes | AC64: No | AD64: No | AE64: No | AF64: No | AG64: Yes | AH64: No | AI64: No | AJ64: Yes | AK64: No | AL64: No | AM64: No | AN64: No | AO64: No | AP64: Yes | AQ64: Too expensive | AR64: No | AV64: Yes | BA64: Yes | BB64: No | BC64: No | BD64: Yes | BE64: Yes | BF64: No | BG64: Yes | BH64: No | BI64: No | BJ64: No | BK64: No | BL64: Yes | BM64: No | BN64: Yes | BO64: No | BP64: Yes | BQ64: No | BR64: No | BS64: No | BT64: No | BU64: No
A65: West | B65: الغرب | C65: Aljfara | D65: الجفارة | E65: Suq Alkhamees | F65: سوق الخميس | G65: LY021202 | H65: 32.527664 | I65: 13.219778 | J65: 23 | K65: 2018-12-02 | L65: 100 | M65: 100 | N65: 0 | O65: 0 | P65: 0 | Q65: 100 | R65: 100 | S65: No | T65: No | U65: No | V65: No | W65: Yes | X65: No | Y65: No | Z65: Yes | AA65: Yes | AB65: Yes | AC65: No | AD65: No | AE65: Yes | AF65: No | AG65: No | AH65: No | AI65: No | AJ65: Yes | AK65: No | AL65: No | AM65: No | AN65: No | AO65: Yes | AP65: Yes | AQ65: Too expensive | AR65: No | AV65: Yes | BA65: No | BB65: Yes | BC65: No | BD65: No | BE65: Yes | BF65: Yes | BG65: Yes | BH65: No | BI65: No | BJ65: No | BK65: No | BL65: No | BM65: No | BN65: Yes | BO65: Yes | BP65: Yes | BQ65: Yes | BR65: No | BS65: No | BT65: No | BU65: No
A66: West | B66: الغرب | C66: Aljfara | D66: الجفارة | E66: Swani Bin Adam | F66: سواني بن آدم | G66: LY021205 | H66: 32.712525 | I66: 13.067253 | J66: 23 | K66: 2018-11-24 | L66: 100 | M66: 100 | N66: 0 | O66: 0 | P66: 0 | Q66: 100 | R66: 0 | S66: No | T66: No | U66: Yes | V66: No | W66: Yes | X66: Yes | Y66: Yes | Z66: Yes | AA66: Yes | AB66: No | AC66: No | AD66: No | AE66: Yes | AF66: No | AG66: Yes | AH66: No | AI66: No | AJ66: Yes | AK66: No | AL66: No | AM66: No | AN66: No | AO66: Yes | AP66: Yes | AQ66: Too expensive | AR66: No | AV66: Yes | BA66: No | BB66: Yes | BC66: Yes | BD66: No | BE66: Yes | BF66: No | BG66: Yes | BH66: No | BI66: Yes | BJ66: No | BK66: No | BL66: No | BM66: No | BN66: Yes | BO66: No | BP66: Yes | BQ66: Yes | BR66: No | BS66: No | BT66: No | BU66: No
A67: West | B67: الغرب | C67: Almargeb | D67: المرقب | E67: Alkhums | F67: الخمس | G67: LY021001 | H67: 32.652183 | I67: 14.26801 | J67: 23 | K67: 2018-11-29 | L67: 100 | M67: 100 | N67: 0 | O67: 0 | P67: 0 | Q67: 100 | R67: 100 | S67: No | T67: No | U67: Yes | V67: No | W67: Yes | X67: Yes | Y67: Yes | Z67: No | AA67: Yes | AB67: No | AC67: No | AD67: No | AE67: No | AF67: No | AG67: No | AH67: No | AI67: Yes | AJ67: Yes | AK67: Yes | AL67: Yes | AM67: No | AN67: Yes | AO67: Yes | AP67: Yes | AQ67: Too expensive | AR67: No | AV67: Yes | BA67: Yes | BB67: Yes | BC67: Yes | BD67: No | BE67: Yes | BF67: Yes | BG67: Yes | BH67: No | BI67: No | BJ67: No | BK67: No | BL67: Yes | BM67: No | BN67: Yes | BO67: Yes | BP67: Yes | BQ67: Yes | BR67: No | BS67: No | BT67: No | BU67: No
A68: West | B68: الغرب | C68: Almargeb | D68: المرقب | E68: Garabolli | F68: القره بولي | G68: LY021004 | H68: 32.742727 | I68: 13.712796 | J68: 23 | K68: 2018-11-14 | L68: 93 | M68: 100 | N68: 0 | O68: 0 | P68: 0 | Q68: 100 | S68: No | T68: No | U68: Yes | V68: No | W68: No | X68: Yes | Y68: Yes | Z68: No | AA68: No | AB68: No | AC68: No | AD68: No | AE68: No | AF68: No | AG68: No | AH68: No | AI68: Yes | AJ68: Yes | AK68: No | AL68: No | AM68: No | AN68: No | AO68: No | AP68: Yes | AQ68: Quantity available in shops / market insufficient | AR68: No | AV68: Yes | BA68: Yes | BB68: No | BC68: No | BD68: No | BE68: No | BF68: No | BG68: Yes | BH68: No | BI68: No | BJ68: No | BK68: No | BL68: Yes | BM68: Yes | BN68: No | BO68: No | BP68: No | BQ68: No | BR68: No | BS68: No | BT68: No | BU68: No
A69: West | B69: الغرب | C69: Almargeb | D69: المرقب | E69: Msallata | F69: مسلاتة | G69: LY021002 | H69: 32.579922 | I69: 14.041737 | J69: 23 | K69: 2018-11-30 | L69: 100 | M69: 100 | N69: 0 | O69: 0 | P69: 0 | Q69: 89 | R69: 100 | S69: No | T69: No | U69: Yes | V69: No | W69: Yes | X69: Yes | Y69: Yes | Z69: No | AA69: Yes | AB69: No | AC69: No | AD69: No | AE69: No | AF69: No | AG69: No | AH69: No | AI69: Yes | AJ69: Yes | AK69: Yes | AL69: Yes | AM69: No | AN69: Yes | AO69: Yes | AP69: Yes | AQ69: Too expensive | AR69: No | AV69: Yes | BA69: Yes | BB69: Yes | BC69: Yes | BD69: No | BE69: Yes | BF69: Yes | BG69: Yes | BH69: No | BI69: Yes | BJ69: No | BK69: No | BL69: Yes | BM69: Yes | BN69: Yes | BO69: Yes | BP69: Yes | BQ69: Yes | BR69: No | BS69: No | BT69: No | BU69: No
A70: West | B70: الغرب | C70: Almargeb | D70: المرقب | E70: Qasr Akhyar | F70: قصر الأخيار | G70: LY021003 | H70: 32.696667 | I70: 13.846111 | J70: 23 | K70: 2018-11-28 | L70: 100 | M70: 100 | N70: 0 | O70: 4 | P70: 0 | Q70: 100 | R70: 100 | S70: No | T70: No | U70: No | V70: No | W70: Yes | X70: No | Y70: No | Z70: No | AA70: No | AB70: Yes | AC70: No | AD70: No | AE70: Yes | AF70: No | AG70: No | AH70: No | AI70: No | AJ70: Yes | AK70: No | AL70: No | AM70: No | AN70: No | AO70: Yes | AP70: Yes | AQ70: Too expensive | AR70: No | AV70: No | AX70: Insecurity | BA70: No | BB70: No | BC70: Yes | BD70: No | BE70: Yes | BF70: No | BG70: Yes | BH70: No | BI70: No | BJ70: No | BK70: No | BL70: Yes | BM70: No | BN70: No | BO70: No | BP70: No | BQ70: Yes | BR70: No | BS70: Yes | BT70: No | BU70: No
A71: West | B71: الغرب | C71: Almargeb | D71: المرقب | E71: Tarhuna | F71: ترهونة | G71: LY021005 | H71: 32.434041 | I71: 13.633147 | J71: 23 | K71: 2018-12-18 | L71: 80 | M71: 20 | N71: 0 | O71: 2 | P71: 3 | Q71: 100 | R71: 100 | S71: No | T71: No | U71: No | V71: No | W71: Yes | X71: No | Y71: No | Z71: Yes | AA71: No | AB71: No | AC71: No | AD71: No | AE71: Yes | AF71: No | AG71: No | AH71: No | AI71: No | AJ71: Yes | AK71: No | AL71: No | AM71: No | AN71: No | AO71: No | AP71: Yes | AQ71: Too expensive | AR71: Yes | AS71: Suk al ahad | AT71: Abyar maji | AV71: Yes | BA71: Yes | BB71: Yes | BC71: Yes | BD71: Yes | BE71: Yes | BF71: Yes | BG71: Yes | BH71: No | BI71: No | BJ71: No | BK71: No | BL71: Yes | BM71: No | BN71: Yes | BO71: No | BP71: No | BQ71: Yes | BR71: No | BS71: Yes | BT71: Yes | BU71: No
A72: West | B72: الغرب | C72: Azzawya | D72: الزاوية | E72: Azzawya | F72: الزاوية | G72: LY021301 | H72: 32.762641 | I72: 12.726479 | J72: 23 | K72: 2018-11-27 | L72: 84 | M72: 87 | N72: 0 | O72: 80 | P72: 14 | Q72: 100 | R72: 100 | S72: No | T72: No | U72: Yes | V72: No | W72: No | X72: No | Y72: Yes | Z72: Yes | AA72: Yes | AB72: No | AC72: No | AD72: No | AE72: Yes | AF72: No | AG72: No | AH72: No | AI72: No | AJ72: No | AK72: No | AL72: Yes | AM72: No | AN72: Yes | AO72: Yes | AP72: Yes | AQ72: Quantity available in shops / market insufficient | AR72: No | AV72: Yes | BA72: No | BB72: Yes | BC72: Yes | BD72: No | BE72: Yes | BF72: Yes | BG72: Yes | BH72: No | BI72: No | BJ72: Yes | BK72: No | BL72: No | BM72: No | BN72: No | BO72: Yes | BP72: Yes | BQ72: Yes | BR72: No | BS72: Yes | BT72: No | BU72: No
A73: West | B73: الغرب | C73: Azzawya | D73: الزاوية | E73: Gharb Azzawya | F73: غرب الزاوية | G73: LY021303 | H73: 32.76716 | I73: 12.626164 | J73: 23 | K73: 2018-11-29 | L73: 100 | M73: 100 | N73: 2 | O73: 0 | P73: 0 | Q73: 75 | R73: 100 | T73: No | U73: No | V73: No | W73: Yes | X73: No | Y73: No | Z73: Yes | AA73: Yes | AB73: No | AC73: No | AD73: No | AE73: Yes | AF73: No | AG73: Yes | AH73: No | AI73: No | AJ73: Yes | AK73: No | AL73: No | AM73: No | AN73: No | AO73: Yes | AP73: Yes | AQ73: Too expensive | AR73: No | AV73: Yes | BA73: Yes | BB73: Yes | BC73: Yes | BD73: No | BE73: No | BF73: No | BG73: Yes | BH73: No | BI73: No | BJ73: No | BK73: No | BL73: No | BM73: No | BN73: No | BO73: No | BP73: Yes | BQ73: Yes | BR73: No | BS73: No | BT73: No | BU73: No
A74: West | B74: الغرب | C74: Azzawya | D74: الزاوية | E74: Janoub Azzawya | F74: الزاوية جنوب | G74: LY021304 | H74: 32.3125 | I74: 12.569722 | J74: 23 | K74: 2018-12-18 | L74: 100 | M74: 100 | N74: 0 | O74: 5 | P74: 0 | Q74: 100 | R74: 100 | S74: No | T74: No | U74: No | V74: No | W74: Yes | X74: Yes | Y74: No | Z74: No | AA74: No | AB74: Yes | AC74: No | AD74: No | AE74: Yes | AF74: No | AG74: Yes | AH74: No | AI74: No | AJ74: Yes | AK74: No | AL74: No | AM74: No | AN74: Yes | AO74: Yes | AP74: No | AQ74: Too expensive | AR74: Yes | AS74: Bir al-Ghanam el charquia | AV74: No | AY74: threat/presence of explosive hazards | BA74: No | BB74: Yes | BC74: No | BD74: Yes | BE74: No | BF74: No | BG74: Yes | BH74: No | BI74: No | BJ74: No | BK74: No | BL74: Yes | BM74: No | BN74: No | BO74: Yes | BP74: No | BQ74: No | BR74: No | BS74: Yes | BT74: Yes | BU74: No
A75: West | B75: الغرب | C75: Azzawya | D75: الزاوية | E75: Surman | F75: صرمان | G75: LY021302 | H75: 32.757598 | I75: 12.572621 | J75: 23 | K75: 2018-11-23 | L75: 100 | M75: 70 | N75: 0 | O75: 0 | P75: 0 | Q75: 100 | R75: 100 | S75: No | T75: No | U75: No | V75: No | W75: No | X75: No | Y75: No | Z75: Yes | AA75: No | AB75: No | AC75: No | AD75: No | AE75: No | AF75: No | AG75: Yes | AH75: No | AI75: No | AJ75: Yes | AK75: No | AL75: No | AM75: No | AN75: No | AO75: Yes | AP75: No | AQ75: Too expensive | AR75: No | AV75: Yes | BA75: No | BB75: No | BC75: Yes | BD75: No | BE75: Yes | BF75: No | BG75: Yes | BH75: No | BI75: No | BJ75: No | BK75: No | BL75: No | BM75: No | BN75: Yes | BO75: No | BP75: Yes | BQ75: Yes | BR75: No | BS75: No | BT75: No | BU75: Yes
A76: West | B76: الغرب | C76: Misrata | D76: مصراته | E76: Abu Qurayn | F76: ابو قرين | G76: LY021403 | H76: 31.446054 | I76: 15.254151 | J76: 23 | K76: 2018-12-22 | L76: 100 | N76: 0 | O76: 0 | P76: 0 | Q76: 100 | R76: 100 | S76: No | T76: No | U76: Yes | V76: No | W76: Yes | X76: Yes | Y76: Yes | Z76: Yes | AA76: No | AB76: No | AC76: No | AD76: No | AE76: Yes | AF76: No | AG76: Yes | AH76: No | AI76: No | AJ76: Yes | AK76: No | AL76: No | AM76: No | AN76: Yes | AO76: No | AP76: Yes | AQ76: Too expensive | AR76: Yes | AV76: Yes | BA76: No | BB76: Yes | BC76: No | BD76: No | BE76: No | BF76: No | BG76: Yes | BH76: No | BI76: No | BJ76: No | BK76: No | BL76: No | BM76: No | BN76: No | BO76: Yes | BP76: Yes | BQ76: No | BR76: No | BS76: Yes | BT76: No | BU76: No
A77: West | B77: الغرب | C77: Misrata | D77: مصراته | E77: Bani Waleed | F77: بني وليد | G77: LY021404 | H77: 31.756969 | I77: 13.995051 | J77: 23 | K77: 2018-12-23 | L77: 100 | M77: 100 | N77: 0 | O77: 0 | P77: 0 | Q77: 100 | R77: 90 | S77: Yes | T77: No | U77: Yes | V77: Yes | W77: No | X77: Yes | Y77: Yes | Z77: Yes | AA77: No | AB77: No | AC77: No | AD77: No | AE77: Yes | AF77: No | AG77: Yes | AH77: No | AI77: No | AJ77: Yes | AK77: No | AL77: Yes | AM77: No | AN77: No | AO77: Yes | AP77: Yes | AQ77: Too expensive | AR77: Yes | AS77: Mimun | AT77: Suf al jin | AV77: Yes | BA77: No | BB77: No | BC77: Yes | BD77: Yes | BE77: No | BF77: Yes | BG77: Yes | BH77: No | BI77: No | BJ77: No | BK77: No | BL77: Yes | BM77: Yes | BN77: No | BO77: No | BP77: Yes | BQ77: No | BR77: No | BS77: No | BT77: No | BU77: No
A78: West | B78: الغرب | C78: Misrata | D78: مصراته | E78: Misrata | F78: مصراتة | G78: LY021401 | H78: 32.261932 | I78: 15.079737 | J78: 23 | K78: 2018-11-23 | L78: 90 | M78: 100 | N78: 1 | O78: 14 | P78: 5 | Q78: 20 | R78: 100 | S78: No | T78: No | U78: No | V78: No | W78: Yes | X78: Yes | Y78: Yes | Z78: Yes | AA78: No | AB78: Yes | AC78: No | AD78: No | AE78: Yes | AF78: No | AG78: No | AH78: No | AI78: No | AJ78: Yes | AK78: No | AL78: No | AM78: No | AN78: No | AO78: No | AP78: Yes | AQ78: Too expensive | AR78: Yes | AV78: Yes | BA78: No | BB78: Yes | BC78: No | BD78: No | BE78: No | BF78: No | BG78: Yes | BH78: No | BI78: No | BJ78: No | BK78: No | BL78: Yes | BM78: Yes | BN78: No | BO78: No | BP78: Yes | BQ78: No | BR78: No | BS78: No | BT78: No | BU78: No
A79: West | B79: الغرب | C79: Misrata | D79: مصراته | E79: Zliten | F79: زليتن | G79: LY021402 | H79: 32.467562 | I79: 14.56564 | J79: 23 | K79: 2018-12-14 | L79: 100 | M79: 100 | N79: 0 | O79: 10 | P79: 0 | Q79: 71 | R79: 90 | S79: No | T79: No | U79: Yes | V79: No | W79: No | X79: No | Y79: No | Z79: No | AA79: No | AB79: Yes | AC79: No | AD79: No | AE79: Yes | AF79: No | AG79: No | AH79: No | AI79: No | AJ79: Yes | AK79: No | AL79: Yes | AM79: No | AN79: No | AO79: Yes | AP79: Yes | AQ79: Too expensive | AR79: No | AV79: No | AX79: Insecurity | BA79: Yes | BB79: No | BC79: Yes | BD79: No | BE79: Yes | BF79: No | BG79: Yes | BH79: No | BI79: No | BJ79: No | BK79: No | BL79: Yes | BM79: No | BN79: No | BO79: No | BP79: No | BQ79: Yes | BR79: No | BS79: Yes | BT79: No | BU79: No
A80: West | B80: الغرب | C80: Nalut | D80: نالوت | E80: Alharaba | F80: الحرابة | G80: LY020902 | H80: 31.773889 | I80: 11.543611 | J80: 23 | K80: 2018-11-28 | L80: 100 | M80: 100 | N80: 0 | O80: 0 | P80: 0 | Q80: 100 | R80: 100 | S80: No | T80: No | U80: No | V80: No | W80: Yes | X80: Yes | Y80: No | Z80: Yes | AA80: Yes | AB80: No | AC80: No | AD80: No | AE80: Yes | AF80: No | AG80: Yes | AH80: No | AI80: No | AJ80: Yes | AK80: No | AL80: No | AM80: No | AN80: No | AO80: Yes | AP80: Yes | AQ80: Too expensive | AR80: No | AV80: Yes | BA80: No | BB80: No | BC80: No | BD80: No | BE80: No | BF80: No | BG80: No | BH80: No | BI80: No | BJ80: No | BK80: Yes | BL80: No | BM80: No | BN80: No | BO80: No | BP80: No | BQ80: No | BR80: No | BS80: No | BT80: No | BU80: No
A81: West | B81: الغرب | C81: Nalut | D81: نالوت | E81: Alhawamid | F81: الحوامد | G81: LY020904 | H81: 31.975496 | I81: 11.162235 | J81: 23 | K81: 2018-11-21 | L81: 100 | M81: 100 | Q81: 100 | R81: 100 | S81: No | T81: No | U81: No | V81: No | W81: Yes | X81: Yes | Y81: No | Z81: Yes | AA81: Yes | AB81: No | AC81: No | AD81: No | AE81: Yes | AF81: No | AG81: No | AH81: No | AI81: No | AJ81: Yes | AK81: No | AL81: No | AM81: No | AN81: No | AO81: Yes | AP81: Yes | AQ81: Too expensive | AR81: No | AV81: Yes | BA81: No | BB81: No | BC81: No | BD81: No | BE81: No | BF81: No | BG81: No | BH81: No | BI81: No | BJ81: No | BK81: No | BL81: No | BM81: No | BN81: No | BO81: No | BP81: No | BQ81: No | BR81: No | BS81: No | BT81: No | BU81: No
A82: West | B82: الغرب | C82: Nalut | D82: نالوت | E82: Baten Aljabal | F82: باطن الجبل | G82: LY020908 | H82: 32.017397 | I82: 11.536746 | J82: 23 | K82: 2018-12-10 | L82: 100 | M82: 100 | N82: 0 | O82: 0 | P82: 0 | Q82: 100 | R82: 100 | S82: No | T82: No | U82: No | V82: No | W82: Yes | X82: Yes | Y82: No | Z82: Yes | AA82: Yes | AB82: No | AC82: No | AD82: No | AE82: Yes | AF82: No | AG82: No | AH82: No | AI82: No | AJ82: Yes | AK82: No | AL82: Yes | AM82: No | AN82: No | AO82: Yes | AP82: Yes | AQ82: Too expensive | AR82: No | AV82: Yes | BA82: No | BB82: Yes | BC82: Yes | BD82: No | BE82: Yes | BF82: No | BG82: Yes | BH82: No | BI82: Yes | BJ82: No | BK82: No | BL82: Yes | BM82: Yes | BN82: No | BO82: Yes | BP82: Yes | BQ82: Yes | BR82: No | BS82: No | BT82: No | BU82: No
A83: West | B83: الغرب | C83: Nalut | D83: نالوت | E83: Daraj | F83: درج | G83: LY020907 | H83: 30.163949 | I83: 10.458736 | J83: 23 | K83: 2018-11-23 | L83: 100 | M83: 100 | N83: 0 | O83: 0 | P83: 0 | Q83: 100 | R83: 100 | S83: No | T83: No | U83: No | V83: No | W83: Yes | X83: No | Y83: No | Z83: Yes | AA83: No | AB83: No | AC83: No | AD83: No | AE83: Yes | AF83: No | AG83: No | AH83: No | AI83: No | AJ83: Yes | AK83: No | AL83: No | AM83: No | AN83: No | AO83: Yes | AP83: Yes | AQ83: Too expensive | AR83: No | AV83: Yes | BA83: Yes | BB83: Yes | BC83: Yes | BD83: Yes | BE83: Yes | BF83: No | BG83: Yes | BH83: Yes | BI83: No | BJ83: No | BK83: No | BL83: Yes | BM83: No | BN83: No | BO83: Yes | BP83: Yes | BQ83: Yes | BR83: No | BS83: No | BT83: No | BU83: No
A84: West | B84: الغرب | C84: Nalut | D84: نالوت | E84: Ghadamis | F84: غدامس | G84: LY020901 | H84: 30.125842 | I84: 9.490066 | J84: 23 | K84: 2018-12-03 | L84: 100 | N84: 0 | O84: 0 | P84: 0 | Q84: 100 | R84: 100 | S84: No | T84: No | U84: No | V84: No | W84: Yes | X84: Yes | Y84: No | Z84: Yes | AA84: Yes | AB84: No | AC84: No | AD84: No | AE84: Yes | AF84: No | AG84: No | AH84: No | AI84: No | AJ84: Yes | AK84: No | AL84: Yes | AM84: No | AN84: No | AO84: Yes | AP84: Yes | AQ84: Too expensive | AR84: No | AV84: Yes | BA84: No | BB84: Yes | BC84: Yes | BD84: No | BE84: Yes | BF84: Yes | BG84: Yes | BH84: No | BI84: No | BJ84: No | BK84: No | BL84: No | BM84: No | BN84: Yes | BO84: Yes | BP84: Yes | BQ84: Yes | BR84: No | BS84: No | BT84: No | BU84: No
A85: West | B85: الغرب | C85: Nalut | D85: نالوت | E85: Kabaw | F85: كاباو | G85: LY020903 | H85: 31.846336 | I85: 11.340648 | J85: 23 | K85: 2018-12-08 | L85: 90 | N85: 0 | O85: 2 | P85: 0 | Q85: 100 | R85: 100 | S85: No | T85: No | U85: No | V85: No | W85: No | X85: Yes | Y85: Yes | Z85: Yes | AA85: No | AB85: No | AC85: No | AD85: No | AE85: Yes | AF85: No | AG85: No | AH85: No | AI85: No | AJ85: Yes | AK85: No | AL85: No | AM85: No | AN85: No | AO85: Yes | AP85: No | AQ85: Too expensive | AR85: No | AV85: Yes | BA85: No | BB85: Yes | BC85: Yes | BD85: No | BE85: No | BF85: No | BG85: Yes | BH85: No | BI85: No | BJ85: No | BK85: No | BL85: No | BM85: No | BN85: No | BO85: Yes | BP85: Yes | BQ85: No | BR85: No | BS85: No | BT85: No | BU85: No
A86: West | B86: الغرب | C86: Nalut | D86: نالوت | E86: Nalut | F86: نالوت | G86: LY020905 | H86: 31.864227 | I86: 10.982983 | J86: 23 | K86: 2018-12-02 | L86: 100 | N86: 0 | O86: 4 | P86: 0 | R86: 100 | S86: No | T86: No | U86: No | V86: No | W86: Yes | X86: Yes | Y86: No | Z86: Yes | AA86: No | AB86: No | AC86: No | AD86: No | AE86: Yes | AF86: No | AG86: No | AH86: No | AI86: No | AJ86: Yes | AK86: No | AL86: No | AM86: No | AN86: No | AO86: Yes | AP86: No | AQ86: Too expensive | AR86: No | AV86: Yes | BA86: No | BB86: Yes | BC86: Yes | BD86: No | BE86: No | BF86: No | BG86: Yes | BH86: No | BI86: No | BJ86: No | BK86: No | BL86: No | BM86: No | BN86: No | BO86: Yes | BP86: Yes | BQ86: No | BR86: No | BS86: No | BT86: No | BU86: No
A87: West | B87: الغرب | C87: Nalut | D87: نالوت | E87: Wazin | F87: وازن | G87: LY020906 | H87: 31.945646 | I87: 10.669785 | J87: 23 | K87: 2018-11-20 | L87: 100 | M87: 100 | N87: 0 | O87: 0 | P87: 0 | Q87: 100 | R87: 100 | S87: No | T87: No | U87: No | V87: No | W87: Yes | X87: Yes | Y87: No | Z87: No | AA87: Yes | AB87: No | AC87: No | AD87: No | AE87: Yes | AF87: No | AG87: No | AH87: No | AI87: No | AJ87: Yes | AK87: No | AL87: No | AM87: No | AN87: No | AO87: Yes | AP87: Yes | AQ87: Too expensive | AR87: No | AV87: Yes | BA87: Yes | BB87: No | BC87: No | BD87: No | BE87: No | BF87: No | BG87: No | BH87: No | BI87: No | BJ87: No | BK87: Yes | BL87: No | BM87: No | BN87: No | BO87: No | BP87: No | BQ87: No | BR87: No | BS87: No | BT87: No | BU87: Yes
A88: West | B88: الغرب | C88: Sirt | D88: سرت | E88: Hrawa | F88: هراوة | G88: LY020802 | H88: 31.05425 | I88: 17.280138 | J88: 23 | K88: 2018-11-18 | L88: 100 | M88: 100 | N88: 0 | O88: 0 | P88: 0 | Q88: 100 | R88: 100 | S88: No | T88: No | U88: No | V88: Yes | W88: No | X88: No | Y88: Yes | Z88: Yes | AA88: No | AB88: No | AC88: No | AD88: No | AE88: No | AF88: No | AG88: No | AH88: No | AI88: Yes | AJ88: Yes | AK88: No | AL88: Yes | AM88: No | AN88: No | AO88: No | AP88: Yes | AQ88: Too expensive | AR88: Yes | AV88: Yes | BA88: No | BB88: Yes | BC88: Yes | BD88: No | BE88: No | BF88: Yes | BG88: Yes | BH88: No | BI88: No | BJ88: No | BK88: No | BL88: Yes | BM88: No | BN88: No | BO88: Yes | BP88: Yes | BQ88: No | BR88: No | BS88: No | BT88: No | BU88: No
A89: West | B89: الغرب | C89: Sirt | D89: سرت | E89: Khaleej Assidra | F89: خليج السدرة | G89: LY020801 | H89: 30.631994 | I89: 18.349293 | J89: 23 | K89: 2018-12-10 | L89: 100 | M89: 100 | Q89: 100 | T89: No | U89: No | V89: No | W89: Yes | X89: Yes | Y89: Yes | Z89: No | AA89: No | AB89: No | AC89: No | AD89: No | AE89: No | AF89: No | AG89: No | AH89: No | AI89: Yes | AJ89: Yes | AK89: No | AL89: No | AM89: No | AN89: Yes | AO89: No | AP89: No | AQ89: Too expensive | AR89: No | AV89: Yes | BA89: No | BB89: No | BC89: Yes | BD89: Yes | BE89: No | BF89: No | BG89: Yes | BH89: No | BI89: No | BJ89: No | BK89: No | BL89: No | BM89: Yes | BN89: No | BO89: No | BP89: Yes | BQ89: No | BR89: No | BS89: No | BT89: No | BU89: No
A90: West | B90: الغرب | C90: Sirt | D90: سرت | E90: Sirt | F90: سرت | G90: LY020803 | H90: 31.205314 | I90: 16.588936 | J90: 23 | K90: 2018-12-19 | L90: 92 | M90: 100 | N90: 0 | O90: 15 | P90: 3 | Q90: 100 | S90: No | T90: No | U90: No | V90: No | W90: Yes | X90: Yes | Y90: Yes | Z90: No | AA90: No | AB90: No | AC90: No | AD90: No | AE90: No | AF90: No | AG90: No | AH90: No | AI90: Yes | AJ90: Yes | AK90: No | AL90: No | AM90: No | AN90: No | AO90: No | AP90: Yes | AQ90: Too expensive | AR90: Yes | AS90: El Manara | AT90: Al Jazeera | AU90: El zaafaran | AV90: Yes | BA90: No | BB90: Yes | BC90: Yes | BD90: No | BE90: No | BF90: Yes | BG90: Yes | BH90: No | BI90: No | BJ90: No | BK90: No | BL90: Yes | BM90: No | BN90: No | BO90: Yes | BP90: Yes | BQ90: No | BR90: No | BS90: No | BT90: No | BU90: No
A91: West | B91: الغرب | C91: Tripoli | D91: طرابلس | E91: Abusliem | F91: ابوسليم | G91: LY021105 | H91: 32.851797 | I91: 13.167642 | J91: 23 | K91: 2018-12-03 | L91: 100 | M91: 100 | N91: 0 | O91: 0 | P91: 0 | Q91: 100 | R91: 100 | S91: No | T91: No | U91: Yes | V91: No | W91: Yes | X91: Yes | Y91: Yes | Z91: Yes | AA91: Yes | AB91: No | AC91: No | AD91: No | AE91: Yes | AF91: No | AG91: Yes | AH91: No | AI91: No | AJ91: Yes | AK91: No | AL91: Yes | AM91: No | AN91: Yes | AO91: Yes | AP91: Yes | AQ91: Too expensive | AR91: No | AV91: Yes | BA91: No | BB91: Yes | BC91: No | BD91: No | BE91: Yes | BF91: Yes | BG91: Yes | BH91: No | BI91: Yes | BJ91: No | BK91: No | BL91: No | BM91: No | BN91: Yes | BO91: Yes | BP91: Yes | BQ91: Yes | BR91: No | BS91: No | BT91: No | BU91: No
A92: West | B92: الغرب | C92: Tripoli | D92: طرابلس | E92: Ain Zara | F92: عين زارة | G92: LY021103 | H92: 32.813333 | I92: 13.269722 | J92: 23 | K92: 2018-12-09 | L92: 100 | M92: 100 | Q92: 100 | R92: 100 | S92: No | T92: No | U92: Yes | V92: No | W92: Yes | X92: No | Y92: Yes | Z92: Yes | AA92: Yes | AB92: Yes | AC92: No | AD92: No | AE92: Yes | AF92: No | AG92: Yes | AH92: No | AI92: No | AJ92: Yes | AK92: No | AL92: Yes | AM92: No | AN92: No | AO92: Yes | AP92: Yes | AQ92: Too expensive | AR92: No | AV92: Yes | BA92: Yes | BB92: No | BC92: Yes | BD92: No | BE92: Yes | BF92: No | BG92: Yes | BH92: No | BI92: No | BJ92: No | BK92: No | BL92: No | BM92: No | BN92: Yes | BO92: No | BP92: No | BQ92: No | BR92: No | BS92: No | BT92: No | BU92: No
A93: West | B93: الغرب | C93: Tripoli | D93: طرابلس | E93: Hai Alandalus | F93: حي الأندلس | G93: LY021106 | H93: 32.875104 | I93: 13.128251 | J93: 23 | K93: 2018-12-16 | L93: 100 | M93: 100 | N93: 4 | O93: 0 | P93: 0 | Q93: 100 | R93: 100 | S93: No | T93: Yes | U93: Yes | V93: No | W93: No | X93: No | Y93: Yes | Z93: No | AA93: No | AB93: Yes | AC93: No | AD93: No | AE93: No | AF93: No | AG93: No | AH93: No | AI93: Yes | AJ93: Yes | AK93: No | AL93: No | AM93: Yes | AN93: No | AO93: Yes | AP93: Yes | AQ93: No Problem | AR93: No | AV93: No | AW93: Road closed | AX93: Insecurity | AZ93: Other | BA93: No | BB93: Yes | BC93: Yes | BD93: No | BE93: Yes | BF93: No | BG93: Yes | BH93: No | BI93: No | BJ93: No | BK93: No | BL93: No | BM93: No | BN93: Yes | BO93: Yes | BP93: Yes | BQ93: Yes | BR93: No | BS93: No | BT93: No | BU93: No
A94: West | B94: الغرب | C94: Tripoli | D94: طرابلس | E94: Suq Aljumaa | F94: سوق الجمعة | G94: LY021101 | H94: 32.875031 | I94: 13.255209 | J94: 23 | K94: 2018-12-17 | L94: 100 | M94: 100 | N94: 0 | O94: 1 | P94: 0 | Q94: 67 | R94: 90 | S94: No | T94: No | U94: Yes | V94: No | W94: No | X94: No | Y94: No | Z94: No | AA94: No | AB94: Yes | AC94: No | AD94: No | AE94: Yes | AF94: No | AG94: No | AH94: No | AI94: No | AJ94: Yes | AK94: No | AL94: Yes | AM94: No | AN94: No | AO94: Yes | AP94: Yes | AQ94: Too expensive | AR94: No | AV94: Yes | BA94: No | BB94: No | BC94: Yes | BD94: No | BE94: Yes | BF94: Yes | BG94: Yes | BH94: No | BI94: No | BJ94: No | BK94: No | BL94: No | BM94: No | BN94: No | BO94: Yes | BP94: No | BQ94: Yes | BR94: No | BS94: Yes | BT94: No | BU94: No
A95: West | B95: الغرب | C95: Tripoli | D95: طرابلس | E95: Tajoura | F95: تاجوراء | G95: LY021102 | H95: 32.883445 | I95: 13.352548 | J95: 23 | K95: 2018-11-24 | L95: 100 | M95: 100 | N95: 0 | O95: 8 | P95: 0 | Q95: 100 | R95: 100 | S95: No | T95: No | U95: No | V95: No | W95: Yes | X95: Yes | Y95: No | Z95: No | AA95: No | AB95: Yes | AC95: No | AD95: No | AE95: No | AF95: No | AG95: No | AH95: No | AI95: Yes | AJ95: Yes | AK95: No | AL95: Yes | AM95: No | AN95: No | AO95: No | AP95: Yes | AQ95: Too expensive | AR95: No | AV95: No | AW95: Road closed | AZ95: Other | BA95: No | BB95: No | BC95: Yes | BD95: No | BE95: No | BF95: No | BG95: Yes | BH95: No | BI95: No | BJ95: No | BK95: No | BL95: No | BM95: No | BN95: No | BO95: No | BP95: Yes | BQ95: No | BR95: No | BS95: No | BT95: No | BU95: No
A96: West | B96: الغرب | C96: Tripoli | D96: طرابلس | E96: Tripoli | F96: طرابلس | G96: LY021104 | H96: 32.896672 | I96: 13.177792 | J96: 23 | K96: 2018-11-30 | L96: 100 | M96: 100 | N96: 0 | O96: 0 | P96: 0 | Q96: 100 | R96: 100 | S96: No | T96: Yes | U96: Yes | V96: No | W96: No | X96: No | Y96: Yes | Z96: No | AA96: No | AB96: No | AC96: No | AD96: No | AE96: No | AF96: No | AG96: No | AH96: Yes | AI96: No | AJ96: Yes | AK96: No | AL96: No | AM96: No | AN96: No | AO96: Yes | AP96: Yes | AQ96: Too expensive | AR96: No | AV96: Yes | BA96: No | BB96: No | BC96: Yes | BD96: No | BE96: No | BF96: Yes | BG96: Yes | BH96: No | BI96: No | BJ96: No | BK96: No | BL96: No | BM96: No | BN96: Yes | BO96: No | BP96: Yes | BQ96: Yes | BR96: No | BS96: Yes | BT96: No | BU96: No
A97: West | B97: الغرب | C97: Zwara | D97: زوارة | E97: Al Ajaylat | F97: العجيلات | G97: LY021501 | H97: 32.758014 | I97: 12.377502 | J97: 23 | K97: 2018-11-29 | L97: 100 | M97: 88 | N97: 0 | O97: 0 | P97: 0 | Q97: 80 | R97: 100 | S97: No | T97: No | U97: No | V97: No | W97: Yes | X97: No | Y97: No | Z97: Yes | AA97: No | AB97: No | AC97: No | AD97: No | AE97: No | AF97: No | AG97: Yes | AH97: No | AI97: No | AJ97: Yes | AK97: No | AL97: No | AM97: No | AN97: No | AO97: Yes | AP97: No | AQ97: Too expensive | AR97: No | AV97: Yes | BA97: Yes | BB97: No | BC97: Yes | BD97: Yes | BE97: No | BF97: No | BG97: Yes | BH97: No | BI97: No | BJ97: No | BK97: No | BL97: No | BM97: No | BN97: No | BO97: No | BP97: Yes | BQ97: Yes | BR97: No | BS97: No | BT97: No | BU97: No
A98: West | B98: الغرب | C98: Zwara | D98: زوارة | E98: Aljmail | F98: الجميل | G98: LY021504 | H98: 32.853386 | I98: 12.059558 | J98: 23 | K98: 2018-11-16 | L98: 100 | M98: 100 | N98: 0 | O98: 0 | P98: 0 | Q98: 100 | R98: 100 | S98: No | T98: No | U98: No | V98: No | W98: No | X98: No | Y98: No | Z98: Yes | AA98: Yes | AB98: Yes | AC98: No | AD98: No | AE98: Yes | AF98: No | AG98: No | AH98: No | AI98: No | AJ98: Yes | AK98: No | AL98: No | AM98: No | AN98: Yes | AO98: No | AP98: Yes | AQ98: Too expensive | AR98: No | AV98: No | AX98: Insecurity | BA98: No | BB98: Yes | BC98: No | BD98: Yes | BE98: No | BF98: No | BG98: Yes | BH98: No | BI98: No | BJ98: Yes | BK98: No | BL98: No | BM98: No | BN98: No | BO98: Yes | BP98: Yes | BQ98: No | BR98: No | BS98: No | BT98: Yes | BU98: No
A99: West | B99: الغرب | C99: Zwara | D99: زوارة | E99: Rigdaleen | F99: رقدالين | G99: LY021505 | H99: 32.887103 | I99: 11.986724 | J99: 23 | K99: 2018-11-12 | L99: 100 | M99: 100 | N99: 0 | O99: 1 | P99: 0 | Q99: 75 | R99: 100 | S99: No | T99: No | U99: No | V99: No | W99: Yes | X99: No | Y99: No | Z99: Yes | AA99: No | AB99: No | AC99: No | AD99: No | AE99: No | AF99: No | AG99: Yes | AH99: No | AI99: No | AJ99: Yes | AK99: No | AL99: No | AM99: No | AN99: No | AO99: No | AP99: Yes | AQ99: Too expensive | AR99: No | AV99: Yes | BA99: No | BB99: Yes | BC99: Yes | BD99: Yes | BE99: No | BF99: No | BG99: Yes | BH99: No | BI99: No | BJ99: No | BK99: No | BL99: No | BM99: No | BN99: No | BO99: Yes | BP99: Yes | BQ99: No | BR99: No | BS99: No | BT99: No | BU99: No
A100: West | B100: الغرب | C100: Zwara | D100: زوارة | E100: Sabratha | F100: صبراتة | G100: LY021502 | H100: 32.792168 | I100: 12.485806 | J100: 23 | K100: 2018-12-08 | L100: 100 | M100: 100 | N100: 0 | O100: 0 | P100: 0 | Q100: 100 | R100: 100 | S100: No | T100: No | U100: Yes | V100: Yes | W100: Yes | X100: Yes | Y100: Yes | Z100: Yes | AA100: Yes | AB100: No | AC100: No | AD100: Yes | AE100: No | AF100: No | AG100: No | AH100: Yes | AI100: No | AJ100: Yes | AK100: No | AL100: Yes | AM100: Yes | AN100: No | AO100: Yes | AP100: Yes | AQ100: Quantity available in shops / market insufficient | AR100: No | AV100: Yes | BA100: Yes | BB100: No | BC100: No | BD100: Yes | BE100: Yes | BF100: No | BG100: Yes | BH100: No | BI100: No | BJ100: Yes | BK100: No | BL100: No | BM100: No | BN100: Yes | BO100: Yes | BP100: No | BQ100: No | BR100: No | BS100: Yes | BT100: No | BU100: No
A101: West | B101: الغرب | C101: Zwara | D101: زوارة | E101: Ziltun | F101: زلطن | G101: LY021506 | H101: 32.945914 | I101: 11.866288 | J101: 23 | K101: 2018-11-13 | L101: 100 | M101: 100 | N101: 0 | O101: 0 | P101: 0 | Q101: 100 | R101: 100 | S101: No | T101: No | U101: No | V101: No | W101: No | X101: No | Y101: No | Z101: Yes | AA101: Yes | AB101: Yes | AC101: No | AD101: No | AE101: Yes | AF101: No | AG101: No | AH101: No | AI101: No | AJ101: Yes | AK101: No | AL101: No | AM101: No | AN101: Yes | AO101: No | AP101: Yes | AQ101: Too expensive | AR101: No | AV101: No | AX101: Insecurity | BA101: No | BB101: Yes | BC101: No | BD101: Yes | BE101: No | BF101: Yes | BG101: Yes | BH101: No | BI101: No | BJ101: Yes | BK101: No | BL101: No | BM101: No | BN101: No | BO101: Yes | BP101: Yes | BQ101: No | BR101: No | BS101: No | BT101: Yes | BU101: No
A102: West | B102: الغرب | C102: Zwara | D102: زوارة | E102: Zwara | F102: زوارة | G102: LY021503 | H102: 32.932781 | I102: 12.080638 | J102: 23 | K102: 2018-11-21 | L102: 100 | M102: 100 | N102: 0 | O102: 1 | P102: 0 | Q102: 100 | R102: 100 | S102: No | T102: No | U102: No | V102: No | W102: Yes | X102: No | Y102: No | Z102: Yes | AA102: No | AB102: No | AC102: No | AD102: No | AE102: No | AF102: No | AG102: Yes | AH102: No | AI102: No | AJ102: Yes | AK102: No | AL102: No | AM102: No | AN102: No | AO102: Yes | AP102: No | AQ102: Too expensive | AR102: No | AV102: Yes | BA102: No | BB102: Yes | BC102: Yes | BD102: No | BE102: No | BF102: No | BG102: Yes | BH102: No | BI102: No | BJ102: No | BK102: No | BL102: No | BM102: No | BN102: No | BO102: Yes | BP102: No | BQ102: Yes | BR102: No | BS102: No | BT102: No | BU102: No

Sheet IDPs - Details
A1: General Info | L1: IDP Total Figures | O1: IDP Origin Baladiya (HH & IND) | X1: IDP Shelter Settings (HH & IND) | AN1: IDP Arrival Time (HH & IND) | AT1: Reasons for leaving the place of origin | AX1: Reasons for coming to the current location | BE1: IDP relations with other IDPs and host community | BG1: IDP priority needs and problems associated with needs
A2: ADM1_Region_EN | B2: ADM2_Mantika_EN | C2: ADM3_Baladiya_EN | D2: ADM4_Muhalla_EN | E2: ADM4_Muhalla_AR | F2: Muhalla_pcode | G2: Muhalla Type | H2: Longitude | I2: Latitude | J2: DateOfInterview | K2: AssessmentRound | L2: IDPs in Muhalla | M2: IDP HH | N2: IDP Indiv | O2: Origin Baladiya1 | P2: Origin Baladiya1 (HH) | Q2: Origin Baladiya1 (IND) | R2: Origin Baladiya 2 | S2: Origin Baladiya 2 (HH) | T2: Origin Baladiya 2 (IND) | U2: Origin Baladiya 3 | V2: Origin Baladiya 3 (HH) | W2: Origin Baladiya 3 (IND) | X2: Rented Accomodation (HH) | Y2: Rented Accomodation (IND) | Z2: With host family,no rent (HH) | AA2: With host family,no rent (IND) | AB2: abondoned buildings (HH) | AC2: abondoned buildings (IND) | AD2: Squatting on other people's properties (HH)' | AE2: Squatting on other people's properties(IND)' | AF2: schools or other public buildings (HH) | AG2: schools or other public buildings (IND) | AH2: No accomodation (HH) | AI2: No accomodation (IND) | AJ2: In informal camp setting (HH) | AK2: In informal camp setting (IND) | AL2: Other Shelter (HH) | AM2: Other Shelter (IND) | AN2: IDP_2011_14_HH | AO2: IDP_2011_14_IND | AP2: IDP_2015_17_HH | AQ2: IDP_2015_17_IND | AR2: IDP_2018_HH | AS2: IDP_2018_IND | AT2: Deterioration of economic situation | AU2: Deterioration of security situation | AV2: Lack of basic services | AW2: Other Reason for Leaving | AX2: Availability of basic services | AY2: Access to humanitarian assistance | AZ2: Better access to livelihood opportunities | BA2: Better security situation | BB2: Presence of relatives_social and cultural bonds | BC2: In transit (on the way to elsewhere) | BD2: Other Reason for Coming | BE2: Have there been any reported issue or conflict between IDPs? | BF2: How is the relationship between IDPs and Host Community? | BG2: Priority Need#1 | BH2: Need1/Problem1 | BI2: Need1/Problem2 | BJ2: Need1/Problem3 | BK2: Priority Need#2 | BL2: Need2/Problem1 | BM2: Need2/Problem2 | BN2: Need2/Problem3 | BO2: Priority Need#3 | BP2: Need3/Problem1 | BQ2: Need3/Problem2 | BR2: Need3/Problem3
A3: East | B3: Al Jabal Al Akhdar | C3: Albayda | D3: al fajr al jadid | E3: الفجر الجديد | F3: LY01060207 | G3: Rural | J3: 2018-12-16 | K3: 23 | L3: No | M3: 0 | N3: 0 | AN3: 0 | AO3: 0 | AP3: 0 | AQ3: 0 | AR3: 0 | AS3: 0
A4: East | B4: Al Jabal Al Akhdar | C4: Albayda | D4: Al ghrika | E4: الغريقة | F4: LY01060201 | G4: Urban | H4: 21.791566 | I4: 32.721128 | J4: 2018-12-11 | K4: 23 | L4: No | M4: 0 | N4: 0 | AN4: 0 | AO4: 0 | AP4: 0 | AQ4: 0 | AR4: 0 | AS4: 0
A5: East | B5: Al Jabal Al Akhdar | C5: Albayda | D5: Al Khuimat | E5: الخويمات | F5: LY01060211 | G5: Rural | H5: 21.531658 | I5: 32.001671 | J5: 2018-12-19 | K5: 23 | L5: No | M5: 0 | N5: 0 | AN5: 0 | AO5: 0 | AP5: 0 | AQ5: 0 | AR5: 0 | AS5: 0
A6: East | B6: Al Jabal Al Akhdar | C6: Albayda | D6: Alanian | E6: النيان | F6: LY01060208 | G6: Rural | H6: 21.547001 | I6: 32.747195 | J6: 2018-12-17 | K6: 23 | L6: No | M6: 0 | N6: 0 | AN6: 0 | AO6: 0 | AP6: 0 | AQ6: 0 | AR6: 0 | AS6: 0
A7: East | B7: Al Jabal Al Akhdar | C7: Albayda | D7: Albayda El charquia | E7: البيضاء الشرقية | F7: LY01060209 | G7: Urban | H7: 21.711216 | I7: 32.765204 | J7: 2018-11-22 | K7: 23 | L7: Yes | M7: 90 | N7: 450 | O7: Derna | P7: 35 | Q7: 175 | R7: Benghazi | S7: 35 | T7: 175 | U7: Sirt | V7: 20 | W7: 100 | X7: 79 | Y7: 395 | Z7: 4 | AA7: 20 | AB7: 0 | AC7: 0 | AD7: 0 | AE7: 0 | AF7: 0 | AG7: 0 | AH7: 0 | AI7: 0 | AJ7: 0 | AK7: 0 | AL7: 7 | AM7: 35 | AN7: 0 | AO7: 0 | AP7: 65 | AQ7: 325 | AR7: 25 | AS7: 125 | AT7: No | AU7: Yes | AV7: Yes | AW7: Yes | AX7: Yes | AY7: No | AZ7: Yes | BA7: Yes | BB7: Yes | BC7: No | BD7: Yes | BE7: No | BF7: Good | BG7: Shelter | BH7: Too expensive | BK7: Food | BL7: Too expensive | BO7: NFIs | BP7: Too expensive
A8: East | B8: Al Jabal Al Akhdar | C8: Albayda | D8: Albayda El Gharbiya | E8: البيضاء الغربية | F8: LY01060202 | G8: Urban | H8: 21.741667 | I8: 32.766389 | J8: 2018-11-20 | K8: 23 | L8: Yes | M8: 180 | N8: 900 | O8: Derna | P8: 100 | Q8: 500 | R8: Benghazi | S8: 50 | T8: 250 | U8: Sirt | V8: 30 | W8: 150 | X8: 170 | Y8: 850 | Z8: 10 | AA8: 50 | AB8: 0 | AC8: 0 | AD8: 0 | AE8: 0 | AF8: 0 | AG8: 0 | AH8: 0 | AI8: 0 | AJ8: 0 | AK8: 0 | AL8: 0 | AM8: 0 | AN8: 0 | AO8: 0 | AP8: 95 | AQ8: 475 | AR8: 85 | AS8: 425 | AT8: Yes | AU8: Yes | AV8: Yes | AW8: Yes | AX8: No | AY8: Yes | AZ8: Yes | BA8: Yes | BB8: Yes | BC8: No | BD8: Yes | BE8: No | BF8: Good | BG8: Shelter | BH8: Too expensive | BK8: Access to income | BL8: Jobs available but Income insufficient, | BO8: NFIs | BP8: Too expensive | BQ8: Not sufficiently available
A9: East | B9: Al Jabal Al Akhdar | C9: Albayda | D9: Azzawya El Kadima | E9: الزاوية القديمة | F9: LY01060212 | G9: Urban | H9: 21.774931 | I9: 32.761884 | J9: 2018-12-02 | K9: 23 | L9: Yes | M9: 50 | N9: 250 | O9: Benghazi | P9: 25 | Q9: 125 | R9: Sirt | S9: 10 | T9: 50 | U9: Derna | V9: 15 | W9: 75 | X9: 50 | Y9: 250 | Z9: 0 | AA9: 0 | AB9: 0 | AC9: 0 | AD9: 0 | AE9: 0 | AF9: 0 | AG9: 0 | AH9: 0 | AI9: 0 | AJ9: 0 | AK9: 0 | AL9: 0 | AM9: 0 | AN9: 0 | AO9: 0 | AP9: 35 | AQ9: 175 | AR9: 15 | AS9: 75 | AT9: No | AU9: No | AV9: Yes | AW9: Yes | AX9: No | AY9: No | AZ9: Yes | BA9: Yes | BB9: Yes | BC9: No | BD9: Yes | BE9: No | BF9: Good | BG9: Shelter | BH9: Too expensive | BK9: Access to income | BL9: Jobs available but Income insufficient, | BO9: NFIs | BP9: Too expensive
A10: East | B10: Al Jabal Al Akhdar | C10: Albayda | D10: Essouk gdim | E10: السوق القديم | F10: LY01060213 | G10: Urban | H10: 21.736124 | I10: 32.755437 | J10: 2018-12-04 | K10: 23 | L10: Yes | M10: 65 | N10: 325 | O10: Derna | P10: 30 | Q10: 150 | R10: Benghazi | S10: 35 | T10: 175 | X10: 65 | Y10: 325 | Z10: 0 | AA10: 0 | AB10: 0 | AC10: 0 | AD10: 0 | AE10: 0 | AF10: 0 | AG10: 0 | AH10: 0 | AI10: 0 | AJ10: 0 | AK10: 0 | AL10: 0 | AM10: 0 | AN10: 0 | AO10: 0 | AP10: 40 | AQ10: 200 | AR10: 25 | AS10: 125 | AT10: No | AU10: Yes | AV10: Yes | AW10: Yes | AX10: No | AY10: No | AZ10: Yes | BA10: Yes | BB10: Yes | BC10: No | BD10: Yes | BE10: No | BF10: Good | BG10: Shelter | BH10: Too expensive | BK10: NFIs | BL10: Too expensive | BO10: Legal Help | BP10: Access only ad-hoc
A11: East | B11: Al Jabal Al Akhdar | C11: Albayda | D11: Jrds Jirari | E11: جردس الجراري | F11: LY01060214 | G11: Rural | H11: 21.785561 | I11: 32.527701 | J11: 2018-12-18 | K11: 23 | L11: No | M11: 0 | N11: 0 | AN11: 0 | AO11: 0 | AP11: 0 | AQ11: 0 | AR11: 0 | AS11: 0
A12: East | B12: Al Jabal Al Akhdar | C12: Albayda | D12: Marwa | E12: مـــرواة | F12: LY01060203 | G12: Rural | H12: 21.407256 | I12: 32.485754 | J12: 2018-11-27 | K12: 23 | L12: No | M12: 0 | N12: 0 | AN12: 0 | AO12: 0 | AP12: 0 | AQ12: 0 | AR12: 0 | AS12: 0
A13: East | B13: Al Jabal Al Akhdar | C13: Albayda | D13: Massa El chamalia | E13: مسة الشمالية | F13: LY01060215 | G13: Urban | H13: 21.601089 | I13: 32.783893 | J13: 2018-12-09 | K13: 23 | L13: Yes | M13: 10 | N13: 50 | O13: Benghazi | P13: 10 | Q13: 50 | X13: 10 | Y13: 50 | Z13: 0 | AA13: 0 | AB13: 0 | AC13: 0 | AD13: 0 | AE13: 0 | AF13: 0 | AG13: 0 | AH13: 0 | AI13: 0 | AJ13: 0 | AK13: 0 | AL13: 0 | AM13: 0 | AN13: 0 | AO13: 0 | AP13: 10 | AQ13: 50 | AR13: 0 | AS13: 0 | AT13: No | AU13: No | AV13: No | AW13: Yes | AX13: No | AY13: No | AZ13: No | BA13: No | BB13: Yes | BC13: No | BD13: No | BE13: No | BF13: Good | BG13: Shelter | BH13: Too expensive | BK13: Access to income | BL13: Jobs available but Income insufficient, | BO13: NFIs | BP13: Too expensive
A14: East | B14: Al Jabal Al Akhdar | C14: Albayda | D14: Massa El Janubia | E14: مسة الجنوبية | F14: LY01060216 | G14: Rural | H14: 21.656217 | I14: 32.696176 | J14: 2018-12-10 | K14: 23 | L14: No | M14: 0 | N14: 0 | AN14: 0 | AO14: 0 | AP14: 0 | AQ14: 0 | AR14: 0 | AS14: 0
A15: East | B15: Al Jabal Al Akhdar | C15: Albayda | D15: Omar Mukhtar | E15: عمر المختار | F15: LY01060204 | G15: Urban | H15: 21.677654 | I15: 32.628455 | J15: 2018-12-06 | K15: 23 | L15: Yes | M15: 70 | N15: 350 | O15: Derna | P15: 45 | Q15: 225 | R15: Sirt | S15: 25 | T15: 125 | X15: 70 | Y15: 350 | Z15: 0 | AA15: 0 | AB15: 0 | AC15: 0 | AD15: 0 | AE15: 0 | AF15: 0 | AG15: 0 | AH15: 0 | AI15: 0 | AJ15: 0 | AK15: 0 | AL15: 0 | AM15: 0 | AN15: 0 | AO15: 0 | AP15: 30 | AQ15: 150 | AR15: 40 | AS15: 200 | AT15: Yes | AU15: Yes | AV15: Yes | AW15: Yes | AX15: No | AY15: No | AZ15: Yes | BA15: Yes | BB15: Yes | BC15: No | BD15: Yes | BE15: No | BF15: Good | BG15: Shelter | BH15: Too expensive | BK15: Food | BL15: Too expensive | BO15: NFIs | BP15: Too expensive | BQ15: Not sufficiently available
A16: East | B16: Al Jabal Al Akhdar | C16: Albayda | D16: Qandula | E16: قندولة | F16: LY01060205 | G16: Rural | H16: 21.57567 | I16: 32.538568 | J16: 2018-11-25 | K16: 23 | L16: No | M16: 0 | N16: 0 | AN16: 0 | AO16: 0 | AP16: 0 | AQ16: 0 | AR16: 0 | AS16: 0
A17: East | B17: Al Jabal Al Akhdar | C17: Albayda | D17: Sidi Abdul Wahid | E17: سيدي عبد الواحد | F17: LY01060210 | G17: Rural | H17: 21.588459 | I17: 32.732449 | J17: 2018-12-12 | K17: 23 | L17: No | M17: 0 | N17: 0 | AN17: 0 | AO17: 0 | AP17: 0 | AQ17: 0 | AR17: 0 | AS17: 0
A18: East | B18: Al Jabal Al Akhdar | C18: Albayda | D18: Slonta | E18: سلنطة | F18: LY01060206 | G18: Rural | H18: 21.716736 | I18: 32.590802 | J18: 2018-12-25 | K18: 23 | L18: No | M18: 0 | N18: 0 | AN18: 0 | AO18: 0 | AP18: 0 | AQ18: 0 | AR18: 0 | AS18: 0
A19: East | B19: Al Jabal Al Akhdar | C19: Shahhat | D19: Al faydiyah | E19: الفايدية | F19: LY01060105 | G19: Rural | H19: 21.905702 | I19: 32.689065 | J19: 2018-11-15 | K19: 23 | L19: No | M19: 0 | N19: 0 | AN19: 0 | AO19: 0 | AP19: 0 | AQ19: 0 | AR19: 0 | AS19: 0
A20: East | B20: Al Jabal Al Akhdar | C20: Shahhat | D20: Al mansoura | E20: المنصورة | F20: LY01060106 | G20: Rural | H20: 21.85 | I20: 32.833333 | J20: 2018-12-02 | K20: 23 | L20: No | M20: 0 | N20: 0 | AN20: 0 | AO20: 0 | AP20: 0 | AQ20: 0 | AR20: 0 | AS20: 0
A21: East | B21: Al Jabal Al Akhdar | C21: Shahhat | D21: Ashenishn | E21: اشنيشن | F21: LY01060107 | G21: Rural | J21: 2018-12-09 | K21: 23 | L21: No | M21: 0 | N21: 0 | AN21: 0 | AO21: 0 | AP21: 0 | AQ21: 0 | AR21: 0 | AS21: 0
A22: East | B22: Al Jabal Al Akhdar | C22: Shahhat | D22: Assafsaf | E22: الصفصاف | F22: LY01060108 | G22: Rural | H22: 21.949191 | I22: 32.777725 | J22: 2018-11-29 | K22: 23 | L22: No | M22: 0 | N22: 0 | AN22: 0 | AO22: 0 | AP22: 0 | AQ22: 0 | AR22: 0 | AS22: 0
A23: East | B23: Al Jabal Al Akhdar | C23: Shahhat | D23: Azzawiyah | E23: الزاوية | F23: LY01060101 | G23: Rural | H23: 21.47241 | I23: 32.628223 | J23: 2018-12-06 | K23: 23 | L23: No | M23: 0 | N23: 0 | AN23: 0 | AO23: 0 | AP23: 0 | AQ23: 0 | AR23: 0 | AS23: 0
A24: East | B24: Al Jabal Al Akhdar | C24: Shahhat | D24: Balkas | E24: بلقس | F24: LY01060102 | G24: Rural | J24: 2018-12-04 | K24: 23 | L24: No | M24: 0 | N24: 0 | AN24: 0 | AO24: 0 | AP24: 0 | AQ24: 0 | AR24: 0 | AS24: 0
A25: East | B25: Al Jabal Al Akhdar | C25: Shahhat | D25: Karnadah | E25: قرنادة | F25: LY01060109 | G25: Rural | H25: 21.903519 | I25: 32.73193 | J25: 2018-11-24 | K25: 23 | L25: No | M25: 0 | N25: 0 | AN25: 0 | AO25: 0 | AP25: 0 | AQ25: 0 | AR25: 0 | AS25: 0
A26: East | B26: Al Jabal Al Akhdar | C26: Shahhat | D26: Nasirr | E26: ناصر | F26: LY01060103 | G26: Rural | H26: 21.772671 | I26: 32.764284 | J26: 2018-11-27 | K26: 23 | L26: No | M26: 0 | N26: 0 | AN26: 0 | AO26: 0 | AP26: 0 | AQ26: 0 | AR26: 0 | AS26: 0
A27: East | B27: Al Jabal Al Akhdar | C27: Shahhat | D27: Shahhat Al jadida | E27: شحات الجديدة | F27: LY01060110 | G27: Urban | H27: 21.869684 | I27: 32.808215 | J27: 2018-11-20 | K27: 23 | L27: Yes | M27: 30 | N27: 150 | O27: Benghazi | P27: 22 | Q27: 110 | R27: Derna | S27: 8 | T27: 40 | X27: 30 | Y27: 150 | Z27: 0 | AA27: 0 | AB27: 0 | AC27: 0 | AD27: 0 | AE27: 0 | AF27: 0 | AG27: 0 | AH27: 0 | AI27: 0 | AJ27: 0 | AK27: 0 | AL27: 0 | AM27: 0 | AN27: 0 | AO27: 0 | AP27: 20 | AQ27: 100 | AR27: 10 | AS27: 50 | AT27: No | AU27: Yes | AV27: Yes | AW27: No | AX27: No | AY27: Yes | AZ27: No | BA27: No | BB27: Yes | BC27: No | BD27: No | BE27: No | BF27: Good | BG27: Shelter | BH27: Too expensive | BK27: Food | BL27: Too expensive | BO27: NFIs | BP27: Not sufficiently available
A28: East | B28: Al Jabal Al Akhdar | C28: Shahhat | D28: Shahhat Al Kadima | E28: شحات القديمة | F28: LY01060111 | G28: Urban | H28: 21.862807 | I28: 32.803566 | J28: 2018-11-18 | K28: 23 | L28: Yes | M28: 45 | N28: 225 | O28: Benghazi | P28: 24 | Q28: 120 | R28: Derna | S28: 21 | T28: 105 | X28: 40 | Y28: 200 | Z28: 5 | AA28: 25 | AB28: 0 | AC28: 0 | AD28: 0 | AE28: 0 | AF28: 0 | AG28: 0 | AH28: 0 | AI28: 0 | AJ28: 0 | AK28: 0 | AL28: 0 | AM28: 0 | AN28: 0 | AO28: 0 | AP28: 25 | AQ28: 125 | AR28: 20 | AS28: 100 | AT28: No | AU28: Yes | AV28: Yes | AW28: Yes | AX28: No | AY28: No | AZ28: Yes | BA28: Yes | BB28: Yes | BC28: No | BD28: Yes | BE28: No | BF28: Good | BG28: Shelter | BH28: Too expensive | BK28: Access to income | BL28: Jobs available but IDPs not qualified enough | BO28: NFIs | BP28: Too expensive
A29: East | B29: Al Jabal Al Akhdar | C29: Shahhat | D29: Sousa | E29: سوسة | F29: LY01060112 | G29: Urban | H29: 21.965302 | I29: 32.897976 | J29: 2018-12-22 | K29: 23 | L29: Yes | M29: 35 | N29: 175 | O29: Benghazi | P29: 20 | Q29: 100 | R29: Derna | S29: 15 | T29: 75 | X29: 35 | Y29: 175 | Z29: 0 | AA29: 0 | AB29: 0 | AC29: 0 | AD29: 0 | AE29: 0 | AF29: 0 | AG29: 0 | AH29: 0 | AI29: 0 | AJ29: 0 | AK29: 0 | AL29: 0 | AM29: 0 | AN29: 0 | AO29: 0 | AP29: 20 | AQ29: 100 | AR29: 15 | AS29: 75 | AT29: No | AU29: Yes | AV29: Yes | AW29: No | AX29: No | AY29: No | AZ29: No | BA29: Yes | BB29: Yes | BC29: No | BD29: Yes | BE29: No | BF29: Good | BG29: Shelter | BH29: Too expensive | BK29: Food | BL29: Too expensive | BO29: NFIs | BP29: Too expensive
A30: East | B30: Al Jabal Al Akhdar | C30: Shahhat | D30: Wirdamah | E30: وردامة | F30: LY01060104 | G30: Rural | H30: 21.794128 | I30: 32.792415 | J30: 2018-11-26 | K30: 23 | L30: No | M30: 0 | N30: 0 | AN30: 0 | AO30: 0 | AP30: 0 | AQ30: 0 | AR30: 0 | AS30: 0
A31: East | B31: Alkufra | C31: Alkufra | D31: Bzimah jadida | E31: بزيمة الجديدة | F31: LY01070101 | G31: Rural | H31: 22.033333 | I31: 24.916667 | J31: 2018-12-19 | K31: 23 | L31: Yes | M31: 185 | N31: 925 | O31: Sebha | P31: 2 | Q31: 10 | R31: Murzuq | S31: 63 | T31: 315 | U31: Ubari | V31: 120 | W31: 600 | X31: 182 | Y31: 910 | Z31: 3 | AA31: 15 | AB31: 0 | AC31: 0 | AD31: 0 | AE31: 0 | AF31: 0 | AG31: 0 | AH31: 0 | AI31: 0 | AJ31: 0 | AK31: 0 | AL31: 0 | AM31: 0 | AN31: 0 | AO31: 0 | AP31: 185 | AQ31: 925 | AR31: 0 | AS31: 0 | AT31: No | AU31: Yes | AV31: No | AW31: No | AX31: No | AY31: No | AZ31: No | BA31: Yes | BB31: No | BC31: No | BD31: No | BE31: No | BF31: Good | BG31: Education | BH31: Other Problem | BK31: Food | BL31: Too expensive | BO31: Health services | BP31: Too expensive
A32: East | B32: Alkufra | C32: Alkufra | D32: Hawari | E32: الهواري | F32: LY01070102 | G32: Rural | H32: 23.159216 | I32: 24.324272 | J32: 2018-12-19 | K32: 23 | L32: Yes | M32: 175 | N32: 875 | O32: Ubari | P32: 63 | Q32: 315 | R32: Murzuq | S32: 80 | T32: 400 | U32: Taraghin | V32: 32 | W32: 160 | X32: 162 | Y32: 810 | Z32: 8 | AA32: 40 | AB32: 5 | AC32: 25 | AD32: 0 | AE32: 0 | AF32: 0 | AG32: 0 | AH32: 0 | AI32: 0 | AJ32: 0 | AK32: 0 | AL32: 0 | AM32: 0 | AN32: 0 | AO32: 0 | AP32: 175 | AQ32: 875 | AR32: 0 | AS32: 0 | AT32: No | AU32: Yes | AV32: No | AW32: No | AX32: No | AY32: No | AZ32: No | BA32: Yes | BB32: No | BC32: No | BD32: No | BE32: No | BF32: Good | BG32: Food | BH32: Too expensive | BK32: Health services | BL32: Too expensive | BO32: NFIs | BP32: Too expensive
A33: East | B33: Alkufra | C33: Alkufra | D33: Jawf markaz | E33: الجوف المركز | F33: LY01070103 | G33: Rural | H33: 23.239096 | I33: 24.203067 | J33: 2018-12-19 | K33: 23 | L33: Yes | M33: 850 | N33: 4250 | O33: Ghat | P33: 32 | Q33: 160 | R33: Ubari | S33: 500 | T33: 2500 | U33: Sebha | V33: 30 | W33: 150 | X33: 800 | Y33: 4000 | Z33: 20 | AA33: 100 | AB33: 0 | AC33: 0 | AD33: 0 | AE33: 0 | AF33: 0 | AG33: 0 | AH33: 0 | AI33: 0 | AJ33: 0 | AK33: 0 | AL33: 30 | AM33: 150 | AN33: 0 | AO33: 0 | AP33: 850 | AQ33: 4250 | AR33: 0 | AS33: 0 | AT33: No | AU33: Yes | AV33: No | AW33: No | AX33: No | AY33: No | AZ33: No | BA33: Yes | BB33: No | BC33: No | BD33: No | BE33: No | BF33: Good | BG33: Food | BH33: Too expensive | BK33: Health services | BL33: Too expensive | BO33: NFIs | BP33: Too expensive
A34: East | B34: Alkufra | C34: Alkufra | D34: Rbaaniah | E34: ربيانة | F34: LY01070105 | G34: Rural | H34: 21.993209 | I34: 24.188669 | J34: 2018-12-19 | K34: 23 | L34: Yes | M34: 158 | N34: 790 | O34: Alkufra | P34: 100 | Q34: 500 | R34: Derna | S34: 50 | T34: 250 | U34: Sebha | V34: 8 | W34: 40 | X34: 150 | Y34: 750 | Z34: 4 | AA34: 20 | AB34: 4 | AC34: 20 | AD34: 0 | AE34: 0 | AF34: 0 | AG34: 0 | AH34: 0 | AI34: 0 | AJ34: 0 | AK34: 0 | AL34: 0 | AM34: 0 | AN34: 0 | AO34: 0 | AP34: 158 | AQ34: 790 | AR34: 0 | AS34: 0 | AT34: No | AU34: Yes | AV34: No | AW34: No | AX34: No | AY34: No | AZ34: No | BA34: Yes | BB34: No | BC34: No | BD34: No | BE34: No | BF34: Good | BG34: Food | BH34: Too expensive | BK34: Health services | BL34: Too expensive | BO34: NFIs | BP34: Too expensive
A35: East | B35: Alkufra | C35: Alkufra | D35: Talaba | E35: الطلابه | F35: LY01070104 | G35: Rural | H35: 23.128035 | I35: 24.03094 | J35: 2018-12-17 | K35: 23 | L35: Yes | M35: 3 | N35: 15 | O35: Sebha | P35: 3 | Q35: 15 | X35: 3 | Y35: 15 | Z35: 0 | AA35: 0 | AB35: 0 | AC35: 0 | AD35: 0 | AE35: 0 | AF35: 0 | AG35: 0 | AH35: 0 | AI35: 0 | AJ35: 0 | AK35: 0 | AL35: 0 | AM35: 0 | AN35: 0 | AO35: 0 | AP35: 3 | AQ35: 15 | AR35: 0 | AS35: 0 | AT35: No | AU35: Yes | AV35: No | AW35: No | AX35: No | AY35: No | AZ35: No | BA35: Yes | BB35: No | BC35: No | BD35: No | BE35: No | BF35: Good | BG35: Food | BH35: Too expensive | BK35: Health services | BL35: Too expensive | BO35: NFIs | BP35: Too expensive
A36: East | B36: Alkufra | C36: Tazirbu | D36: Tazirbu | E36: تازربو | F36: LY01070201 | G36: Rural | H36: 21.045435 | I36: 25.664339 | J36: 2018-12-10 | K36: 23 | L36: No | M36: 0 | N36: 0 | AN36: 0 | AO36: 0 | AP36: 0 | AQ36: 0 | AR36: 0 | AS36: 0
A37: East | B37: Almarj | C37: Almarj | D37: Almarj El Charquia | E37: المرج الشرقي | F37: LY01020201 | G37: Urban | H37: 20.899762 | I37: 32.501952 | J37: 2018-12-02 | K37: 23 | L37: No | M37: 0 | N37: 0 | AN37: 0 | AO37: 0 | AP37: 0 | AQ37: 0 | AR37: 0 | AS37: 0
A38: East | B38: Almarj | C38: Almarj | D38: Almarj El Gharbia | E38: المرج الغربي | F38: LY01020202 | G38: Urban | H38: 20.756374 | I38: 32.466313 | J38: 2018-11-29 | K38: 23 | L38: Yes | M38: 35 | N38: 175 | O38: Misrata | P38: 14 | Q38: 70 | R38: Benghazi | S38: 11 | T38: 55 | U38: Derna | V38: 10 | W38: 50 | X38: 35 | Y38: 175 | Z38: 0 | AA38: 0 | AB38: 0 | AC38: 0 | AD38: 0 | AE38: 0 | AF38: 0 | AG38: 0 | AH38: 0 | AI38: 0 | AJ38: 0 | AK38: 0 | AL38: 0 | AM38: 0 | AN38: 17 | AO38: 85 | AP38: 12 | AQ38: 60 | AR38: 6 | AS38: 30 | AT38: Yes | AU38: Yes | AV38: No | AW38: Yes | AX38: No | AY38: No | AZ38: Yes | BA38: Yes | BB38: Yes | BC38: No | BD38: No | BE38: No | BF38: Good | BG38: Shelter | BH38: Too expensive | BK38: Food | BL38: Too expensive | BO38: NFIs | BP38: Too expensive
A39: East | B39: Almarj | C39: Almarj | D39: El Uweilia Charquia | E39: العويلية الشرقية | F39: LY01020205 | G39: Rural | H39: 20.989643 | I39: 32.557385 | J39: 2018-11-27 | K39: 23 | L39: Yes | M39: 12 | N39: 60 | O39: Sirt | P39: 8 | Q39: 40 | R39: Benghazi | S39: 4 | T39: 20 | X39: 12 | Y39: 60 | Z39: 0 | AA39: 0 | AB39: 0 | AC39: 0 | AD39: 0 | AE39: 0 | AF39: 0 | AG39: 0 | AH39: 0 | AI39: 0 | AJ39: 0 | AK39: 0 | AL39: 0 | AM39: 0 | AN39: 0 | AO39: 0 | AP39: 12 | AQ39: 60 | AR39: 0 | AS39: 0 | AT39: No | AU39: Yes | AV39: No | AW39: Yes | AX39: No | AY39: No | AZ39: No | BA39: Yes | BB39: Yes | BC39: No | BD39: Yes | BE39: No | BF39: Good | BG39: Shelter | BH39: Too expensive | BK39: Food | BL39: Too expensive | BO39: Water, Sanitation and Hygiene | BP39: Not enough toilets/showers | BQ39: Available water quantity not sufficient
A40: East | B40: Almarj | C40: Almarj | D40: El Uweilia Gharbia | E40: العويلية الغربية | F40: LY01020206 | G40: Rural | H40: 20.939894 | I40: 32.552033 | J40: 2018-11-27 | K40: 23 | L40: Yes | M40: 10 | N40: 50 | O40: Benghazi | P40: 6 | Q40: 30 | R40: Sirt | S40: 4 | T40: 20 | X40: 10 | Y40: 50 | Z40: 0 | AA40: 0 | AB40: 0 | AC40: 0 | AD40: 0 | AE40: 0 | AF40: 0 | AG40: 0 | AH40: 0 | AI40: 0 | AJ40: 0 | AK40: 0 | AL40: 0 | AM40: 0 | AN40: 0 | AO40: 0 | AP40: 10 | AQ40: 50 | AR40: 0 | AS40: 0 | AT40: No | AU40: Yes | AV40: No | AW40: No | AX40: No | AY40: No | AZ40: No | BA40: Yes | BB40: Yes | BC40: No | BD40: No | BE40: No | BF40: Good | BG40: Shelter | BH40: Too expensive | BK40: Access to income | BL40: Jobs available but IDPs not qualified enough | BO40: NFIs | BP40: Too expensive
A41: East | B41: Almarj | C41: Almarj | D41: Farzoughah | E41: فرزوغة | F41: LY01020203 | G41: Rural | H41: 20.70244 | I41: 32.501139 | J41: 2018-12-10 | K41: 23 | L41: No | M41: 0 | N41: 0 | AN41: 0 | AO41: 0 | AP41: 0 | AQ41: 0 | AR41: 0 | AS41: 0
A42: East | B42: Almarj | C42: Almarj | D42: Sidi Bouzid | E42: سيدي بوزيد | F42: LY01020204 | G42: Rural | J42: 2018-12-02 | K42: 23 | L42: No | M42: 0 | N42: 0 | AN42: 0 | AO42: 0 | AP42: 0 | AQ42: 0 | AR42: 0 | AS42: 0
A43: East | B43: Almarj | C43: Assahel | D43: Aqfanta | E43: اقفنطة | F43: LY01020301 | G43: Rural | H43: 21.57897 | I43: 32.752428 | J43: 2018-12-06 | K43: 23 | L43: No | M43: 0 | N43: 0 | AN43: 0 | AO43: 0 | AP43: 0 | AQ43: 0 | AR43: 0 | AS43: 0
A44: East | B44: Almarj | C44: Assahel | D44: Bayada El Charquia | E44: البياضة الشرقية | F44: LY01020305 | G44: Urban | H44: 21.25544 | I44: 32.561922 | J44: 2018-11-25 | K44: 23 | L44: Yes | M44: 20 | N44: 100 | O44: Benghazi | P44: 16 | Q44: 80 | R44: Sirt | S44: 4 | T44: 20 | X44: 20 | Y44: 100 | Z44: 0 | AA44: 0 | AB44: 0 | AC44: 0 | AD44: 0 | AE44: 0 | AF44: 0 | AG44: 0 | AH44: 0 | AI44: 0 | AJ44: 0 | AK44: 0 | AL44: 0 | AM44: 0 | AN44: 0 | AO44: 0 | AP44: 20 | AQ44: 100 | AR44: 0 | AS44: 0 | AT44: No | AU44: No | AV44: No | AW44: Yes | AX44: No | AY44: Yes | AZ44: No | BA44: Yes | BB44: No | BC44: No | BD44: Yes | BE44: No | BF44: Good | BG44: Shelter | BH44: Too expensive | BK44: Access to income | BL44: Jobs available but Income insufficient, | BO44: NFIs | BP44: Too expensive
A45: East | B45: Almarj | C45: Assahel | D45: Bayada El Gharbia | E45: البياضة الغربية | F45: LY01020306 | G45: Urban | H45: 21.249829 | I45: 32.561148 | J45: 2018-11-26 | K45: 23 | L45: No | M45: 0 | N45: 0 | AN45: 0 | AO45: 0 | AP45: 0 | AQ45: 0 | AR45: 0 | AS45: 0
A46: East | B46: Almarj | C46: Assahel | D46: El Hamama | E46: الحمامه | F46: LY01020302 | G46: Rural | H46: 21.632206 | I46: 32.915512 | J46: 2018-12-04 | K46: 23 | L46: No | M46: 0 | N46: 0 | AN46: 0 | AO46: 0 | AP46: 0 | AQ46: 0 | AR46: 0 | AS46: 0
A47: East | B47: Almarj | C47: Assahel | D47: EL Hnia | E47: الحنية | F47: LY01020303 | G47: Rural | H47: 21.520833 | I47: 32.841111 | J47: 2018-12-05 | K47: 23 | L47: No | M47: 0 | N47: 0 | AN47: 0 | AO47: 0 | AP47: 0 | AQ47: 0 | AR47: 0 | AS47: 0
A48: East | B48: Almarj | C48: Assahel | D48: jihad | E48: الجهاد | F48: LY01020307 | G48: Rural | H48: 21.570829 | I48: 32.705371 | J48: 2018-12-02 | K48: 23 | L48: No | M48: 0 | N48: 0 | AN48: 0 | AO48: 0 | AP48: 0 | AQ48: 0 | AR48: 0 | AS48: 0
A49: East | B49: Almarj | C49: Assahel | D49: Qasr Libya | E49: قصر ليبيا | F49: LY01020304 | G49: Rural | H49: 21.399456 | I49: 32.614438 | J49: 2018-12-09 | K49: 23 | L49: No | M49: 0 | N49: 0 | AN49: 0 | AO49: 0 | AP49: 0 | AQ49: 0 | AR49: 0 | AS49: 0
A50: East | B50: Almarj | C50: Assahel | D50: Zahf El Akhdhar El Charquia | E50: الزحف الاخضر الشرقية | F50: LY01020308 | G50: Urban | J50: 2018-11-28 | K50: 23 | L50: Yes | M50: 10 | N50: 50 | O50: Benghazi | P50: 10 | Q50: 50 | X50: 10 | Y50: 50 | Z50: 0 | AA50: 0 | AB50: 0 | AC50: 0 | AD50: 0 | AE50: 0 | AF50: 0 | AG50: 0 | AH50: 0 | AI50: 0 | AJ50: 0 | AK50: 0 | AL50: 0 | AM50: 0 | AN50: 0 | AO50: 0 | AP50: 10 | AQ50: 50 | AR50: 0 | AS50: 0 | AT50: No | AU50: Yes | AV50: No | AW50: No | AX50: No | AY50: No | AZ50: No | BA50: Yes | BB50: Yes | BC50: No | BD50: Yes | BE50: No | BF50: Good | BG50: Shelter | BH50: Too expensive | BK50: Food | BL50: Too expensive | BO50: NFIs | BP50: Too expensive
A51: East | B51: Almarj | C51: Assahel | D51: Zahf El Akhdhar El Gharbia | E51: الزحف الاخضر الغربية | F51: LY01020309 | G51: Rural | J51: 2018-11-29 | K51: 23 | L51: Yes | M51: 12 | N51: 60 | O51: Benghazi | P51: 12 | Q51: 60 | X51: 12 | Y51: 60 | Z51: 0 | AA51: 0 | AB51: 0 | AC51: 0 | AD51: 0 | AE51: 0 | AF51: 0 | AG51: 0 | AH51: 0 | AI51: 0 | AJ51: 0 | AK51: 0 | AL51: 0 | AM51: 0 | AN51: 0 | AO51: 0 | AP51: 12 | AQ51: 60 | AR51: 0 | AS51: 0 | AT51: No | AU51: No | AV51: No | AW51: Yes | AX51: No | AY51: No | AZ51: No | BA51: Yes | BB51: Yes | BC51: No | BD51: Yes | BE51: No | BF51: Good | BG51: Shelter | BH51: Too expensive | BK51: Food | BL51: Too expensive | BO51: NFIs | BP51: Too expensive
A52: East | B52: Almarj | C52: Jardas Alabeed | D52: EL Bnaya | E52: البنية | F52: LY01020106 | G52: Rural | H52: 20.884975 | I52: 32.265292 | J52: 2018-12-09 | K52: 23 | L52: No | M52: 0 | N52: 0 | AN52: 0 | AO52: 0 | AP52: 0 | AQ52: 0 | AR52: 0 | AS52: 0
A53: East | B53: Almarj | C53: Jardas Alabeed | D53: Jrds El Chamalia | E53: جردس الشمالية | F53: LY01020101 | G53: Urban | H53: 20.989321 | I53: 32.305848 | J53: 2018-11-29 | K53: 23 | L53: Yes | M53: 8 | N53: 40 | O53: Misrata | P53: 8 | Q53: 40 | X53: 8 | Y53: 40 | Z53: 0 | AA53: 0 | AB53: 0 | AC53: 0 | AD53: 0 | AE53: 0 | AF53: 0 | AG53: 0 | AH53: 0 | AI53: 0 | AJ53: 0 | AK53: 0 | AL53: 0 | AM53: 0 | AN53: 8 | AO53: 40 | AP53: 0 | AQ53: 0 | AR53: 0 | AS53: 0 | AT53: Yes | AU53: Yes | AV53: No | AW53: Yes | AX53: No | AY53: No | AZ53: Yes | BA53: Yes | BB53: Yes | BC53: No | BD53: No | BE53: No | BF53: Good | BG53: Shelter | BH53: Too expensive | BK53: Food | BL53: Too expensive | BO53: Access to income | BP53: Jobs available but Income insufficient, | BQ53: Jobs available but IDPs not qualified enough
A54: East | B54: Almarj | C54: Jardas Alabeed | D54: Jrds El janoubia | E54: جردس الجنوبية | F54: LY01020103 | G54: Rural | H54: 20.985157 | I54: 32.297476 | J54: 2018-11-28 | K54: 23 | L54: Yes | M54: 12 | N54: 60 | O54: Benghazi | P54: 12 | Q54: 60 | X54: 12 | Y54: 60 | Z54: 0 | AA54: 0 | AB54: 0 | AC54: 0 | AD54: 0 | AE54: 0 | AF54: 0 | AG54: 0 | AH54: 0 | AI54: 0 | AJ54: 0 | AK54: 0 | AL54: 0 | AM54: 0 | AN54: 0 | AO54: 0 | AP54: 12 | AQ54: 60 | AR54: 0 | AS54: 0 | AT54: No | AU54: No | AV54: No | AW54: Yes | AX54: No | AY54: No | AZ54: No | BA54: Yes | BB54: Yes | BC54: No | BD54: No | BE54: No | BF54: Good | BG54: Shelter | BH54: Too expensive | BK54: Food | BL54: Too expensive | BO54: NFIs | BP54: Too expensive
A55: East | B55: Almarj | C55: Jardas Alabeed | D55: Sidi Mahios | E55: سيدي مهيوس | F55: LY01020102 | G55: Rural | H55: 20.737899 | I55: 32.247032 | J55: 2018-12-06 | K55: 23 | L55: No | M55: 0 | N55: 0 | AN55: 0 | AO55: 0 | AP55: 0 | AQ55: 0 | AR55: 0 | AS55: 0
A56: East | B56: Almarj | C56: Jardas Alabeed | D56: Tacnis E Charquia | E56: تاكنس الشرقية | F56: LY01020104 | G56: Rural | H56: 21.13156 | I56: 32.484922 | J56: 2018-12-02 | K56: 23 | L56: Yes | M56: 16 | N56: 80 | O56: Benghazi | P56: 11 | Q56: 55 | R56: Misrata | S56: 5 | T56: 25 | X56: 16 | Y56: 80 | Z56: 0 | AA56: 0 | AB56: 0 | AC56: 0 | AD56: 0 | AE56: 0 | AF56: 0 | AG56: 0 | AH56: 0 | AI56: 0 | AJ56: 0 | AK56: 0 | AL56: 0 | AM56: 0 | AN56: 5 | AO56: 25 | AP56: 11 | AQ56: 55 | AR56: 0 | AS56: 0 | AT56: No | AU56: No | AV56: No | AW56: Yes | AX56: No | AY56: No | AZ56: No | BA56: No | BB56: Yes | BC56: No | BD56: No | BE56: No | BF56: Good | BG56: Health services | BH56: Too expensive | BK56: Food | BL56: Too expensive | BM56: Limited availability on market | BO56: NFIs | BP56: Too expensive
A57: East | B57: Almarj | C57: Jardas Alabeed | D57: Tacnis El Gharbia | E57: تاكنس الغربية | F57: LY01020105 | G57: Rural | H57: 21.120367 | I57: 32.476312 | J57: 2018-12-04 | K57: 23 | L57: No | M57: 0 | N57: 0 | AN57: 0 | AO57: 0 | AP57: 0 | AQ57: 0 | AR57: 0 | AS57: 0
A58: East | B58: Benghazi | C58: Alabyar | D58: Al radmani | E58: الردماني | F58: LY01030106 | G58: Rural | H58: 20.591051 | I58: 32.184038 | J58: 2018-12-06 | K58: 23 | L58: No | M58: 0 | N58: 0 | AN58: 0 | AO58: 0 | AP58: 0 | AQ58: 0 | AR58: 0 | AS58: 0
A59: East | B59: Benghazi | C59: Alabyar | D59: Alabyar El jadida | E59: الابيار الجديدة | F59: LY01030104 | G59: Urban | H59: 20.599129 | I59: 32.1873 | J59: 2018-12-04 | K59: 23 | L59: Yes | M59: 10 | N59: 50 | O59: Benghazi | P59: 10 | Q59: 50 | X59: 10 | Y59: 50 | Z59: 0 | AA59: 0 | AB59: 0 | AC59: 0 | AD59: 0 | AE59: 0 | AF59: 0 | AG59: 0 | AH59: 0 | AI59: 0 | AJ59: 0 | AK59: 0 | AL59: 0 | AM59: 0 | AN59: 0 | AO59: 0 | AP59: 10 | AQ59: 50 | AR59: 0 | AS59: 0 | AT59: No | AU59: Yes | AV59: No | AW59: No | AX59: No | AY59: No | AZ59: Yes | BA59: Yes | BB59: No | BC59: No | BD59: Yes | BE59: No | BF59: Good | BG59: Shelter | BH59: Too expensive | BK59: Health services | BL59: Too expensive | BO59: NFIs | BP59: Too expensive
A60: East | B60: Benghazi | C60: Alabyar | D60: Alabyar El kadima | E60: الابيارالقديمة | F60: LY01030105 | G60: Urban | H60: 20.593405 | I60: 32.196977 | J60: 2018-12-02 | K60: 23 | L60: Yes | M60: 6 | N60: 30 | O60: Benghazi | P60: 6 | Q60: 30 | X60: 6 | Y60: 30 | Z60: 0 | AA60: 0 | AB60: 0 | AC60: 0 | AD60: 0 | AE60: 0 | AF60: 0 | AG60: 0 | AH60: 0 | AI60: 0 | AJ60: 0 | AK60: 0 | AL60: 0 | AM60: 0 | AN60: 0 | AO60: 0 | AP60: 6 | AQ60: 30 | AR60: 0 | AS60: 0 | AT60: No | AU60: Yes | AV60: No | AW60: No | AX60: No | AY60: No | AZ60: No | BA60: Yes | BB60: Yes | BC60: No | BD60: Yes | BE60: No | BF60: Good | BG60: Shelter | BH60: Too expensive | BK60: Access to income | BL60: Jobs available but Income insufficient, | BO60: Water, Sanitation and Hygiene | BP60: No water network
A61: East | B61: Benghazi | C61: Alabyar | D61: Alumlytaniah | E61: المليطانية | F61: LY01030101 | G61: Urban | H61: 20.647454 | I61: 32.272772 | J61: 2018-12-09 | K61: 23 | L61: No | M61: 0 | N61: 0 | AN61: 0 | AO61: 0 | AP61: 0 | AQ61: 0 | AR61: 0 | AS61: 0
A62: East | B62: Benghazi | C62: Alabyar | D62: Bou meriam | E62: بومريم | F62: LY01030102 | G62: Rural | H62: 20.508353 | I62: 32.144048 | J62: 2018-12-11 | K62: 23 | L62: No | M62: 0 | N62: 0 | AN62: 0 | AO62: 0 | AP62: 0 | AQ62: 0 | AR62: 0 | AS62: 0
A63: East | B63: Benghazi | C63: Alabyar | D63: Ibrahim Abu Ras | E63: ابراهيم ابو راس | F63: LY01030107 | G63: Rural | H63: 20.672161 | I63: 32.362651 | J63: 2018-12-13 | K63: 23 | L63: No | M63: 0 | N63: 0 | AN63: 0 | AO63: 0 | AP63: 0 | AQ63: 0 | AR63: 0 | AS63: 0
A64: East | B64: Benghazi | C64: Alabyar | D64: Jira | E64: جيره | F64: LY01030103 | G64: Rural | H64: 20.430095 | I64: 32.133122 | J64: 2018-12-12 | K64: 23 | L64: No | M64: 0 | N64: 0 | AN64: 0 | AO64: 0 | AP64: 0 | AQ64: 0 | AR64: 0 | AS64: 0
A65: East | B65: Benghazi | C65: Benghazi | D65: Agrbel | E65: اغربيل | F65: LY01030401 | G65: Urban | H65: 20.061872 | I65: 32.118401 | J65: 2018-12-02 | K65: 23 | L65: Yes | M65: 30 | N65: 150 | O65: Benghazi | P65: 30 | Q65: 150 | X65: 30 | Y65: 150 | Z65: 0 | AA65: 0 | AB65: 0 | AC65: 0 | AD65: 0 | AE65: 0 | AF65: 0 | AG65: 0 | AH65: 0 | AI65: 0 | AJ65: 0 | AK65: 0 | AL65: 0 | AM65: 0 | AN65: 0 | AO65: 0 | AP65: 30 | AQ65: 150 | AR65: 0 | AS65: 0 | AT65: No | AU65: Yes | AV65: No | AW65: No | AX65: No | AY65: No | AZ65: No | BA65: Yes | BB65: No | BC65: No | BD65: No | BE65: No | BF65: Good | BG65: Shelter | BH65: Too expensive | BK65: Food | BL65: Too expensive | BO65: NFIs | BP65: Too expensive
A66: East | B66: Benghazi | C66: Benghazi | D66: Akharbish | E66: اخربيش | F66: LY01030402 | G66: Urban | H66: 20.052359 | I66: 31.914381 | J66: 2018-12-05 | K66: 23 | L66: No | M66: 0 | N66: 0 | AN66: 0 | AO66: 0 | AP66: 0 | AQ66: 0 | AR66: 0 | AS66: 0
A67: East | B67: Benghazi | C67: Benghazi | D67: al fuwayhat al gharbiya | E67: الفويهات الغربية | F67: LY01030403 | G67: Urban | H67: 20.068787 | I67: 32.076582 | J67: 2018-12-04 | K67: 23 | L67: Yes | M67: 280 | N67: 1400 | O67: Benghazi | P67: 272 | Q67: 1360 | R67: Derna | S67: 8 | T67: 40 | X67: 280 | Y67: 1400 | Z67: 0 | AA67: 0 | AB67: 0 | AC67: 0 | AD67: 0 | AE67: 0 | AF67: 0 | AG67: 0 | AH67: 0 | AI67: 0 | AJ67: 0 | AK67: 0 | AL67: 0 | AM67: 0 | AN67: 0 | AO67: 0 | AP67: 272 | AQ67: 1360 | AR67: 8 | AS67: 40 | AT67: No | AU67: Yes | AV67: No | AW67: No | AX67: No | AY67: Yes | AZ67: No | BA67: Yes | BB67: Yes | BC67: No | BD67: No | BE67: No | BF67: Good | BG67: Water, Sanitation and Hygiene | BH67: No water network | BK67: NFIs | BL67: Too expensive | BO67: Shelter | BP67: Not sufficiently available
A68: East | B68: Benghazi | C68: Benghazi | D68: Al Guouarcha | E68: القوا رشة | F68: LY01030404 | G68: Rural | H68: 20.078188 | I68: 32.018736 | J68: 2018-12-09 | K68: 23 | L68: No | M68: 0 | N68: 0 | AN68: 0 | AO68: 0 | AP68: 0 | AQ68: 0 | AR68: 0 | AS68: 0
A69: East | B69: Benghazi | C69: Benghazi | D69: Al Jazeera | E69: الجزيرة | F69: LY01030405 | G69: Urban | H69: 20.052823 | I69: 32.099386 | J69: 2018-12-06 | K69: 23 | L69: Yes | M69: 25 | N69: 125 | O69: Benghazi | P69: 25 | Q69: 125 | X69: 25 | Y69: 125 | Z69: 0 | AA69: 0 | AB69: 0 | AC69: 0 | AD69: 0 | AE69: 0 | AF69: 0 | AG69: 0 | AH69: 0 | AI69: 0 | AJ69: 0 | AK69: 0 | AL69: 0 | AM69: 0 | AN69: 0 | AO69: 0 | AP69: 25 | AQ69: 125 | AR69: 0 | AS69: 0 | AT69: No | AU69: Yes | AV69: Yes | AW69: No | AX69: No | AY69: No | AZ69: No | BA69: Yes | BB69: Yes | BC69: Yes | BD69: No | BE69: No | BF69: Good | BG69: Shelter | BH69: Too expensive | BK69: Food | BL69: Too expensive | BO69: NFIs | BP69: Too expensive
A70: East | B70: Benghazi | C70: Benghazi | D70: al salmani al gharbi | E70: السلماني الغربي | F70: LY01030406 | G70: Urban | H70: 20.092712 | I70: 32.119325 | J70: 2018-12-10 | K70: 23 | L70: Yes | M70: 250 | N70: 1250 | O70: Benghazi | P70: 250 | Q70: 1250 | X70: 250 | Y70: 1250 | Z70: 0 | AA70: 0 | AB70: 0 | AC70: 0 | AD70: 0 | AE70: 0 | AF70: 0 | AG70: 0 | AH70: 0 | AI70: 0 | AJ70: 0 | AK70: 0 | AL70: 0 | AM70: 0 | AN70: 0 | AO70: 0 | AP70: 250 | AQ70: 1250 | AR70: 0 | AS70: 0 | AT70: No | AU70: Yes | AV70: No | AW70: Yes | AX70: No | AY70: Yes | AZ70: No | BA70: Yes | BB70: Yes | BC70: No | BD70: No | BE70: No | BF70: Good | BG70: Shelter | BH70: Too expensive | BK70: Water, Sanitation and Hygiene | BL70: No waste management/disposal in Muhalla | BO70: NFIs | BP70: Other Problem
A71: East | B71: Benghazi | C71: Benghazi | D71: Aladrawi | E71: الدراوي | F71: LY01030407 | G71: Urban | H71: 20.063022 | I71: 32.118847 | J71: 2018-12-09 | K71: 23 | L71: No | M71: 0 | N71: 0 | AN71: 0 | AO71: 0 | AP71: 0 | AQ71: 0 | AR71: 0 | AS71: 0
A72: East | B72: Benghazi | C72: Benghazi | D72: Alfkat | E72: الفعكات | F72: LY01030408 | G72: Rural | H72: 20.070336 | I72: 32.009214 | J72: 2018-12-02 | K72: 23 | L72: No | M72: 0 | N72: 0 | AN72: 0 | AO72: 0 | AP72: 0 | AQ72: 0 | AR72: 0 | AS72: 0
A73: East | B73: Benghazi | C73: Benghazi | D73: Alkwyfiah | E73: الكويفيا | F73: LY01030409 | G73: Rural | H73: 20.171399 | I73: 32.201972 | J73: 2018-12-04 | K73: 23 | L73: Yes | M73: 350 | N73: 1850 | O73: Benghazi | P73: 350 | Q73: 1850 | X73: 350 | Y73: 1850 | Z73: 0 | AA73: 0 | AB73: 0 | AC73: 0 | AD73: 0 | AE73: 0 | AF73: 0 | AG73: 0 | AH73: 0 | AI73: 0 | AJ73: 0 | AK73: 0 | AL73: 0 | AM73: 0 | AN73: 0 | AO73: 0 | AP73: 350 | AQ73: 1850 | AR73: 0 | AS73: 0 | AT73: No | AU73: Yes | AV73: Yes | AW73: No | AX73: Yes | AY73: Yes | AZ73: No | BA73: Yes | BB73: Yes | BC73: No | BD73: No | BE73: No | BF73: Good | BG73: Water, Sanitation and Hygiene | BH73: No water network | BK73: NFIs | BL73: Too expensive | BO73: Shelter | BP73: Not sufficiently available
A74: East | B74: Benghazi | C74: Benghazi | D74: Alnoakiah | E74: النواقية | F74: LY01030410 | G74: Rural | H74: 20.164362 | I74: 31.929926 | J74: 2018-11-29 | K74: 23 | L74: Yes | M74: 50 | N74: 250 | O74: Benghazi | P74: 50 | Q74: 250 | X74: 50 | Y74: 250 | Z74: 0 | AA74: 0 | AB74: 0 | AC74: 0 | AD74: 0 | AE74: 0 | AF74: 0 | AG74: 0 | AH74: 0 | AI74: 0 | AJ74: 0 | AK74: 0 | AL74: 0 | AM74: 0 | AN74: 0 | AO74: 0 | AP74: 50 | AQ74: 250 | AR74: 0 | AS74: 0 | AT74: No | AU74: Yes | AV74: No | AW74: No | AX74: No | AY74: Yes | AZ74: No | BA74: Yes | BB74: Yes | BC74: No | BD74: No | BE74: No | BF74: Good | BG74: Water, Sanitation and Hygiene | BH74: No water network | BK74: NFIs | BL74: Too expensive | BO74: Shelter | BP74: Not sufficiently available
A75: East | B75: Benghazi | C75: Benghazi | D75: Belkhir | E75: بالخير | F75: LY01030416 | G75: Urban | H75: 20.063702 | I75: 32.123387 | J75: 2018-11-26 | K75: 23 | L75: No | M75: 0 | N75: 0 | AN75: 0 | AO75: 0 | AP75: 0 | AQ75: 0 | AR75: 0 | AS75: 0
A76: East | B76: Benghazi | C76: Benghazi | D76: Benghazi Al Jadida | E76: بنغازي الجديدة | F76: LY01030411 | G76: Urban | H76: 20.126343 | I76: 32.104057 | J76: 2018-12-16 | K76: 23 | L76: Yes | M76: 190 | N76: 950 | O76: Benghazi | P76: 130 | Q76: 650 | R76: Misrata | S76: 60 | T76: 300 | X76: 130 | Y76: 650 | Z76: 0 | AA76: 0 | AB76: 0 | AC76: 0 | AD76: 0 | AE76: 0 | AF76: 0 | AG76: 0 | AH76: 0 | AI76: 0 | AJ76: 60 | AK76: 300 | AL76: 0 | AM76: 0 | AN76: 60 | AO76: 300 | AP76: 130 | AQ76: 650 | AR76: 0 | AS76: 0 | AT76: No | AU76: Yes | AV76: Yes | AW76: No | AX76: No | AY76: Yes | AZ76: No | BA76: Yes | BB76: Yes | BC76: No | BD76: No | BE76: No | BF76: Good | BG76: Shelter | BH76: Too expensive | BK76: Food | BL76: Too expensive | BO76: NFIs | BP76: Too expensive
A77: East | B77: Benghazi | C77: Benghazi | D77: Benina | E77: بنينة | F77: LY01030412 | G77: Rural | H77: 20.253941 | I77: 32.087482 | J77: 2018-11-29 | K77: 23 | L77: Yes | M77: 150 | N77: 750 | O77: Benghazi | P77: 150 | Q77: 750 | X77: 150 | Y77: 750 | Z77: 0 | AA77: 0 | AB77: 0 | AC77: 0 | AD77: 0 | AE77: 0 | AF77: 0 | AG77: 0 | AH77: 0 | AI77: 0 | AJ77: 0 | AK77: 0 | AL77: 0 | AM77: 0 | AN77: 0 | AO77: 0 | AP77: 150 | AQ77: 750 | AR77: 0 | AS77: 0 | AT77: No | AU77: Yes | AV77: Yes | AW77: No | AX77: No | AY77: No | AZ77: No | BA77: Yes | BB77: Yes | BC77: No | BD77: No | BE77: No | BF77: Good | BG77: Shelter | BH77: Too expensive | BK77: Food | BL77: Too expensive | BO77: NFIs | BP77: Too expensive
A78: East | B78: Benghazi | C78: Benghazi | D78: Bin Isa | E78: بن عيسى | F78: LY01030417 | G78: Urban | H78: 20.065726 | I78: 32.120191 | J78: 2018-11-22 | K78: 23 | L78: No | M78: 0 | N78: 0 | AN78: 0 | AO78: 0 | AP78: 0 | AQ78: 0 | AR78: 0 | AS78: 0
A79: East | B79: Benghazi | C79: Benghazi | D79: Bu Atnai | E79: بو عطني | F79: LY01030413 | G79: Rural | H79: 20.172109 | I79: 32.102915 | J79: 2018-12-01 | K79: 23 | L79: Yes | M79: 150 | N79: 750 | O79: Benghazi | P79: 150 | Q79: 750 | X79: 150 | Y79: 750 | Z79: 0 | AA79: 0 | AB79: 0 | AC79: 0 | AD79: 0 | AE79: 0 | AF79: 0 | AG79: 0 | AH79: 0 | AI79: 0 | AJ79: 0 | AK79: 0 | AL79: 0 | AM79: 0 | AN79: 0 | AO79: 0 | AP79: 0 | AQ79: 0 | AR79: 150 | AS79: 750 | AT79: No | AU79: Yes | AV79: No | AW79: No | AX79: No | AY79: No | AZ79: No | BA79: Yes | BB79: No | BC79: No | BD79: No | BE79: No | BF79: Good | BG79: Shelter | BH79: Not sufficiently available | BK79: Water, Sanitation and Hygiene | BL79: Available water quantity not sufficient | BO79: Food | BP79: Too expensive
A80: East | B80: Benghazi | C80: Benghazi | D80: Bu Dzirah | E80: بو دزيرة | F80: LY01030414 | G80: Rural | H80: 20.13386 | I80: 32.171645 | J80: 2018-12-10 | K80: 23 | L80: Yes | M80: 150 | N80: 750 | O80: Benghazi | P80: 150 | Q80: 750 | X80: 150 | Y80: 750 | Z80: 0 | AA80: 0 | AB80: 0 | AC80: 0 | AD80: 0 | AE80: 0 | AF80: 0 | AG80: 0 | AH80: 0 | AI80: 0 | AJ80: 0 | AK80: 0 | AL80: 0 | AM80: 0 | AN80: 0 | AO80: 0 | AP80: 150 | AQ80: 750 | AR80: 0 | AS80: 0 | AT80: No | AU80: Yes | AV80: No | AW80: No | AX80: No | AY80: No | AZ80: No | BA80: Yes | BB80: No | BC80: No | BD80: No | BE80: No | BF80: Good | BG80: Shelter | BH80: Not sufficiently available | BK80: Water, Sanitation and Hygiene | BL80: Available water quantity not sufficient | BO80: Food | BP80: Too expensive
A81: East | B81: Benghazi | C81: Benghazi | D81: Bu Fekhra | E81: بو فاخرة | F81: LY01030415 | G81: Rural | H81: 19.975719 | I81: 31.945576 | J81: 2018-12-18 | K81: 23 | L81: No | M81: 0 | N81: 0 | AN81: 0 | AO81: 0 | AP81: 0 | AQ81: 0 | AR81: 0 | AS81: 0
A82: East | B82: Benghazi | C82: Benghazi | D82: Chebbi | E82: الشابي | F82: LY01030419 | G82: Urban | H82: 20.057411 | I82: 32.12041 | J82: 2018-12-13 | K82: 23 | L82: No | M82: 0 | N82: 0 | AN82: 0 | AO82: 0 | AP82: 0 | AQ82: 0 | AR82: 0 | AS82: 0
A83: East | B83: Benghazi | C83: Benghazi | D83: Daoud El bahria | E83: داود البحرية | F83: LY01030420 | G83: Urban | H83: 20.070162 | I83: 32.110766 | J83: 2018-12-08 | K83: 23 | L83: Yes | M83: 300 | N83: 1500 | O83: Benghazi | P83: 300 | Q83: 1500 | X83: 300 | Y83: 1500 | Z83: 0 | AA83: 0 | AB83: 0 | AC83: 0 | AD83: 0 | AE83: 0 | AF83: 0 | AG83: 0 | AH83: 0 | AI83: 0 | AJ83: 0 | AK83: 0 | AL83: 0 | AM83: 0 | AN83: 0 | AO83: 0 | AP83: 300 | AQ83: 1500 | AR83: 0 | AS83: 0 | AT83: No | AU83: Yes | AV83: No | AW83: No | AX83: Yes | AY83: No | AZ83: No | BA83: Yes | BB83: Yes | BC83: No | BD83: No | BE83: No | BF83: Good | BG83: Shelter | BH83: Too expensive | BK83: NFIs | BL83: Other Problem | BO83: Legal Help | BP83: lost or insufficient documentation
A84: East | B84: Benghazi | C84: Benghazi | D84: Daoud Gharbi | E84: داودالغربي | F84: LY01030418 | G84: Urban | H84: 20.076356 | I84: 32.097972 | J84: 2018-12-15 | K84: 23 | L84: Yes | M84: 250 | N84: 1250 | O84: Benghazi | P84: 250 | Q84: 1250 | X84: 250 | Y84: 1250 | Z84: 0 | AA84: 0 | AB84: 0 | AC84: 0 | AD84: 0 | AE84: 0 | AF84: 0 | AG84: 0 | AH84: 0 | AI84: 0 | AJ84: 0 | AK84: 0 | AL84: 0 | AM84: 0 | AN84: 0 | AO84: 0 | AP84: 250 | AQ84: 1250 | AR84: 0 | AS84: 0 | AT84: No | AU84: Yes | AV84: No | AW84: No | AX84: No | AY84: Yes | AZ84: No | BA84: Yes | BB84: Yes | BC84: No | BD84: No | BE84: No | BF84: Good | BG84: Shelter | BH84: Too expensive | BK84: NFIs | BL84: Other Problem | BO84: Legal Help | BP84: lost or insufficient documentation
A85: East | B85: Benghazi | C85: Benghazi | D85: Daoud Kebli | E85: داود القبلي | F85: LY01030424 | G85: Urban | H85: 20.081548 | I85: 32.097435 | J85: 2018-12-22 | K85: 23 | L85: Yes | M85: 250 | N85: 1250 | O85: Benghazi | P85: 250 | Q85: 1250 | X85: 250 | Y85: 1250 | Z85: 0 | AA85: 0 | AB85: 0 | AC85: 0 | AD85: 0 | AE85: 0 | AF85: 0 | AG85: 0 | AH85: 0 | AI85: 0 | AJ85: 0 | AK85: 0 | AL85: 0 | AM85: 0 | AN85: 0 | AO85: 0 | AP85: 250 | AQ85: 1250 | AR85: 0 | AS85: 0 | AT85: No | AU85: Yes | AV85: No | AW85: No | AX85: No | AY85: Yes | AZ85: No | BA85: Yes | BB85: Yes | BC85: No | BD85: No | BE85: No | BF85: Good | BG85: Shelter | BH85: Too expensive | BK85: NFIs | BL85: Other Problem | BO85: Legal Help | BP85: lost or insufficient documentation
A86: East | B86: Benghazi | C86: Benghazi | D86: Dar Al Arabiyat | E86: دار العربيات | F86: LY01030434 | G86: Urban | H86: 20.246055 | I86: 32.283651 | J86: 2018-12-08 | K86: 23 | L86: Yes | M86: 80 | N86: 400 | O86: Benghazi | P86: 80 | Q86: 400 | X86: 80 | Y86: 400 | Z86: 0 | AA86: 0 | AB86: 0 | AC86: 0 | AD86: 0 | AE86: 0 | AF86: 0 | AG86: 0 | AH86: 0 | AI86: 0 | AJ86: 0 | AK86: 0 | AL86: 0 | AM86: 0 | AN86: 0 | AO86: 0 | AP86: 80 | AQ86: 400 | AR86: 0 | AS86: 0 | AT86: No | AU86: Yes | AV86: No | AW86: No | AX86: No | AY86: No | AZ86: No | BA86: Yes | BB86: Yes | BC86: No | BD86: No | BE86: No | BF86: Good | BG86: Shelter | BH86: Not sufficiently available | BK86: NFIs | BL86: Too expensive | BO86: Water, Sanitation and Hygiene | BP86: Too expensive
A87: East | B87: Benghazi | C87: Benghazi | D87: Deriana | E87: دريانة | F87: LY01030421 | G87: Rural | H87: 20.308911 | I87: 32.34727 | J87: 2018-12-23 | K87: 23 | L87: Yes | M87: 100 | N87: 500 | O87: Benghazi | P87: 100 | Q87: 500 | X87: 100 | Y87: 500 | Z87: 0 | AA87: 0 | AB87: 0 | AC87: 0 | AD87: 0 | AE87: 0 | AF87: 0 | AG87: 0 | AH87: 0 | AI87: 0 | AJ87: 0 | AK87: 0 | AL87: 0 | AM87: 0 | AN87: 0 | AO87: 0 | AP87: 100 | AQ87: 500 | AR87: 0 | AS87: 0 | AT87: No | AU87: Yes | AV87: No | AW87: No | AX87: No | AY87: Yes | AZ87: No | BA87: Yes | BB87: Yes | BC87: No | BD87: No | BE87: No | BF87: Good | BG87: Shelter | BH87: Too expensive | BK87: Water, Sanitation and Hygiene | BL87: No waste management/disposal in Muhalla | BO87: NFIs | BP87: Other Problem
A88: East | B88: Benghazi | C88: Benghazi | D88: El mukhtar | E88: المختار | F88: LY01030422 | G88: Urban | H88: 20.110064 | I88: 32.134469 | J88: 2018-11-15 | K88: 23 | L88: Yes | M88: 600 | N88: 3000 | O88: Benghazi | P88: 600 | Q88: 3000 | X88: 600 | Y88: 3000 | Z88: 0 | AA88: 0 | AB88: 0 | AC88: 0 | AD88: 0 | AE88: 0 | AF88: 0 | AG88: 0 | AH88: 0 | AI88: 0 | AJ88: 0 | AK88: 0 | AL88: 0 | AM88: 0 | AN88: 0 | AO88: 0 | AP88: 600 | AQ88: 3000 | AR88: 0 | AS88: 0 | AT88: No | AU88: Yes | AV88: No | AW88: No | AX88: No | AY88: Yes | AZ88: No | BA88: Yes | BB88: Yes | BC88: No | BD88: No | BE88: No | BF88: Good | BG88: Water, Sanitation and Hygiene | BH88: No water network | BK88: NFIs | BL88: Too expensive | BO88: Shelter | BP88: Not sufficiently available
A89: East | B89: Benghazi | C89: Benghazi | D89: Erajma | E89: الرجمة | F89: LY01030423 | G89: Rural | H89: 20.34424 | I89: 32.070796 | J89: 2018-11-20 | K89: 23 | L89: Yes | M89: 40 | N89: 200 | O89: Benghazi | P89: 40 | Q89: 200 | X89: 40 | Y89: 200 | Z89: 0 | AA89: 0 | AB89: 0 | AC89: 0 | AD89: 0 | AE89: 0 | AF89: 0 | AG89: 0 | AH89: 0 | AI89: 0 | AJ89: 0 | AK89: 0 | AL89: 0 | AM89: 0 | AN89: 0 | AO89: 0 | AP89: 40 | AQ89: 200 | AR89: 0 | AS89: 0 | AT89: No | AU89: No | AV89: No | AW89: Yes | AX89: No | AY89: No | AZ89: No | BA89: Yes | BB89: Yes | BC89: No | BD89: No | BE89: No | BF89: Good | BG89: Shelter | BH89: Not sufficiently available | BK89: NFIs | BL89: Too expensive | BO89: Food | BP89: Too expensive
A90: East | B90: Benghazi | C90: Benghazi | D90: Eterba | E90: التربة | F90: LY01030435 | G90: Rural | H90: 19.949546 | I90: 31.874127 | J90: 2018-11-17 | K90: 23 | L90: No | M90: 0 | N90: 0 | AN90: 0 | AO90: 0 | AP90: 0 | AQ90: 0 | AR90: 0 | AS90: 0
A91: East | B91: Benghazi | C91: Benghazi | D91: Garyounes | E91: قاريونس | F91: LY01030425 | G91: Rural | H91: 20.041819 | I91: 32.046623 | J91: 2018-12-15 | K91: 23 | L91: Yes | M91: 60 | N91: 300 | O91: Misrata | P91: 60 | Q91: 300 | X91: 0 | Y91: 0 | Z91: 0 | AA91: 0 | AB91: 0 | AC91: 0 | AD91: 0 | AE91: 0 | AF91: 60 | AG91: 300 | AH91: 0 | AI91: 0 | AJ91: 0 | AK91: 0 | AL91: 0 | AM91: 0 | AN91: 0 | AO91: 0 | AP91: 60 | AQ91: 300 | AR91: 0 | AS91: 0 | AT91: No | AU91: Yes | AV91: No | AW91: No | AX91: No | AY91: No | AZ91: No | BA91: Yes | BB91: No | BC91: No | BD91: No | BE91: No | BF91: Good | BG91: Shelter | BH91: Not sufficiently available | BK91: NFIs | BL91: Too expensive | BO91: Food | BP91: Too expensive
A92: East | B92: Benghazi | C92: Benghazi | D92: Khalid bin Waleed | E92: خالد بن وليد | F92: LY01030426 | G92: Urban | H92: 20.10146 | I92: 32.09478 | J92: 2018-12-11 | K92: 23 | L92: Yes | M92: 200 | N92: 1000 | O92: Benghazi | P92: 200 | Q92: 1000 | X92: 200 | Y92: 1000 | Z92: 0 | AA92: 0 | AB92: 0 | AC92: 0 | AD92: 0 | AE92: 0 | AF92: 0 | AG92: 0 | AH92: 0 | AI92: 0 | AJ92: 0 | AK92: 0 | AL92: 0 | AM92: 0 | AN92: 0 | AO92: 0 | AP92: 200 | AQ92: 1000 | AR92: 0 | AS92: 0 | AT92: No | AU92: Yes | AV92: No | AW92: No | AX92: No | AY92: No | AZ92: No | BA92: Yes | BB92: No | BC92: No | BD92: No | BE92: No | BF92: Good | BG92: Shelter | BH92: Too expensive | BK92: Food | BL92: Too expensive | BO92: NFIs | BP92: Too expensive | BQ92: Not sufficiently available
A93: East | B93: Benghazi | C93: Benghazi | D93: Louhichi | E93: الوحيشي | F93: LY01030427 | G93: Urban | H93: 20.114121 | I93: 32.132526 | J93: 2018-12-01 | K93: 23 | L93: Yes | M93: 150 | N93: 750 | O93: Benghazi | P93: 150 | Q93: 750 | X93: 150 | Y93: 750 | Z93: 0 | AA93: 0 | AB93: 0 | AC93: 0 | AD93: 0 | AE93: 0 | AF93: 0 | AG93: 0 | AH93: 0 | AI93: 0 | AJ93: 0 | AK93: 0 | AL93: 0 | AM93: 0 | AN93: 0 | AO93: 0 | AP93: 150 | AQ93: 750 | AR93: 0 | AS93: 0 | AT93: No | AU93: Yes | AV93: No | AW93: No | AX93: No | AY93: Yes | AZ93: No | BA93: Yes | BB93: Yes | BC93: No | BD93: No | BE93: No | BF93: Good | BG93: Shelter | BH93: Too expensive | BK93: Food | BL93: Too expensive | BO93: NFIs | BP93: Too expensive
A94: East | B94: Benghazi | C94: Benghazi | D94: Qnfodah | E94: قنفودة | F94: LY01030428 | G94: Rural | H94: 20.016156 | I94: 32.029039 | J94: 2018-12-20 | K94: 23 | L94: Yes | M94: 298 | N94: 1490 | O94: Misrata | P94: 298 | Q94: 1490 | X94: 0 | Y94: 0 | Z94: 0 | AA94: 0 | AB94: 0 | AC94: 0 | AD94: 0 | AE94: 0 | AF94: 0 | AG94: 0 | AH94: 0 | AI94: 0 | AJ94: 298 | AK94: 1490 | AL94: 0 | AM94: 0 | AN94: 0 | AO94: 0 | AP94: 298 | AQ94: 1490 | AR94: 0 | AS94: 0 | AT94: No | AU94: Yes | AV94: No | AW94: No | AX94: No | AY94: No | AZ94: No | BA94: Yes | BB94: No | BC94: No | BD94: No | BE94: No | BF94: Good | BG94: Shelter | BH94: Not sufficiently available | BK94: Water, Sanitation and Hygiene | BL94: Available water quantity not sufficient | BO94: Food | BP94: Too expensive
A95: East | B95: Benghazi | C95: Benghazi | D95: Sabri Echarqui | E95: الصابري الشرقي | F95: LY01030429 | G95: Urban | H95: 20.08358 | I95: 32.141972 | J95: 2018-11-29 | K95: 23 | L95: No | M95: 0 | N95: 0 | AN95: 0 | AO95: 0 | AP95: 0 | AQ95: 0 | AR95: 0 | AS95: 0
A96: East | B96: Benghazi | C96: Benghazi | D96: Sharif | E96: الشريف | F96: LY01030430 | G96: Urban | H96: 20.118473 | I96: 32.124601 | J96: 2018-12-04 | K96: 23 | L96: No | M96: 0 | N96: 0 | AN96: 0 | AO96: 0 | AP96: 0 | AQ96: 0 | AR96: 0 | AS96: 0
A97: East | B97: Benghazi | C97: Benghazi | D97: Sidi Eswiker | E97: سيدي أسويكر | F97: LY01030431 | G97: Rural | H97: 20.293319 | I97: 32.329345 | J97: 2018-11-26 | K97: 23 | L97: Yes | M97: 200 | N97: 1000 | O97: Benghazi | P97: 200 | Q97: 1000 | X97: 200 | Y97: 1000 | Z97: 0 | AA97: 0 | AB97: 0 | AC97: 0 | AD97: 0 | AE97: 0 | AF97: 0 | AG97: 0 | AH97: 0 | AI97: 0 | AJ97: 0 | AK97: 0 | AL97: 0 | AM97: 0 | AN97: 0 | AO97: 0 | AP97: 200 | AQ97: 1000 | AR97: 0 | AS97: 0 | AT97: No | AU97: Yes | AV97: No | AW97: No | AX97: Yes | AY97: No | AZ97: No | BA97: Yes | BB97: No | BC97: No | BD97: No | BE97: No | BF97: Good | BG97: Shelter | BH97: Not sufficiently available | BK97: Water, Sanitation and Hygiene | BL97: Available water quantity not sufficient | BO97: Food | BP97: Too expensive
A98: East | B98: Benghazi | C98: Benghazi | D98: Sidi Hussein | E98: سيدي حسين | F98: LY01030432 | G98: Urban | H98: 20.07455 | I98: 32.110034 | J98: 2018-12-15 | K98: 23 | L98: Yes | M98: 490 | N98: 2450 | O98: Misrata | P98: 400 | Q98: 2000 | R98: Benghazi | S98: 90 | T98: 450 | X98: 90 | Y98: 450 | Z98: 0 | AA98: 0 | AB98: 0 | AC98: 0 | AD98: 0 | AE98: 0 | AF98: 0 | AG98: 0 | AH98: 0 | AI98: 0 | AJ98: 400 | AK98: 2000 | AL98: 0 | AM98: 0 | AN98: 300 | AO98: 1500 | AP98: 190 | AQ98: 950 | AR98: 0 | AS98: 0 | AT98: No | AU98: Yes | AV98: No | AW98: No | AX98: No | AY98: Yes | AZ98: No | BA98: Yes | BB98: Yes | BC98: No | BD98: No | BE98: No | BF98: Good | BG98: Shelter | BH98: Too expensive | BK98: Water, Sanitation and Hygiene | BL98: No waste management/disposal in Muhalla | BO98: NFIs | BP98: Other Problem
A99: East | B99: Benghazi | C99: Benghazi | D99: Sidi Khalifa | E99: سيدي خليفة | F99: LY01030433 | G99: Rural | H99: 20.206518 | I99: 32.260356 | J99: 2018-12-12 | K99: 23 | L99: Yes | M99: 220 | N99: 1200 | O99: Benghazi | P99: 220 | Q99: 1200 | X99: 220 | Y99: 1200 | Z99: 0 | AA99: 0 | AB99: 0 | AC99: 0 | AD99: 0 | AE99: 0 | AF99: 0 | AG99: 0 | AH99: 0 | AI99: 0 | AJ99: 0 | AK99: 0 | AL99: 0 | AM99: 0 | AN99: 0 | AO99: 0 | AP99: 220 | AQ99: 1200 | AR99: 0 | AS99: 0 | AT99: No | AU99: Yes | AV99: No | AW99: No | AX99: Yes | AY99: No | AZ99: No | BA99: Yes | BB99: Yes | BC99: No | BD99: No | BE99: No | BF99: Good | BG99: Shelter | BH99: Not sufficiently available | BK99: NFIs | BL99: Too expensive | BO99: Water, Sanitation and Hygiene | BP99: No water network
A100: East | B100: Benghazi | C100: Benghazi | D100: Sidi Salem | E100: سيدي سالم | F100: LY01030438 | G100: Rural | H100: 20.061371 | I100: 32.121679 | J100: 2018-12-10 | K100: 23 | L100: No | M100: 0 | N100: 0 | AN100: 0 | AO100: 0 | AP100: 0 | AQ100: 0 | AR100: 0 | AS100: 0
A101: East | B101: Benghazi | C101: Benghazi | D101: Thawra Echaabia | E101: الثورة الشعبية | F101: LY01030439 | G101: Rural | H101: 20.097492 | I101: 32.123554 | J101: 2018-11-27 | K101: 23 | L101: Yes | M101: 320 | N101: 1600 | O101: Benghazi | P101: 300 | Q101: 1500 | R101: Derna | S101: 20 | T101: 100 | X101: 320 | Y101: 1600 | Z101: 0 | AA101: 0 | AB101: 0 | AC101: 0 | AD101: 0 | AE101: 0 | AF101: 0 | AG101: 0 | AH101: 0 | AI101: 0 | AJ101: 0 | AK101: 0 | AL101: 0 | AM101: 0 | AN101: 0 | AO101: 0 | AP101: 300 | AQ101: 1500 | AR101: 20 | AS101: 100 | AT101: No | AU101: Yes | AV101: Yes | AW101: No | AX101: No | AY101: No | AZ101: No | BA101: Yes | BB101: Yes | BC101: Yes | BD101: No | BE101: No | BF101: Good | BG101: Shelter | BH101: Too expensive | BK101: NFIs | BL101: Too expensive | BO101: Food | BP101: Too expensive
A102: East | B102: Benghazi | C102: Benghazi | D102: Tikah | E102: تيكة | F102: LY01030436 | G102: Rural | H102: 20.014919 | I102: 31.931369 | J102: 2018-12-12 | K102: 23 | L102: Yes | M102: 150 | N102: 750 | O102: Benghazi | P102: 150 | Q102: 750 | X102: 150 | Y102: 750 | Z102: 0 | AA102: 0 | AB102: 0 | AC102: 0 | AD102: 0 | AE102: 0 | AF102: 0 | AG102: 0 | AH102: 0 | AI102: 0 | AJ102: 0 | AK102: 0 | AL102: 0 | AM102: 0 | AN102: 0 | AO102: 0 | AP102: 150 | AQ102: 750 | AR102: 0 | AS102: 0 | AT102: No | AU102: Yes | AV102: No | AW102: No | AX102: No | AY102: No | AZ102: No | BA102: Yes | BB102: No | BC102: No | BD102: No | BE102: No | BF102: Good | BG102: Shelter | BH102: Too expensive | BK102: Food | BL102: Too expensive | BO102: NFIs | BP102: Too expensive
A103: East | B103: Benghazi | C103: Benghazi | D103: Western El gharbi | E103: الصابري الغربي | F103: LY01030437 | G103: Urban | H103: 20.079075 | I103: 32.136794 | J103: 2018-12-13 | K103: 23 | L103: No | M103: 0 | N103: 0 | AN103: 0 | AO103: 0 | AP103: 0 | AQ103: 0 | AR103: 0 | AS103: 0
A104: East | B104: Benghazi | C104: Gemienis | D104: Erakta | E104: الرقطه | F104: LY01030501 | G104: Rural | H104: 20.132971 | I104: 31.277933 | J104: 2018-12-10 | K104: 23 | L104: No | M104: 0 | N104: 0 | AN104: 0 | AO104: 0 | AP104: 0 | AQ104: 0 | AR104: 0 | AS104: 0
A105: East | B105: Benghazi | C105: Gemienis | D105: Gemienis Echarquia | E105: قمينس الشرقيه | F105: LY01030505 | G105: Urban | H105: 20.022228 | I105: 31.661068 | J105: 2018-11-27 | K105: 23 | L105: Yes | M105: 15 | N105: 75 | O105: Benghazi | P105: 15 | Q105: 75 | X105: 15 | Y105: 75 | Z105: 0 | AA105: 0 | AB105: 0 | AC105: 0 | AD105: 0 | AE105: 0 | AF105: 0 | AG105: 0 | AH105: 0 | AI105: 0 | AJ105: 0 | AK105: 0 | AL105: 0 | AM105: 0 | AN105: 0 | AO105: 0 | AP105: 15 | AQ105: 75 | AR105: 0 | AS105: 0 | AT105: No | AU105: Yes | AV105: No | AW105: No | AX105: No | AY105: No | AZ105: No | BA105: Yes | BB105: Yes | BC105: No | BD105: Yes | BE105: No | BF105: Good | BG105: Shelter | BH105: Too expensive | BK105: Access to income | BL105: Jobs available but Income insufficient, | BO105: NFIs | BP105: Too expensive
A106: East | B106: Benghazi | C106: Gemienis | D106: Gemienis Gharbia | E106: قمينس الغربيه | F106: LY01030507 | G106: Urban | H106: 20.006554 | I106: 31.656398 | J106: 2018-11-29 | K106: 23 | L106: No | M106: 0 | N106: 0 | AN106: 0 | AO106: 0 | AP106: 0 | AQ106: 0 | AR106: 0 | AS106: 0
A107: East | B107: Benghazi | C107: Gemienis | D107: Herz | E107: الحرز | F107: LY01030503 | G107: Rural | J107: 2018-12-11 | K107: 23 | L107: No | M107: 0 | N107: 0 | AN107: 0 | AO107: 0 | AP107: 0 | AQ107: 0 | AR107: 0 | AS107: 0
A108: East | B108: Benghazi | C108: Gemienis | D108: Karakura | E108: كركورة | F108: LY01030502 | G108: Rural | H108: 20.028471 | I108: 31.422451 | J108: 2018-12-04 | K108: 23 | L108: No | M108: 0 | N108: 0 | AN108: 0 | AO108: 0 | AP108: 0 | AQ108: 0 | AR108: 0 | AS108: 0
A109: East | B109: Benghazi | C109: Gemienis | D109: Magrun | E109: المقرون | F109: LY01030504 | G109: Rural | H109: 20.15013 | I109: 31.44024 | J109: 2018-12-02 | K109: 23 | L109: No | M109: 0 | N109: 0 | AN109: 0 | AO109: 0 | AP109: 0 | AQ109: 0 | AR109: 0 | AS109: 0
A110: East | B110: Benghazi | C110: Gemienis | D110: Shatt Elbadine | E110: شط البدين | F110: LY01030506 | G110: Rural | H110: 20.138658 | I110: 31.262905 | J110: 2018-12-25 | K110: 23 | L110: No | M110: 0 | N110: 0 | AN110: 0 | AO110: 0 | AP110: 0 | AQ110: 0 | AR110: 0 | AS110: 0
A111: East | B111: Benghazi | C111: Suloug | D111: El Khadhra Charquia | E111: الخضراء الشرقية | F111: LY01030301 | G111: Rural | J111: 2018-12-12 | K111: 23 | L111: No | M111: 0 | N111: 0 | AN111: 0 | AO111: 0 | AP111: 0 | AQ111: 0 | AR111: 0 | AS111: 0
A112: East | B112: Benghazi | C112: Suloug | D112: El Khadhra El Gharbia | E112: الخضراء الغربية | F112: LY01030302 | G112: Rural | J112: 2018-12-13 | K112: 23 | L112: No | M112: 0 | N112: 0 | AN112: 0 | AO112: 0 | AP112: 0 | AQ112: 0 | AR112: 0 | AS112: 0
A113: East | B113: Benghazi | C113: Suloug | D113: Massus | E113: مسوس | F113: LY01030303 | G113: Rural | H113: 21.017847 | I113: 31.583258 | J113: 2018-12-05 | K113: 23 | L113: No | M113: 0 | N113: 0 | AN113: 0 | AO113: 0 | AP113: 0 | AQ113: 0 | AR113: 0 | AS113: 0
A114: East | B114: Benghazi | C114: Suloug | D114: Omar Mukhtar | E114: عمر المختار | F114: LY01030307 | G114: Urban | H114: 20.257887 | I114: 31.661918 | J114: 2018-12-02 | K114: 23 | L114: Yes | M114: 8 | N114: 40 | O114: Benghazi | P114: 8 | Q114: 40 | X114: 8 | Y114: 40 | Z114: 0 | AA114: 0 | AB114: 0 | AC114: 0 | AD114: 0 | AE114: 0 | AF114: 0 | AG114: 0 | AH114: 0 | AI114: 0 | AJ114: 0 | AK114: 0 | AL114: 0 | AM114: 0 | AN114: 0 | AO114: 0 | AP114: 8 | AQ114: 40 | AR114: 0 | AS114: 0 | AT114: No | AU114: Yes | AV114: No | AW114: No | AX114: No | AY114: No | AZ114: No | BA114: Yes | BB114: Yes | BC114: No | BD114: Yes | BE114: No | BF114: Good | BG114: Shelter | BH114: Too expensive | BK114: Food | BL114: Too expensive | BO114: NFIs | BP114: Too expensive
A115: East | B115: Benghazi | C115: Suloug | D115: Suloug Gharbia | E115: سلوق\الغربية | F115: LY01030304 | G115: Urban | H115: 20.17727 | I115: 31.62714 | J115: 2018-11-27 | K115: 23 | L115: Yes | M115: 12 | N115: 60 | O115: Benghazi | P115: 12 | Q115: 60 | X115: 12 | Y115: 60 | Z115: 0 | AA115: 0 | AB115: 0 | AC115: 0 | AD115: 0 | AE115: 0 | AF115: 0 | AG115: 0 | AH115: 0 | AI115: 0 | AJ115: 0 | AK115: 0 | AL115: 0 | AM115: 0 | AN115: 0 | AO115: 0 | AP115: 12 | AQ115: 60 | AR115: 0 | AS115: 0 | AT115: No | AU115: Yes | AV115: No | AW115: Yes | AX115: No | AY115: No | AZ115: No | BA115: Yes | BB115: Yes | BC115: No | BD115: Yes | BE115: No | BF115: Good | BG115: Shelter | BH115: Too expensive | BK115: Access to income | BL115: Jobs available but Income insufficient, | BO115: NFIs | BP115: Too expensive
A116: East | B116: Benghazi | C116: Suloug | D116: Suloug Charquia | E116: سلوق الشرقية | F116: LY01030305 | G116: Urban | H116: 20.26667 | I116: 31.68333 | J116: 2018-11-28 | K116: 23 | L116: No | M116: 0 | N116: 0 | AN116: 0 | AO116: 0 | AP116: 0 | AQ116: 0 | AR116: 0 | AS116: 0
A117: East | B117: Benghazi | C117: Suloug | D117: Tailmon | E117: الطيلمون | F117: LY01030306 | G117: Rural | H117: 20.17495 | I117: 31.589392 | J117: 2018-12-04 | K117: 23 | L117: No | M117: 0 | N117: 0 | AN117: 0 | AO117: 0 | AP117: 0 | AQ117: 0 | AR117: 0 | AS117: 0
A118: East | B118: Benghazi | C118: Toukra | D118: Alakoriah El markaz | E118: العقورية المركز | F118: LY01030201 | G118: Urban | H118: 20.566667 | I118: 32.533333 | J118: 2018-11-28 | K118: 23 | L118: Yes | M118: 18 | N118: 90 | O118: Benghazi | P118: 12 | Q118: 60 | R118: Sirt | S118: 6 | T118: 30 | X118: 18 | Y118: 90 | Z118: 0 | AA118: 0 | AB118: 0 | AC118: 0 | AD118: 0 | AE118: 0 | AF118: 0 | AG118: 0 | AH118: 0 | AI118: 0 | AJ118: 0 | AK118: 0 | AL118: 0 | AM118: 0 | AN118: 0 | AO118: 0 | AP118: 18 | AQ118: 90 | AR118: 0 | AS118: 0 | AT118: No | AU118: No | AV118: No | AW118: Yes | AX118: No | AY118: No | AZ118: No | BA118: Yes | BB118: Yes | BC118: No | BD118: No | BE118: No | BF118: Good | BG118: Shelter | BH118: Too expensive | BK118: Health services | BL118: Too expensive | BO118: Water, Sanitation and Hygiene | BP118: No water network | BQ118: No waste management/disposal in Muhalla
A119: East | B119: Benghazi | C119: Toukra | D119: Ardno | E119: اردنـــــــو | F119: LY01030203 | G119: Rural | H119: 20.532074 | I119: 32.496477 | J119: 2018-12-04 | K119: 23 | L119: No | M119: 0 | N119: 0 | AN119: 0 | AO119: 0 | AP119: 0 | AQ119: 0 | AR119: 0 | AS119: 0
A120: East | B120: Benghazi | C120: Toukra | D120: bercess | E120: برسس | F120: LY01030202 | G120: Rural | H120: 20.447676 | I120: 32.428108 | J120: 2018-12-04 | K120: 23 | L120: No | M120: 0 | N120: 0 | AN120: 0 | AO120: 0 | AP120: 0 | AQ120: 0 | AR120: 0 | AS120: 0
A121: East | B121: Benghazi | C121: Toukra | D121: Bogerar | E121: بوجـــــرار | F121: LY01030204 | G121: Rural | H121: 20.52557 | I121: 32.496718 | J121: 2018-12-18 | K121: 23 | L121: No | M121: 0 | N121: 0 | AN121: 0 | AO121: 0 | AP121: 0 | AQ121: 0 | AR121: 0 | AS121: 0
A122: East | B122: Benghazi | C122: Toukra | D122: El Hemda | E122: لحمـــده | F122: LY01030206 | G122: Rural | H122: 20.612461 | I122: 32.423135 | J122: 2018-12-09 | K122: 23 | L122: No | M122: 0 | N122: 0 | AN122: 0 | AO122: 0 | AP122: 0 | AQ122: 0 | AR122: 0 | AS122: 0
A123: East | B123: Benghazi | C123: Toukra | D123: El mabna | E123: المبنى | F123: LY01030205 | G123: Rural | H123: 20.490702 | I123: 32.462629 | J123: 2018-12-06 | K123: 23 | L123: No | M123: 0 | N123: 0 | AN123: 0 | AO123: 0 | AP123: 0 | AQ123: 0 | AR123: 0 | AS123: 0
A124: East | B124: Derna | C124: Alqayqab | D124: Alqayqab Chamali | E124: القيقب الشمالي | F124: LY01010401 | G124: Urban | H124: 22.011225 | I124: 32.743559 | J124: 2018-12-13 | K124: 23 | L124: No | M124: 0 | N124: 0 | AN124: 0 | AO124: 0 | AP124: 0 | AQ124: 0 | AR124: 0 | AS124: 0
A125: East | B125: Derna | C125: Alqayqab | D125: Alqayqab El Janoubi | E125: القيقب الجنوبي | F125: LY01010402 | G125: Rural | H125: 22.024773 | I125: 32.650219 | J125: 2018-12-11 | K125: 23 | L125: No | M125: 0 | N125: 0 | AN125: 0 | AO125: 0 | AP125: 0 | AQ125: 0 | AR125: 0 | AS125: 0
A126: East | B126: Derna | C126: Alqubba | D126: Ain Mara | E126: عين مارة | F126: LY01010301 | G126: Urban | H126: 22.3823 | I126: 32.7567 | J126: 2018-12-02 | K126: 23 | L126: Yes | M126: 20 | N126: 100 | O126: Benghazi | P126: 8 | Q126: 40 | R126: Derna | S126: 7 | T126: 35 | U126: Sirt | V126: 5 | W126: 25 | X126: 20 | Y126: 100 | Z126: 0 | AA126: 0 | AB126: 0 | AC126: 0 | AD126: 0 | AE126: 0 | AF126: 0 | AG126: 0 | AH126: 0 | AI126: 0 | AJ126: 0 | AK126: 0 | AL126: 0 | AM126: 0 | AN126: 0 | AO126: 0 | AP126: 13 | AQ126: 65 | AR126: 7 | AS126: 35 | AT126: No | AU126: Yes | AV126: No | AW126: Yes | AX126: No | AY126: No | AZ126: No | BA126: Yes | BB126: Yes | BC126: No | BD126: Yes | BE126: No | BF126: Good | BG126: Shelter | BH126: Too expensive | BK126: Access to income | BL126: Jobs available but IDPs not qualified enough | BO126: Health services | BP126: Irregular supply of medicines
A127: East | B127: Derna | C127: Alqubba | D127: Alqubba El Chamalia | E127: القبة الشمالية | F127: LY01010304 | G127: Urban | H127: 22.2413 | I127: 32.7711 | J127: 2018-11-29 | K127: 23 | L127: Yes | M127: 40 | N127: 200 | O127: Derna | P127: 22 | Q127: 110 | R127: Sirt | S127: 8 | T127: 40 | U127: Benghazi | V127: 10 | W127: 50 | X127: 34 | Y127: 170 | Z127: 6 | AA127: 30 | AB127: 0 | AC127: 0 | AD127: 0 | AE127: 0 | AF127: 0 | AG127: 0 | AH127: 0 | AI127: 0 | AJ127: 0 | AK127: 0 | AL127: 0 | AM127: 0 | AN127: 12 | AO127: 60 | AP127: 8 | AQ127: 40 | AR127: 20 | AS127: 100 | AT127: Yes | AU127: Yes | AV127: No | AW127: No | AX127: No | AY127: No | AZ127: Yes | BA127: Yes | BB127: Yes | BC127: No | BD127: No | BE127: No | BF127: Good | BG127: Shelter | BH127: Too expensive | BK127: Food | BL127: Too expensive | BO127: NFIs | BP127: Too expensive
A128: East | B128: Derna | C128: Alqubba | D128: Alqubba El Janoubia | E128: القبة الجنوبية | F128: LY01010305 | G128: Urban | H128: 22.248259 | I128: 32.723199 | J128: 2018-11-27 | K128: 23 | L128: Yes | M128: 36 | N128: 180 | O128: Benghazi | P128: 20 | Q128: 100 | R128: Derna | S128: 16 | T128: 80 | X128: 32 | Y128: 160 | Z128: 4 | AA128: 20 | AB128: 0 | AC128: 0 | AD128: 0 | AE128: 0 | AF128: 0 | AG128: 0 | AH128: 0 | AI128: 0 | AJ128: 0 | AK128: 0 | AL128: 0 | AM128: 0 | AN128: 0 | AO128: 0 | AP128: 20 | AQ128: 100 | AR128: 16 | AS128: 80 | AT128: No | AU128: Yes | AV128: Yes | AW128: No | AX128: No | AY128: No | AZ128: No | BA128: Yes | BB128: Yes | BC128: No | BD128: No | BE128: No | BF128: Good | BG128: Health services | BH128: Quality not good | BK128: Shelter | BL128: Too expensive | BO128: Food | BP128: Too expensive
A129: East | B129: Derna | C129: Alqubba | D129: Bayt Thamer | E129: بيت ثامر | F129: LY01010302 | G129: Rural | H129: 22.303871 | I129: 32.788377 | J129: 2018-12-04 | K129: 23 | L129: No | M129: 0 | N129: 0 | AN129: 0 | AO129: 0 | AP129: 0 | AQ129: 0 | AR129: 0 | AS129: 0
A130: East | B130: Derna | C130: Alqubba | D130: El Daboussia | E130: الدبوسية | F130: LY01010303 | G130: Rural | H130: 22.2858 | I130: 32.8311 | J130: 2018-12-06 | K130: 23 | L130: No | M130: 0 | N130: 0 | AN130: 0 | AO130: 0 | AP130: 0 | AQ130: 0 | AR130: 0 | AS130: 0
A131: East | B131: Derna | C131: Alqubba | D131: Lamluda | E131: لملودة | F131: LY01010306 | G131: Rural | H131: 22.142259 | I131: 32.781341 | J131: 2018-12-09 | K131: 23 | L131: No | M131: 0 | N131: 0 | AN131: 0 | AO131: 0 | AP131: 0 | AQ131: 0 | AR131: 0 | AS131: 0
A132: East | B132: Derna | C132: Alqubba | D132: Srsrah | E132: سرسرة | F132: LY01010307 | G132: Rural | H132: 22.3886 | I132: 32.7475 | J132: 2018-12-11 | K132: 23 | L132: No | M132: 0 | N132: 0 | AN132: 0 | AO132: 0 | AP132: 0 | AQ132: 0 | AR132: 0 | AS132: 0
A133: East | B133: Derna | C133: Derna | D133: Abu Mansour | E133: ابو منصور | F133: LY01010201 | G133: Rural | H133: 22.640966 | I133: 32.760083 | J133: 2018-12-17 | K133: 23 | L133: No | M133: 0 | N133: 0 | AN133: 0 | AO133: 0 | AP133: 0 | AQ133: 0 | AR133: 0 | AS133: 0
A134: East | B134: Derna | C134: Derna | D134: Alajabilh | E134: الجبيلة | F134: LY01010202 | G134: Urban | H134: 22.638577 | I134: 32.761159 | J134: 2018-12-09 | K134: 23 | L134: No | M134: 0 | N134: 0 | AN134: 0 | AO134: 0 | AP134: 0 | AQ134: 0 | AR134: 0 | AS134: 0
A135: East | B135: Derna | C135: Derna | D135: Corsah | E135: كرســه | F135: LY01010203 | G135: Urban | H135: 22.420278 | I135: 32.842382 | J135: 2018-12-13 | K135: 23 | L135: Yes | M135: 90 | N135: 450 | O135: Derna | P135: 90 | Q135: 450 | X135: 85 | Y135: 425 | Z135: 5 | AA135: 25 | AB135: 0 | AC135: 0 | AD135: 0 | AE135: 0 | AF135: 0 | AG135: 0 | AH135: 0 | AI135: 0 | AJ135: 0 | AK135: 0 | AL135: 0 | AM135: 0 | AN135: 0 | AO135: 0 | AP135: 12 | AQ135: 60 | AR135: 78 | AS135: 390 | AT135: Yes | AU135: Yes | AV135: Yes | AW135: Yes | AX135: No | AY135: Yes | AZ135: Yes | BA135: Yes | BB135: Yes | BC135: No | BD135: No | BE135: No | BF135: Good | BG135: Shelter | BH135: Too expensive | BK135: Access to income | BL135: Jobs available but Income insufficient, | BO135: Health services | BP135: Too expensive
A136: East | B136: Derna | C136: Derna | D136: El Bilad | E136: البـــلاد | F136: LY01010204 | G136: Urban | H136: 22.638319 | I136: 32.759379 | J136: 2018-12-05 | K136: 23 | L136: Yes | M136: 45 | N136: 225 | O136: Derna | P136: 45 | Q136: 225 | X136: 39 | Y136: 195 | Z136: 6 | AA136: 30 | AB136: 0 | AC136: 0 | AD136: 0 | AE136: 0 | AF136: 0 | AG136: 0 | AH136: 0 | AI136: 0 | AJ136: 0 | AK136: 0 | AL136: 0 | AM136: 0 | AN136: 45 | AO136: 225 | AP136: 0 | AQ136: 0 | AR136: 0 | AS136: 0 | AT136: Yes | AU136: Yes | AV136: Yes | AW136: Yes | AX136: No | AY136: Yes | AZ136: No | BA136: Yes | BB136: Yes | BC136: No | BD136: Yes | BE136: No | BF136: Good | BG136: Shelter | BH136: Too expensive | BK136: Food | BL136: Too expensive | BO136: Health services | BP136: Too expensive
A137: East | B137: Derna | C137: Derna | D137: La Troun | E137: لا ثــرون | F137: LY01010205 | G137: Rural | H137: 22.278268 | I137: 32.867009 | J137: 2018-12-16 | K137: 23 | L137: Yes | M137: 40 | N137: 200 | O137: Derna | P137: 40 | Q137: 200 | X137: 37 | Y137: 185 | Z137: 3 | AA137: 15 | AB137: 0 | AC137: 0 | AD137: 0 | AE137: 0 | AF137: 0 | AG137: 0 | AH137: 0 | AI137: 0 | AJ137: 0 | AK137: 0 | AL137: 0 | AM137: 0 | AN137: 0 | AO137: 0 | AP137: 0 | AQ137: 0 | AR137: 40 | AS137: 200 | AT137: No | AU137: Yes | AV137: Yes | AW137: Yes | AX137: No | AY137: No | AZ137: No | BA137: Yes | BB137: Yes | BC137: No | BD137: Yes | BE137: No | BF137: Good | BG137: Shelter | BH137: Not sufficiently available | BK137: Food | BL137: Too expensive | BO137: Legal Help | BP137: Access at a high price
A138: East | B138: Derna | C138: Derna | D138: Maghar | E138: المغــــار | F138: LY01010206 | G138: Urban | H138: 22.633517 | I138: 32.764333 | J138: 2018-12-11 | K138: 23 | L138: No | M138: 0 | N138: 0 | AN138: 0 | AO138: 0 | AP138: 0 | AQ138: 0 | AR138: 0 | AS138: 0
A139: East | B139: Derna | C139: Derna | D139: Ras al-Hilal | E139: راس الهلال | F139: LY01010207 | G139: Rural | H139: 22.179635 | I139: 32.884521 | J139: 2018-12-19 | K139: 23 | L139: Yes | M139: 70 | N139: 350 | O139: Derna | P139: 70 | Q139: 350 | X139: 58 | Y139: 290 | Z139: 0 | AA139: 0 | AB139: 0 | AC139: 0 | AD139: 0 | AE139: 0 | AF139: 0 | AG139: 0 | AH139: 0 | AI139: 0 | AJ139: 0 | AK139: 0 | AL139: 12 | AM139: 60 | AN139: 0 | AO139: 0 | AP139: 15 | AQ139: 75 | AR139: 55 | AS139: 275 | AT139: Yes | AU139: Yes | AV139: Yes | AW139: Yes | AX139: No | AY139: Yes | AZ139: No | BA139: Yes | BB139: Yes | BC139: No | BD139: Yes | BE139: No | BF139: Good | BG139: Shelter | BH139: Too expensive | BK139: Food | BL139: Too expensive | BO139: Health services | BP139: Too expensive
A140: East | B140: Derna | C140: Labriq | D140: El Ezzeiat | E140: العزيات | F140: LY01010504 | G140: Rural | H140: 22.075856 | I140: 31.204678 | J140: 2018-12-13 | K140: 23 | L140: No | M140: 0 | N140: 0 | AN140: 0 | AO140: 0 | AP140: 0 | AQ140: 0 | AR140: 0 | AS140: 0
A141: East | B141: Derna | C141: Labriq | D141: Khawlan | E141: خـولان | F141: LY01010501 | G141: Rural | H141: 22.263719 | I141: 32.75312 | J141: 2018-12-24 | K141: 23 | L141: No | M141: 0 | N141: 0 | AN141: 0 | AO141: 0 | AP141: 0 | AQ141: 0 | AR141: 0 | AS141: 0
A142: East | B142: Derna | C142: Labriq | D142: Labriq El Chamali | E142: الابرق الشمالي | F142: LY01010503 | G142: Urban | H142: 21.999122 | I142: 32.791169 | J142: 2018-12-04 | K142: 23 | L142: Yes | M142: 10 | N142: 50 | O142: Misrata | P142: 10 | Q142: 50 | X142: 10 | Y142: 50 | Z142: 0 | AA142: 0 | AB142: 0 | AC142: 0 | AD142: 0 | AE142: 0 | AF142: 0 | AG142: 0 | AH142: 0 | AI142: 0 | AJ142: 0 | AK142: 0 | AL142: 0 | AM142: 0 | AN142: 0 | AO142: 0 | AP142: 0 | AQ142: 0 | AR142: 10 | AS142: 50 | AT142: No | AU142: Yes | AV142: No | AW142: No | AX142: No | AY142: No | AZ142: No | BA142: Yes | BB142: Yes | BC142: No | BD142: No | BE142: No | BF142: Good | BG142: Shelter | BH142: Too expensive | BK142: NFIs | BL142: Too expensive | BO142: Health services | BP142: Irregular supply of medicines
A143: East | B143: Derna | C143: Labriq | D143: Labriq El Janoubi | E143: الابرق الجنوبي | F143: LY01010505 | G143: Urban | H143: 21.991317 | I143: 32.778128 | J143: 2018-12-06 | K143: 23 | L143: No | M143: 0 | N143: 0 | AN143: 0 | AO143: 0 | AP143: 0 | AQ143: 0 | AR143: 0 | AS143: 0
A144: East | B144: Derna | C144: Labriq | D144: Mekhili | E144: المخيلـــي | F144: LY01010502 | G144: Rural | H144: 22.278784 | I144: 32.160228 | J144: 2018-12-11 | K144: 23 | L144: No | M144: 0 | N144: 0 | AN144: 0 | AO144: 0 | AP144: 0 | AQ144: 0 | AR144: 0 | AS144: 0
A145: East | B145: Derna | C145: Umm arrazam | D145: Abu Lafraas | E145: ابو الفرايس | F145: LY01010101 | G145: Rural | J145: 2018-12-13 | K145: 23 | L145: No | M145: 0 | N145: 0 | AN145: 0 | AO145: 0 | AP145: 0 | AQ145: 0 | AR145: 0 | AS145: 0
A146: East | B146: Derna | C146: Umm arrazam | D146: Al Bemba | E146: البمبة | F146: LY01010102 | G146: Rural | H146: 23.071516 | I146: 32.442152 | J146: 2018-12-12 | K146: 23 | L146: No | M146: 0 | N146: 0 | AN146: 0 | AO146: 0 | AP146: 0 | AQ146: 0 | AR146: 0 | AS146: 0
A147: East | B147: Derna | C147: Umm arrazam | D147: Martuba | E147: مرتوبة | F147: LY01010103 | G147: Urban | H147: 22.762284 | I147: 32.583641 | J147: 2018-12-09 | K147: 23 | L147: Yes | M147: 55 | N147: 275 | O147: Derna | P147: 43 | Q147: 215 | R147: Benghazi | S147: 12 | T147: 60 | X147: 47 | Y147: 235 | Z147: 8 | AA147: 40 | AB147: 0 | AC147: 0 | AD147: 0 | AE147: 0 | AF147: 0 | AG147: 0 | AH147: 0 | AI147: 0 | AJ147: 0 | AK147: 0 | AL147: 0 | AM147: 0 | AN147: 0 | AO147: 0 | AP147: 10 | AQ147: 50 | AR147: 45 | AS147: 225 | AT147: Yes | AU147: Yes | AV147: Yes | AW147: No | AX147: No | AY147: No | AZ147: No | BA147: Yes | BB147: Yes | BC147: No | BD147: No | BE147: No | BF147: Good | BG147: Shelter | BH147: Too expensive | BK147: Health services | BL147: Too expensive | BM147: Quality not good | BO147: Access to income | BP147: Not enough jobs available in muhalla | BQ147: Jobs available but Income insufficient,
A148: East | B148: Derna | C148: Umm arrazam | D148: Tamimi | E148: التميمي | F148: LY01010105 | G148: Rural | H148: 23.057772 | I148: 32.333042 | J148: 2018-12-11 | K148: 23 | L148: Yes | M148: 30 | N148: 150 | O148: Derna | P148: 23 | Q148: 115 | R148: Sirt | S148: 7 | T148: 35 | X148: 30 | Y148: 150 | Z148: 0 | AA148: 0 | AB148: 0 | AC148: 0 | AD148: 0 | AE148: 0 | AF148: 0 | AG148: 0 | AH148: 0 | AI148: 0 | AJ148: 0 | AK148: 0 | AL148: 0 | AM148: 0 | AN148: 0 | AO148: 0 | AP148: 10 | AQ148: 50 | AR148: 20 | AS148: 100 | AT148: No | AU148: Yes | AV148: Yes | AW148: No | AX148: No | AY148: No | AZ148: No | BA148: Yes | BB148: Yes | BC148: No | BD148: No | BE148: No | BF148: Good | BG148: Shelter | BH148: Too expensive | BI148: Not sufficiently available | BK148: Food | BL148: Too expensive | BO148: Water, Sanitation and Hygiene | BP148: Too expensive
A149: East | B149: Derna | C149: Umm arrazam | D149: Um Hfin | E149: ام حفين | F149: LY01010106 | G149: Rural | H149: 23.055512 | I149: 32.361129 | J149: 2018-12-06 | K149: 23 | L149: No | M149: 0 | N149: 0 | AN149: 0 | AO149: 0 | AP149: 0 | AQ149: 0 | AR149: 0 | AS149: 0
A150: East | B150: Derna | C150: Umm arrazam | D150: Umm arrazam El Markaz | E150: أم الرزم المركز | F150: LY01010104 | G150: Urban | H150: 23.008754 | I150: 32.531744 | J150: 2018-12-04 | K150: 23 | L150: Yes | M150: 35 | N150: 175 | O150: Derna | P150: 25 | Q150: 125 | R150: Sirt | S150: 10 | T150: 50 | X150: 30 | Y150: 150 | Z150: 5 | AA150: 25 | AB150: 0 | AC150: 0 | AD150: 0 | AE150: 0 | AF150: 0 | AG150: 0 | AH150: 0 | AI150: 0 | AJ150: 0 | AK150: 0 | AL150: 0 | AM150: 0 | AN150: 0 | AO150: 0 | AP150: 15 | AQ150: 75 | AR150: 20 | AS150: 100 | AT150: No | AU150: Yes | AV150: Yes | AW150: No | AX150: No | AY150: No | AZ150: No | BA150: Yes | BB150: Yes | BC150: No | BD150: No | BE150: No | BF150: Good | BG150: Shelter | BH150: Too expensive | BK150: Food | BL150: Too expensive | BO150: NFIs | BP150: Too expensive | BQ150: Not sufficiently available
A151: East | B151: Ejdabia | C151: Albrayga | D151: Albrayga | E151: البريقة | F151: LY01050603 | G151: Urban | H151: 19.620861 | I151: 30.399584 | J151: 2018-12-05 | K151: 23 | L151: Yes | M151: 4 | N151: 20 | O151: Sirt | P151: 4 | Q151: 20 | X151: 0 | Y151: 0 | Z151: 4 | AA151: 20 | AB151: 0 | AC151: 0 | AD151: 0 | AE151: 0 | AF151: 0 | AG151: 0 | AH151: 0 | AI151: 0 | AJ151: 0 | AK151: 0 | AL151: 0 | AM151: 0 | AN151: 2 | AO151: 10 | AP151: 2 | AQ151: 10 | AR151: 0 | AS151: 0 | AT151: No | AU151: Yes | AV151: No | AW151: No | AX151: No | AY151: No | AZ151: No | BA151: Yes | BB151: Yes | BC151: No | BD151: No | BE151: No | BF151: Good | BG151: Food | BH151: Too expensive | BK151: Shelter | BL151: Too expensive | BO151: Access to income | BP151: Not enough jobs available in muhalla
A152: East | B152: Ejdabia | C152: Albrayga | D152: Aqeela | E152: العقيلة | F152: LY01050601 | G152: Rural | H152: 19.198985 | I152: 30.255933 | J152: 2018-11-30 | K152: 23 | L152: Yes | M152: 4 | N152: 20 | O152: Sirt | P152: 4 | Q152: 20 | X152: 2 | Y152: 10 | Z152: 2 | AA152: 10 | AB152: 0 | AC152: 0 | AD152: 0 | AE152: 0 | AF152: 0 | AG152: 0 | AH152: 0 | AI152: 0 | AJ152: 0 | AK152: 0 | AL152: 0 | AM152: 0 | AN152: 2 | AO152: 10 | AP152: 2 | AQ152: 10 | AR152: 0 | AS152: 0 | AT152: No | AU152: Yes | AV152: No | AW152: No | AX152: No | AY152: No | AZ152: No | BA152: Yes | BB152: Yes | BC152: No | BD152: No | BE152: No | BF152: Good | BG152: Food | BH152: Too expensive | BK152: Shelter | BL152: Too expensive | BO152: Access to income | BP152: Not enough jobs available in muhalla
A153: East | B153: Ejdabia | C153: Albrayga | D153: Bechr | E153: بشر | F153: LY01050602 | G153: Rural | H153: 19.456881 | I153: 30.308163 | J153: 2018-12-02 | K153: 23 | L153: Yes | M153: 5 | N153: 25 | O153: Sirt | P153: 5 | Q153: 25 | X153: 4 | Y153: 20 | Z153: 1 | AA153: 5 | AB153: 0 | AC153: 0 | AD153: 0 | AE153: 0 | AF153: 0 | AG153: 0 | AH153: 0 | AI153: 0 | AJ153: 0 | AK153: 0 | AL153: 0 | AM153: 0 | AN153: 4 | AO153: 20 | AP153: 1 | AQ153: 5 | AR153: 0 | AS153: 0 | AT153: No | AU153: Yes | AV153: No | AW153: Yes | AX153: No | AY153: No | AZ153: No | BA153: Yes | BB153: Yes | BC153: No | BD153: No | BE153: No | BF153: Good | BG153: Food | BH153: Too expensive | BK153: Shelter | BL153: Too expensive | BO153: Access to income | BP153: Not enough jobs available in muhalla
A154: East | B154: Ejdabia | C154: Albrayga | D154: Marsa Albrayga | E154: البريقة المرسى | F154: LY01050604 | G154: Urban | H154: 19.570367 | I154: 30.409221 | J154: 2018-12-07 | K154: 23 | L154: Yes | M154: 3 | N154: 15 | O154: Sirt | P154: 3 | Q154: 15 | X154: 3 | Y154: 15 | Z154: 0 | AA154: 0 | AB154: 0 | AC154: 0 | AD154: 0 | AE154: 0 | AF154: 0 | AG154: 0 | AH154: 0 | AI154: 0 | AJ154: 0 | AK154: 0 | AL154: 0 | AM154: 0 | AN154: 0 | AO154: 0 | AP154: 3 | AQ154: 15 | AR154: 0 | AS154: 0 | AT154: No | AU154: Yes | AV154: No | AW154: Yes | AX154: No | AY154: No | AZ154: No | BA154: Yes | BB154: Yes | BC154: No | BD154: No | BE154: No | BF154: Good | BG154: Food | BH154: Too expensive | BK154: Shelter | BL154: Too expensive | BO154: Access to income | BP154: Not enough jobs available in muhalla
A155: East | B155: Ejdabia | C155: Aujala | D155: Abdullah bin Sarah | E155: عبد الله بن سراح | F155: LY01050301 | G155: Rural | H155: 21.291423 | I155: 29.124675 | J155: 2018-12-11 | K155: 23 | L155: Yes | M155: 26 | N155: 130 | O155: Alkufra | P155: 17 | Q155: 85 | R155: Benghazi | S155: 9 | T155: 45 | X155: 16 | Y155: 80 | Z155: 10 | AA155: 50 | AB155: 0 | AC155: 0 | AD155: 0 | AE155: 0 | AF155: 0 | AG155: 0 | AH155: 0 | AI155: 0 | AJ155: 0 | AK155: 0 | AL155: 0 | AM155: 0 | AN155: 5 | AO155: 25 | AP155: 21 | AQ155: 105 | AR155: 0 | AS155: 0 | AT155: No | AU155: Yes | AV155: No | AW155: No | AX155: No | AY155: No | AZ155: No | BA155: Yes | BB155: Yes | BC155: No | BD155: No | BE155: No | BF155: Good | BG155: Water, Sanitation and Hygiene | BH155: Too expensive | BI155: No water network | BK155: Food | BL155: Too expensive | BO155: Shelter | BP155: Too expensive
A156: East | B156: Ejdabia | C156: Aujala | D156: Sawani | E156: الســــواني | F156: LY01050302 | G156: Rural | H156: 21.293882 | I156: 29.160801 | J156: 2018-12-15 | K156: 23 | L156: Yes | M156: 38 | N156: 190 | O156: Alkufra | P156: 25 | Q156: 125 | R156: Benghazi | S156: 13 | T156: 65 | X156: 15 | Y156: 75 | Z156: 23 | AA156: 115 | AB156: 0 | AC156: 0 | AD156: 0 | AE156: 0 | AF156: 0 | AG156: 0 | AH156: 0 | AI156: 0 | AJ156: 0 | AK156: 0 | AL156: 0 | AM156: 0 | AN156: 18 | AO156: 90 | AP156: 20 | AQ156: 100 | AR156: 0 | AS156: 0 | AT156: No | AU156: Yes | AV156: No | AW156: No | AX156: No | AY156: No | AZ156: No | BA156: Yes | BB156: Yes | BC156: No | BD156: No | BE156: No | BF156: Good | BG156: Water, Sanitation and Hygiene | BH156: Too expensive | BI156: No water network | BK156: Food | BL156: Too expensive | BO156: Shelter | BP156: Too expensive
A157: East | B157: Ejdabia | C157: Ejdabia | D157: El Fateh | E157: الفاتح | F157: LY01050402 | G157: Urban | H157: 20.218733 | I157: 30.760659 | J157: 2018-11-25 | K157: 23 | L157: Yes | M157: 1010 | N157: 5050 | O157: Misrata | P157: 700 | Q157: 3500 | R157: Benghazi | S157: 100 | T157: 500 | U157: Sirt | V157: 210 | W157: 1050 | X157: 710 | Y157: 3550 | Z157: 23 | AA157: 115 | AB157: 0 | AC157: 0 | AD157: 0 | AE157: 0 | AF157: 0 | AG157: 0 | AH157: 0 | AI157: 0 | AJ157: 277 | AK157: 1385 | AL157: 0 | AM157: 0 | AN157: 700 | AO157: 3500 | AP157: 310 | AQ157: 1550 | AR157: 0 | AS157: 0 | AT157: No | AU157: Yes | AV157: No | AW157: Yes | AX157: No | AY157: No | AZ157: No | BA157: Yes | BB157: Yes | BC157: No | BD157: No | BE157: No | BF157: Good | BG157: Food | BH157: Too expensive | BK157: Shelter | BL157: Too expensive | BO157: Access to income | BP157: Not enough jobs available in muhalla
A158: East | B158: Ejdabia | C158: Ejdabia | D158: El Wehda El Arabia | E158: الوحدة العربية | F158: LY01050403 | G158: Urban | H158: 20.223611 | I158: 30.759 | J158: 2018-11-27 | K158: 23 | L158: Yes | M158: 600 | N158: 3000 | O158: Misrata | P158: 500 | Q158: 2500 | R158: Benghazi | S158: 40 | T158: 200 | U158: Sirt | V158: 60 | W158: 300 | X158: 600 | Y158: 3000 | Z158: 0 | AA158: 0 | AB158: 0 | AC158: 0 | AD158: 0 | AE158: 0 | AF158: 0 | AG158: 0 | AH158: 0 | AI158: 0 | AJ158: 0 | AK158: 0 | AL158: 0 | AM158: 0 | AN158: 500 | AO158: 2500 | AP158: 100 | AQ158: 500 | AR158: 0 | AS158: 0 | AT158: No | AU158: Yes | AV158: No | AW158: Yes | AX158: No | AY158: No | AZ158: No | BA158: Yes | BB158: Yes | BC158: No | BD158: No | BE158: No | BF158: Good | BG158: Food | BH158: Too expensive | BK158: Shelter | BL158: Too expensive | BO158: Access to income | BP158: Not enough jobs available in muhalla
A159: East | B159: Ejdabia | C159: Ejdabia | D159: Ezahf El Akhthar | E159: الزحف الاخضر | F159: LY01050404 | G159: Urban | H159: 20.226239 | I159: 30.766343 | J159: 2018-11-29 | K159: 23 | L159: Yes | M159: 430 | N159: 2150 | O159: Misrata | P159: 250 | Q159: 1250 | R159: Benghazi | S159: 90 | T159: 450 | U159: Sirt | V159: 90 | W159: 450 | X159: 410 | Y159: 2050 | Z159: 20 | AA159: 100 | AB159: 0 | AC159: 0 | AD159: 0 | AE159: 0 | AF159: 0 | AG159: 0 | AH159: 0 | AI159: 0 | AJ159: 0 | AK159: 0 | AL159: 0 | AM159: 0 | AN159: 300 | AO159: 1500 | AP159: 90 | AQ159: 450 | AR159: 40 | AS159: 200 | AT159: No | AU159: Yes | AV159: No | AW159: Yes | AX159: No | AY159: No | AZ159: No | BA159: Yes | BB159: Yes | BC159: No | BD159: No | BE159: No | BF159: Good | BG159: Food | BH159: Too expensive | BK159: Shelter | BL159: Too expensive | BO159: Access to income | BP159: Not enough jobs available in muhalla
A160: East | B160: Ejdabia | C160: Ejdabia | D160: Sidi Fredj | E160: سيدي فرج | F160: LY01050405 | G160: Urban | H160: 20.248532 | I160: 30.758372 | J160: 2018-12-01 | K160: 23 | L160: Yes | M160: 25 | N160: 125 | O160: Misrata | P160: 15 | Q160: 75 | R160: Benghazi | S160: 3 | T160: 15 | U160: Sirt | V160: 7 | W160: 35 | X160: 25 | Y160: 125 | Z160: 0 | AA160: 0 | AB160: 0 | AC160: 0 | AD160: 0 | AE160: 0 | AF160: 0 | AG160: 0 | AH160: 0 | AI160: 0 | AJ160: 0 | AK160: 0 | AL160: 0 | AM160: 0 | AN160: 20 | AO160: 100 | AP160: 5 | AQ160: 25 | AR160: 0 | AS160: 0 | AT160: No | AU160: Yes | AV160: No | AW160: Yes | AX160: No | AY160: No | AZ160: No | BA160: Yes | BB160: Yes | BC160: No | BD160: No | BE160: No | BF160: Good | BG160: Food | BH160: Too expensive | BK160: Shelter | BL160: Too expensive | BO160: Access to income | BP160: Not enough jobs available in muhalla
A161: East | B161: Ejdabia | C161: Ejdabia | D161: Sultan El Chamali | E161: سلطان الشمالية | F161: LY01050401 | G161: Urban | H161: 20.224021 | I161: 31.096462 | J161: 2018-12-03 | K161: 23 | L161: Yes | M161: 45 | N161: 225 | O161: Misrata | P161: 40 | Q161: 200 | R161: Sirt | S161: 5 | T161: 25 | X161: 45 | Y161: 225 | Z161: 0 | AA161: 0 | AB161: 0 | AC161: 0 | AD161: 0 | AE161: 0 | AF161: 0 | AG161: 0 | AH161: 0 | AI161: 0 | AJ161: 0 | AK161: 0 | AL161: 0 | AM161: 0 | AN161: 45 | AO161: 225 | AP161: 0 | AQ161: 0 | AR161: 0 | AS161: 0 | AT161: No | AU161: Yes | AV161: No | AW161: Yes | AX161: No | AY161: No | AZ161: No | BA161: Yes | BB161: Yes | BC161: No | BD161: No | BE161: No | BF161: Good | BG161: Food | BH161: Too expensive | BK161: Shelter | BL161: Too expensive | BO161: Access to income | BP161: Not enough jobs available in muhalla
A162: East | B162: Ejdabia | C162: Ejdabia | D162: Sultan El Janoubi | E162: سلطان الجنوبي | F162: LY01050408 | G162: Urban | H162: 20.224484 | I162: 31.097041 | J162: 2018-12-05 | K162: 23 | L162: Yes | M162: 60 | N162: 300 | O162: Misrata | P162: 45 | Q162: 225 | R162: Benghazi | S162: 5 | T162: 25 | U162: Derna | V162: 10 | W162: 50 | X162: 60 | Y162: 300 | Z162: 0 | AA162: 0 | AB162: 0 | AC162: 0 | AD162: 0 | AE162: 0 | AF162: 0 | AG162: 0 | AH162: 0 | AI162: 0 | AJ162: 0 | AK162: 0 | AL162: 0 | AM162: 0 | AN162: 50 | AO162: 250 | AP162: 5 | AQ162: 25 | AR162: 5 | AS162: 25 | AT162: No | AU162: Yes | AV162: No | AW162: Yes | AX162: No | AY162: No | AZ162: No | BA162: Yes | BB162: Yes | BC162: No | BD162: No | BE162: No | BF162: Good | BG162: Food | BH162: Too expensive | BK162: Shelter | BL162: Too expensive | BO162: Access to income | BP162: Not enough jobs available in muhalla
A163: East | B163: Ejdabia | C163: Ejdabia | D163: Thawra Echaabia | E163: الثورة الشعبية | F163: LY01050406 | G163: Urban | H163: 20.207442 | I163: 30.754215 | J163: 2018-12-12 | K163: 23 | L163: Yes | M163: 55 | N163: 275 | O163: Misrata | P163: 45 | Q163: 225 | R163: Benghazi | S163: 5 | T163: 25 | U163: Sirt | V163: 5 | W163: 25 | X163: 55 | Y163: 275 | Z163: 0 | AA163: 0 | AB163: 0 | AC163: 0 | AD163: 0 | AE163: 0 | AF163: 0 | AG163: 0 | AH163: 0 | AI163: 0 | AJ163: 0 | AK163: 0 | AL163: 0 | AM163: 0 | AN163: 50 | AO163: 250 | AP163: 5 | AQ163: 25 | AR163: 0 | AS163: 0 | AT163: No | AU163: Yes | AV163: No | AW163: Yes | AX163: No | AY163: No | AZ163: No | BA163: Yes | BB163: Yes | BC163: No | BD163: No | BE163: No | BF163: Good | BG163: Food | BH163: Too expensive | BK163: Shelter | BL163: Too expensive | BO163: Access to income | BP163: Not enough jobs available in muhalla
A164: East | B164: Ejdabia | C164: Ejdabia | D164: Zouitina | E164: زويتينة | F164: LY01050407 | G164: Urban | H164: 20.11789 | I164: 30.952269 | J164: 2018-12-09 | K164: 23 | L164: Yes | M164: 100 | N164: 500 | O164: Misrata | P164: 60 | Q164: 300 | R164: Benghazi | S164: 20 | T164: 100 | U164: Sirt | V164: 20 | W164: 100 | X164: 100 | Y164: 500 | Z164: 0 | AA164: 0 | AB164: 0 | AC164: 0 | AD164: 0 | AE164: 0 | AF164: 0 | AG164: 0 | AH164: 0 | AI164: 0 | AJ164: 0 | AK164: 0 | AL164: 0 | AM164: 0 | AN164: 80 | AO164: 400 | AP164: 20 | AQ164: 100 | AR164: 0 | AS164: 0 | AT164: No | AU164: Yes | AV164: No | AW164: Yes | AX164: No | AY164: No | AZ164: No | BA164: Yes | BB164: Yes | BC164: No | BD164: No | BE164: No | BF164: Good | BG164: Food | BH164: Too expensive | BK164: Shelter | BL164: Too expensive | BO164: Access to income | BP164: Not enough jobs available in muhalla
A165: East | B165: Ejdabia | C165: Ejkherra | D165: Ijkharra | E165: اجخرة | F165: LY01050101 | G165: Rural | H165: 21.649898 | I165: 29.296253 | J165: 2018-12-15 | K165: 23 | L165: Yes | M165: 45 | N165: 225 | O165: Alkufra | P165: 28 | Q165: 140 | R165: Benghazi | S165: 17 | T165: 85 | X165: 40 | Y165: 200 | Z165: 5 | AA165: 25 | AB165: 0 | AC165: 0 | AD165: 0 | AE165: 0 | AF165: 0 | AG165: 0 | AH165: 0 | AI165: 0 | AJ165: 0 | AK165: 0 | AL165: 0 | AM165: 0 | AN165: 15 | AO165: 75 | AP165: 30 | AQ165: 150 | AR165: 0 | AS165: 0 | AT165: No | AU165: Yes | AV165: No | AW165: No | AX165: No | AY165: No | AZ165: Yes | BA165: Yes | BB165: Yes | BC165: No | BD165: No | BE165: No | BF165: Good | BG165: Water, Sanitation and Hygiene | BH165: No Problem | BI165: Too expensive | BJ165: No water network | BK165: Food | BL165: Too expensive | BO165: Shelter | BP165: Too expensive
A166: East | B166: Ejdabia | C166: Jalu | D166: Allbah | E166: اللبــــة | F166: LY01050201 | G166: Urban | H166: 21.566072 | I166: 29.032397 | J166: 2018-11-28 | K166: 23 | L166: Yes | M166: 110 | N166: 550 | O166: Alkufra | P166: 71 | Q166: 355 | R166: Benghazi | S166: 39 | T166: 195 | X166: 65 | Y166: 325 | Z166: 45 | AA166: 225 | AB166: 0 | AC166: 0 | AD166: 0 | AE166: 0 | AF166: 0 | AG166: 0 | AH166: 0 | AI166: 0 | AJ166: 0 | AK166: 0 | AL166: 0 | AM166: 0 | AN166: 30 | AO166: 150 | AP166: 80 | AQ166: 400 | AR166: 0 | AS166: 0 | AT166: No | AU166: Yes | AV166: No | AW166: No | AX166: No | AY166: No | AZ166: Yes | BA166: Yes | BB166: Yes | BC166: No | BD166: No | BE166: No | BF166: Good | BG166: Water, Sanitation and Hygiene | BH166: Too expensive | BK166: Food | BL166: Too expensive | BO166: Shelter | BP166: Too expensive
A167: East | B167: Ejdabia | C167: Jalu | D167: Asharaf | E167: الشـرف | F167: LY01050203 | G167: Urban | H167: 21.51575 | I167: 29.048559 | J167: 2018-12-03 | K167: 23 | L167: Yes | M167: 60 | N167: 300 | O167: Alkufra | P167: 32 | Q167: 160 | R167: Benghazi | S167: 28 | T167: 140 | X167: 20 | Y167: 100 | Z167: 40 | AA167: 200 | AB167: 0 | AC167: 0 | AD167: 0 | AE167: 0 | AF167: 0 | AG167: 0 | AH167: 0 | AI167: 0 | AJ167: 0 | AK167: 0 | AL167: 0 | AM167: 0 | AN167: 18 | AO167: 90 | AP167: 42 | AQ167: 210 | AR167: 0 | AS167: 0 | AT167: No | AU167: Yes | AV167: No | AW167: No | AX167: No | AY167: No | AZ167: Yes | BA167: Yes | BB167: No | BC167: No | BD167: No | BE167: No | BF167: Good | BG167: Water, Sanitation and Hygiene | BH167: Too expensive | BK167: Food | BL167: Too expensive | BO167: Shelter | BP167: Too expensive
A168: East | B168: Ejdabia | C168: Jalu | D168: EL Erg | E168: العرق | F168: LY01050202 | G168: Urban | H168: 21.543253 | I168: 29.035085 | J168: 2018-12-03 | K168: 23 | L168: Yes | M168: 140 | N168: 700 | O168: Alkufra | P168: 89 | Q168: 445 | R168: Benghazi | S168: 51 | T168: 255 | X168: 110 | Y168: 550 | Z168: 30 | AA168: 150 | AB168: 0 | AC168: 0 | AD168: 0 | AE168: 0 | AF168: 0 | AG168: 0 | AH168: 0 | AI168: 0 | AJ168: 0 | AK168: 0 | AL168: 0 | AM168: 0 | AN168: 50 | AO168: 250 | AP168: 90 | AQ168: 450 | AR168: 0 | AS168: 0 | AT168: No | AU168: Yes | AV168: No | AW168: No | AX168: No | AY168: No | AZ168: Yes | BA168: Yes | BB168: Yes | BC168: No | BD168: No | BE168: No | BF168: Good | BG168: Water, Sanitation and Hygiene | BH168: Too expensive | BK168: Food | BL168: Too expensive | BO168: Shelter | BP168: Too expensive
A169: East | B169: Ejdabia | C169: Jalu | D169: Rached | E169: راشـــد | F169: LY01050204 | G169: Urban | H169: 21.51621 | I169: 29.014866 | J169: 2018-12-05 | K169: 23 | L169: Yes | M169: 30 | N169: 150 | O169: Alkufra | P169: 11 | Q169: 55 | R169: Benghazi | S169: 19 | T169: 95 | X169: 20 | Y169: 100 | Z169: 10 | AA169: 50 | AB169: 0 | AC169: 0 | AD169: 0 | AE169: 0 | AF169: 0 | AG169: 0 | AH169: 0 | AI169: 0 | AJ169: 0 | AK169: 0 | AL169: 0 | AM169: 0 | AN169: 10 | AO169: 50 | AP169: 20 | AQ169: 100 | AR169: 0 | AS169: 0 | AT169: No | AU169: Yes | AV169: No | AW169: No | AX169: No | AY169: No | AZ169: Yes | BA169: Yes | BB169: Yes | BC169: No | BD169: No | BE169: No | BF169: Good | BG169: Water, Sanitation and Hygiene | BH169: Too expensive | BK169: Food | BL169: Too expensive | BO169: Shelter | BP169: Too expensive
A170: East | B170: Ejdabia | C170: Marada | D170: Marada | E170: مرادة | F170: LY01050501 | G170: Rural | H170: 19.2044 | I170: 29.221401 | J170: 2018-12-12 | K170: 23 | L170: No | M170: 0 | N170: 0 | AN170: 0 | AO170: 0 | AP170: 0 | AQ170: 0 | AR170: 0 | AS170: 0
A171: East | B171: Tobruk | C171: Bir Alashhab | D171: Bir Alashhab Elmarkaz | E171: بئر الاشهب المركز | F171: LY01040203 | G171: Urban | H171: 24.65974 | I171: 31.885324 | J171: 2018-12-26 | K171: 23 | L171: Yes | M171: 23 | N171: 115 | O171: Benghazi | P171: 16 | Q171: 80 | R171: Sirt | S171: 7 | T171: 35 | X171: 23 | Y171: 115 | Z171: 0 | AA171: 0 | AB171: 0 | AC171: 0 | AD171: 0 | AE171: 0 | AF171: 0 | AG171: 0 | AH171: 0 | AI171: 0 | AJ171: 0 | AK171: 0 | AL171: 0 | AM171: 0 | AN171: 0 | AO171: 0 | AP171: 23 | AQ171: 115 | AR171: 0 | AS171: 0 | AT171: No | AU171: Yes | AV171: No | AW171: No | AX171: No | AY171: No | AZ171: No | BA171: Yes | BB171: Yes | BC171: No | BD171: No | BE171: No | BF171: Good | BG171: Shelter | BH171: Too expensive | BK171: Food | BL171: Too expensive | BO171: NFIs | BP171: Too expensive
A172: East | B172: Tobruk | C172: Bir Alashhab | D172: Comput Elchamalia | E172: كمبوت الشمالية | F172: LY01040201 | G172: Urban | H172: 24.481183 | I172: 31.906927 | J172: 2018-12-06 | K172: 23 | L172: No | M172: 0 | N172: 0 | AN172: 0 | AO172: 0 | AP172: 0 | AQ172: 0 | AR172: 0 | AS172: 0
A173: East | B173: Tobruk | C173: Bir Alashhab | D173: Comput Eljanoubia | E173: كمبوت الجنوبية | F173: LY01040202 | G173: Rural | H173: 24.481368 | I173: 31.905326 | J173: 2018-12-04 | K173: 23 | L173: No | M173: 0 | N173: 0 | AN173: 0 | AO173: 0 | AP173: 0 | AQ173: 0 | AR173: 0 | AS173: 0
A174: East | B174: Tobruk | C174: Bir Alashhab | D174: Janzur | E174: جنزور | F174: LY01040206 | G174: Rural | H174: 24.656991 | I174: 31.982012 | J174: 2018-11-28 | K174: 23 | L174: No | M174: 0 | N174: 0 | AN174: 0 | AO174: 0 | AP174: 0 | AQ174: 0 | AR174: 0 | AS174: 0
A175: East | B175: Tobruk | C175: Bir Alashhab | D175: Qasr jadi | E175: قصر الجدي | F175: LY01040204 | G175: Rural | H175: 24.78777 | I175: 31.853576 | J175: 2018-12-02 | K175: 23 | L175: No | M175: 0 | N175: 0 | AN175: 0 | AO175: 0 | AP175: 0 | AQ175: 0 | AR175: 0 | AS175: 0
A176: East | B176: Tobruk | C176: Bir Alashhab | D176: Um Rokba | E176: ام ركبة | F176: LY01040205 | G176: Rural | H176: 24.583929 | I176: 31.561285 | J176: 2018-11-29 | K176: 23 | L176: No | M176: 0 | N176: 0 | AN176: 0 | AO176: 0 | AP176: 0 | AQ176: 0 | AR176: 0 | AS176: 0
A177: East | B177: Tobruk | C177: Emsaed | D177: Elbordi | E177: البردي | F177: LY01040101 | G177: Urban | H177: 25.083333 | I177: 31.766667 | J177: 2018-12-03 | K177: 23 | L177: Yes | M177: 5 | N177: 25 | O177: Sirt | P177: 5 | Q177: 25 | X177: 5 | Y177: 25 | Z177: 0 | AA177: 0 | AB177: 0 | AC177: 0 | AD177: 0 | AE177: 0 | AF177: 0 | AG177: 0 | AH177: 0 | AI177: 0 | AJ177: 0 | AK177: 0 | AL177: 0 | AM177: 0 | AN177: 0 | AO177: 0 | AP177: 5 | AQ177: 25 | AR177: 0 | AS177: 0 | AT177: No | AU177: Yes | AV177: No | AW177: No | AX177: No | AY177: No | AZ177: No | BA177: Yes | BB177: Yes | BC177: No | BD177: No | BE177: No | BF177: Good | BG177: Shelter | BH177: Too expensive | BK177: Food | BL177: Too expensive | BO177: Health services | BP177: Irregular supply of medicines
